Workbook

Sheet Admin (hidden)
D2: MACROS ON
H7: Wish list
H8: Edits to summary tab
H9: More helpful hints
H10: A way to clear formatting when running though validator a second time
D22: FORMATTING ON

Sheet Instructions (hidden)
A1: DEPARTMENT OF HOUSING AND COMMUNITY DEVELOPMENT
A3: HOUSING ELEMENT ANNUAL PROGRESS
A4: REPORT (APR) INSTRUCTIONS
A5: INTRODUCTION
A6: Note: Some instructions and definitions can be found in the column headers of the tables. (Cells with red markers)
A7: Government Code section 65400 requires that each city, county, or city and county, including charter cities, prepare an annual progress report (APR) on the status of the housing element of its general plan and progress in its implementation, using forms and definitions adopted by the Department of Housing and Community Development (HCD). The following form is to be used for satisfying the reporting requirements of Government Code section 65400, subdivision (a)(2).
A8: These forms and instructions, originally adopted March 27, 2010, have been updated to incorporate new Housing Element APR requirements pursuant to Chapter 374, Statutes of 2017 (Assembly Bill 879); Chapter 366, Statutes of 2017 (Senate Bill 35), Chapter 664, Statutes of 2019 (Assembly Bill 1486), Chapter 159, Statues of 2019 (Assembly Bill 101), Chapter 661, Statutes of 2020 (Assembly Bill 1255), Chapter 15, and Statutes of 2020 (Assembly Bill 83).
A9: How to submit the Housing Element Annual Progress Report (APR)
A10: The APR must be submitted to the Department of Housing and Community Development (HCD) and the Governor’s Office of Planning and Research (OPR) on or before April 1 of each year using the forms and tables specified by HCD. The APR provides information for the previous calendar year and must be submitted separately to both HCD and OPR (Gov. Code, § 65400.). There are two methods available for submitting APRs:
A11: 1. Online Annual Progress Reporting System - This allows jurisdictions to upload directly into HCD’s database, limiting the risk of errors. To use the online system, email APR@hcd.ca.gov, and request login information for your jurisdiction. Please note: Using the online system only provides the information to HCD. The APR must still be submitted to OPR. Their email address is opr.apr@opr.ca.gov.
A12: 2. Email - Jurisdictions complete the Excel APR forms and submit to HCD at APR@hcd.ca.gov and to OPR at opr.apr@opr.ca.gov. When using the email method, send the electronic version as an Excel workbook attachment. Do not send a scanned copy of the tables. In addition to submitting Housing Element APRs, jurisdictions must also submit General Plan Annual Progress Reports to both HCD and OPR. Please email these documents to APR@hcd.ca.gov and opr.apr@opr.ca.gov.
A13: NOTE: When submitting successor entity reporting data as required pursuant to California Health and Safety Code 34176.1, the data must be identified as an addendum to the APR and emailed to APR@hcd.ca.gov concurrently with the APR submittal. When using the online system, this report should be sent separately to the APR email box to satisfy the Government Code section 65400 reporting requirement.
A15: TABLE OF CONTENTS
A16: INTRODUCTION
A17: DEFINITIONS
A18: FORM INSTRUCTIONS
A19: GENERAL INFORMATION
A20: START HERE
A21: TABLE A Housing Development Applications Submitted
A22: TABLE A2 Annual Building Activity Report Summary - New Construction, Entitled, Permits and Completed Units
A23: TABLE B Regional Housing Needs Allocation Progress – Permitted Units Issued By Affordability
A24: TABLE C Sites Identified or Rezoned to Accommodate Shortfall Housing Need
A25: TABLE D Program Implementation Status pursuant to Government Code section 65583
A26: TABLE E Commercial Development Bonus Approved pursuant to Government Code section 65915.7
A27: TABLE F Units Rehabilitated, Preserved and Acquired for Alternative Adequate Sites pursuant to Government Code section 65583.1, subdivision (c)(2)
A28: TABLE G Locally Owned Lands Included in the Housing Element Sites Inventory that have been sold, leased, or otherwise disposed of, pursuant to Government Code section 65400.1
A29: Table H - Locally Owned or Controlled Lands Declared Surplus Pursuant to Government Code section 54221, or Identified as Excess Pursuant to Government Code section 50569
A31: DEFINITIONS
A32: 1. “Above moderate income” means households earning more than 120 percent of area median income.
A33: 2. “Annual Progress Report (APR)” means the housing element annual progress report required by Government Code section 65400 and due to HCD by April 1 of each year reporting on the prior calendar year’s activities.
A34: 3. “Application submitted” means an application submittal that has been determined complete by the jurisdiction.
A35: 4. “Area Median Income (AMI)” means the median household income based on household size of a geographic area of the state, as annually updated by the California Department of Housing and Community Development (HCD), pursuant to Health and Safety Code section 50093.
A36: 5. “Certificate of occupancy date” is the date(s) the certificate(s) of occupancy, or other evidence of readiness for occupancy (e.g., final inspection, notice of completion), was/were issued.
A37: 6. “Committed Assistance” is when a local government has entered into a legally enforceable agreement within a specific timeframe spanning from the beginning of the RHNA projection and may be executed throughout the planning period. Committed Assistance includes obligating funds or other in-kind services for affordable units available for occupancy within two years of the agreement.
A38: 7. “Completed Entitlement” means a housing development or project which has received all the required land use approvals or entitlements necessary for the issuance of a building permit. This means that there is no additional action required to be eligible to apply and obtain a building permit.
A39: 8. “Density Bonus” as defined in Government Code section 65915.
A40: 9. “Extremely low-income” means a household earning less than 30 percent of area median income pursuant to Health and Safety Code, section 50105.
A41: 10. “Infill housing unit” is defined as being a unit located within an urbanized area or within an urban cluster on a site that has been previously developed for urban uses, or a vacant site where the properties adjoining at least two sides of the project site are, or previously have been, developed for urban uses. For the purposes of this definition, an urbanized area or an urban cluster is as defined by the United States Census Bureau.
A42: 11. “Locality” or “local government” means a city, including a charter city, a county, including a charter county, or a city and county, including a charter city and county.
A43: 12. “Lower-income or Low-Income” means a household earning less than 80 percent of area median income pursuant to Health and Safety Code, section 50079.5.
A44: 13. “Moderate income” means households whose income does not exceed 120 percent of area median income pursuant to Health and Safety Code, section 50093.
A45: 14. “Permitted units” mean units for which building permits for new housing construction have been issued by the local government during the reporting calendar year. For this purpose, “new housing unit” means housing units as defined by the Department of Finance for inclusion in the Department of Finance’s annual “E-5 City/County Population and Housing Estimates” report, which is the same as the Census definition of a housing unit.
A46: Note: Accessory dwelling units (ADU) and junior accessory dwelling units (JADU) pursuant to Government Code sections 65852.2 and 65852.22 meet the definition above.
A47: 15. “Production report” or “Annual Progress Report (APR)” means the information reported pursuant to subparagraph (D) of paragraph (2) of subdivision (a) of Section 65400 of Government Code.
A48: 16. “Project” or “Development” refers to a housing related activity where new construction of a unit(s) is proposed or has had a building permit and/or certificate of occupancy issued during the reporting calendar year. This may include single family, mixed use, multifamily, accessory dwelling unit, or any other developments where housing units, as defined by the U.S. Census Bureau and the California Department of Finance, are a component of the project.
A49: 17. “Realistic Capacity” means an estimate of the number of units that can be accommodated on each site in the inventory. The estimate must include adjustments to reflect land use controls and site improvement requirements but may rely on established minimum density standards.
A50: 18. “Reporting period” means the prior calendar year’s activities for the housing element annual progress report required by Government Code section 65400 and due to HCD by April 1 of each year and utilized to create the determination for which locality is subject to the Streamlined Ministerial Approval (SB35 Streamlining) Provisions.
A51: 19. “RHNA” means the local government’s share of the regional housing need allocation pursuant to Government Code section 65584 et seq.
A52: 20. Unit Category: type of units that are classified under the following categories:
A53: · Single Family-Detached Unit (SFD)- a one-unit structure with open space on all four sides. The unit often possesses an attached garage.
A54: · Single Family-Attached Unit (SFA)- a one-unit structure attached to another unit by a common wall, commonly referred to as a townhouse, half-plex, or row house. The shared wall or walls extend from the foundation to the roof with adjoining units to form a property line. Each unit has individual heating and plumbing systems.
A55: · 2-, 3-, and 4-Plex Units per Structure (2-4)- a structure containing two, three, or four units and not classified as single-unit attached structure.
A56: · 5 or More Units per Structure (5+)- a structure containing five or more housing units.
A57: · Accessory Dwelling Unit (ADU) - means a unit that is attached, detached or located within the living area of the existing dwelling or residential dwelling unit which provides complete independent living facilities for one or more persons. It shall include permanent provisions for living, sleeping, eating, cooking, and sanitation on the same parcel on which the single-family dwelling is situated pursuant to Government Code section 65852.2. An ADU also includes the following: an efficiency unit, as defined in Section 17958.1 of the Health and Safety Code or a manufactured home, as defined in Section 18007 of the Health and Safety Code.
A58: · Mobile Home Unit/Manufactured Home – a one-unit structure that was originally constructed to be towed on its own chassis. Please note: Spaces in a mobile home park can be counted towards RHNA, if the spaces counted are new hook-ups/spaces rather than new mobile home park residents moving onto existing lots.
A59: 21. “Very low-income” means households earning less than 50 percent of area median income pursuant to Health and Safety Code, section 50105.
A60: AUTHORITY CITED: Government Code section 65400.
A62: FORM INSTRUCTIONS
A63: GENERAL INFORMATION
A64: Fields in gray auto-populate. No data entry is needed.
A65: Some of the cells are locked to ensure data can be automatically uploaded to the online system.
A66: Tables A and A2 of the worksheet are currently configured to accept up to 1,000 lines of data. Insert rows if needed.
A67: Projects are now tracked at all stages of development, from initial application to final certificate of occupancy.
A68: All dates must be entered as month/date/year (e.g., 6/1/2018).
A69: The form works best with macros enabled in Excel.
A70: Begin with the “Start Here” tab, as previous years’ information will pre-populate in Table B after the jurisdiction’s name is entered.
A72: START HERE
A73: Enter general contact and report information in the “Start Here” tab.
A74: It is important to start with this worksheet because the answers entered will affect how information is displayed (e.g. permit numbers from prior years are pre-populated when jurisdiction’s name is entered).
A75: Information to enter includes:
A76: · City or County name
A77: · Reporting calendar year (e.g., 2019). Please note: The reporting year will always be from January 1 – December 31 of the previous year.
A78: · Contact person
A79: · Title
A80: · Email
A81: · Phone
A82: · Mailing address
A83: This sheet includes instructions regarding submitting the Housing Element APR to HCD and OPR.
A85: TABLE A Housing Development Applications Submitted
A86: Only include data on housing units and developments for which an application was deemed complete between January 1st and December 31st of the reporting year identified on the “Start Here” tab. In table A, an “application” is a formal submittal of a project for approval. This application is either an application for a discretionary entitlement, or where only a ministerial process is required (e.g., zoned by right).
A87: 1. Project Identifier: Include the Current Assessor Parcel Number (APN) and street address. The Prior APN, Project Name and Local Jurisdiction Tracking ID are optional.
A88: · Prior APN – Enter an APN previously associated with the parcel, if applicable (optional field).
A89: · Current APN – Enter the current available APN. If necessary, enter additional APNs in the notes section field number 10.
A90: · Street Address – Enter the number and name of street.
A91: · Project Name – Enter the project name, if available (optional field).
A92: · Local Jurisdiction Tracking ID – This may be the permit number or other identifier (optional field).
A93: 2. Unit Types: Each development should be categorized by one of the following codes. Refer to “Unit Category” in the Definitions section for additional descriptions. Use the drop-down menu to select one of the following options:
A95: · SFA (single-family attached unit)
A97: · SFD (single-family detached unit)
A99: · 2-4 (two- to four-unit structures)
A101: · 5+ (five or more unit structure, multifamily)
A103: · ADU (accessory dwelling unit)
A105: · MH (mobile home/manufactured home)
A107: 3. Tenure: Identify whether the units within the development project are either proposed or planned at initial occupancy for either renters or owners. Use the drop-down menu to select one of the following options:
A109: · Renter occupant (R) or
A111: · Owner occupant (O)
A113: 4. Date Application Submitted: Enter the date the housing development application was submitted. If the application was incomplete at the time of submittal, enter the date the application was determined complete by the local government (refer to “application submitted” under definitions). Enter date as month/day/year (e.g., 6/1/2020).
A114: 5. Proposed Units Affordability by Household Incomes: For each development, list the number of units proposed in the application by affordability level and whether the units are deed restricted or non-deed restricted. Refer to the Definitions section for additional descriptions:
A115: Very low-income households: 0-50% AMI
A116: Low-income households: 50-80% AMI
A117: Moderate-income households: 80-120% AMI
A118: Above-moderate households: above 120%
A119: To verify income levels, refer to the income limit charts on HCD’s website at http://www.hcd.ca.gov/grants-funding/income-limits/state-and-federal-income-limits.shtml (see section for Official State Income Limits).
A120: 6. Total Proposed Units by Project: This field auto-populates with the total number of units proposed, as entered in #5 (total of deed restricted & non-deed restricted units for Very Low-, Low-, Moderate- and Above Moderate- income households).
A121: 7. Total Approved Units by Project: Enter the number of units that the jurisdiction approved for this project application.
A122: 8. Total Disapproved Units by Project. If the project is denied or total number of units is reduced, please enter the number of units denied or reduced. This value should equal Total Proposed Units by Project minus “Total Approved Units by Project.”
A123: 9. Was “Application Submitted” pursuant to Government Code section 65913.4, subdivision (b) (Streamlined Ministerial Approval Process (SB 35 Streamlining))? Use the drop-down menu to select one of the following options:
A124: · No
A125: · Yes – But no action taken
A126: · Yes – Approved
A127: · Yes – Denied
A128: 10. Was a Density Bonus application received for this project? Answer yes or no.
A129: 11. Was the Density Bonus application approved for this project? Answer yes or no.
A130: 12. Please indicate the status of the application. Use the drop-down to select one of the following options:
A131: · Approved
A132: · Pending
A133: · Disapproved
A134: 13. Notes: Use this field to enter any applicable notes about the project or development. Completion of this field is optional.
A136: TABLE A2 Annual Building Activity Report Summary – New Construction, Entitled, Permits and Completed Units
A137: Fields 1 through 15 Housing Development Information
A138: This table requires information for very low, low, moderate and above moderate income housing affordability categories and for mixed-income projects. Include data on net new housing units and developments that have received any one of the following:
A139: · An entitlement
A140: · A building permit
A141: · A certificate of occupancy or other form of readiness that was issued during the reporting year.
A142: Please note: Only building permits are used for the purposes of determining progress towards RHNA (fields 7, 8 and 9 of this table, described below).
A143: New housing units: For the APR, “new housing unit” means housing units as defined by the Department of Finance for inclusion in the Department of Finance’s annual “E-5 City/County Population and Housing Estimates” report, which is the same as the census definition of a housing unit.
A144: Development activity spanning multiple years: It is highly likely that the same project will be reported in multiple years of APRs. For example, a project should be listed in three separate APRs if it is entitled in one year, receives the building permit next year, and the certificate of occupancy in the year following.
A145: In scenarios where development activity spans multiple years, the jurisdiction should only report activity that occurred within the reporting year. For example, if a project received building permits in 2018, but received entitlements in 2017, the 2018 APR should only report the building permit information (fields 7, 8 and 9), and not include entitlement information (fields 4, 5 and 6).
A146: Separate living quarters: A house, an apartment, a mobile home, a group of rooms, or a single room occupied as separate living quarters, or if vacant, intended for occupancy as separate living quarters. Separate living quarters are those in which the occupants live separately from any other individuals in the building and which have direct access from outside the building or through a common hall. For vacant units, the criteria of separateness and direct access are applied to the intended occupants whenever possible.
A147: Please note: Group quarters facilities, such dormitories, student houisng, bunkhouses, and barracks cannot be counted as housing units.
A148: Net new units: If a building is being demolished to build the new units, the APR should report net new units. For example, if 10 units are being demolished on a site to build a 100-unit building, the APR should report 100 new units and 10 units in the demolished/destroyed column. In the case of new construction where fewer units are being built than were there previously, do not report negative permits.
A149: To assist in reporting demolished/destroyed units, refer to section number 20 below (Table A2, column 20).
A150: All new unit information is to be listed in the following fields:
A151: Fields 1 through 3 – Project Identifier and Unit Types
A152: 1. Project Identifier: Include the Current Assessor Parcel Number (APN) and street address. The prior APN, project name or local jurisdiction tracking ID are optional.
A153: · Prior APN – Enter an APN previously associated with the parcel, if applicable (optional field).
A154: · Current APN – Enter the current available APN. This field allows a maximum of 40 characters. If necessary enter additional APNs in the notes section field number 21.
A155: · Street Address – Enter the number and name of street.
A156: · Project Name – Enter the project name, if available (optional field).
A157: · Local Jurisdiction Tracking ID – This may be the permit number or other identifier (optional field).
A158: 2. Unit Category Codes: Each development should be categorized by one of the following codes: Refer to “Unit Category” in the Definitions section for additional descriptions. Use the drop-down menu to select one of the following options:
A159: · SFA (single-family attached unit)
A160: · SFD (single-family detached unit)
A161: · 2-4 (two- to four-unit structures)
A162: · 5+ (five or more unit structure, multifamily)
A163: · ADU (accessory dwelling unit)
A164: · MH (mobile home/manufactured home)
A165: 3. Tenure: Identify whether the units within the development project are either proposed or planned at initial occupancy for either renters or owners. Use the drop-down menu to select one of the following options:
A166: · Renter occupant (R) or
A167: · Owner occupant (O)
A168: Fields 4 through 6 – Completed Entitlement
A169: 4. Affordability by Household Income – Completed Entitlement: For each development, list the number of units that have been issued a completed entitlement during the reporting year by affordability level and whether the units are deed restricted or non-deed restricted. Refer to the Definitions section for additional descriptions:
A170: · Very low-income households: 0-50% AMI
A171: · Low-income households: 50-80% AMI
A172: · Moderate-income households: 80-120% AMI
A173: · Above-moderate households: above 120%
A174: To verify income levels, refer to the income limit charts on HCDs website at http://www.hcd.ca.gov/grants-funding/income-limits/state-and-federal-income-limits.shtml (see section for Official State Income Limits).
A175: 5. Entitlement Date Approved: Enter the date within the reporting year that all required land use approvals or entitlements were issued by the jurisdiction; leave blank if entitlement was approved outside the reporting year. Enter date as month/day/year (e.g., 6/1/2018). Refer to definition of “Completed Entitlement.”
A176: 6. # of Units Issued Entitlements: This is an auto-populated field. This field reflects the total number of units that were entitled for very-low, low, moderate, and above moderate income, as entered in field 4 on this table.
A177: Fields 7 through 9 – Building Permit
A178: 7. Affordability by Household Income – Building Permits: For each development, list the number of units that have been issued a building permit during the reporting year by affordability level and whether the units are deed restricted or non-deed restricted. Refer to the Definitions section for additional descriptions:
A179: · Very low-income households: 0-50% AMI
A180: · Low-income households: 50-80% AMI
A181: · Moderate-income households: 80-120% AMI
A182: · Above-moderate households: above 120%
A183: To verify income levels, refer to the income limit charts on HCDs website at http://www.hcd.ca.gov/grants-funding/income-limits/state-and-federal-income-limits.shtml (see section for Official State Income Limits).
A184: 8. Building Permits Date Issued: Enter the date within the reporting year that the building permit was issued by the jurisdiction; leave blank if building permit was issued outside the reporting year. Enter date as month/day/year (e.g., 6/1/2018). Refer to definition of “Permitted Units.”
A185: 9. # of Units Issued Building Permits: This is an auto-populated field. This field will sum units that were permitted for very-low, low, moderate, and above moderate income, as entered in field 7 on this table.
A186: Fields 10 through 12 – Certificates of Occupancy
A187: 10. Affordability by Household Income – Certificates of Occupancy: For each development, list the number of units that issued certificates of occupancy or other form of readiness (e.g., final inspection, notice of completion) during the reporting year by affordability level and whether the units are deed restricted or non-deed restricted. Refer to the Definitions section for additional descriptions:
A188: · Very low-income households: 0-50% AMI
A189: · Low-income households: 50-80% AMI
A190: · Moderate-income households: 80-120% AMI
A191: · Above-moderate households: above 120%
A192: To verify income levels, refer to the income limit charts on HCDs website at http://www.hcd.ca.gov/grants-funding/income-limits/state-and-federal-income-limits.shtml (see section for Official State Income Limits).
A193: 11. Certificates of Occupancy (or other forms of Readiness) Date Issued: Enter the date the certificate of occupancy or other form of readiness (e.g., final inspection, notice of completion) was issued for the project. For most jurisdictions, this is the final step before residents can occupy the unit. Leave blank if certificate of occupancy was not issued in the reporting year. Enter date as month/day/year (e.g., 6/1/2018).
A194: 12. # of Units Issued Certificates of Occupancy or other forms of Readiness: This is an auto-populated field. This field will sum units that were issued a certificate of occupancy for very-low, low, moderate, and above moderate income, as entered in field 10 on this table.
A195: 13. How many of the Units were Extremely-Low Income Units (Optional): To gain a greater understanding of the level of building activity to meet the needs of extremely low-income households in the state, HCD asks that you estimate, to the extent possible, the number of units affordable to extremely-low income households. This number will be a subset of the number of units affordable to very low-income households, as indicated in fields 4, 7 and 10 above. Please note: The number entered in the very low section will not be reduced by the number entered here. Although completion of this field is optional, your input would be greatly appreciated.
A196: 14. Was Project approved using Government Code section 65913.4, subdivision (b) (Streamlined Ministerial Approval Process (SB 35 Streamlining))? Use the drop-down menu to select one of the following options:
A197: · “Y” if jurisdiction approved the project application pursuant to the streamlined ministerial approval process (SB 35 Streamlining).
A198: · “N” for all other situations.
A199: 15. Are these infill units? To gain a greater understanding of the level of infill housing activity in the state, HCD asks that you clarify if the housing units reported are infill by selecting “Yes” or “No.” Although completion of this field is optional, your input would be greatly appreciated. See Definitions section for “infill housing units” definition.
A200: Fields 16 through 18: Please note, if any units are reported as very-low, low, or moderate income in fields 4, 7 or 10 then information in fields 16, 17 and/or 18 must be completed to demonstrate affordability. In the absence of justification that the unit is affordable to a very- low, low, and moderate income household, the unit must be counted as above-moderate income.
A201: Fields 16 and 17 Housing with Financial Assistance and/or Deed Restrictions
A202: For all housing units developed or approved with public financial assistance and/or have recorded affordability deed restriction or covenants, identify funding sources and/or mechanisms that enable units to be affordable.
A203: 16. Assistance Programs Used for Each Development: Enter information here if units received financial assistance from the city or county and/or other subsidy sources, have affordability restrictions or covenants, and/or recapture of public funds upon resale.
A204: Use the drop-down menu to select the acronym of the applicable funding program(s), as listed below. To select more than one funding source click once then select the cell again and click another source.
A205: · Acq/Rehab: CalHFA Acquisition/Rehab Loan Program
A206: · AHP: Affordable Housing Program - Fed Home Loan
A207: · AHSC: Affordable Housing and Sustainable Communities
A208: · CalHOME: CalHOME
A209: · CDBG: Community Development Block Grant
A210: · CDLAC: CDLAC Bonds (CA Debt Limit Allocation Committee)
A211: · CESH: CA Emergency Solutions & Housing
A212: · ESG: Emergency Solutions Grant
A213: · GSAF: Golden State Acquisition Fund
A214: · HEAP: Homeless Emergency Aid Program
A215: · HHAP: Homeless Housing, Assistance and Prevention Program
A216: · HKEY: Homekey
A217: · HOME: Housing Investment Partnership Program
... 145 more rows

Sheet FAQs (hidden)
A1: Frequently Asked Questions
A2: Can I leave a row blank? | B2: Yes, you may leave blank rows in between rows that have information. However, you may not leave more than 10 rows in a row blank in between rows with information.
A3: How do I delete rows? | B3: Click on a cell in the row(s) and type Ctrl-d. Note: Macros must be enabled
A4: Why are the rows not summing correctly? | B4: The summary tab and sum rows only include activities that occurred during the reporting year, according to the year entered in the "Start Here" tab.
A5: Why are some cells highlighted yellow or green? | B5: Yellow Cells: Required cells for each row become highlighted yellow once any cell in the row contains a character. The affordability descriptions become highlighted and required once any lower or moderate income units are entered into the form. Green Cells: Cells highlighted green are where you indicate the number of units by affordability. This is required for any project in Table A. This is also required for the applicable sections (completed entitlement, issued building permits, issued certificates of occupancy) of Table A2. For example, if a project in Table A2 was issued a building permit, but not an entitlement or certificate of occupancy during the reporting year, you would enter the unit count in one of the green cells in the building permit section only. You may leave the other sections blank even though they are highlighted green, since they wouldn't apply to this example. Once a value is entered into this range, the range will no longer be highlighted green.
A6: Why are the date cells highlighted red? | B6: Cells can be highlighted red for two reasons: Date cells: Sometimes, dates that are copied and pasted into this form are formatted as text. When pasting dates into the form please paste with the "match destination formatting" option. If the date cells are still highlighted red, they contain text. These must be converted to dates. To do so, open a blank workbook and paste in the dates that are formatted as text. In an adjacent column, enter the function =DATEVALUE and refer the function to the cell with date formatted as text. This will result in a 5-digit number. Copy and paste these 5-digit numbers back into the APR form, then change the format of the cells to "Short Date" (i.e., 3/4/2012). Text cells: Cells can also be highlighted red if the length of the text entered into the cell exceeds the character limit.
A7: Can the same project be included in both Table A and Table A2? | B7: Yes. Table A tracks all applications for residential development that were received and deemed complete during the reporting year. Table A2 tracks all entitlements, building permits, and certificates of occupancy for residential development that were issued in the reporting year. If a project was applied for and received entitlements, building permits, and/or certificates of occupancy during the reporting year, that project would be listed in both Table A and Table A2.
A8: What if I have nothing to report? | B8: At minimum, the "Start Here" tab and Table D must be completed. If you have nothing to report in any of the other tables, please leave them blank, do NOT put N/A or something similar.
A9: How do I correct or update the values in Table B? | B9: Table B contains data HCD has received from prior APR submittals as of October 6, 2020. If the numbers do not match your records, please contact HCD.
A10: Do I need to take the form to my Council or Board prior to submitting the APR? | B10: Government Code section 65400 requires the planning agency to provide this report to the legislative body (i.e. local Council or Board), HCD, and OPR by April 1 of each year. The statute does not specify in which order they be provided, and HCD does not require the report to be submitted to the legislative body prior to submitting it to HCD.
A11: Can I use this form for a prior year? | B11: You can use this form for 2018 -2020. Make sure to change the reporting year in row 5 of the "Start Here" tab. Table G is not required for 2018. Table H and LEAP are not required for 2018-2019. For the years 2017 and prior, you must use the old version of the APR. Please contact HCD at apr@hcd.ca.gov to obtain.
A12: Does submitting the Housing Element APR fulfill the requirements of submitting a General Plan APR? | B12: No. Government Code section 65400 requires jurisdictions to also submit a General Plan Annual Progress Report to OPR and HCD. These can be emailed to opr.apr@hcd.ca.gov and APR@hcd.ca.gov

Sheet Version Number (hidden)
A1: Version Number | B1: Description of changes | C1: Date | D1: User
A2: 7.0 | B2: AB 3093 (ALI/ELI RHNA): Added Deed Restricted and Non-Deed Restricted columns for ALI and ELI to Tables A and A2
A3: 6.0 | B3: Added version number tab and version number 6.0 in cell A2 of that tab AB 1743 (Ministerial vs. Discretionary): Added column before the Notes column on Table A Replaced SB 35 columns in Table A and Table A2 with streamlinining column - new data validation added AB 2011 - Housing in commercial SB 6 - Housing in commercial Summary tab - Changed formula in Summary tab so SB35 still calculates correctly, created additional summary tables SB 649 - Tenant preference policy reporting - Created Table K Updated Table B Fixed table B projection period formula Added changes to validator to accommodate new columns in Table A and Table A2 Added additional data validation to ELI column in Table A2 Improved funtionality of addRows, validator, and Importer macros Fixed validator, added data validation for remediation purposes

Sheet Start Here
A1: Please Start Here
A3: General Information
A4: Jurisidiction Name | B4: Dixon | E4: shJurName | F4: Optional: Click here to import last year's data. This is best used when the workbook is new and empty. You will be prompted to pick an old workbook to import from. Project and program data will be copied exactly how it was entered in last year's form and must be updated. If a project is no longer has any reportable activity, you may delete the project by selecting a cell in the row and typing ctrl + d.
A5: Reporting Calendar Year | B5: 2025 | E5: shRepYear
A6: Contact Information
A7: First Name | B7: Austin | E7: shFName
A8: Last Name | B8: Forde | E8: shLName
A9: Title | B9: aforde@cityofidxonca.gov | E9: shTitle | F9: Click here to download APR Instructions
A10: Email | B10: aforde@cityofidxonca.gov | E10: shEmail
A11: Phone | B11: 7076787000 | E11: shPhone
A12: Mailing Address
A13: Street Address | B13: 600 East A Street | E13: shAddress | F13: Click here to add rows to a table. If you add too many rows, you may select a cell in the row you wish to remove and type ctrl + d.
A14: City | B14: Dixon | E14: shCity
A15: Zipcode | B15: 95620 | E15: shZip
F16: v_02_19_26

Sheet Finish Here
B1: Optional: This runs a macro which checks to ensure all required fields are filled out. The macro will create two files saved in the same directory this APR file is saved in. One file will be a copy of the APR with highlighted cells which require information. The other file will be list of the problematic cells, along with a description of the nature of the error.
C2: Submittal Instructions
B3: Optional: Save before running. This copies data on Table A2, and creates another workbook with the table split across 4 tabs, each of which can fit onto a single page for easier printing. Running this macro will remove the comments on the column headers, which contain the instructions. Do not save the APR file after running in order to preserve comments once it is reopened. | C3: Please save your file as Jurisdictionname2025 (no spaces). Example: the City of San Luis Obispo would save their file as SanLuisObispo2025 Housing Element Annual Progress Reports (APRs) forms and tables must be submitted to HCD and the Governor's Office of Planning and Research (OPR) on or before April 1 of each year for the prior calendar year; submit separate reports directly to both HCD and OPR pursuant to Government Code section 65400. There are two options for submitting APRs: 1. Online Annual Progress Reporting System - Please see the link to the online system to the left. This allows you to upload the completed APR form into directly into HCD’s database limiting the risk of errors. If you would like to use the online system, email APR@hcd.ca.gov and HCD will send you the login information for your jurisdiction. Please note: Using the online system only provides the information to HCD. The APR must still be submitted to OPR. Their email address is opr.apr@opr.ca.gov. 2. Email - If you prefer to submit via email, you can complete the excel Annual Progress Report forms and submit to HCD at APR@hcd.ca.gov and to OPR at opr.apr@opr.ca.gov. Please send the Excel workbook, not a scanned or PDF copy of the tables.
B6: Optional: This macro identifies dates entered that occurred outside of the reporting year. RHNA credit is only given for building permits issued during the reporting year.
A10: Link to the online system: | B10: https://hcd.my.site.com/hcdconnect
B14: Toggles formatting that turns cells green/yellow/red based on data validation rules.

Sheet Summary
B1: Data is auto-populated based on data entered in Tables A, A2, C, and D
B3: Jurisdiction | C3: ='Start Here'!B4 -> Dixon
B4: Reporting Year | C4: ='Start Here'!B5 -> 2025 | D4: (Jan. 1 - Dec. 31)
B5: Housing Element Planning Period | C5: =IFERROR(IF(ISBLANK(VLOOKUP(C3,'Planning Periods'!$E$2:$P$540,12)),"5th Cycle",VLOOKUP(C3,'Planning Periods'!$E$2:$P$540,12)),"") -> 6th Cycle | D5: =IF(ISBLANK(C3),"",IFERROR(VLOOKUP(C3,'Planning Periods'!$E$2:$Q$540,10),"")) -> 01/31/2023 - 01/31/2031
B7: Building Permits Issued by Affordability Summary
B8: Income Level | E8: Current Year
B9: Acutely Low | D9: Deed Restricted | E9: ='Table A2'!U12 -> 0 | F9: sum_vLow_Deed
D10: Non-Deed Restricted | E10: ='Table A2'!V12 -> 0 | F10: sum_vLow_None
B11: Extremely Low | D11: Deed Restricted | E11: ='Table A2'!W12 -> 0 | F11: sum_low_Deed
D12: Non-Deed Restricted | E12: ='Table A2'!X12 -> 0 | F12: sum_low_None
B13: Very Low | D13: Deed Restricted | E13: ='Table A2'!Y12 -> 0 | F13: sum_vLow_Deed
D14: Non-Deed Restricted | E14: ='Table A2'!Z12 -> 0 | F14: sum_vLow_None
B15: Low | D15: Deed Restricted | E15: ='Table A2'!AA12 -> 0 | F15: sum_low_Deed
D16: Non-Deed Restricted | E16: ='Table A2'!AB12 -> 0 | F16: sum_low_None
B17: Moderate | D17: Deed Restricted | E17: ='Table A2'!AC12 -> 0 | F17: sum_Mod_Deed
D18: Non-Deed Restricted | E18: ='Table A2'!AD12 -> 0 | F18: sum_mod_None
B19: Above Moderate | E19: ='Table A2'!AE12 -> 235 | F19: sum_Above
B20: Total Units | E20: =SUM(E9:E19) -> 235 | F20: sum_Total
B22: Units by Structure Type | C22: Entitled | D22: Permitted | E22: Completed
A23: SFA | B23: Single-family Attached | C23: =SUMPRODUCT(('Table A2'!$T$13:$T$1000)*(TRIM('Table A2'!$F$13:$F$1000)=$A23)*(YEAR('Table A2'!$S$13:$S$1000)='Start Here'!$B$5)) -> 0 | D23: =SUMPRODUCT(('Table A2'!$AG$13:$AG$1000)*(TRIM('Table A2'!$F$13:$F$1000)=$A23)*(YEAR('Table A2'!$AF$13:$AF$1000)='Start Here'!$B$5)) -> 0 | E23: =SUMPRODUCT(('Table A2'!$AT$13:$AT$1000)*(TRIM('Table A2'!$F$13:$F$1000)=$A23)*(YEAR('Table A2'!$AS$13:$AS$1000)='Start Here'!$B$5)) -> 0
A24: SFD | B24: Single-family Detached | C24: =SUMPRODUCT(('Table A2'!$T$13:$T$1000)*(TRIM('Table A2'!$F$13:$F$1000)=$A24)*(YEAR('Table A2'!$S$13:$S$1000)='Start Here'!$B$5)) -> 0 | D24: =SUMPRODUCT(('Table A2'!$AG$13:$AG$1000)*(TRIM('Table A2'!$F$13:$F$1000)=$A24)*(YEAR('Table A2'!$AF$13:$AF$1000)='Start Here'!$B$5)) -> 46 | E24: =SUMPRODUCT(('Table A2'!$AT$13:$AT$1000)*(TRIM('Table A2'!$F$13:$F$1000)=$A24)*(YEAR('Table A2'!$AS$13:$AS$1000)='Start Here'!$B$5)) -> 41
A25: 2 to 4 | B25: 2 to 4 units per structure | C25: =SUMPRODUCT(('Table A2'!$T$13:$T$1000)*(TRIM('Table A2'!$F$13:$F$1000)=$A25)*(YEAR('Table A2'!$S$13:$S$1000)='Start Here'!$B$5)) -> 0 | D25: =SUMPRODUCT(('Table A2'!$AG$13:$AG$1000)*(TRIM('Table A2'!$F$13:$F$1000)=$A25)*(YEAR('Table A2'!$AF$13:$AF$1000)='Start Here'!$B$5)) -> 186 | E25: =SUMPRODUCT(('Table A2'!$AT$13:$AT$1000)*(TRIM('Table A2'!$F$13:$F$1000)=$A25)*(YEAR('Table A2'!$AS$13:$AS$1000)='Start Here'!$B$5)) -> 0
A26: 5+ | B26: 5+ units per structure | C26: =SUMPRODUCT(('Table A2'!$T$13:$T$1000)*(TRIM('Table A2'!$F$13:$F$1000)=$A26)*(YEAR('Table A2'!$S$13:$S$1000)='Start Here'!$B$5)) -> 0 | D26: =SUMPRODUCT(('Table A2'!$AG$13:$AG$1000)*(TRIM('Table A2'!$F$13:$F$1000)=$A26)*(YEAR('Table A2'!$AF$13:$AF$1000)='Start Here'!$B$5)) -> 0 | E26: =SUMPRODUCT(('Table A2'!$AT$13:$AT$1000)*(TRIM('Table A2'!$F$13:$F$1000)=$A26)*(YEAR('Table A2'!$AS$13:$AS$1000)='Start Here'!$B$5)) -> 0
A27: ADU | B27: Accessory Dwelling Unit | C27: =SUMPRODUCT(('Table A2'!$T$13:$T$1000)*(TRIM('Table A2'!$F$13:$F$1000)=$A27)*(YEAR('Table A2'!$S$13:$S$1000)='Start Here'!$B$5)) -> 0 | D27: =SUMPRODUCT(('Table A2'!$AG$13:$AG$1000)*(TRIM('Table A2'!$F$13:$F$1000)=$A27)*(YEAR('Table A2'!$AF$13:$AF$1000)='Start Here'!$B$5)) -> 3 | E27: =SUMPRODUCT(('Table A2'!$AT$13:$AT$1000)*(TRIM('Table A2'!$F$13:$F$1000)=$A27)*(YEAR('Table A2'!$AS$13:$AS$1000)='Start Here'!$B$5)) -> 1
A28: MH | B28: Mobile/Manufactured Home | C28: =SUMPRODUCT(('Table A2'!$T$13:$T$1000)*(TRIM('Table A2'!$F$13:$F$1000)=$A28)*(YEAR('Table A2'!$S$13:$S$1000)='Start Here'!$B$5)) -> 0 | D28: =SUMPRODUCT(('Table A2'!$AG$13:$AG$1000)*(TRIM('Table A2'!$F$13:$F$1000)=$A28)*(YEAR('Table A2'!$AF$13:$AF$1000)='Start Here'!$B$5)) -> 0 | E28: =SUMPRODUCT(('Table A2'!$AT$13:$AT$1000)*(TRIM('Table A2'!$F$13:$F$1000)=$A28)*(YEAR('Table A2'!$AS$13:$AS$1000)='Start Here'!$B$5)) -> 0
B29: Total | C29: =SUM(C23:C28) -> 0 | D29: =SUM(D23:D28) -> 235 | E29: =SUM(E23:E28) -> 42
B31: Infill Housing Developments and Infill Units Permitted | D31: # of Projects | E31: Units
A32: Y | B32: Indicated as Infill | D32: =COUNTIFS('Table A2'!$AF$13:$AF$1000,">="&DATE(Summary!$C$4,1,1),'Table A2'!$AF$13:$AF$1000,"<="&DATE($C$4,12,31),'Table A2'!$AW$13:$AW$1000,Summary!A32) -> 142 | E32: =SUMIFS('Table A2'!$AG$13:$AG$1000,'Table A2'!$AF$13:$AF$1000,">="&DATE(Summary!$C$4,1,1),'Table A2'!$AF$13:$AF$1000,"<="&DATE($C$4,12,31),'Table A2'!$AW$13:$AW$1000,A32) -> 235
A33: N | B33: Not Indicated as Infill | D33: =COUNTIFS('Table A2'!$AF$13:$AF$1000,">="&DATE(Summary!$C$4,1,1),'Table A2'!$AF$13:$AF$1000,"<="&DATE($C$4,12,31),'Table A2'!$AW$13:$AW$1000,Summary!A33) -> 0 | E33: =SUMIFS('Table A2'!$AG$13:$AG$1000,'Table A2'!$AF$13:$AF$1000,">="&DATE(Summary!$C$4,1,1),'Table A2'!$AF$13:$AF$1000,"<="&DATE($C$4,12,31),'Table A2'!$AW$13:$AW$1000,A33) -> 0
B36: Housing Applications Summary
B37: Total Housing Applications Submitted: | E37: =SUMPRODUCT(--(YEAR('Table A'!H13:H1000)='Start Here'!$B$5)) -> 0 | F37: sumSubmitted
B38: Number of Proposed Units in All Applications Received: | E38: ='Table A'!T12 -> 0 | F38: sumReceived
B39: Total Housing Units Approved: | E39: ='Table A'!U12 -> 0 | F39: sumApproved
B40: Total Housing Units Disapproved: | E40: ='Table A'!V12 -> 0 | F40: sumDisapproved
B43: Use of Streamlined Ministerial Approval Process or SMAP (formerly SB 35 / 423) - Applications
B44: Number of SMAP Applications | E44: =COUNTIFS('Table A'!H13:H1000,">="&DATE(Summary!$C$4,1,1),'Table A'!W13:W1000,"*"&Summary!B65&"*") -> 0 | F44: sumStream
B45: Number of SMAP Applications Approved | E45: =SUMPRODUCT((YEAR('Table A'!$H13:$H1000)='Start Here'!$B$5)*('Table A'!$W13:$W1000='Deed Rest And Asst Pgm Data'!P7)*('Table A'!$AA$13:$AA$1000="Approved")) -> 0 | F45: sumStreamApproved
B46: Total Units Constructed with SB 35 Streamlining | E46: =SUMIF('Table A2'!AU:AU, 'Deed Rest And Asst Pgm Data'!$P$7,'Table A2'!AT:AT) -> 0 | F46: sumStreamUnits
C49: sum_Table_Rental | D49: sum_Table_Owner | E49: sum_Table_Total
B50: Units Constructed - SMAP (formerly SB 35 / 423) - Permits
B51: Income | C51: Rental | D51: Ownership | E51: Total
B52: Acutely Low | C52: =SUMPRODUCT(('Table A2'!$U$13:$U$1000)*(('Table A2'!$AU$13:$AU$1000)='Deed Rest And Asst Pgm Data'!$P$7)*(('Table A2'!$G$13:$G$1000)="R")*(YEAR('Table A2'!$AF$13:$AF$1000)='Start Here'!$B$5))+SUMPRODUCT(('Table A2'!$V$13:$V$1000)*(('Table A2'!$AU$13:$AU$1000)='Deed Rest And Asst Pgm Data'!$P$7)*(('Table A2'!$G$13:$G$1000)="R")*(YEAR('Table A2'!$AF$13:$AF$1000)='Start Here'!$B$5)) -> 0 | D52: =SUMPRODUCT(('Table A2'!$U$13:$U$1000)*(('Table A2'!$AU$13:$AU$1000)='Deed Rest And Asst Pgm Data'!$P$7)*(('Table A2'!$G$13:$G$1000)="O")*(YEAR('Table A2'!$AF$13:$AF$1000)='Start Here'!$B$5))+SUMPRODUCT(('Table A2'!$V$13:$V$1000)*(('Table A2'!$AU$13:$AU$1000)='Deed Rest And Asst Pgm Data'!$P$7)*(('Table A2'!$G$13:$G$1000)="O")*(YEAR('Table A2'!$AF$13:$AF$1000)='Start Here'!$B$5)) -> 0 | E52: =SUM(C52:D52) -> 0 | F52: sum_Table_Vlow
B53: Extremely Low | C53: =SUMPRODUCT(('Table A2'!$W$13:$W$1000)*(('Table A2'!$AU$13:$AU$1000)='Deed Rest And Asst Pgm Data'!$P$7)*(('Table A2'!$G$13:$G$1000)="R")*(YEAR('Table A2'!$AF$13:$AF$1000)='Start Here'!$B$5))+SUMPRODUCT(('Table A2'!$X$13:$X$1000)*(('Table A2'!$AU$13:$AU$1000)='Deed Rest And Asst Pgm Data'!$P$7)*(('Table A2'!$G$13:$G$1000)="R")*(YEAR('Table A2'!$AF$13:$AF$1000)='Start Here'!$B$5)) -> 0 | D53: =SUMPRODUCT(('Table A2'!$W$13:$W$1000)*(('Table A2'!$AU$13:$AU$1000)='Deed Rest And Asst Pgm Data'!$P$7)*(('Table A2'!$G$13:$G$1000)="O")*(YEAR('Table A2'!$AF$13:$AF$1000)='Start Here'!$B$5))+SUMPRODUCT(('Table A2'!$X$13:$X$1000)*(('Table A2'!$AU$13:$AU$1000)='Deed Rest And Asst Pgm Data'!$P$7)*(('Table A2'!$G$13:$G$1000)="O")*(YEAR('Table A2'!$AF$13:$AF$1000)='Start Here'!$B$5)) -> 0 | E53: 0 | F53: sum_Table_Vlow
B54: Very Low | C54: =SUMPRODUCT(('Table A2'!$Y$13:$Y$1000)*(('Table A2'!$AU$13:$AU$1000)='Deed Rest And Asst Pgm Data'!$P$7)*(('Table A2'!$G$13:$G$1000)="R")*(YEAR('Table A2'!$AF$13:$AF$1000)='Start Here'!$B$5))+SUMPRODUCT(('Table A2'!$Z$13:$Z$1000)*(('Table A2'!$AU$13:$AU$1000)='Deed Rest And Asst Pgm Data'!$P$7)*(('Table A2'!$G$13:$G$1000)="R")*(YEAR('Table A2'!$AF$13:$AF$1000)='Start Here'!$B$5)) -> 0 | D54: =SUMPRODUCT(('Table A2'!$Y$13:$Y$1000)*(('Table A2'!$AU$13:$AU$1000)='Deed Rest And Asst Pgm Data'!$P$7)*(('Table A2'!$G$13:$G$1000)="O")*(YEAR('Table A2'!$AF$13:$AF$1000)='Start Here'!$B$5))+SUMPRODUCT(('Table A2'!$Z$13:$Z$1000)*(('Table A2'!$AU$13:$AU$1000)='Deed Rest And Asst Pgm Data'!$P$7)*(('Table A2'!$G$13:$G$1000)="O")*(YEAR('Table A2'!$AF$13:$AF$1000)='Start Here'!$B$5)) -> 0 | E54: 0 | F54: sum_Table_Vlow
B55: Low | C55: =SUMPRODUCT(('Table A2'!$AA$13:$AA$1000)*(('Table A2'!$AU$13:$AU$1000)='Deed Rest And Asst Pgm Data'!$P$7)*(('Table A2'!$G$13:$G$1000)="R")*(YEAR('Table A2'!$AF$13:$AF$1000)='Start Here'!$B$5))+SUMPRODUCT(('Table A2'!$AB$13:$AB$1000)*(('Table A2'!$AU$13:$AU$1000)='Deed Rest And Asst Pgm Data'!$P$7)*(('Table A2'!$G$13:$G$1000)="R")*(YEAR('Table A2'!$AF$13:$AF$1000)='Start Here'!$B$5)) -> 0 | D55: =SUMPRODUCT(('Table A2'!$AA$13:$AA$1000)*(('Table A2'!$AU$13:$AU$1000)='Deed Rest And Asst Pgm Data'!$P$7)*(('Table A2'!$G$13:$G$1000)="O")*(YEAR('Table A2'!$AF$13:$AF$1000)='Start Here'!$B$5))+SUMPRODUCT(('Table A2'!$AB$13:$AB$1000)*(('Table A2'!$AU$13:$AU$1000)='Deed Rest And Asst Pgm Data'!$P$7)*(('Table A2'!$G$13:$G$1000)="O")*(YEAR('Table A2'!$AF$13:$AF$1000)='Start Here'!$B$5)) -> 0 | E55: 0 | F55: sum_Table_Low
B56: Moderate | C56: =SUMPRODUCT(('Table A2'!$AC$13:$AC$1000)*(('Table A2'!$AU$13:$AU$1000)='Deed Rest And Asst Pgm Data'!$P$7)*(('Table A2'!$G$13:$G$1000)="R")*(YEAR('Table A2'!$AF$13:$AF$1000)='Start Here'!$B$5))+SUMPRODUCT(('Table A2'!$AD$13:$AD$1000)*(('Table A2'!$AU$13:$AU$1000)='Deed Rest And Asst Pgm Data'!$P$7)*(('Table A2'!$G$13:$G$1000)="R")*(YEAR('Table A2'!$AF$13:$AF$1000)='Start Here'!$B$5)) -> 0 | D56: =SUMPRODUCT(('Table A2'!$AC$13:$AC$1000)*(('Table A2'!$AU$13:$AU$1000)='Deed Rest And Asst Pgm Data'!$P$7)*(('Table A2'!$G$13:$G$1000)="O")*(YEAR('Table A2'!$AF$13:$AF$1000)='Start Here'!$B$5))+SUMPRODUCT(('Table A2'!$AD$13:$AD$1000)*(('Table A2'!$AU$13:$AU$1000)='Deed Rest And Asst Pgm Data'!$P$7)*(('Table A2'!$G$13:$G$1000)="O")*(YEAR('Table A2'!$AF$13:$AF$1000)='Start Here'!$B$5)) -> 0 | E56: 0 | F56: sum_Table_Mod
B57: Above Moderate | C57: =SUMPRODUCT(('Table A2'!$AE$13:$AE$1000)*(('Table A2'!$AU$13:$AU$1000)='Deed Rest And Asst Pgm Data'!$P$7)*(('Table A2'!$G$13:$G$1000)="R")*(YEAR('Table A2'!$AF$13:$AF$1000)='Start Here'!$B$5)) -> 0 | D57: =SUMPRODUCT(('Table A2'!$AE$13:$AE$1000)*(('Table A2'!$AU$13:$AU$1000)='Deed Rest And Asst Pgm Data'!$P$7)*(('Table A2'!$G$13:$G$1000)="O")*(YEAR('Table A2'!$AF$13:$AF$1000)='Start Here'!$B$5)) -> 0 | E57: 0 | F57: sum_Table_Above
B58: Total | C58: =SUM(C54:C57) -> 0 | D58: =SUM(D54:D57) -> 0 | E58: 0 | F58: sum_Table_Total
B60: Streamlining Provisions Used - Permitted Units | D60: # of Projects | E60: Units
B61: SB 9 (2021) - Duplex in SF Zone | D61: =COUNTIFS('Table A2'!$AF$13:$AF$1000,">="&DATE(Summary!$C$4,1,1),'Table A2'!$AF$13:$AF$1000,"<="&DATE($C$4,12,31),'Table A2'!$AU$13:$AU$1000,"*"&Summary!B61&"*") -> 0 | E61: =SUMIFS('Table A2'!$AG$13:$AG$1000,'Table A2'!$AF$13:$AF$1000,">="&DATE(Summary!$C$4,1,1),'Table A2'!$AF$13:$AF$1000,"<="&DATE($C$4,12,31),'Table A2'!$AU$13:$AU$1000,"*"&Summary!B61&"*") -> 0
B62: SB 9 (2021) - Residential Lot Split | D62: =COUNTIFS('Table A2'!$AF$13:$AF$1000,">="&DATE(Summary!$C$4,1,1),'Table A2'!$AF$13:$AF$1000,"<="&DATE($C$4,12,31),'Table A2'!$AU$13:$AU$1000,"*"&Summary!B62&"*") -> 0 | E62: =SUMIFS('Table A2'!$AG$13:$AG$1000,'Table A2'!$AF$13:$AF$1000,">="&DATE(Summary!$C$4,1,1),'Table A2'!$AF$13:$AF$1000,"<="&DATE($C$4,12,31),'Table A2'!$AU$13:$AU$1000,"*"&Summary!B62&"*") -> 0
B63: AB 2011 (2022) | D63: =COUNTIFS('Table A2'!$AF$13:$AF$1000,">="&DATE(Summary!$C$4,1,1),'Table A2'!$AF$13:$AF$1000,"<="&DATE($C$4,12,31),'Table A2'!$AU$13:$AU$1000,"*"&Summary!B63&"*") -> 0 | E63: =SUMIFS('Table A2'!$AG$13:$AG$1000,'Table A2'!$AF$13:$AF$1000,">="&DATE(Summary!$C$4,1,1),'Table A2'!$AF$13:$AF$1000,"<="&DATE($C$4,12,31),'Table A2'!$AU$13:$AU$1000,"*"&Summary!B63&"*") -> 0
B64: SB 6 (2022) | D64: =COUNTIFS('Table A2'!$AF$13:$AF$1000,">="&DATE(Summary!$C$4,1,1),'Table A2'!$AF$13:$AF$1000,"<="&DATE($C$4,12,31),'Table A2'!$AU$13:$AU$1000,"*"&Summary!B64&"*") -> 0 | E64: =SUMIFS('Table A2'!$AG$13:$AG$1000,'Table A2'!$AF$13:$AF$1000,">="&DATE(Summary!$C$4,1,1),'Table A2'!$AF$13:$AF$1000,"<="&DATE($C$4,12,31),'Table A2'!$AU$13:$AU$1000,"*"&Summary!B64&"*") -> 0
B65: SMAP | D65: =COUNTIFS('Table A2'!$AF$13:$AF$1000,">="&DATE(Summary!$C$4,1,1),'Table A2'!$AF$13:$AF$1000,"<="&DATE($C$4,12,31),'Table A2'!$AU$13:$AU$1000,"*"&Summary!B65&"*") -> 0 | E65: =SUMIFS('Table A2'!$AG$13:$AG$1000,'Table A2'!$AF$13:$AF$1000,">="&DATE(Summary!$C$4,1,1),'Table A2'!$AF$13:$AF$1000,"<="&DATE($C$4,12,31),'Table A2'!$AU$13:$AU$1000,"*"&Summary!B65&"*") -> 0
B67: Ministerial and Discretionary Applications | D67: # of Applications | E67: Units
B68: Ministerial | D68: =COUNTIFS('Table A'!$H$13:$H$1000,">="&DATE(Summary!$C$4,1,1),'Table A'!$H$13:$H$1000,"<="&DATE($C$4,12,31),'Table A'!$AB$13:$AB$1000,B68) -> 0 | E68: =SUMIFS('Table A'!$T$13:$T$1000,'Table A'!$H$13:$H$1000,">="&DATE(Summary!$C$4,1,1),'Table A'!$T$13:$T$1000,"<="&DATE($C$4,12,31),'Table A'!$AB$13:$AB$1000,Summary!B68) -> 0
B69: Discretionary | D69: =COUNTIFS('Table A'!$H$13:$H$1000,">="&DATE(Summary!$C$4,1,1),'Table A'!$H$13:$H$1000,"<="&DATE($C$4,12,31),'Table A'!$AB$13:$AB$1000,B69) -> 0 | E69: =SUMIFS('Table A'!$T$13:$T$1000,'Table A'!$H$13:$H$1000,">="&DATE(Summary!$C$4,1,1),'Table A'!$T$13:$T$1000,"<="&DATE($C$4,12,31),'Table A'!$AB$13:$AB$1000,Summary!B69) -> 0
B71: Density Bonus Applications and Units Permitted
B72: Number of Applications Submitted Requesting a Density Bonus | E72: =COUNTIFS('Table A'!$H$13:$H$1000,">="&DATE(Summary!$C$4,1,1),'Table A'!$H$13:$H$1000,"<="&DATE($C$4,12,31),'Table A'!$Y$13:$Y$1000,"Yes") -> 0
B73: Number of Units in Applications Submitted Requesting a Density Bonus | E73: =SUMIFS('Table A'!$T$13:$T$1000,'Table A'!$H$13:$H$1000,">="&DATE(Summary!$C$4,1,1),'Table A'!$H$13:$H$1000,"<="&DATE($C$4,12,31),'Table A'!$Y$13:$Y$1000,"Yes") -> 0
B74: Number of Projects Permitted with a Density Bonus | E74: =COUNTIFS('Table A2'!$AF$13:$AF$1000,">="&DATE(Summary!$C$4,1,1),'Table A2'!$AF$13:$AF$1000,"<="&DATE($C$4,12,31),'Table A2'!$AY$13:$AY$1000,"*"&"DB"&"*") -> 0
B75: Number of Units in Projects Permitted with a Density Bonus | E75: =SUMIFS('Table A2'!$AG$13:$AG$1000,'Table A2'!$AF$13:$AF$1000,">="&DATE(Summary!$C$4,1,1),'Table A2'!$AF$13:$AF$1000,"<="&DATE($C$4,12,31),'Table A2'!$AY$13:$AY$1000,"*"&"DB"&"*") -> 0
B77: Housing Element Programs Implemented and Sites Rezoned | E77: Count
B78: Programs Implemented | E78: =COUNTA('Table D'!I12:I181) -> 0
B79: Sites Rezoned to Accommodate the RHNA | E79: =COUNTIFS('Table C'!$E$13:$E$5000,">="&DATE('Table C'!B2,1,1),'Table C'!$E$13:$E$5000,"<="&DATE('Table C'!B2,12,31)) -> 0
B81: Cells in grey contain auto-calculation formulas

Sheet Table A
A1: Jurisdiction | B1: ='Start Here'!B4 -> Dixon | G1: ANNUAL ELEMENT PROGRESS REPORT | P1: Note: "+" indicates an optional field
A2: Reporting Year | B2: ='Start Here'!B5 -> 2025 | C2: ='Table A2'!C2 -> (Jan. 1 - Dec. 31) | G2: Housing Element Implementation | P2: Cells in grey contain auto-calculation formulas
A3: Planning Period | B3: =IFERROR(IF(ISBLANK(VLOOKUP(B1,'Planning Periods'!$E$2:$P$540,12)),"5th Cycle",VLOOKUP(B1,'Planning Periods'!$E$2:$P$540,12)),"") -> 6th Cycle | C3: =IF(ISBLANK(B1),"",IFERROR(VLOOKUP(B1,'Planning Periods'!$E$2:$Q$540,10),"")) -> 01/31/2023 - 01/31/2031
A6: A_1_Prior | B6: A_1_Current | C6: A_1_Address | D6: A_1_Name | E6: A_1_ID | F6: A_2_Unit | G6: A_3_Tenure | H6: A_4_Date | I6: A_5_aLowDeed | J6: A_5_aLowNon | K6: A_5_eLowDeed | L6: A_5_eLowNone | M6: A_5_vLowDeed | N6: A_5_vLowNone | O6: A_5_LowDeed | P6: A_5_LowNone | Q6: A_5_ModDeed | R6: A_5_ModNone | S6: A_5_Above | T6: A_6_Total | U6: A_7_Total | V6: A_8_Total | W6: A_9_Stream | X6: A_15_Historic | Y6: A_11_DB | Z6: A_12_DB | AA6: A_13_Status | AB6: A_14_Project | AC6: A_10_Notes
A7: Table A
M8: Housing Development Applications Submitted
A9: Project Identifier | F9: Unit Types | H9: Date Application Submitted | I9: Proposed Units - Affordability by Household Incomes | U9: Total Approved Units by Project | V9: Total Disapproved Units by Project | W9: Streamlining | X9: Historic Sites | Y9: Density Bonus Law Applications | AA9: Application Status | AB9: Project Type | AC9: Notes
A10: 1 | F10: 2 | G10: 3 | H10: 4 | M10: 5 | T10: 6 | U10: 7 | V10: 8 | W10: 9 | X10: 10 | Y10: 11 | AA10: 12 | AB10: 13 | AC10: 14
A11: Prior APN+ | B11: Current APN | C11: Street Address | D11: Project Name+ | E11: Local Jurisdiction Tracking ID | F11: Unit Category (SFA,SFD,2 to 4,5+,ADU,MH) | G11: Tenure R=Renter O=Owner | H11: Date Application Submitted (see instructions) | I11: Acutely Low-Income Deed Restricted | J11: Acutely Low-Income Non Deed Restricted | K11: Extremely Low-Income Deed Restricted | L11: Extremely Low-Income Non Deed Restricted | M11: Very Low-Income Deed Restricted | N11: Very Low-Income Non Deed Restricted | O11: Low-Income Deed Restricted | P11: Low-Income Non Deed Restricted | Q11: Moderate-Income Deed Restricted | R11: Moderate- Income Non Deed Restricted | S11: Above Moderate- Income | T11: Total PROPOSED Units by Project | U11: Total APPROVED Units by project | V11: Total DISAPPROVED Units by Project | W11: Please select state streamlining provision/s the application was submitted pursuant to. | X11: Is this project located on a site with an associated historical designation as outlined in Government Code Section 65400(a)(2)(N) and reported on Table L? | Y11: Did the housing development application seek incentives or concessions pursuant to Government Code section 65915? | Z11: Were incentives or concessions requested pursuant to Government Code section 65915 approved? | AA11: Please indicate the status of the application. | AB11: Is the project considered a ministerial project or discretionary project? | AC11: Notes+
A12: Summary Row: Start Data Entry Below | I12: =SUMPRODUCT((YEAR($H13:$H1000)='Start Here'!$B$5)*I13:I1000) -> 0 | J12: =SUMPRODUCT((YEAR($H13:$H1000)='Start Here'!$B$5)*J13:J1000) -> 0 | K12: =SUMPRODUCT((YEAR($H13:$H1000)='Start Here'!$B$5)*K13:K1000) -> 0 | L12: =SUMPRODUCT((YEAR($H13:$H1000)='Start Here'!$B$5)*L13:L1000) -> 0 | M12: =SUMPRODUCT((YEAR($H13:$H1000)='Start Here'!$B$5)*M13:M1000) -> 0 | N12: =SUMPRODUCT((YEAR($H13:$H1000)='Start Here'!$B$5)*N13:N1000) -> 0 | O12: =SUMPRODUCT((YEAR($H13:$H1000)='Start Here'!$B$5)*O13:O1000) -> 0 | P12: =SUMPRODUCT((YEAR($H13:$H1000)='Start Here'!$B$5)*P13:P1000) -> 0 | Q12: =SUMPRODUCT((YEAR($H13:$H1000)='Start Here'!$B$5)*Q13:Q1000) -> 0 | R12: =SUMPRODUCT((YEAR($H13:$H1000)='Start Here'!$B$5)*R13:R1000) -> 0 | S12: =SUMPRODUCT((YEAR($H13:$H1000)='Start Here'!$B$5)*S13:S1000) -> 0 | T12: =SUMPRODUCT((YEAR($H13:$H1000)='Start Here'!$B$5)*T13:T1000) -> 0 | U12: =SUMPRODUCT((YEAR($H13:$H1000)='Start Here'!$B$5)*U13:U1000) -> 0 | V12: =SUMPRODUCT((YEAR($H13:$H1000)='Start Here'!$B$5)*V13:V1000) -> 0
T13: =SUM($I13:$S13) -> 0
T14: =SUM($I14:$S14) -> 0
T15: 0
T16: 0
T17: 0
T18: 0
T19: 0
T20: 0
T21: 0
T22: 0
T23: 0
T24: 0
T25: 0
T26: 0
T27: 0
T28: 0
T29: 0
T30: 0
T31: 0
T32: 0
T33: 0
T34: 0
T35: 0
T36: 0
T37: =SUM($I37:$S37) -> 0
T38: 0
T39: 0
T40: 0
T41: 0
T42: 0
T43: 0
T44: 0
T45: 0
T46: 0
T47: 0
T48: 0
T49: 0
T50: 0
T51: 0
T52: 0
T53: 0
T54: 0
T55: 0
T56: 0
T57: 0
T58: 0
T59: 0
T60: 0
T61: 0
T62: 0
T63: 0
T64: 0
T65: 0
T66: 0
T67: 0
T68: 0
T69: 0
T70: 0
T71: 0
T72: 0
T73: 0
T74: 0
T75: 0
T76: 0
T77: 0
T78: =SUM($I78:$S78) -> 0
T79: 0
T80: 0
T81: 0
T82: 0
T83: 0
T84: 0
T85: 0
T86: 0
T87: 0
T88: 0
T89: 0
T90: 0
T91: 0
T92: 0
T93: 0
T94: 0
T95: 0
T96: 0
T97: 0
T98: 0
T99: 0
T100: 0
T101: 0
T102: 0
T103: 0
T104: 0
T105: 0
T106: 0
T107: 0
T108: 0
T109: 0
T110: 0
T111: 0
T112: 0
T113: 0
T114: 0
T115: 0
T116: 0
T117: 0
T118: 0
T119: 0
T120: 0
T121: 0
T122: 0
T123: 0
T124: 0
T125: 0
T126: 0
T127: 0
T128: 0
T129: 0
T130: 0
T131: 0
T132: 0
T133: 0
T134: 0
T135: 0
T136: 0
T137: 0
T138: 0
T139: 0
T140: 0
T141: 0
T142: =SUM($I142:$S142) -> 0
T143: 0
T144: 0
T145: 0
T146: 0
T147: 0
T148: 0
T149: 0
T150: 0
T151: 0
T152: 0
T153: 0
T154: 0
T155: 0
T156: 0
T157: 0
T158: 0
T159: 0
T160: 0
T161: 0
T162: 0
T163: 0
T164: 0
T165: 0
T166: 0
T167: 0
T168: 0
T169: 0
T170: 0
T171: 0
T172: 0
T173: 0
T174: 0
T175: 0
T176: 0
T177: 0
T178: 0
T179: 0
T180: 0
T181: 0
T182: 0
T183: 0
T184: 0
T185: 0
T186: 0
T187: 0
T188: 0
T189: 0
T190: 0
T191: 0
T192: 0
T193: 0
T194: 0
T195: 0
T196: 0
T197: 0
T198: 0
T199: 0
T200: 0
T201: 0
T202: 0
... 798 more rows

Sheet Table A2
A1: Jurisdiction | B1: ='Start Here'!B4 -> Dixon | M1: ANNUAL ELEMENT PROGRESS REPORT | Z1: Note: "+" indicates an optional field
A2: Reporting Year | B2: ='Start Here'!B5 -> 2025 | C2: (Jan. 1 - Dec. 31) | M2: Housing Element Implementation | Z2: Cells in grey contain auto-calculation formulas
A3: Planning Period | B3: =IFERROR(IF(ISBLANK(VLOOKUP(B1,'Planning Periods'!$E$2:$P$540,12)),"5th Cycle",VLOOKUP(B1,'Planning Periods'!$E$2:$P$540,12)),"") -> 6th Cycle | C3: =IF(ISBLANK(B1),"",IFERROR(VLOOKUP(B1,'Planning Periods'!$E$2:$Q$540,10),"")) -> 01/31/2023 - 01/31/2031
A6: A2_1_Prior | B6: A2_1_Current | C6: A2_1_Address | D6: A2_1_Name | E6: A2_1_ID | F6: A2_2_Unit | G6: A2_3_Tenure | H6: A2_4_aLowDeed | I6: A2_4_aLowNone | J6: A2_4_eLowDeed | K6: A2_4_eLowNone | L6: A2_4_vLowDeed | M6: A2_4_vLowNone | N6: A2_4_LowDeed | O6: A2_4_LowNone | P6: A2_4_ModDeed | Q6: A2_4_ModNone | R6: A2_4_Above | S6: A2_5_Date | T6: A2_6_Units | U6: A2_7_aLowDeed | V6: A2_7_aLowNone | W6: A2_7_eLowDeed | X6: A2_7_eLowNone | Y6: A2_7_vLowDeed | Z6: A2_7_vLowNone | AA6: A2_7_LowDeed | AB6: A2_7_LowNone | AC6: A2_7_ModDeed | AD6: A2_7_ModNone | AE6: A2_7_Above | AF6: A2_8_Date | AG6: A2_9_Units | AH6: A2_10_aLowDeed | AI6: A2_10_aLowNone | AJ6: A2_10_eLowDeed | AK6: A2_10_eLowNone | AL6: A2_10_vLowDeed | AM6: A2_10_vLowNone | AN6: A2_10_LowDeed | AO6: A2_10_LowNone | AP6: A2_10_ModDeed | AQ6: A2_10_ModNone | AR6: A2_10_Above | AS6: A2_10_Date | AT6: A2_10_Units | AU6: A2_14_Stream | AV6: A2_26_Hist | AW6: A2_15_Infill | AX6: A2_16_Assist | AY6: A2_17_Deed | AZ6: A2_18_Affordable | BA6: A2_19_Terms | BB6: A2_20_Units | BC6: A2_20_Dest | BD6: A2_20_Demo | BE6: A2_22_DB | BF6: A2_23_DB | BG6: A2_24_DB | BH6: A2_25_DB | BI6: A2_21_Notes
N7: Table A2
F8: Annual Building Activity Report Summary - New Construction, Entitled, Permits and Completed Units
A9: Project Identifier | F9: Unit Types | H9: Affordability by Household Incomes - Completed Entitlement | U9: Affordability by Household Incomes - Building Permits | AH9: Affordability by Household Incomes - Certificates of Occupancy | AU9: Streamlining | AV9: Historic Sites | AW9: Infill | AX9: Housing with Financial Assistance and/or Deed Restrictions | AZ9: Housing without Financial Assistance or Deed Restrictions | BA9: Term of Affordability or Deed Restriction | BB9: Demolished/Destroyed Units | BE9: Density Bonus | BI9: Notes
A10: 1 | F10: 2 | G10: 3 | H10: 4 | S10: 5 | T10: 6 | U10: 7 | AF10: 8 | AG10: 9 | AH10: 10 | AS10: 11 | AT10: 12 | AU10: 13 | AV10: 14 | AW10: 15 | AX10: 16 | AY10: 17 | AZ10: 18 | BA10: 19 | BC10: 20 | BE10: 21 | BF10: 22 | BG10: 23 | BH10: 24 | BI10: 25
A11: Prior APN+ | B11: Current APN | C11: Street Address | D11: Project Name+ | E11: Local Jurisdiction Tracking ID | F11: Unit Category (SFA,SFD,2 to 4,5+,ADU,MH) | G11: Tenure R=Renter O=Owner | H11: Acutely Low- Income Deed Restricted | I11: Acutely Low- Income Non Deed Restricted | J11: Extremely Low- Income Deed Restricted | K11: Extremely Low- Income Non Deed Restricted | L11: Very Low- Income Deed Restricted | M11: Very Low- Income Non Deed Restricted | N11: Low- Income Deed Restricted | O11: Low- Income Non Deed Restricted | P11: Moderate- Income Deed Restricted | Q11: Moderate- Income Non Deed Restricted | R11: Above Moderate- Income | S11: Entitlement Date Approved | T11: # of Units issued Entitlements | U11: Acutely Low- Income Deed Restricted | V11: Acutely Low- Income Non Deed Restricted | W11: Extremely Low- Income Deed Restricted | X11: Extremely Low- Income Non Deed Restricted | Y11: Very Low- Income Deed Restricted | Z11: Very Low- Income Non Deed Restricted | AA11: Low- Income Deed Restricted | AB11: Low- Income Non Deed Restricted | AC11: Moderate- Income Deed Restricted | AD11: Moderate- Income Non Deed Restricted | AE11: Above Moderate- Income | AF11: Building Permits Date Issued | AG11: # of Units Issued Building Permits | AH11: Acutely Low- Income Deed Restricted | AI11: Acutely Low- Income Non Deed Restricted | AJ11: Extremely Low- Income Deed Restricted | AK11: Extremely Low- Income Non Deed Restricted | AL11: Very Low- Income Deed Restricted | AM11: Very Low- Income Non Deed Restricted | AN11: Low- Income Deed Restricted | AO11: Low- Income Non Deed Restricted | AP11: Moderate- Income Deed Restricted | AQ11: Moderate- Income Non Deed Restricted | AR11: Above Moderate- Income | AS11: Certificates of Occupancy or other forms of readiness (see instructions) Date Issued | AT11: # of Units issued Certificates of Occupancy or other forms of readiness | AU11: Please select the state streamlining provision the project was APPROVED pursuant to. (may select multiple) | AV11: Is this project located on a site with an associated historical designation as outlined in Government Code Section 65400(a)(2)(N) and reported on Table L? | AW11: Infill Units? Y/N+ | AX11: Assistance Programs for Each Development (may select multiple - see instructions) | AY11: Deed Restriction Type (may select multiple - see instructions) | AZ11: For units affordable without financial assistance or deed restrictions, explain how the locality determined the units were affordable (see instructions) | BA11: Term of Affordability or Deed Restriction (years) (if affordable in perpetuity enter 1000)+ | BB11: Number of Demolished/Destroyed Units | BC11: Demolished or Destroyed Units | BD11: Demolished/Destroyed Units Owner or Renter | BE11: Total Density Bonus Applied to the Project (Percentage Increase in Total Allowable Units or Total Maximum Allowable Residential Gross Floor Area) | BF11: Number of Other Incentives, Concessions, Waivers, or Other Modifications Given to the Project (Excluding Parking Waivers or Parking Reductions) | BG11: List the incentives, concessions, waivers, and modifications (Excluding Parking Waivers or Parking Modifications) | BH11: Did the project receive a reduction or waiver of parking standards? (Y/N) | BI11: Notes+
A12: Summary Row: Start Data Entry Below | H12: =SUMPRODUCT((YEAR($S13:$S1000)='Start Here'!$B$5)*H13:H1000) -> 0 | I12: =SUMPRODUCT((YEAR($S13:$S1000)='Start Here'!$B$5)*I13:I1000) -> 0 | J12: =SUMPRODUCT((YEAR($S13:$S1000)='Start Here'!$B$5)*J13:J1000) -> 0 | K12: =SUMPRODUCT((YEAR($S13:$S1000)='Start Here'!$B$5)*K13:K1000) -> 0 | L12: =SUMPRODUCT((YEAR($S13:$S1000)='Start Here'!$B$5)*L13:L1000) -> 0 | M12: =SUMPRODUCT((YEAR($S13:$S1000)='Start Here'!$B$5)*M13:M1000) -> 0 | N12: =SUMPRODUCT((YEAR($S13:$S1000)='Start Here'!$B$5)*N13:N1000) -> 0 | O12: =SUMPRODUCT((YEAR($S13:$S1000)='Start Here'!$B$5)*O13:O1000) -> 0 | P12: =SUMPRODUCT((YEAR($S13:$S1000)='Start Here'!$B$5)*P13:P1000) -> 0 | Q12: =SUMPRODUCT((YEAR($S13:$S1000)='Start Here'!$B$5)*Q13:Q1000) -> 0 | R12: =SUMPRODUCT((YEAR($S13:$S1000)='Start Here'!$B$5)*R13:R1000) -> 0 | T12: =SUMPRODUCT((YEAR($S13:$S1000)='Start Here'!$B$5)*T13:T1000) -> 0 | U12: =SUMPRODUCT((YEAR($AF13:$AF1000)='Start Here'!$B$5)*U13:U1000) -> 0 | V12: =SUMPRODUCT((YEAR($AF13:$AF1000)='Start Here'!$B$5)*V13:V1000) -> 0 | W12: =SUMPRODUCT((YEAR($AF13:$AF1000)='Start Here'!$B$5)*W13:W1000) -> 0 | X12: =SUMPRODUCT((YEAR($AF13:$AF1000)='Start Here'!$B$5)*X13:X1000) -> 0 | Y12: =SUMPRODUCT((YEAR($AF13:$AF1000)='Start Here'!$B$5)*Y13:Y1000) -> 0 | Z12: =SUMPRODUCT((YEAR($AF13:$AF1000)='Start Here'!$B$5)*Z13:Z1000) -> 0 | AA12: =SUMPRODUCT((YEAR($AF13:$AF1000)='Start Here'!$B$5)*AA13:AA1000) -> 0 | AB12: =SUMPRODUCT((YEAR($AF13:$AF1000)='Start Here'!$B$5)*AB13:AB1000) -> 0 | AC12: =SUMPRODUCT((YEAR($AF13:$AF1000)='Start Here'!$B$5)*AC13:AC1000) -> 0 | AD12: =SUMPRODUCT((YEAR($AF13:$AF1000)='Start Here'!$B$5)*AD13:AD1000) -> 0 | AE12: =SUMPRODUCT((YEAR($AF13:$AF1000)='Start Here'!$B$5)*AE13:AE1000) -> 235 | AG12: =SUMPRODUCT((YEAR($AF13:$AF1000)='Start Here'!$B$5)*AG13:AG1000) -> 235 | AH12: =SUMPRODUCT((YEAR($AS13:$AS1000)='Start Here'!$B$5)*AH13:AH1000) -> 0 | AI12: =SUMPRODUCT((YEAR($AS13:$AS1000)='Start Here'!$B$5)*AI13:AI1000) -> 0 | AJ12: =SUMPRODUCT((YEAR($AS13:$AS1000)='Start Here'!$B$5)*AJ13:AJ1000) -> 0 | AK12: =SUMPRODUCT((YEAR($AS13:$AS1000)='Start Here'!$B$5)*AK13:AK1000) -> 0 | AL12: =SUMPRODUCT((YEAR($AS13:$AS1000)='Start Here'!$B$5)*AL13:AL1000) -> 0 | AM12: =SUMPRODUCT((YEAR($AS13:$AS1000)='Start Here'!$B$5)*AM13:AM1000) -> 0 | AN12: =SUMPRODUCT((YEAR($AS13:$AS1000)='Start Here'!$B$5)*AN13:AN1000) -> 0 | AO12: =SUMPRODUCT((YEAR($AS13:$AS1000)='Start Here'!$B$5)*AO13:AO1000) -> 0 | AP12: =SUMPRODUCT((YEAR($AS13:$AS1000)='Start Here'!$B$5)*AP13:AP1000) -> 0 | AQ12: =SUMPRODUCT((YEAR($AS13:$AS1000)='Start Here'!$B$5)*AQ13:AQ1000) -> 0 | AR12: =SUMPRODUCT((YEAR($AS13:$AS1000)='Start Here'!$B$5)*AR13:AR1000) -> 42 | AT12: =SUMPRODUCT((YEAR($AS13:$AS1000)='Start Here'!$B$5)*AT13:AT1000) -> 42 | BB12: =SUM(BB13:BB1000) -> 0
B13: 108110460 | C13: 1905 N FIRST STREET 308 & 310 DIXON, CA | D13: Indp Lot 60 Bldg 35, Units 308 & 310 | E13: clusi | F13: 2 to 4 | G13: O | R13: 0 | T13: =SUM($H13:$R13) -> 0 | U13: 0 | V13: 0 | W13: 0 | X13: 0 | Y13: 0 | Z13: 0 | AA13: 0 | AB13: 0 | AC13: 0 | AD13: 0 | AE13: 2 | AF13: 2025-02-28 | AG13: =SUM($U13:$AE13) -> 2 | AT13: =SUM($AH13:$AR13) -> 0 | AU13: NONE | AV13: No | AW13: Y
B14: 108110460 | C14: 1905 N FIRST STREET 312 & 314 DIXON, CA | D14: Indp Lot 60 Bldg 34, Units 312 & 314 | E14: 2024-0246 | F14: 2 to 4 | G14: O | R14: 0 | T14: =SUM($H14:$R14) -> 0 | U14: 0 | V14: 0 | W14: 0 | X14: 0 | Y14: 0 | Z14: 0 | AA14: 0 | AB14: 0 | AC14: 0 | AD14: 0 | AE14: 2 | AF14: 2025-02-28 | AG14: =SUM($U14:$AE14) -> 2 | AT14: =SUM($AH14:$AR14) -> 0 | AU14: NONE | AV14: No | AW14: Y
B15: 108110460 | C15: 1905 N FIRST STREET 320 & 322 DIXON, CA | D15: Indp Lot 60 Bldg 32, Units 320 & 322 | E15: 2024-0244 | F15: 2 to 4 | G15: O | R15: 0 | T15: 0 | U15: 0 | V15: 0 | W15: 0 | X15: 0 | Y15: 0 | Z15: 0 | AA15: 0 | AB15: 0 | AC15: 0 | AD15: 0 | AE15: 2 | AF15: 2025-02-28 | AG15: 2 | AT15: 0 | AU15: NONE | AV15: No | AW15: Y
B16: 108110460 | C16: 1905 N FIRST STREET 316 & 318 DIXON, CA | D16: Indp Lot 60 Bldg 33, Units 316 & 318 | E16: 2024-0245 | F16: 2 to 4 | G16: O | R16: 0 | T16: 0 | U16: 0 | V16: 0 | W16: 0 | X16: 0 | Y16: 0 | Z16: 0 | AA16: 0 | AB16: 0 | AC16: 0 | AD16: 0 | AE16: 2 | AF16: 2025-02-28 | AG16: 2 | AT16: 0 | AU16: NONE | AV16: No | AW16: Y
B17: 108110460 | C17: 1905 N FIRST STREET 300 & 302 DIXON, CA | D17: Indp Lot 60 Bldg 37, Units 300 & 302 | E17: 2024-0249 | F17: 2 to 4 | G17: O | R17: 0 | T17: 0 | U17: 0 | V17: 0 | W17: 0 | X17: 0 | Y17: 0 | Z17: 0 | AA17: 0 | AB17: 0 | AC17: 0 | AD17: 0 | AE17: 2 | AF17: 2025-02-28 | AG17: 2 | AT17: 0 | AU17: NONE | AV17: No | AW17: Y
B18: 108110460 | C18: 1905 N FIRST STREET 304 & 306 DIXON, CA | D18: Indp Lot 60 Bldg 36, Units 304 & 306 | E18: 2024-0248 | F18: 2 to 4 | G18: O | R18: 0 | T18: 0 | U18: 0 | V18: 0 | W18: 0 | X18: 0 | Y18: 0 | Z18: 0 | AA18: 0 | AB18: 0 | AC18: 0 | AD18: 0 | AE18: 2 | AF18: 2025-02-28 | AG18: 2 | AT18: 0 | AU18: NONE | AV18: No | AW18: Y
B19: 108110460 | C19: 1905 N FIRST STREET 301 & 303 DIXON, CA | D19: Indp Lot 60 Bldg 38, Units 301 & 303 | E19: 2024-0250 | F19: 2 to 4 | G19: O | R19: 0 | T19: 0 | U19: 0 | V19: 0 | W19: 0 | X19: 0 | Y19: 0 | Z19: 0 | AA19: 0 | AB19: 0 | AC19: 0 | AD19: 0 | AE19: 2 | AF19: 2025-02-28 | AG19: 2 | AT19: 0 | AU19: NONE | AV19: No | AW19: Y
B20: 108110460 | C20: 1905 N FIRST STREET 317 & 319 DIXON, CA | D20: Indp Lot 60 Bldg 42, Units 317 & 319 | E20: 2024-0254 | F20: 2 to 4 | G20: O | R20: 0 | T20: 0 | U20: 0 | V20: 0 | W20: 0 | X20: 0 | Y20: 0 | Z20: 0 | AA20: 0 | AB20: 0 | AC20: 0 | AD20: 0 | AE20: 2 | AF20: 2025-02-28 | AG20: 2 | AT20: 0 | AU20: NONE | AV20: No | AW20: Y
B21: 108110460 | C21: 1905 N FIRST STREET 313 & 315 DIXON, CA | D21: Indep Lot 60 Bldg 41, Units 313 & 315 | E21: 2024-0253 | F21: 2 to 4 | G21: O | R21: 0 | T21: 0 | U21: 0 | V21: 0 | W21: 0 | X21: 0 | Y21: 0 | Z21: 0 | AA21: 0 | AB21: 0 | AC21: 0 | AD21: 0 | AE21: 2 | AF21: 2025-02-28 | AG21: 2 | AT21: 0 | AU21: NONE | AV21: No | AW21: Y
B22: 108110460 | C22: 1905 N FIRST STREET 305 & 307 DIXON, CA | D22: Indp Lot 60 Bldg 39, Units 305 & 307 | E22: 2024-0251 | F22: 2 to 4 | G22: O | R22: 0 | T22: 0 | U22: 0 | V22: 0 | W22: 0 | X22: 0 | Y22: 0 | Z22: 0 | AA22: 0 | AB22: 0 | AC22: 0 | AD22: 0 | AE22: 2 | AF22: 2025-02-28 | AG22: 2 | AT22: 0 | AU22: NONE | AV22: No | AW22: Y
B23: 108110460 | C23: 1905 N FIRST STREET 309 & 311 DIXON, CA | D23: Indp Lot 60 Bldg 40, Units 309 & 311 | E23: 2024-0252 | F23: 2 to 4 | G23: O | R23: 0 | T23: 0 | U23: 0 | V23: 0 | W23: 0 | X23: 0 | Y23: 0 | Z23: 0 | AA23: 0 | AB23: 0 | AC23: 0 | AD23: 0 | AE23: 2 | AF23: 2025-02-28 | AG23: 2 | AT23: 0 | AU23: NONE | AV23: No | AW23: Y
B24: 108110460 | C24: 1905 N FIRST STREET 610 & 612 DIXON, CA | D24: Indp Lot 60 Bldg 74, Units 610 & 612 | E24: 2024-0290 | F24: 2 to 4 | G24: O | R24: 0 | T24: 0 | U24: 0 | V24: 0 | W24: 0 | X24: 0 | Y24: 0 | Z24: 0 | AA24: 0 | AB24: 0 | AC24: 0 | AD24: 0 | AE24: 2 | AF24: 2025-04-10 | AG24: 2 | AT24: 0 | AU24: NONE | AV24: No | AW24: Y
B25: 108110460 | C25: 1905 N FIRST STREET 602 & 604 DIXON, CA | D25: Indp Lot 60 Bldg 76, Units 602 & 604 | E25: 2024-0292 | F25: 2 to 4 | G25: O | R25: 0 | T25: 0 | U25: 0 | V25: 0 | W25: 0 | X25: 0 | Y25: 0 | Z25: 0 | AA25: 0 | AB25: 0 | AC25: 0 | AD25: 0 | AE25: 2 | AF25: 2025-04-10 | AG25: 2 | AT25: 0 | AU25: NONE | AV25: No | AW25: Y
B26: 108110460 | C26: 1905 N FIRST STREET 606 & 608 DIXON, CA | D26: Indp bldg 75 Lot 60, Units 606 & 608 | E26: 2024-0291 | F26: 2 to 4 | G26: O | R26: 0 | T26: 0 | U26: 0 | V26: 0 | W26: 0 | X26: 0 | Y26: 0 | Z26: 0 | AA26: 0 | AB26: 0 | AC26: 0 | AD26: 0 | AE26: 2 | AF26: 2025-04-10 | AG26: 2 | AT26: 0 | AU26: NONE | AV26: No | AW26: Y
B27: 108110460 | C27: 1905 N FIRST STREET 511 & 513 DIXON, CA | D27: Indp Lot 60 Bldg 73, Units 511 & 513 | E27: 2024-0289 | F27: 2 to 4 | G27: O | R27: 0 | T27: 0 | U27: 0 | V27: 0 | W27: 0 | X27: 0 | Y27: 0 | Z27: 0 | AA27: 0 | AB27: 0 | AC27: 0 | AD27: 0 | AE27: 2 | AF27: 2025-04-10 | AG27: 2 | AT27: 0 | AU27: NONE | AV27: No | AW27: Y
B28: 108110460 | C28: 1905 N FIRST STREET 507 & 509 DIXON, CA | D28: Indp Lot 60 Bldg 72, Units 507 & 509 | E28: 2024-0288 | F28: 2 to 4 | G28: O | R28: 0 | T28: 0 | U28: 0 | V28: 0 | W28: 0 | X28: 0 | Y28: 0 | Z28: 0 | AA28: 0 | AB28: 0 | AC28: 0 | AD28: 0 | AE28: 2 | AF28: 2025-04-10 | AG28: 2 | AT28: 0 | AU28: NONE | AV28: No | AW28: Y
B29: 108110460 | C29: 1905 N FIRST STREET 500 & 501 DIXON, CA | D29: Indp Lot 60 Bldg 70, Units 500 & 501 | E29: 2024-0286 | F29: 2 to 4 | G29: O | R29: 0 | T29: 0 | U29: 0 | V29: 0 | W29: 0 | X29: 0 | Y29: 0 | Z29: 0 | AA29: 0 | AB29: 0 | AC29: 0 | AD29: 0 | AE29: 2 | AF29: 2025-04-10 | AG29: 2 | AT29: 0 | AU29: NONE | AV29: No | AW29: Y
B30: 108110460 | C30: 1905 N FIRST STREET 502 & 504 DIXON, CA | D30: Indp Lot 60 Bldg 69, Units 502 & 504 | E30: 2024-0285 | F30: 2 to 4 | G30: O | R30: 0 | T30: 0 | U30: 0 | V30: 0 | W30: 0 | X30: 0 | Y30: 0 | Z30: 0 | AA30: 0 | AB30: 0 | AC30: 0 | AD30: 0 | AE30: 2 | AF30: 2025-04-10 | AG30: 2 | AT30: 0 | AU30: NONE | AV30: No | AW30: Y
B31: 108110460 | C31: 1905 N FIRST STREET 503 & 505 DIXON, CA | D31: Indp Lot 60 Bldg 71, Units 503 & 505 | E31: 2024-0287 | F31: 2 to 4 | G31: O | R31: 0 | T31: 0 | U31: 0 | V31: 0 | W31: 0 | X31: 0 | Y31: 0 | Z31: 0 | AA31: 0 | AB31: 0 | AC31: 0 | AD31: 0 | AE31: 2 | AF31: 2025-04-10 | AG31: 2 | AT31: 0 | AU31: NONE | AV31: No | AW31: Y
B32: 108110460 | C32: 1905 N FIRST STREET 510 & 512 DIXON, CA | D32: Indp Lot 60 Bldg 67, Units 510 & 512 | E32: 2024-0283 | F32: 2 to 4 | G32: O | R32: 0 | T32: 0 | U32: 0 | V32: 0 | W32: 0 | X32: 0 | Y32: 0 | Z32: 0 | AA32: 0 | AB32: 0 | AC32: 0 | AD32: 0 | AE32: 2 | AF32: 2025-04-10 | AG32: 2 | AT32: 0 | AU32: NONE | AV32: No | AW32: Y
B33: 114033290 | C33: 1560B HALSEY COURT DIXON, CA | D33: New detached ADU. Total Sqft (804). | E33: 2023-1055 | F33: ADU | G33: O | R33: 0 | T33: 0 | U33: 0 | V33: 0 | W33: 0 | X33: 0 | Y33: 0 | Z33: 0 | AA33: 0 | AB33: 0 | AC33: 0 | AD33: 0 | AE33: 1 | AF33: 2025-04-24 | AG33: 1 | AT33: 0 | AU33: NONE | AV33: No | AW33: Y
B34: 108110460 | C34: 1905 N FIRST STREET 700 & 701 DIXON, CA | D34: Indp Lot 60 Bldg 83 Units 700 & 701 | E34: 2024-0303 | F34: 2 to 4 | G34: O | R34: 0 | T34: 0 | U34: 0 | V34: 0 | W34: 0 | X34: 0 | Y34: 0 | Z34: 0 | AA34: 0 | AB34: 0 | AC34: 0 | AD34: 0 | AE34: 2 | AF34: 2025-05-21 | AG34: 2 | AT34: 0 | AU34: NONE | AV34: No | AW34: Y
B35: 108110460 | C35: 1905 N FIRST STREET 600 & 601 DIXON, CA | D35: Indp Lot 77 Bldg 77, Units 600 & 601 | E35: 2024-0293 | F35: 2 to 4 | G35: O | R35: 0 | T35: 0 | U35: 0 | V35: 0 | W35: 0 | X35: 0 | Y35: 0 | Z35: 0 | AA35: 0 | AB35: 0 | AC35: 0 | AD35: 0 | AE35: 2 | AF35: 2025-05-21 | AG35: 2 | AT35: 0 | AU35: NONE | AV35: No | AW35: Y
B36: 108110460 | C36: 1905 N FIRST STREET 706 & 708 DIXON, CA | D36: Indp Lot 60 Bldg 81, Units 706 & 708 | E36: 2024-0301 | F36: 2 to 4 | G36: O | R36: 0 | T36: 0 | U36: 0 | V36: 0 | W36: 0 | X36: 0 | Y36: 0 | Z36: 0 | AA36: 0 | AB36: 0 | AC36: 0 | AD36: 0 | AE36: 2 | AF36: 2025-05-21 | AG36: 2 | AT36: 0 | AU36: NONE | AV36: No | AW36: Y
B37: 108110460 | C37: 1905 N FIRST STREET 710 & 712 DIXON, CA | D37: Indp Lot 60 Bldg 80, Units 710 & 712 | E37: 2024-0296 | F37: 2 to 4 | G37: O | R37: 0 | T37: 0 | U37: 0 | V37: 0 | W37: 0 | X37: 0 | Y37: 0 | Z37: 0 | AA37: 0 | AB37: 0 | AC37: 0 | AD37: 0 | AE37: 2 | AF37: 2025-05-21 | AG37: 2 | AT37: 0 | AU37: NONE | AV37: No | AW37: Y
B38: 108110460 | C38: 1905 N FIRST STREET 603 & 605 DIXON, CA | D38: Indp Lot 60 Bldg 78, Units 603 & 605 | E38: 2024-0294 | F38: 2 to 4 | G38: O | R38: 0 | T38: 0 | U38: 0 | V38: 0 | W38: 0 | X38: 0 | Y38: 0 | Z38: 0 | AA38: 0 | AB38: 0 | AC38: 0 | AD38: 0 | AE38: 2 | AF38: 2025-05-21 | AG38: 2 | AT38: 0 | AU38: NONE | AV38: No | AW38: Y
B39: 108110460 | C39: 1905 N FIRST STREET 702 & 704 DIXON, CA | D39: Indp Lot 60 Bldg 82, Units 702 & 704 | E39: 2024-0302 | F39: 2 to 4 | G39: O | R39: 0 | T39: 0 | U39: 0 | V39: 0 | W39: 0 | X39: 0 | Y39: 0 | Z39: 0 | AA39: 0 | AB39: 0 | AC39: 0 | AD39: 0 | AE39: 2 | AF39: 2025-05-21 | AG39: 2 | AT39: 0 | AU39: NONE | AV39: No | AW39: Y
B40: 108110460 | C40: 1905 N FIRST STREET 607 & 609 DIXON, CA | D40: Indp Lot 60 Bldg 79, Units 607 & 609 | E40: 2024-0295 | F40: 2 to 4 | G40: O | R40: 0 | T40: 0 | U40: 0 | V40: 0 | W40: 0 | X40: 0 | Y40: 0 | Z40: 0 | AA40: 0 | AB40: 0 | AC40: 0 | AD40: 0 | AE40: 2 | AF40: 2025-05-21 | AG40: 2 | AT40: 0 | AU40: NONE | AV40: No | AW40: Y
B41: 108110460 | C41: 1905 N FIRST STREET 703 & 705 DIXON, CA | D41: Indep Lot 60 Bldg 84, Units 703 & 705 | E41: 2024-0304 | F41: 2 to 4 | G41: O | R41: 0 | T41: 0 | U41: 0 | V41: 0 | W41: 0 | X41: 0 | Y41: 0 | Z41: 0 | AA41: 0 | AB41: 0 | AC41: 0 | AD41: 0 | AE41: 2 | AF41: 2025-05-21 | AG41: 2 | AT41: 0 | AU41: NONE | AV41: No | AW41: Y
B42: 108110460 | C42: 1905 N FIRST STREET 433 & 435 DIXON, CA | D42: Indp Lot 60 Bldg 66, Units 433 & 435 | E42: 2024-0282 | F42: 2 to 4 | G42: O | R42: 0 | T42: 0 | U42: 0 | V42: 0 | W42: 0 | X42: 0 | Y42: 0 | Z42: 0 | AA42: 0 | AB42: 0 | AC42: 0 | AD42: 0 | AE42: 2 | AF42: 2025-03-26 | AG42: 2 | AT42: 0 | AU42: NONE | AV42: No | AW42: Y
B43: 108110460 | C43: 1905 N FIRST STREET 416 & 418 DIXON, CA | D43: Indp Lot 60 Bldg 61, Units 416 & 418 | E43: 2024-0275 | F43: 2 to 4 | G43: O | R43: 0 | T43: 0 | U43: 0 | V43: 0 | W43: 0 | X43: 0 | Y43: 0 | Z43: 0 | AA43: 0 | AB43: 0 | AC43: 0 | AD43: 0 | AE43: 2 | AF43: 2025-03-26 | AG43: 2 | AT43: 0 | AU43: NONE | AV43: No | AW43: Y
B44: 108110460 | C44: 1905 N FIRST STREET 408 & 410 DIXON, CA | D44: Indp Lot 60 Bldg 63, Units 408 & 410 | E44: 2024-0277 | F44: 2 to 4 | G44: O | R44: 0 | T44: 0 | U44: 0 | V44: 0 | W44: 0 | X44: 0 | Y44: 0 | Z44: 0 | AA44: 0 | AB44: 0 | AC44: 0 | AD44: 0 | AE44: 2 | AF44: 2025-03-26 | AG44: 2 | AT44: 0 | AU44: NONE | AV44: No | AW44: Y
B45: 108110460 | C45: 1905 N FIRST STREET 429 & 431 DIXON, CA | D45: Indp Lot 60 Bldg 65, Units 429 & 431 | E45: 2024-0280 | F45: 2 to 4 | G45: O | R45: 0 | T45: 0 | U45: 0 | V45: 0 | W45: 0 | X45: 0 | Y45: 0 | Z45: 0 | AA45: 0 | AB45: 0 | AC45: 0 | AD45: 0 | AE45: 2 | AF45: 2025-03-26 | AG45: 2 | AT45: 0 | AU45: NONE | AV45: No | AW45: Y
B46: 108110460 | C46: 1905 N FIRST STREET 400 & 402 DIXON, CA | D46: Indp Lot 60 Bldg 49, Units 400 & 402 | E46: 2024-0263 | F46: 2 to 4 | G46: O | R46: 0 | T46: 0 | U46: 0 | V46: 0 | W46: 0 | X46: 0 | Y46: 0 | Z46: 0 | AA46: 0 | AB46: 0 | AC46: 0 | AD46: 0 | AE46: 2 | AF46: 2025-03-26 | AG46: 2 | AT46: 0 | AU46: NONE | AV46: No | AW46: Y
B47: 108110460 | C47: 1905 N FIRST STREET 412 & 414 DIXON, CA | D47: Indp Lot 60 Bldg 62 , Units 412 & 414 | E47: 2024-0276 | F47: 2 to 4 | G47: O | R47: 0 | T47: 0 | U47: 0 | V47: 0 | W47: 0 | X47: 0 | Y47: 0 | Z47: 0 | AA47: 0 | AB47: 0 | AC47: 0 | AD47: 0 | AE47: 2 | AF47: 2025-03-26 | AG47: 2 | AT47: 0 | AU47: NONE | AV47: No | AW47: Y
B48: 108110460 | C48: 1905 N FIRST STREET 425 & 427 DIXON, CA | D48: Indp Lot 60 Bldg 64, Units 425 & 427 | E48: 2024-0278 | F48: 2 to 4 | G48: O | R48: 0 | T48: 0 | U48: 0 | V48: 0 | W48: 0 | X48: 0 | Y48: 0 | Z48: 0 | AA48: 0 | AB48: 0 | AC48: 0 | AD48: 0 | AE48: 2 | AF48: 2025-03-26 | AG48: 2 | AT48: 0 | AU48: NONE | AV48: No | AW48: Y
B49: 108110460 | C49: 1905 N FIRST STREET 420 & 422 DIXON, CA | D49: Indp Lot 60 Bldg 47, Units 420 & 422 | E49: 2024-0259 | F49: 2 to 4 | G49: O | R49: 0 | T49: 0 | U49: 0 | V49: 0 | W49: 0 | X49: 0 | Y49: 0 | Z49: 0 | AA49: 0 | AB49: 0 | AC49: 0 | AD49: 0 | AE49: 2 | AF49: 2025-03-26 | AG49: 2 | AT49: 0 | AU49: NONE | AV49: No | AW49: Y
B50: 108110460 | C50: 1905 N FIRST STREET 428 & 430 DIXON, CA | D50: Indp Lot 45 Bldg 45, Units 428 & 430 | E50: 2024-0257 | F50: 2 to 4 | G50: O | R50: 0 | T50: 0 | U50: 0 | V50: 0 | W50: 0 | X50: 0 | Y50: 0 | Z50: 0 | AA50: 0 | AB50: 0 | AC50: 0 | AD50: 0 | AE50: 2 | AF50: 2025-03-26 | AG50: 2 | AT50: 0 | AU50: NONE | AV50: No | AW50: Y
B51: 108110460 | C51: 1905 N FIRST STREET 404 & 406 DIXON, CA | D51: Indp Lot 60 Bldg 48, Units 404 & 406 | E51: 2024-0260 | F51: 2 to 4 | G51: O | R51: 0 | T51: 0 | U51: 0 | V51: 0 | W51: 0 | X51: 0 | Y51: 0 | Z51: 0 | AA51: 0 | AB51: 0 | AC51: 0 | AD51: 0 | AE51: 2 | AF51: 2025-03-26 | AG51: 2 | AT51: 0 | AU51: NONE | AV51: No | AW51: Y
B52: 108110460 | C52: 1905 N FIRST STREET 424 & 426 DIXON, CA | D52: Indp Lot 60 Bldg 46, Units 424 & 426 | E52: 2024-0258 | F52: 2 to 4 | G52: O | R52: 0 | T52: 0 | U52: 0 | V52: 0 | W52: 0 | X52: 0 | Y52: 0 | Z52: 0 | AA52: 0 | AB52: 0 | AC52: 0 | AD52: 0 | AE52: 2 | AF52: 2025-03-26 | AG52: 2 | AT52: 0 | AU52: NONE | AV52: No | AW52: Y
B53: 108110460 | C53: 1905 N FIRST STREET 432 & 434 DIXON, CA | D53: Indp Lot 60 Bldg 44, Units 432 & 434 | E53: 2024-0256 | F53: 2 to 4 | G53: O | R53: 0 | T53: 0 | U53: 0 | V53: 0 | W53: 0 | X53: 0 | Y53: 0 | Z53: 0 | AA53: 0 | AB53: 0 | AC53: 0 | AD53: 0 | AE53: 2 | AF53: 2025-03-26 | AG53: 2 | AT53: 0 | AU53: NONE | AV53: No | AW53: Y
B54: 108110460 | C54: 1905 N FIRST STREET 810 & 812 DIXON, CA | D54: Indp Lot 60 Bldg 87, Units 810 & 812 | E54: 2024-0307 | F54: 2 to 4 | G54: O | R54: 0 | T54: 0 | U54: 0 | V54: 0 | W54: 0 | X54: 0 | Y54: 0 | Z54: 0 | AA54: 0 | AB54: 0 | AC54: 0 | AD54: 0 | AE54: 2 | AF54: 2025-05-21 | AG54: 2 | AT54: 0 | AU54: NONE | AV54: No | AW54: Y
B55: 108110460 | C55: 1905 N FIRST STREET 806 & 808 DIXON, CA | D55: Indp Lot 60 Bldg 88, Units 806 & 808 | E55: 2024-0308 | F55: 2 to 4 | G55: O | R55: 0 | T55: 0 | U55: 0 | V55: 0 | W55: 0 | X55: 0 | Y55: 0 | Z55: 0 | AA55: 0 | AB55: 0 | AC55: 0 | AD55: 0 | AE55: 2 | AF55: 2025-05-21 | AG55: 2 | AT55: 0 | AU55: NONE | AV55: No | AW55: Y
B56: 108110460 | C56: 1905 N FIRST STREET 802 & 804 DIXON, CA | D56: Indp Lot 60 Bldg 89, Units 802 & 804 | E56: 2024-0309 | F56: 2 to 4 | G56: O | R56: 0 | T56: 0 | U56: 0 | V56: 0 | W56: 0 | X56: 0 | Y56: 0 | Z56: 0 | AA56: 0 | AB56: 0 | AC56: 0 | AD56: 0 | AE56: 2 | AF56: 2025-05-21 | AG56: 2 | AT56: 0 | AU56: NONE | AV56: No | AW56: Y
B57: 108110460 | C57: 1905 N FIRST STREET 800 & 801 DIXON, CA | D57: Indp Lot 60 Bldg 90, Units 800 & 801 | E57: 2024-0310 | F57: 2 to 4 | G57: O | R57: 0 | T57: 0 | U57: 0 | V57: 0 | W57: 0 | X57: 0 | Y57: 0 | Z57: 0 | AA57: 0 | AB57: 0 | AC57: 0 | AD57: 0 | AE57: 2 | AF57: 2025-05-21 | AG57: 2 | AT57: 0 | AU57: NONE | AV57: No | AW57: Y
B58: 108110460 | C58: 1905 N FIRST STREET 803 & 805 DIXON, CA | D58: Indp Lot 60 Bldg 91 , Units 803 & 805 | E58: 2024-0311 | F58: 2 to 4 | G58: O | R58: 0 | T58: 0 | U58: 0 | V58: 0 | W58: 0 | X58: 0 | Y58: 0 | Z58: 0 | AA58: 0 | AB58: 0 | AC58: 0 | AD58: 0 | AE58: 2 | AF58: 2025-05-21 | AG58: 2 | AT58: 0 | AU58: NONE | AV58: No | AW58: Y
B59: 108110460 | C59: 1905 N FIRST STREET 807 & 809 DIXON, CA | D59: Indp Lot 60 Bldg 92, Units 807 & 809 | E59: 2024-0312 | F59: 2 to 4 | G59: O | R59: 0 | T59: 0 | U59: 0 | V59: 0 | W59: 0 | X59: 0 | Y59: 0 | Z59: 0 | AA59: 0 | AB59: 0 | AC59: 0 | AD59: 0 | AE59: 2 | AF59: 2025-05-21 | AG59: 2 | AT59: 0 | AU59: NONE | AV59: No | AW59: Y
B60: 108110460 | C60: 1905 N FIRST STREET 711 & 713 DIXON, CA | D60: Indp Lot 60 Bldg 86, Units 711 & 713 | E60: 2024-0306 | F60: 2 to 4 | G60: O | R60: 0 | T60: 0 | U60: 0 | V60: 0 | W60: 0 | X60: 0 | Y60: 0 | Z60: 0 | AA60: 0 | AB60: 0 | AC60: 0 | AD60: 0 | AE60: 2 | AF60: 2025-05-21 | AG60: 2 | AT60: 0 | AU60: NONE | AV60: No | AW60: Y
B61: 108110460 | C61: 1905 N FIRST STREET 707 & 709 DIXON, CA | D61: Indp Lot 60 Bldg 85, Units 707 & 709 | E61: 2024-0305 | F61: 2 to 4 | G61: O | R61: 0 | T61: 0 | U61: 0 | V61: 0 | W61: 0 | X61: 0 | Y61: 0 | Z61: 0 | AA61: 0 | AB61: 0 | AC61: 0 | AD61: 0 | AE61: 2 | AF61: 2025-05-21 | AG61: 2 | AT61: 0 | AU61: NONE | AV61: No | AW61: Y
B62: 108110460 | C62: 1905 N FIRST STREET 811 & 813 DIXON, CA | D62: Indp Lot 60 Bldg 93, Units 811 & 813 | E62: 2024-0313 | F62: 2 to 4 | G62: O | R62: 0 | T62: 0 | U62: 0 | V62: 0 | W62: 0 | X62: 0 | Y62: 0 | Z62: 0 | AA62: 0 | AB62: 0 | AC62: 0 | AD62: 0 | AE62: 2 | AF62: 2025-05-21 | AG62: 2 | AT62: 0 | AU62: NONE | AV62: No | AW62: Y
B63: 108110460 | C63: 1905 N FIRST STREET 321 & 323 DIXON, CA | D63: Indp Lot 60 Bldg 43, Units 321 & 323 | E63: 2024-0255 | F63: 2 to 4 | G63: O | R63: 0 | T63: 0 | U63: 0 | V63: 0 | W63: 0 | X63: 0 | Y63: 0 | Z63: 0 | AA63: 0 | AB63: 0 | AC63: 0 | AD63: 0 | AE63: 2 | AF63: 2025-02-28 | AG63: 2 | AT63: 0 | AU63: NONE | AV63: No | AW63: Y
B64: 108110460 | C64: 1905 N FIRST STREET 506 & 508 DIXON, CA | D64: Indp Lot 60 Bldg 68, Units 506 & 508 | E64: 2024-0284 | F64: 2 to 4 | G64: O | R64: 0 | T64: 0 | U64: 0 | V64: 0 | W64: 0 | X64: 0 | Y64: 0 | Z64: 0 | AA64: 0 | AB64: 0 | AC64: 0 | AD64: 0 | AE64: 2 | AF64: 2025-04-10 | AG64: 2 | AT64: 0 | AU64: NONE | AV64: No | AW64: Y
B65: 114451020 | C65: 2355 Prairie WAY DIXON, CA 95620 | D65: KHOV V9P2 Autumn Lot 314 | E65: BLDR-002693-2025 | F65: SFD | G65: O | R65: 0 | T65: 0 | U65: 0 | V65: 0 | W65: 0 | X65: 0 | Y65: 0 | Z65: 0 | AA65: 0 | AB65: 0 | AC65: 0 | AD65: 0 | AE65: 1 | AF65: 2025-12-09 | AG65: 1 | AT65: 0 | AU65: NONE | AV65: No | AW65: Y
B66: 116030190 | C66: 1210 YALE DR Dixon, CA 95620 | D66: New detached ADU. Total SqFt (1005) | E66: ADU-001933-2025 | F66: ADU | G66: O | R66: 0 | T66: 0 | U66: 0 | V66: 0 | W66: 0 | X66: 0 | Y66: 0 | Z66: 0 | AA66: 0 | AB66: 0 | AC66: 0 | AD66: 0 | AE66: 1 | AF66: 2025-07-21 | AG66: 1 | AT66: 0 | AU66: NONE | AV66: No | AW66: Y
B67: 114471200 | C67: 2300 Lark WAY DIXON, CA 95620 | D67: KHOV V10P2 Spring Lot 275 | E67: BLDR-002639-2025 | F67: SFD | G67: O | R67: 0 | T67: 0 | U67: 0 | V67: 0 | W67: 0 | X67: 0 | Y67: 0 | Z67: 0 | AA67: 0 | AB67: 0 | AC67: 0 | AD67: 0 | AE67: 1 | AF67: 2025-12-09 | AG67: 1 | AT67: 0 | AU67: NONE | AV67: No | AW67: Y
B68: 114471150 | C68: 2350 Lark WAY DIXON, CA 95620 | D68: KHOV V10P2 Spring Lot 280 | E68: BLDR-002645-2025 | F68: SFD | G68: O | R68: 0 | T68: 0 | U68: 0 | V68: 0 | W68: 0 | X68: 0 | Y68: 0 | Z68: 0 | AA68: 0 | AB68: 0 | AC68: 0 | AD68: 0 | AE68: 1 | AF68: 2025-11-24 | AG68: 1 | AT68: 0 | AU68: NONE | AV68: No | AW68: Y
B69: 114471160 | C69: 2340 Lark WAY DIXON, CA 95620 | D69: KHOV V10P2 Spring Lot 279 | E69: BLDR-002643-2025 | F69: SFD | G69: O | R69: 0 | T69: 0 | U69: 0 | V69: 0 | W69: 0 | X69: 0 | Y69: 0 | Z69: 0 | AA69: 0 | AB69: 0 | AC69: 0 | AD69: 0 | AE69: 1 | AF69: 2025-11-24 | AG69: 1 | AT69: 0 | AU69: NONE | AV69: No | AW69: Y
B70: 114471190 | C70: 2310 Lark WAY DIXON, CA 95620 | D70: KHOV V10P2 Spring Lot 276 | E70: BLDR-002641-2025 | F70: SFD | G70: O | R70: 0 | T70: 0 | U70: 0 | V70: 0 | W70: 0 | X70: 0 | Y70: 0 | Z70: 0 | AA70: 0 | AB70: 0 | AC70: 0 | AD70: 0 | AE70: 1 | AF70: 2025-12-09 | AG70: 1 | AT70: 0 | AU70: NONE | AV70: No | AW70: Y
B71: 114473260 | C71: 315 Fable CT Dixon, CA 95620 | D71: KHOV V10P2 Spring Lot 384 | E71: BLDR-001966-2025 | F71: SFD | G71: O | R71: 0 | T71: 0 | U71: 0 | V71: 0 | W71: 0 | X71: 0 | Y71: 0 | Z71: 0 | AA71: 0 | AB71: 0 | AC71: 0 | AD71: 0 | AE71: 1 | AF71: 2025-06-23 | AG71: 1 | AR71: 1 | AS71: 2025-10-03 | AT71: 1 | AU71: NONE | AV71: No | AW71: Y
B72: 114011030 | C72: 410 Nighthawk Ridge Dixon, CA 95620 | D72: KHOV V9P2 Autumn Lot 321 | E72: BLDR-002167-2025 | F72: SFD | G72: O | R72: 0 | T72: 0 | U72: 0 | V72: 0 | W72: 0 | X72: 0 | Y72: 0 | Z72: 0 | AA72: 0 | AB72: 0 | AC72: 0 | AD72: 0 | AE72: 1 | AF72: 2025-07-25 | AG72: 1 | AR72: 1 | AS72: 2025-10-31 | AT72: 1 | AU72: NONE | AV72: No | AW72: Y
B73: 114451150 | C73: 2285 Maze WAY Dixon, CA 95620 | D73: KHOV V9P2 Autumn Lot 326 | E73: BLDR-001957-2025 | F73: SFD | G73: O | R73: 0 | T73: 0 | U73: 0 | V73: 0 | W73: 0 | X73: 0 | Y73: 0 | Z73: 0 | AA73: 0 | AB73: 0 | AC73: 0 | AD73: 0 | AE73: 1 | AF73: 2025-06-06 | AG73: 1 | AR73: 1 | AS73: 2025-10-07 | AT73: 1 | AU73: NONE | AV73: No | AW73: Y
B74: 114473010 | C74: 355 Nighthawk Ridge Dixon, CA 95620 | D74: KHOV V10P2 Spring Lot 378 | E74: BLDR-002092-2025 | F74: SFD | G74: O | R74: 0 | T74: 0 | U74: 0 | V74: 0 | W74: 0 | X74: 0 | Y74: 0 | Z74: 0 | AA74: 0 | AB74: 0 | AC74: 0 | AD74: 0 | AE74: 1 | AF74: 2025-07-25 | AG74: 1 | AR74: 1 | AS74: 2025-10-24 | AT74: 1 | AU74: NONE | AV74: No | AW74: Y
B75: 113063060 | C75: 429 N JEFFERSON ST Dixon, CA 95620 | D75: Convert a garage workshop into an ADU. | E75: ADU-001764-2025 | F75: ADU | G75: O | R75: 0 | T75: 0 | U75: 0 | V75: 0 | W75: 0 | X75: 0 | Y75: 0 | Z75: 0 | AA75: 0 | AB75: 0 | AC75: 0 | AD75: 0 | AE75: 1 | AF75: 2025-04-07 | AG75: 1 | AR75: 1 | AS75: 2025-04-10 | AT75: 1 | AU75: NONE | AV75: No | AW75: Y
B76: 114452170 | C76: 2260 Maze WAY Dixon, CA 95620 | D76: KHOV V9P2 Autumn Lot 343 | E76: BLDR-001859-2025 | F76: SFD | G76: O | R76: 0 | T76: 0 | U76: 0 | V76: 0 | W76: 0 | X76: 0 | Y76: 0 | Z76: 0 | AA76: 0 | AB76: 0 | AC76: 0 | AD76: 0 | AE76: 1 | AF76: 2025-05-12 | AG76: 1 | AR76: 1 | AS76: 2025-09-09 | AT76: 1 | AU76: NONE | AV76: No | AW76: Y
B77: 114011030 | C77: 2270 Maze WAY Dixon, CA 95620 | D77: KHOV V9P2 Autumn Lot 344 | E77: BLDR-001861-2025 | F77: SFD | G77: O | R77: 0 | T77: 0 | U77: 0 | V77: 0 | W77: 0 | X77: 0 | Y77: 0 | Z77: 0 | AA77: 0 | AB77: 0 | AC77: 0 | AD77: 0 | AE77: 1 | AF77: 2025-05-12 | AG77: 1 | AR77: 1 | AS77: 2025-09-23 | AT77: 1 | AU77: NONE | AV77: No | AW77: Y
B78: 114473230 | C78: 345 Fable CT Dixon, CA 95620 | D78: KHOV V10P2 Lot 387 | E78: BLDR-001944-2025 | F78: SFD | G78: O | R78: 0 | T78: =SUM($H78:$R78) -> 0 | U78: 0 | V78: 0 | W78: 0 | X78: 0 | Y78: 0 | Z78: 0 | AA78: 0 | AB78: 0 | AC78: 0 | AD78: 0 | AE78: 1 | AF78: 2025-05-27 | AG78: =SUM($U78:$AE78) -> 1 | AR78: 1 | AS78: 2025-09-23 | AT78: =SUM($AH78:$AR78) -> 1 | AU78: NONE | AV78: No | AW78: Y
B79: 114451160 | C79: 2275 Maze WAY Dixon, CA 95620 | D79: KHOV V9P2 Autumn Lot 327 | E79: BLDR-001857-2025 | F79: SFD | G79: O | R79: 0 | T79: 0 | U79: 0 | V79: 0 | W79: 0 | X79: 0 | Y79: 0 | Z79: 0 | AA79: 0 | AB79: 0 | AC79: 0 | AD79: 0 | AE79: 1 | AF79: 2025-05-12 | AG79: 1 | AR79: 1 | AS79: 2025-08-29 | AT79: 1 | AU79: NONE | AV79: No | AW79: Y
B80: 114472160 | C80: 350 Nighthawk Ridge Dixon, CA 95620 | D80: KHOV V10P2 Spring Lot 307 | E80: BLDR-001941-2025 | F80: SFD | G80: O | R80: 0 | T80: 0 | U80: 0 | V80: 0 | W80: 0 | X80: 0 | Y80: 0 | Z80: 0 | AA80: 0 | AB80: 0 | AC80: 0 | AD80: 0 | AE80: 1 | AF80: 2025-05-27 | AG80: 1 | AR80: 1 | AS80: 2025-09-11 | AT80: 1 | AU80: NONE | AV80: No | AW80: Y
B81: 114473270 | C81: 300 Fable CT Dixon, CA 95620 | D81: KHOV V10P2 Spring Lot 383 | E81: BLDR-001943-2025 | F81: SFD | G81: O | R81: 0 | T81: 0 | U81: 0 | V81: 0 | W81: 0 | X81: 0 | Y81: 0 | Z81: 0 | AA81: 0 | AB81: 0 | AC81: 0 | AD81: 0 | AE81: 1 | AF81: 2025-05-27 | AG81: 1 | AR81: 1 | AS81: 2025-10-06 | AT81: 1 | AU81: NONE | AV81: No | AW81: Y
B82: 114451110 | C82: 430 Nighthawk Ridge Dixon, CA 95620 | D82: KHOV V9P2 Autumn Lot 323 | E82: BLDR-002169-2025 | F82: SFD | G82: O | R82: 0 | T82: 0 | U82: 0 | V82: 0 | W82: 0 | X82: 0 | Y82: 0 | Z82: 0 | AA82: 0 | AB82: 0 | AC82: 0 | AD82: 0 | AE82: 1 | AF82: 2025-07-25 | AG82: 1 | AR82: 1 | AS82: 2025-10-21 | AT82: 1 | AU82: NONE | AV82: No | AW82: Y
B83: 114472150 | C83: 340 Nighthawk Ridge Dixon, CA 95620 | D83: KHOV V10 Spring Lot 306 | E83: BLDR-001811-2025 | F83: SFD | G83: O | R83: 0 | T83: 0 | U83: 0 | V83: 0 | W83: 0 | X83: 0 | Y83: 0 | Z83: 0 | AA83: 0 | AB83: 0 | AC83: 0 | AD83: 0 | AE83: 1 | AF83: 2025-05-02 | AG83: 1 | AR83: 1 | AS83: 2025-08-28 | AT83: 1 | AU83: NONE | AV83: No | AW83: Y
B84: 114451190 | C84: 2245 Maze WAY Dixon, CA 95620 | D84: KHOV V9P2 Autumn Lot 330 | E84: BLDR-001477-2025 | F84: SFD | G84: O | R84: 0 | T84: 0 | U84: 0 | V84: 0 | W84: 0 | X84: 0 | Y84: 0 | Z84: 0 | AA84: 0 | AB84: 0 | AC84: 0 | AD84: 0 | AE84: 1 | AF84: 2025-04-30 | AG84: 1 | AR84: 1 | AS84: 2025-08-15 | AT84: 1 | AU84: NONE | AV84: No | AW84: Y
B85: 114451170 | C85: 2265 Maze WAY Dixon, CA 95620 | D85: KHOV V9 Autumn Lot 328 | E85: BLDR-001805-2025 | F85: SFD | G85: O | R85: 0 | T85: 0 | U85: 0 | V85: 0 | W85: 0 | X85: 0 | Y85: 0 | Z85: 0 | AA85: 0 | AB85: 0 | AC85: 0 | AD85: 0 | AE85: 1 | AF85: 2025-04-30 | AG85: 1 | AR85: 1 | AS85: 2025-08-18 | AT85: 1 | AU85: NONE | AV85: No | AW85: Y
B86: 114473080 | C86: 2275 Lark WAY Dixon, 95620 | D86: KHOV V10P2 Spring Lot 371 | E86: BLDR-001303-2024 | F86: SFD | G86: O | R86: 0 | T86: 0 | U86: 0 | V86: 0 | W86: 0 | X86: 0 | Y86: 0 | Z86: 0 | AA86: 0 | AB86: 0 | AC86: 0 | AD86: 0 | AE86: 1 | AF86: 2025-01-09 | AG86: 1 | AR86: 1 | AS86: 2025-04-23 | AT86: 1 | AU86: NONE | AV86: No | AW86: Y
B87: 114452150 | C87: 2240 Maze WAY Dixon, CA 95620 | D87: KHOV V9P2 Autumn Lot 341 | E87: BLDR-001489-2025 | F87: SFD | G87: O | R87: 0 | T87: 0 | U87: 0 | V87: 0 | W87: 0 | X87: 0 | Y87: 0 | Z87: 0 | AA87: 0 | AB87: 0 | AC87: 0 | AD87: 0 | AE87: 1 | AF87: 2025-03-07 | AG87: 1 | AR87: 1 | AS87: 2025-07-28 | AT87: 1 | AU87: NONE | AV87: No | AW87: Y
B88: 114452040 | C88: 2265 Prairie WAY Dixon, CA 95620 | D88: KHOV V9P2 Autumn Lot 350 | E88: BLDR-001306-2024 | F88: SFD | G88: O | R88: 0 | T88: 0 | U88: 0 | V88: 0 | W88: 0 | X88: 0 | Y88: 0 | Z88: 0 | AA88: 0 | AB88: 0 | AC88: 0 | AD88: 0 | AE88: 1 | AF88: 2025-01-24 | AG88: 1 | AR88: 1 | AS88: 2025-05-08 | AT88: 1 | AU88: NONE | AV88: No | AW88: Y
B89: 114451210 | C89: 2225 Maze WAY Dixon, CA 95620 | D89: KHOV V9P2 Autumn Lot 332 | E89: BLDR-001483-2025 | F89: SFD | G89: O | R89: 0 | T89: 0 | U89: 0 | V89: 0 | W89: 0 | X89: 0 | Y89: 0 | Z89: 0 | AA89: 0 | AB89: 0 | AC89: 0 | AD89: 0 | AE89: 1 | AF89: 2025-03-07 | AG89: 1 | AR89: 1 | AS89: 2025-07-09 | AT89: 1 | AU89: NONE | AV89: No | AW89: Y
B90: 114473040 | C90: 325 Nighthawk Ridge Dixon, CA 95620 | D90: KHOV V10P2 Spring Lot 375 | E90: BLDR-001499-2025 | F90: SFD | G90: O | R90: 0 | T90: 0 | U90: 0 | V90: 0 | W90: 0 | X90: 0 | Y90: 0 | Z90: 0 | AA90: 0 | AB90: 0 | AC90: 0 | AD90: 0 | AE90: 1 | AF90: 2025-03-07 | AG90: 1 | AR90: 1 | AS90: 2025-07-15 | AT90: 1 | AU90: NONE | AV90: No | AW90: Y
B91: 114472130 | C91: 320 Nighthawk Ridge Dixon, CA 95620 | D91: KHOV V10P2 Spring Lot 304 | E91: BLDR-001497-2025 | F91: SFD | G91: O | R91: 0 | T91: 0 | U91: 0 | V91: 0 | W91: 0 | X91: 0 | Y91: 0 | Z91: 0 | AA91: 0 | AB91: 0 | AC91: 0 | AD91: 0 | AE91: 1 | AF91: 2025-03-07 | AG91: 1 | AR91: 1 | AS91: 2025-07-15 | AT91: 1 | AU91: NONE | AV91: No | AW91: Y
B92: 114451200 | C92: 2235 Maze WAY Dixon, CA 95620 | D92: KHOV V9P2 Autumn Lot 331 | E92: BLDR-001479-2025 | F92: SFD | G92: O | R92: 0 | T92: 0 | U92: 0 | V92: 0 | W92: 0 | X92: 0 | Y92: 0 | Z92: 0 | AA92: 0 | AB92: 0 | AC92: 0 | AD92: 0 | AE92: 1 | AF92: 2025-03-07 | AG92: 1 | AR92: 1 | AS92: 2025-07-17 | AT92: 1 | AU92: NONE | AV92: No | AW92: Y
B93: 114452140 | C93: 2230 Maze WAY Dixon, CA 95620 | D93: KHOV V9P2 Autumn Lot 340 | E93: BLDR-001485-2025 | F93: SFD | G93: O | R93: 0 | T93: 0 | U93: 0 | V93: 0 | W93: 0 | X93: 0 | Y93: 0 | Z93: 0 | AA93: 0 | AB93: 0 | AC93: 0 | AD93: 0 | AE93: 1 | AF93: 2025-03-07 | AG93: 1 | AR93: 1 | AS93: 2025-07-25 | AT93: 1 | AU93: NONE | AV93: No | AW93: Y
B94: 114452030 | C94: 2275 Prairie WAY Dixon, CA 95620 | D94: KHOV V9P2 Autumn Lot 349 | E94: BLDR-001319-2024 | F94: SFD | G94: O | R94: 0 | T94: 0 | U94: 0 | V94: 0 | W94: 0 | X94: 0 | Y94: 0 | Z94: 0 | AA94: 0 | AB94: 0 | AC94: 0 | AD94: 0 | AE94: 1 | AF94: 2025-01-24 | AG94: 1 | AR94: 1 | AS94: 2025-06-16 | AT94: 1 | AU94: NONE | AV94: No | AW94: Y
B95: 114472140 | C95: 330 Nighthawk Ridge Dixon, CA 95620 | D95: KHOV V10 Spring Lot 305 | E95: BLDR-001809-2025 | F95: SFD | G95: O | R95: 0 | T95: 0 | U95: 0 | V95: 0 | W95: 0 | X95: 0 | Y95: 0 | Z95: 0 | AA95: 0 | AB95: 0 | AC95: 0 | AD95: 0 | AE95: 1 | AF95: 2025-05-02 | AG95: 1 | AR95: 1 | AS95: 2025-08-25 | AT95: 1 | AU95: NONE | AV95: No | AW95: Y
B96: 114451140 | C96: 2295 Maze WAY Dixon, CA 95620 | D96: KHOV V9P2 Autumn Lot 325 | E96: BLDR-001956-2025 | F96: SFD | G96: O | R96: 0 | T96: 0 | U96: 0 | V96: 0 | W96: 0 | X96: 0 | Y96: 0 | Z96: 0 | AA96: 0 | AB96: 0 | AC96: 0 | AD96: 0 | AE96: 1 | AF96: 2025-06-06 | AG96: 1 | AR96: 1 | AS96: 2025-10-06 | AT96: 1 | AU96: NONE | AV96: No | AW96: Y
B97: 114473030 | C97: 335 Nighthawk Ridge Dixon, CA 95620 | D97: KHOV V10 Spring Lot 376 | E97: BLDR-001813-2025 | F97: SFD | G97: O | R97: 0 | T97: 0 | U97: 0 | V97: 0 | W97: 0 | X97: 0 | Y97: 0 | Z97: 0 | AA97: 0 | AB97: 0 | AC97: 0 | AD97: 0 | AE97: 1 | AF97: 2025-05-02 | AG97: 1 | AR97: 1 | AS97: 2025-08-25 | AT97: 1 | AU97: NONE | AV97: No | AW97: Y
B98: 114452160 | C98: 2250 Maze WAY Dixon, CA 95620 | D98: KHOV V9P2 Autumn Lot 342 | E98: BLDR-001492-2025 | F98: SFD | G98: O | R98: 0 | T98: 0 | U98: 0 | V98: 0 | W98: 0 | X98: 0 | Y98: 0 | Z98: 0 | AA98: 0 | AB98: 0 | AC98: 0 | AD98: 0 | AE98: 1 | AF98: 2025-04-30 | AG98: 1 | AR98: 1 | AS98: 2025-08-23 | AT98: 1 | AU98: NONE | AV98: No | AW98: Y
B99: 114451180 | C99: 2255 Maze WAY Dixon, CA 95620 | D99: KHOV V9 Autumn Lot 329 | E99: BLDR-001807-2025 | F99: SFD | G99: O | R99: 0 | T99: 0 | U99: 0 | V99: 0 | W99: 0 | X99: 0 | Y99: 0 | Z99: 0 | AA99: 0 | AB99: 0 | AC99: 0 | AD99: 0 | AE99: 1 | AF99: 2025-04-30 | AG99: 1 | AR99: 1 | AS99: 2025-08-15 | AT99: 1 | AU99: NONE | AV99: No | AW99: Y
B100: 114473280 | C100: 310 Fable CT Dixon, CA 95620 | D100: KHOV V10P2 Spring Lot 382 | E100: BLDR-001942-2025 | F100: SFD | G100: O | R100: 0 | T100: 0 | U100: 0 | V100: 0 | W100: 0 | X100: 0 | Y100: 0 | Z100: 0 | AA100: 0 | AB100: 0 | AC100: 0 | AD100: 0 | AE100: 1 | AF100: 2025-05-27 | AG100: 1 | AR100: 1 | AS100: 2025-09-23 | AT100: 1 | AU100: NONE | AV100: No | AW100: Y
B101: 114452190 | C101: 2280 Maze WAY Dixon, CA 95620 | D101: KHOV V9P2 Autumn Lot 345 | E101: BLDR-001863-2025 | F101: SFD | G101: O | R101: 0 | T101: 0 | U101: 0 | V101: 0 | W101: 0 | X101: 0 | Y101: 0 | Z101: 0 | AA101: 0 | AB101: 0 | AC101: 0 | AD101: 0 | AE101: 1 | AF101: 2025-05-12 | AG101: 1 | AR101: 1 | AS101: 2025-09-11 | AT101: 1 | AU101: NONE | AV101: No | AW101: Y
B102: 114473020 | C102: 345 Nighthawk Ridge Dixon, CA 95620 | D102: KHOV V10 Spring Lot 377 | E102: BLDR-001815-2025 | F102: SFD | G102: O | R102: 0 | T102: 0 | U102: 0 | V102: 0 | W102: 0 | X102: 0 | Y102: 0 | Z102: 0 | AA102: 0 | AB102: 0 | AC102: 0 | AD102: 0 | AE102: 1 | AF102: 2025-05-02 | AG102: 1 | AR102: 1 | AS102: 2025-08-15 | AT102: 1 | AU102: NONE | AV102: No | AW102: Y
B103: 114452020 | C103: 2285 Prairie WAY Dixon, CA 95620 | D103: KHOV V9P2 Autumn Lot 348 | E103: BLDR-001318-2024 | F103: SFD | G103: O | R103: 0 | T103: 0 | U103: 0 | V103: 0 | W103: 0 | X103: 0 | Y103: 0 | Z103: 0 | AA103: 0 | AB103: 0 | AC103: 0 | AD103: 0 | AE103: 1 | AF103: 2025-01-24 | AG103: 1 | AR103: 1 | AS103: 2025-06-16 | AT103: 1 | AU103: NONE | AV103: No | AW103: Y
B104: 114473070 | C104: 2285 Lark WAY Dixon, CA 95620 | D104: KHOV Spring V10P2 Lot 372 | E104: BLDR-001304-2024 | F104: SFD | G104: O | R104: 0 | T104: 0 | U104: 0 | V104: 0 | W104: 0 | X104: 0 | Y104: 0 | Z104: 0 | AA104: 0 | AB104: 0 | AC104: 0 | AD104: 0 | AE104: 1 | AF104: 2025-01-24 | AG104: 1 | AR104: 1 | AS104: 2025-05-15 | AT104: 1 | AU104: NONE | AV104: No | AW104: Y
B105: 114472120 | C105: 310 Nighthawk Ridge Dixon, CA 95620 | D105: KHOV V10P2 Spring Lot 303 | E105: BLDR-001475-2025 | F105: SFD | G105: O | R105: 0 | T105: 0 | U105: 0 | V105: 0 | W105: 0 | X105: 0 | Y105: 0 | Z105: 0 | AA105: 0 | AB105: 0 | AC105: 0 | AD105: 0 | AE105: 1 | AF105: 2025-02-26 | AG105: 1 | AR105: 1 | AS105: 2025-06-18 | AT105: 1 | AU105: NONE | AV105: No | AW105: Y
B106: 114473060 | C106: 2295 Lark WAY Dixon, CA 95620 | D106: KHOV V10P2 Spring Lot 373 | E106: BLDR-001305-2024 | F106: SFD | G106: O | R106: 0 | T106: 0 | U106: 0 | V106: 0 | W106: 0 | X106: 0 | Y106: 0 | Z106: 0 | AA106: 0 | AB106: 0 | AC106: 0 | AD106: 0 | AE106: 1 | AF106: 2025-01-24 | AG106: 1 | AR106: 1 | AS106: 2025-05-12 | AT106: 1 | AU106: NONE | AV106: No | AW106: Y
B107: 114452010 | C107: 2295 Prairie WAY Dixon, CA 95620 | D107: KHOV V9P2 Autumn Lot 347 | E107: BLDR-001317-2024 | F107: SFD | G107: O | R107: 0 | T107: 0 | U107: 0 | V107: 0 | W107: 0 | X107: 0 | Y107: 0 | Z107: 0 | AA107: 0 | AB107: 0 | AC107: 0 | AD107: 0 | AE107: 1 | AF107: 2025-01-24 | AG107: 1 | AR107: 1 | AS107: 2025-06-17 | AT107: 1 | AU107: NONE | AV107: No | AW107: Y
B108: 114473050 | C108: 315 Nighthawk Ridge Dixon, CA 95620 | D108: KHOV V10P2 Spring Lot 374 | E108: BLDR-001473-2025 | F108: SFD | G108: O | R108: 0 | T108: 0 | U108: 0 | V108: 0 | W108: 0 | X108: 0 | Y108: 0 | Z108: 0 | AA108: 0 | AB108: 0 | AC108: 0 | AD108: 0 | AE108: 1 | AF108: 2025-02-26 | AG108: 1 | AR108: 1 | AS108: 2025-06-16 | AT108: 1 | AU108: NONE | AV108: No | AW108: Y
B109: 114473250 | C109: 325 Fable CT Dixon, CA 95620 | D109: KHOV V10P2 Spring Lot 385 | E109: BLDR-001968-2025 | F109: SFD | G109: O | R109: 0 | T109: 0 | U109: 0 | V109: 0 | W109: 0 | X109: 0 | Y109: 0 | Z109: 0 | AA109: 0 | AB109: 0 | AC109: 0 | AD109: 0 | AE109: 1 | AF109: 2025-07-25 | AG109: 1 | AR109: 1 | AS109: 2025-11-24 | AT109: 1 | AU109: NONE | AV109: No | AW109: Y
B110: 114451080 | C110: 400 Nighthawk Ridge Dixon, CA 95620 | D110: KHOV V9P2 Autumn Lot 320 | E110: BLDR-002258-2025 | F110: SFD | G110: O | R110: 0 | T110: 0 | U110: 0 | V110: 0 | W110: 0 | X110: 0 | Y110: 0 | Z110: 0 | AA110: 0 | AB110: 0 | AC110: 0 | AD110: 0 | AE110: 1 | AF110: 2025-08-22 | AG110: 1 | AR110: 1 | AS110: 2025-12-03 | AT110: 1 | AU110: NONE | AV110: No | AW110: Y
B111: 114451070 | C111: 2305 Prairie WAY Dixon, CA 95620 | D111: KHOV V9P2 Autumn Lot 6486 | E111: BLDR-002257-2025 | F111: SFD | G111: O | R111: 0 | T111: 0 | U111: 0 | V111: 0 | W111: 0 | X111: 0 | Y111: 0 | Z111: 0 | AA111: 0 | AB111: 0 | AC111: 0 | AD111: 0 | AE111: 1 | AF111: 2025-08-22 | AG111: 1 | AR111: 1 | AS111: 2025-12-05 | AT111: 1 | AU111: NONE | AV111: No | AW111: Y
B112: 114473300 | C112: 330 Fable CT DIXON, CA 95620 | D112: KHOV V10 Spring Lot 380 | E112: BLDR-002442-2025 | F112: SFD | G112: O | R112: 0 | T112: 0 | U112: 0 | V112: 0 | W112: 0 | X112: 0 | Y112: 0 | Z112: 0 | AA112: 0 | AB112: 0 | AC112: 0 | AD112: 0 | AE112: 1 | AF112: 2025-09-23 | AG112: 1 | AR112: 1 | AS112: 2025-12-30 | AT112: 1 | AU112: NONE | AV112: No | AW112: Y
B113: 108110460 | C113: 1905 N FIRST STREET 232 & 233 DIXON, CA 95620 | D113: Indp Lot 60 Bldg 58 | E113: 2024-0272 | F113: 2 to 4 | G113: O | R113: 0 | T113: 0 | U113: 0 | V113: 0 | W113: 0 | X113: 0 | Y113: 0 | Z113: 0 | AA113: 0 | AB113: 0 | AC113: 0 | AD113: 0 | AE113: 2 | AF113: 2025-04-10 | AG113: 2 | AT113: 0 | AU113: NONE | AV113: No | AW113: Y
B114: 108110460 | C114: 1905 N FIRST STREET 503 & 505 DIXON, CA 95620 | D114: Indp Lot 60 Bldg 71 | E114: 2024-0287 | F114: 2 to 4 | G114: O | R114: 0 | T114: =SUM($H114:$R114) -> 0 | U114: 0 | V114: 0 | W114: 0 | X114: 0 | Y114: 0 | Z114: 0 | AA114: 0 | AB114: 0 | AC114: 0 | AD114: 0 | AE114: 2 | AF114: 2025-04-10 | AG114: =SUM($U114:$AE114) -> 2 | AT114: =SUM($AH114:$AR114) -> 0 | AU114: NONE | AV114: No | AW114: Y
B115: 108110460 | C115: 1905 N FIRST STREET 228 & 230 DIXON, CA 95620 | D115: Indp Lot 60 Bldg 59 | E115: 2024-0273 | F115: 2 to 4 | G115: O | R115: 0 | T115: 0 | U115: 0 | V115: 0 | W115: 0 | X115: 0 | Y115: 0 | Z115: 0 | AA115: 0 | AB115: 0 | AC115: 0 | AD115: 0 | AE115: 2 | AF115: 2025-04-10 | AG115: 2 | AT115: 0 | AU115: NONE | AV115: No | AW115: Y
B116: 108110460 | C116: 1905 N FIRST STREET 224 & 226 DIXON, CA 95620 | D116: Indp Lot 60 Bldg 60 | E116: 2024-0274 | F116: 2 to 4 | G116: O | R116: 0 | T116: 0 | U116: 0 | V116: 0 | W116: 0 | X116: 0 | Y116: 0 | Z116: 0 | AA116: 0 | AB116: 0 | AC116: 0 | AD116: 0 | AE116: 2 | AF116: 2025-04-10 | AG116: 2 | AT116: 0 | AU116: NONE | AV116: No | AW116: Y
B117: 108110460 | C117: 1905 N FIRST STREET 213 & 215 DIXON, CA 95620 | D117: Indp Lot 60 Bldg 53 | E117: 2024-0267 | F117: 2 to 4 | G117: O | R117: 0 | T117: 0 | U117: 0 | V117: 0 | W117: 0 | X117: 0 | Y117: 0 | Z117: 0 | AA117: 0 | AB117: 0 | AC117: 0 | AD117: 0 | AE117: 2 | AF117: 2025-04-10 | AG117: 2 | AT117: 0 | AU117: NONE | AV117: No | AW117: Y
B118: 108110460 | C118: 1905 N FIRST STREET 221 & 223 DIXON, CA 95620 | D118: Indp Lot 60 Bldg 55 | E118: 2024-0269 | F118: 2 to 4 | G118: O | R118: 0 | T118: 0 | U118: 0 | V118: 0 | W118: 0 | X118: 0 | Y118: 0 | Z118: 0 | AA118: 0 | AB118: 0 | AC118: 0 | AD118: 0 | AE118: 2 | AF118: 2025-04-10 | AG118: 2 | AT118: 0 | AU118: NONE | AV118: No | AW118: Y
B119: 108110460 | C119: 1905 N FIRST STREET 201 & 203 DIXON, CA 95620 | D119: Indp Lot 60 Bldg 50 | E119: 2024-0264 | F119: 2 to 4 | G119: O | R119: 0 | T119: 0 | U119: 0 | V119: 0 | W119: 0 | X119: 0 | Y119: 0 | Z119: 0 | AA119: 0 | AB119: 0 | AC119: 0 | AD119: 0 | AE119: 2 | AF119: 2025-04-10 | AG119: 2 | AT119: =SUM($AH119:$AR119) -> 0 | AU119: NONE | AV119: No | AW119: Y
B120: 108110460 | C120: 1905 N FIRST STREET 209 & 211 DIXON, CA 95620 | D120: Indp Lot 60 Bldg 52 | E120: 2024-0266 | F120: 2 to 4 | G120: O | R120: 0 | T120: =SUM($H120:$R120) -> 0 | U120: 0 | V120: 0 | W120: 0 | X120: 0 | Y120: 0 | Z120: 0 | AA120: 0 | AB120: 0 | AC120: 0 | AD120: 0 | AE120: 2 | AF120: 2025-04-10 | AG120: =SUM($U120:$AE120) -> 2 | AT120: 0 | AU120: NONE | AV120: No | AW120: Y
B121: 108110460 | C121: 1905 N FIRST STREET 229 & 231 DIXON, CA 95620 | D121: Indp Lot 60 Bldg 57 | E121: 2024-0271 | F121: 2 to 4 | G121: O | R121: 0 | T121: 0 | U121: 0 | V121: 0 | W121: 0 | X121: 0 | Y121: 0 | Z121: 0 | AA121: 0 | AB121: 0 | AC121: 0 | AD121: 0 | AE121: 2 | AF121: 2025-04-10 | AG121: 2 | AT121: 0 | AU121: NONE | AV121: No | AW121: Y
B122: 108110460 | C122: 1905 N FIRST STREET 205 & 207 DIXON, CA 95620 | D122: Indp Lot 60 Bldg 51 | E122: 2024-0265 | F122: 2 to 4 | G122: O | R122: 0 | T122: 0 | U122: 0 | V122: 0 | W122: 0 | X122: 0 | Y122: 0 | Z122: 0 | AA122: 0 | AB122: 0 | AC122: 0 | AD122: 0 | AE122: 2 | AF122: 2025-04-10 | AG122: 2 | AT122: 0 | AU122: NONE | AV122: No | AW122: Y
B123: 108110460 | C123: 1905 N FIRST STREET 217 & 219 DIXON, CA 95620 | D123: Indp Lot 60 Bldg 54 | E123: 2024-0268 | F123: 2 to 4 | G123: O | R123: 0 | T123: 0 | U123: 0 | V123: 0 | W123: 0 | X123: 0 | Y123: 0 | Z123: 0 | AA123: 0 | AB123: 0 | AC123: 0 | AD123: 0 | AE123: 2 | AF123: 2025-04-10 | AG123: 2 | AT123: 0 | AU123: NONE | AV123: No | AW123: Y
B124: 108110460 | C124: 1905 N FIRST STREET 161 & 163 DIXON, CA 95620 | D124: Indp Lot 29 Bldg 29 | E124: 2024-0241 | F124: 2 to 4 | G124: O | R124: 0 | T124: 0 | U124: 0 | V124: 0 | W124: 0 | X124: 0 | Y124: 0 | Z124: 0 | AA124: 0 | AB124: 0 | AC124: 0 | AD124: 0 | AE124: 2 | AF124: 2025-04-10 | AG124: 2 | AT124: 0 | AU124: NONE | AV124: No | AW124: Y
B125: 108110460 | C125: 1905 N FIRST STREET 153 & 155 DIXON, CA 95620 | D125: Indp LOT 60 Bldg 31 | E125: 2024-0243 | F125: 2 to 4 | G125: O | R125: 0 | T125: 0 | U125: 0 | V125: 0 | W125: 0 | X125: 0 | Y125: 0 | Z125: 0 | AA125: 0 | AB125: 0 | AC125: 0 | AD125: 0 | AE125: 2 | AF125: 2025-04-10 | AG125: 2 | AT125: 0 | AU125: NONE | AV125: No | AW125: Y
B126: 108110460 | C126: 1905 N FIRST STREET 157 & 159 DIXON, CA 95620 | D126: Indp Lot 60 Bldg 30 | E126: 2024-0242 | F126: 2 to 4 | G126: O | R126: 0 | T126: 0 | U126: 0 | V126: 0 | W126: 0 | X126: 0 | Y126: 0 | Z126: 0 | AA126: 0 | AB126: 0 | AC126: 0 | AD126: 0 | AE126: 2 | AF126: 2025-04-10 | AG126: 2 | AT126: 0 | AU126: NONE | AV126: No | AW126: Y
B127: 108110460 | C127: 1905 N FIRST STREET 165 & 167 DIXON, CA 95620 | D127: Indp Lot 60 Bldg 28 | E127: 2024-0240 | F127: 2 to 4 | G127: O | R127: 0 | T127: 0 | U127: 0 | V127: 0 | W127: 0 | X127: 0 | Y127: 0 | Z127: 0 | AA127: 0 | AB127: 0 | AC127: 0 | AD127: 0 | AE127: 2 | AF127: 2025-04-10 | AG127: 2 | AT127: 0 | AU127: NONE | AV127: No | AW127: Y
B128: 108110460 | C128: 1905 N FIRST STREET 173 & 175 DIXON, CA 95620 | D128: Indp Lot 60 Bldg 23 | E128: 2024-0235 | F128: 2 to 4 | G128: O | R128: 0 | T128: 0 | U128: 0 | V128: 0 | W128: 0 | X128: 0 | Y128: 0 | Z128: 0 | AA128: 0 | AB128: 0 | AC128: 0 | AD128: 0 | AE128: 2 | AF128: 2025-04-10 | AG128: 2 | AT128: 0 | AU128: NONE | AV128: No | AW128: Y
B129: 108110460 | C129: 1905 N FIRST STREET 139 & 141 DIXON, CA 95620 | D129: INDP LOT 60 Bldg 18 | E129: 2024-0230 | F129: 2 to 4 | G129: O | R129: 0 | T129: 0 | U129: 0 | V129: 0 | W129: 0 | X129: 0 | Y129: 0 | Z129: 0 | AA129: 0 | AB129: 0 | AC129: 0 | AD129: 0 | AE129: 2 | AF129: 2025-04-10 | AG129: 2 | AT129: 0 | AU129: NONE | AV129: No | AW129: Y
B130: 108110460 | C130: 1905 N FIRST STREET 177 &179 DIXON, CA 95620 | D130: Indp Lot 60 Bldg 24 | E130: 2024-0236 | F130: 2 to 4 | G130: O | R130: 0 | T130: 0 | U130: 0 | V130: 0 | W130: 0 | X130: 0 | Y130: 0 | Z130: 0 | AA130: 0 | AB130: 0 | AC130: 0 | AD130: 0 | AE130: 2 | AF130: 2025-04-10 | AG130: 2 | AT130: 0 | AU130: NONE | AV130: No | AW130: Y
B131: 108110460 | C131: 1905 N FIRST STREET 164 & 166 DIXON, CA 95620 | D131: Indp Lot 60 Bldg 25 | E131: 2024-0237 | F131: 2 to 4 | G131: O | R131: 0 | T131: 0 | U131: 0 | V131: 0 | W131: 0 | X131: 0 | Y131: 0 | Z131: 0 | AA131: 0 | AB131: 0 | AC131: 0 | AD131: 0 | AE131: 2 | AF131: 2025-04-10 | AG131: 2 | AT131: 0 | AU131: NONE | AV131: No | AW131: Y
B132: 108110460 | C132: 1905 N FIRST STREET 160 & 162 DIXON, CA 95620 | D132: Indp Lot 60 Bldg 26 | E132: 2024-0238 | F132: 2 to 4 | G132: O | R132: 0 | T132: 0 | U132: 0 | V132: 0 | W132: 0 | X132: 0 | Y132: 0 | Z132: 0 | AA132: 0 | AB132: 0 | AC132: 0 | AD132: 0 | AE132: 2 | AF132: 2025-04-10 | AG132: 2 | AT132: 0 | AU132: NONE | AV132: No | AW132: Y
B133: 108110460 | C133: 1905 N FIRST STREET 176 & 178 DIXON, CA 95620 | D133: Indp Lot 60 Bldg 21 | E133: 2024-0233 | F133: 2 to 4 | G133: O | R133: 0 | T133: 0 | U133: 0 | V133: 0 | W133: 0 | X133: 0 | Y133: 0 | Z133: 0 | AA133: 0 | AB133: 0 | AC133: 0 | AD133: 0 | AE133: 2 | AF133: 2025-04-10 | AG133: 2 | AT133: 0 | AU133: NONE | AV133: No | AW133: Y
B134: 108110460 | C134: 1905 N FIRST STREET 169 & 171 DIXON, CA 95620 | D134: Indp Lot 60 Bldg 27 | E134: 2024-0239 | F134: 2 to 4 | G134: O | R134: 0 | T134: 0 | U134: 0 | V134: 0 | W134: 0 | X134: 0 | Y134: 0 | Z134: 0 | AA134: 0 | AB134: 0 | AC134: 0 | AD134: 0 | AE134: 2 | AF134: 2025-04-10 | AG134: 2 | AT134: 0 | AU134: NONE | AV134: No | AW134: Y
B135: 108110460 | C135: 1905 N FIRST STREET 135 & 137 DIXON, CA 95620 | D135: Indp Lot 60 Bldg 19 | E135: 2024-0231 | F135: 2 to 4 | G135: O | R135: 0 | T135: 0 | U135: 0 | V135: 0 | W135: 0 | X135: 0 | Y135: 0 | Z135: 0 | AA135: 0 | AB135: 0 | AC135: 0 | AD135: 0 | AE135: 2 | AF135: 2025-04-10 | AG135: 2 | AT135: 0 | AU135: NONE | AV135: No | AW135: Y
B136: 108110460 | C136: 1905 N FIRST STREET 115 & 117 DIXON, CA 95620 | D136: Indp Lot 60 Bldg 20 | E136: 2024-0232 | F136: 2 to 4 | G136: O | R136: 0 | T136: 0 | U136: 0 | V136: 0 | W136: 0 | X136: 0 | Y136: 0 | Z136: 0 | AA136: 0 | AB136: 0 | AC136: 0 | AD136: 0 | AE136: 2 | AF136: 2025-04-10 | AG136: 2 | AT136: 0 | AU136: NONE | AV136: No | AW136: Y
B137: 108110460 | C137: 1905 N FIRST STREET 143 & 145 DIXON, CA 95620 | D137: NDP LOT 60 Bldg 17 | E137: 2024-0229 | F137: 2 to 4 | G137: O | R137: 0 | T137: 0 | U137: 0 | V137: 0 | W137: 0 | X137: 0 | Y137: 0 | Z137: 0 | AA137: 0 | AB137: 0 | AC137: 0 | AD137: 0 | AE137: 2 | AF137: 2025-04-10 | AG137: 2 | AT137: 0 | AU137: NONE | AV137: No | AW137: Y
B138: 108110460 | C138: 1905 N FIRST STREET 172 & 174 DIXON, CA 95620 | D138: Indp Lot 60 Bldg 22 | E138: 2024-0234 | F138: 2 to 4 | G138: O | R138: 0 | T138: 0 | U138: 0 | V138: 0 | W138: 0 | X138: 0 | Y138: 0 | Z138: 0 | AA138: 0 | AB138: 0 | AC138: 0 | AD138: 0 | AE138: 2 | AF138: 2025-04-10 | AG138: 2 | AT138: 0 | AU138: NONE | AV138: No | AW138: Y
B139: 108110460 | C139: 1905 N FIRST STREET 126 & 128 DIXON, CA 95620 | D139: INDP LOT 60 BLDG 10 | E139: 2024-0209 | F139: 2 to 4 | G139: O | R139: 0 | T139: 0 | U139: 0 | V139: 0 | W139: 0 | X139: 0 | Y139: 0 | Z139: 0 | AA139: 0 | AB139: 0 | AC139: 0 | AD139: 0 | AE139: 2 | AF139: 2025-04-10 | AG139: 2 | AT139: 0 | AU139: NONE | AV139: No | AW139: Y
B140: 108110460 | C140: 1905 N FIRST STREET 130 & 132 DIXON, CA 95620 | D140: INDP LOT 60 BLDG 11 | E140: 2024-0210 | F140: 2 to 4 | G140: O | R140: 0 | T140: 0 | U140: 0 | V140: 0 | W140: 0 | X140: 0 | Y140: 0 | Z140: 0 | AA140: 0 | AB140: 0 | AC140: 0 | AD140: 0 | AE140: 2 | AF140: 2025-04-10 | AG140: 2 | AT140: 0 | AU140: NONE | AV140: No | AW140: Y
B141: 108110460 | C141: 1905 N FIRST STREET 110 & 112 DIXON, CA 95620 | D141: INDP LOT 60 BLDG 6 | E141: 2024-0205 | F141: 2 to 4 | G141: O | R141: 0 | T141: 0 | U141: 0 | V141: 0 | W141: 0 | X141: 0 | Y141: 0 | Z141: 0 | AA141: 0 | AB141: 0 | AC141: 0 | AD141: 0 | AE141: 2 | AF141: 2025-04-10 | AG141: 2 | AT141: 0 | AU141: NONE | AV141: No | AW141: Y
B142: 108110460 | C142: 1905 N FIRST STREET 103 & 105 DIXON, CA 95620 | D142: Indp Lot 60 BLDG 2 | E142: 2024-0201 | F142: 2 to 4 | G142: O | R142: 0 | T142: 0 | U142: 0 | V142: 0 | W142: 0 | X142: 0 | Y142: 0 | Z142: 0 | AA142: 0 | AB142: 0 | AC142: 0 | AD142: 0 | AE142: 2 | AF142: 2025-04-10 | AG142: 2 | AT142: 0 | AU142: NONE | AV142: No | AW142: Y
B143: 108110460 | C143: 1905 N FIRST STREET 134 & 136 DIXON, CA 95620 | D143: INDP LOT 60 BLDG 12 | E143: 2024-0211 | F143: 2 to 4 | G143: O | R143: 0 | T143: 0 | U143: 0 | V143: 0 | W143: 0 | X143: 0 | Y143: 0 | Z143: 0 | AA143: 0 | AB143: 0 | AC143: 0 | AD143: 0 | AE143: 2 | AF143: 2025-04-10 | AG143: 2 | AT143: 0 | AU143: NONE | AV143: No | AW143: Y
B144: 108110460 | C144: 1905 N FIRST STREET 118 & 120 DIXON, CA 95620 | D144: INDP LOT 60 BLDG 8 | E144: 2024-0207 | F144: 2 to 4 | G144: O | R144: 0 | T144: 0 | U144: 0 | V144: 0 | W144: 0 | X144: 0 | Y144: 0 | Z144: 0 | AA144: 0 | AB144: 0 | AC144: 0 | AD144: 0 | AE144: 2 | AF144: 2025-04-10 | AG144: 2 | AT144: 0 | AU144: NONE | AV144: No | AW144: Y
B145: 108110460 | C145: 1905 N FIRST STREET 114 & 116 DIXON, CA 95620 | D145: INDP LOT 60 BLDG 7 | E145: 2024-0206 | F145: 2 to 4 | G145: O | R145: 0 | T145: 0 | U145: 0 | V145: 0 | W145: 0 | X145: 0 | Y145: 0 | Z145: 0 | AA145: 0 | AB145: 0 | AC145: 0 | AD145: 0 | AE145: 2 | AF145: 2025-04-10 | AG145: 2 | AT145: 0 | AU145: NONE | AV145: No | AW145: Y
B146: 108110460 | C146: 1905 N FIRST STREET 106 & 108 DIXON, CA 95620 | D146: INDP LOT 60 BLDG 5 | E146: 2024-0204 | F146: 2 to 4 | G146: O | R146: 0 | T146: 0 | U146: 0 | V146: 0 | W146: 0 | X146: 0 | Y146: 0 | Z146: 0 | AA146: 0 | AB146: 0 | AC146: 0 | AD146: 0 | AE146: 2 | AF146: 2025-04-10 | AG146: 2 | AT146: 0 | AU146: NONE | AV146: No | AW146: Y
B147: 108110460 | C147: 1905 N FIRST STREET 100 & 101 DIXON, CA 95620 | D147: Indp Lot 60 BLDG 3 | E147: 2024-0202 | F147: 2 to 4 | G147: O | R147: 0 | T147: 0 | U147: 0 | V147: 0 | W147: 0 | X147: 0 | Y147: 0 | Z147: 0 | AA147: 0 | AB147: 0 | AC147: 0 | AD147: 0 | AE147: 2 | AF147: 2025-04-10 | AG147: 2 | AT147: 0 | AU147: NONE | AV147: No | AW147: Y
B148: 108110460 | C148: 1905 N FIRST STREET 142 & 144 DIXON, CA 95620 | D148: INDP LOT 60 BLDG 14 | E148: 2024-0213 | F148: 2 to 4 | G148: O | R148: 0 | T148: 0 | U148: 0 | V148: 0 | W148: 0 | X148: 0 | Y148: 0 | Z148: 0 | AA148: 0 | AB148: 0 | AC148: 0 | AD148: 0 | AE148: 2 | AF148: 2025-04-10 | AG148: 2 | AT148: 0 | AU148: NONE | AV148: No | AW148: Y
B149: 108110460 | C149: 1905 N FIRST STREET 150 & 152 DIXON, CA 95620 | D149: INDP LOT 60 BLDG 16 | E149: 2024-0215 | F149: 2 to 4 | G149: O | R149: 0 | T149: 0 | U149: 0 | V149: 0 | W149: 0 | X149: 0 | Y149: 0 | Z149: 0 | AA149: 0 | AB149: 0 | AC149: 0 | AD149: 0 | AE149: 2 | AF149: 2025-04-10 | AG149: 2 | AT149: 0 | AU149: NONE | AV149: No | AW149: Y
B150: 108110460 | C150: 1905 N FIRST STREET 138 & 140 DIXON, CA 95620 | D150: INDP LOT 60 BLDG 13 | E150: 2024-0212 | F150: 2 to 4 | G150: O | R150: 0 | T150: 0 | U150: 0 | V150: 0 | W150: 0 | X150: 0 | Y150: 0 | Z150: 0 | AA150: 0 | AB150: 0 | AC150: 0 | AD150: 0 | AE150: 2 | AF150: 2025-04-10 | AG150: 2 | AT150: 0 | AU150: NONE | AV150: No | AW150: Y
B151: 108110460 | C151: 1905 N FIRST STREET 102 & 104 DIXON, CA 95620 | D151: INDP LOT 60 BLDG 4 | E151: 2024-0203 | F151: 2 to 4 | G151: O | R151: 0 | T151: 0 | U151: 0 | V151: 0 | W151: 0 | X151: 0 | Y151: 0 | Z151: 0 | AA151: 0 | AB151: 0 | AC151: 0 | AD151: 0 | AE151: 2 | AF151: 2025-04-10 | AG151: 2 | AT151: 0 | AU151: NONE | AV151: No | AW151: Y
B152: 108110460 | C152: 1905 N FIRST STREET 146 & 148 DIXON, CA 95620 | D152: INDP LOT 60 BLDG 15 | E152: 2024-0214 | F152: 2 to 4 | G152: O | R152: 0 | T152: 0 | U152: 0 | V152: 0 | W152: 0 | X152: 0 | Y152: 0 | Z152: 0 | AA152: 0 | AB152: 0 | AC152: 0 | AD152: 0 | AE152: 2 | AF152: 2025-04-10 | AG152: 2 | AT152: 0 | AU152: NONE | AV152: No | AW152: Y
B153: 108110460 | C153: 1905 N FIRST STREET 122 & 124 DIXON, CA 95620 | D153: INDP LOT 60 BLDG 9 | E153: 2024-0208 | F153: 2 to 4 | G153: O | R153: 0 | T153: 0 | U153: 0 | V153: 0 | W153: 0 | X153: 0 | Y153: 0 | Z153: 0 | AA153: 0 | AB153: 0 | AC153: 0 | AD153: 0 | AE153: 2 | AF153: 2025-04-10 | AG153: 2 | AT153: 0 | AU153: NONE | AV153: No | AW153: Y
B154: 108110460 | C154: 1905 N FIRST STREET 109 & 107 DIXON, CA 95620 | D154: Indp Lot 60 Bldg 1 | E154: 2024-0200 | F154: 2 to 4 | G154: O | R154: 0 | T154: 0 | U154: 0 | V154: 0 | W154: 0 | X154: 0 | Y154: 0 | Z154: 0 | AA154: 0 | AB154: 0 | AC154: 0 | AD154: 0 | AE154: 2 | AF154: 2025-04-10 | AG154: 2 | AT154: 0 | AU154: NONE | AV154: No | AW154: Y
T155: 0 | AG155: 0 | AT155: 0
T156: 0 | AG156: 0 | AT156: 0
T157: 0 | AG157: 0 | AT157: 0
T158: 0 | AG158: 0 | AT158: 0
T159: 0 | AG159: 0 | AT159: 0
T160: 0 | AG160: 0 | AT160: 0
T161: 0 | AG161: 0 | AT161: 0
T162: 0 | AG162: 0 | AT162: 0
T163: 0 | AG163: 0 | AT163: 0
T164: 0 | AG164: 0 | AT164: 0
T165: 0 | AG165: 0 | AT165: 0
T166: 0 | AG166: 0 | AT166: 0
T167: 0 | AG167: 0 | AT167: 0
T168: 0 | AG168: 0 | AT168: 0
T169: 0 | AG169: 0 | AT169: 0
T170: 0 | AG170: 0 | AT170: 0
T171: 0 | AG171: 0 | AT171: 0
T172: 0 | AG172: 0 | AT172: 0
T173: 0 | AG173: 0 | AT173: 0
T174: 0 | AG174: 0 | AT174: 0
T175: 0 | AG175: 0 | AT175: 0
T176: 0 | AG176: 0 | AT176: 0
T177: 0 | AG177: 0 | AT177: 0
T178: 0 | AG178: 0 | AT178: =SUM($AH178:$AR178) -> 0
T179: 0 | AG179: 0 | AT179: 0
T180: 0 | AG180: 0 | AT180: 0
T181: 0 | AG181: 0 | AT181: 0
T182: 0 | AG182: 0 | AT182: 0
T183: 0 | AG183: 0 | AT183: 0
T184: =SUM($H184:$R184) -> 0 | AG184: =SUM($U184:$AE184) -> 0 | AT184: 0
T185: 0 | AG185: 0 | AT185: 0
T186: 0 | AG186: 0 | AT186: 0
T187: 0 | AG187: 0 | AT187: 0
T188: 0 | AG188: 0 | AT188: 0
T189: 0 | AG189: 0 | AT189: 0
T190: 0 | AG190: 0 | AT190: 0
T191: 0 | AG191: 0 | AT191: 0
T192: 0 | AG192: 0 | AT192: 0
T193: 0 | AG193: 0 | AT193: 0
T194: 0 | AG194: 0 | AT194: 0
T195: 0 | AG195: 0 | AT195: 0
T196: 0 | AG196: 0 | AT196: 0
T197: 0 | AG197: 0 | AT197: 0
T198: 0 | AG198: 0 | AT198: 0
T199: 0 | AG199: 0 | AT199: 0
T200: 0 | AG200: 0 | AT200: 0
T201: 0 | AG201: 0 | AT201: 0
T202: 0 | AG202: 0 | AT202: 0
... 798 more rows

Sheet Deed Rest And Asst Pgm Data (hidden)
A1: Assistance Program Types | B1: Deed Restriction Types | C1: Density Bonus Incentive Dropdown | D1: Yes/No | E1: Application Status | F1: Reporting Year | G1: SB 35 Table A | H1: Unit Category | I1: SB9 | J1: Tenure | K1: Table A SB35 | L1: Table A2 SB 35 | M1: Table Ad Demo | N1: Table C Shortfall | O1: Table C Vacant | P1: Streamlining Programs | Q1: Project Type (Pursuant to CEQA Guidelines) | R1: Table D Cycle | S1: Table D Status of Implementation | T1: Table L Designation Level | U1: Table L Historic Period | V1: Table L Areas of Significance | W1: Table A Historic Sites | X1: Table D Quantified Outcomes
A2: Acq/Rehab | B2: DB | C2: On-Site Improvements | D2: Yes | E2: Approved | F2: 2025 | G2: No | H2: SFA | I2: Unit Constructed | J2: R | K2: No | L2: N | M2: Demolished | N2: No Net Loss | O2: Vacant | P2: NONE | Q2: Ministerial | R2: 6th Cycle | S2: Not Yet Started | T2: National | U2: Prehistoric | V2: Archeology-Prehistoric | W2: Yes - National | X2: Units
A3: AHP | B3: INC | C3: Off-site Improvements | D3: No | E3: Pending | F3: 2024 | G3: Yes-But no action taken | H3: SFD | I3: Application for Parcel Map for Lot Split | J3: O | K3: Yes-But no action taken | L3: Y | M3: Destroyed | N3: Unaccommodated Need | O3: Non-Vacant | P3: SB 9 (2021) - Duplex in SF Zone | Q3: Discretionary | R3: 7th Cycle | S3: In Progress | T3: State | U3: 1400 to 1499 | V3: Archeology-Historic | W3: Yes - State | X3: Households
A4: AHSC | B4: Other | C4: Development Standards Modification | D4: N/A | E4: Disapproved | F4: 2023 | G4: Yes-Approved | H4: 2 to 4 | K4: Yes-Approved | N4: Shortfall of Sites | P4: SB 9 (2021) - Residential Lot Split | S4: Continuous | T4: Local | U4: 1500 to 1599 | V4: Agriculture | W4: Yes - Local | X4: Persons
A5: CalHOME | C5: Other | E5: Withdrawn | F5: 2022 | G5: Yes-Denied | H5: 5+ | K5: Yes-Denied | P5: AB 2011 (2022) | S5: Completed | U5: 1600 to 1699 | V5: Architecture | W5: No | X5: Meetings
A6: CDBG | F6: 2021 | H6: ADU | P6: SB 6 (2022) | U6: 1700 to 1799 | V6: Art | X6: Other
A7: CDLAC | F7: 2020 | H7: MH | P7: SMAP | U7: 1800 to 1899 | V7: Commerce
A8: CESH | F8: 2019 | H8: SH | P8: SB 4 (2023) | U8: 1900 to Present | V8: Communications
A9: ESG | F9: 2018 | V9: Community
A10: GSAF | V10: Planning
A11: HEAP | V11: Conservation
A12: HHAP | V12: Economics
A13: HKEY | V13: Education
A14: HOME | V14: Engineering
A15: HOPWA | V15: Exploration/Settlement
A16: IIG | V16: Industry
A17: LHTF | V17: Invention
A18: LIHTC | V18: Landscape
A19: MHP | V19: Architecture
A20: MHSA | V20: Law
A21: MPRROP | V21: Literature
A22: MRB | V22: Military
A23: MyHOME | V23: Music
A24: NHTF | V24: Philosophy
A25: NPLH | V25: Politics/Government
A26: PBS8 | V26: Religion
A27: PDLP | V27: Science
A28: RAD | V28: Sculpture
A29: RDA | V29: Social/Humanitarian
A30: Sec 202 | V30: Theater
A31: Sec 811 | V31: Transportation
A32: SERNA | V32: Other (Specify in Notes Column)
A33: SHMHP
A34: SNHP
A35: TOD
A36: USDA
A37: VHHP
A38: Other

Sheet Table B
A1: Jurisdiction | B1: ='Start Here'!B4 -> Dixon | F1: ANNUAL ELEMENT PROGRESS REPORT | J1: This table is auto-populated once you enter your jurisdiction name and current year data. Past year information comes from previous APRs.
A2: Reporting Year | B2: ='Start Here'!B5 -> 2025 | C2: ='Table A'!C2 -> (Jan. 1 - Dec. 31) | F2: Housing Element Implementation | J2: Please contact HCD if your data is different than the material supplied here
A3: Planning Period | B3: =IFERROR(IF(ISBLANK(VLOOKUP(B1,'Planning Periods'!$E$2:$P$540,12)),"5th Cycle",VLOOKUP(B1,'Planning Periods'!$E$2:$P$540,12)),"") -> 6th Cycle | C3: =IF(ISBLANK(B1),"",IFERROR(VLOOKUP(B1,'Planning Periods'!$E$2:$Q$540,10),"")) -> 01/31/2023 - 01/31/2031
A6: B_Table_Level | B6: B_Table_Dlevel | C6: B_Table_1_Allocation | E6: B_Table_2_Y1 | F6: B_Table_2_Y2 | G6: B_Table_2_Y3 | H6: B_Table_2_Y4 | I6: B_Table_2_Y5 | J6: B_Table_2_Y6 | K6: B_Table_2_Y7 | L6: B_Table_2_Y8 | M6: B_Table_2_Y9 | N6: B_Table_3_Total | O6: B_Table_4_Remain
A7: Table B
A8: Regional Housing Needs Allocation Progress
A9: Permitted Units Issued by Affordability
C10: 1 | D10: Projection Period | E10: 2 | N10: 3 | O10: 4
A11: Income Level | C11: RHNA Allocation by Income Level | D11: =IF(B3="5th Cycle","","Projection Period"&" - "&VLOOKUP(B1,'Planning Periods'!E2:Q540,13)) -> Projection Period - 06/30/2022-01/30/2023 | E11: =VLOOKUP(B1,'Planning Periods'!E2:M540,8,0) -> 2023 | F11: =IF(ISNUMBER(E11),(IF(VLOOKUP($B$1,'Planning Periods'!$E$2:$M$540,9,0)=E11," ",(E11+1)))," ") -> 2024 | G11: =IF(ISNUMBER(F11),(IF(VLOOKUP($B$1,'Planning Periods'!$E$2:$M$540,9,0)=F11," ",(F11+1)))," ") -> 2025 | H11: =IF(ISNUMBER(G11),(IF(VLOOKUP($B$1,'Planning Periods'!$E$2:$M$540,9,0)=G11," ",(G11+1)))," ") -> 2026 | I11: =IF(ISNUMBER(H11),(IF(VLOOKUP($B$1,'Planning Periods'!$E$2:$M$540,9,0)=H11," ",(H11+1)))," ") -> 2027 | J11: =IF(ISNUMBER(I11),(IF(VLOOKUP($B$1,'Planning Periods'!$E$2:$M$540,9,0)=I11," ",(I11+1)))," ") -> 2028 | K11: =IF(ISNUMBER(J11),(IF(VLOOKUP($B$1,'Planning Periods'!$E$2:$M$540,9,0)=J11," ",(J11+1)))," ") -> 2029 | L11: =IF(ISNUMBER(K11),(IF(VLOOKUP($B$1,'Planning Periods'!$E$2:$M$540,9,0)=K11," ",(K11+1)))," ") -> 2030 | M11: =IF(ISNUMBER(L11),(IF(VLOOKUP($B$1,'Planning Periods'!$E$2:$M$540,9,0)=L11," ",(L11+1)))," ") -> 2031 | N11: Total Units to Date (all years) | O11: Total Remaining RHNA by Income Level
A13: Acutely Low | B13: Deed Restricted | C13: =VLOOKUP($B$1,'RHNA Allocations'!$C$2:$J$540,2,0) -> 0 | D13: =IFERROR(IF(E$11=$B$2,IF(OR(VLOOKUP($B$1,'Planning Periods'!$E$2:$P$540,12)="7th Cycle", VLOOKUP($B$1,'Planning Periods'!$E$2:$P$540,12)="6th Cycle"),SUMPRODUCT((YEAR('Table A2'!$AF$13:$AF$1000)='Start Here'!$B$5)*('Table A2'!$AF$13:$AF$1000>=VLOOKUP($B$1,'Planning Periods'!$E$2:$P$540,6))*('Table A2'!$AF$13:$AF$1000<VLOOKUP($B$1,'Planning Periods'!$E$2:$P$540,10))*'Table A2'!$U$13:$U$1000)+IFERROR((INDEX('Table B Values'!$C$2:$K$8017,MATCH('Table B'!$B$1&'Table B'!D$10,'Table B Values'!$A$2:$A$8017&'Table B Values'!$L$2:$L$8017,0),MATCH('Table B'!$B$32,'Table B Values'!$C$1:$K$1,0))),0),"-"),IF($B$3<>"5th Cycle",INDEX('Table B Values'!$C$2:$K$8017,MATCH('Table B'!$B$1&'Table B'!D$10,'Table B Values'!$A$2:$A$8017&'Table B Values'!$L$2:$L$8017,0),MATCH('Table B'!$B$32,'Table B Values'!$C$1:$K$1,0)),0)),"-") -> - | E13: =IFERROR(IF(E$11=$B$2,IF(OR(VLOOKUP($B$1,'Planning Periods'!$E$2:$P$540,12)="7th Cycle", VLOOKUP($B$1,'Planning Periods'!$E$2:$P$540,12)="6th Cycle"),SUMPRODUCT((YEAR('Table A2'!$AF$13:$AF$1000)='Start Here'!$B$5)*('Table A2'!$AF$13:$AF$1000>=VLOOKUP($B$1,'Planning Periods'!$E$2:$P$540,6))*'Table A2'!$U$13:$U$1000),SUMPRODUCT((YEAR('Table A2'!$AF$13:$AF$1000)='Start Here'!$B$5)*('Table A2'!$AF$13:$AF$1000<VLOOKUP($B$1,'Planning Periods'!$E$2:$P$540,7))*'Table A2'!$U$13:$U$1000)),IF(E$11<$B$2,(INDEX('Table B Values'!$C$2:$K$8017,MATCH('Table B'!$B$1&'Table B'!E$11&$B$3,'Table B Values'!$A$2:$A$8017&'Table B Values'!$B$2:$B$8017&'Table B Values'!$L$2:$L$8017,0),MATCH('Table B'!$B$32,'Table B Values'!$C$1:$K$1,0))),)),) -> 0 | F13: =IFERROR(IF(F$11=$B$2,IF(OR(VLOOKUP($B$1,'Planning Periods'!$E$2:$P$540,12)="7th Cycle", VLOOKUP($B$1,'Planning Periods'!$E$2:$P$540,12)="6th Cycle"),SUMPRODUCT((YEAR('Table A2'!$AF$13:$AF$1000)='Start Here'!$B$5)*('Table A2'!$AF$13:$AF$1000>=VLOOKUP($B$1,'Planning Periods'!$E$2:$P$540,6))*'Table A2'!$U$13:$U$1000),SUMPRODUCT((YEAR('Table A2'!$AF$13:$AF$1000)='Start Here'!$B$5)*('Table A2'!$AF$13:$AF$1000<VLOOKUP($B$1,'Planning Periods'!$E$2:$P$540,7))*'Table A2'!$U$13:$U$1000)),IF(F$11<$B$2,(INDEX('Table B Values'!$C$2:$K$8017,MATCH('Table B'!$B$1&'Table B'!F$11&$B$3,'Table B Values'!$A$2:$A$8017&'Table B Values'!$B$2:$B$8017&'Table B Values'!$L$2:$L$8017,0),MATCH('Table B'!$B$32,'Table B Values'!$C$1:$K$1,0))),)),) -> 0 | G13: =IFERROR(IF(G$11=$B$2,IF(OR(VLOOKUP($B$1,'Planning Periods'!$E$2:$P$540,12)="7th Cycle", VLOOKUP($B$1,'Planning Periods'!$E$2:$P$540,12)="6th Cycle"),SUMPRODUCT((YEAR('Table A2'!$AF$13:$AF$1000)='Start Here'!$B$5)*('Table A2'!$AF$13:$AF$1000>=VLOOKUP($B$1,'Planning Periods'!$E$2:$P$540,6))*'Table A2'!$U$13:$U$1000),SUMPRODUCT((YEAR('Table A2'!$AF$13:$AF$1000)='Start Here'!$B$5)*('Table A2'!$AF$13:$AF$1000<VLOOKUP($B$1,'Planning Periods'!$E$2:$P$540,7))*'Table A2'!$U$13:$U$1000)),IF(G$11<$B$2,(INDEX('Table B Values'!$C$2:$K$8017,MATCH('Table B'!$B$1&'Table B'!G$11&$B$3,'Table B Values'!$A$2:$A$8017&'Table B Values'!$B$2:$B$8017&'Table B Values'!$L$2:$L$8017,0),MATCH('Table B'!$B$32,'Table B Values'!$C$1:$K$1,0))),)),) -> 0 | H13: =IFERROR(IF(H$11=$B$2,IF(OR(VLOOKUP($B$1,'Planning Periods'!$E$2:$P$540,12)="7th Cycle", VLOOKUP($B$1,'Planning Periods'!$E$2:$P$540,12)="6th Cycle"),SUMPRODUCT((YEAR('Table A2'!$AF$13:$AF$1000)='Start Here'!$B$5)*('Table A2'!$AF$13:$AF$1000>=VLOOKUP($B$1,'Planning Periods'!$E$2:$P$540,6))*'Table A2'!$U$13:$U$1000),SUMPRODUCT((YEAR('Table A2'!$AF$13:$AF$1000)='Start Here'!$B$5)*('Table A2'!$AF$13:$AF$1000<VLOOKUP($B$1,'Planning Periods'!$E$2:$P$540,7))*'Table A2'!$U$13:$U$1000)),IF(H$11<$B$2,(INDEX('Table B Values'!$C$2:$K$8017,MATCH('Table B'!$B$1&'Table B'!H$11&$B$3,'Table B Values'!$A$2:$A$8017&'Table B Values'!$B$2:$B$8017&'Table B Values'!$L$2:$L$8017,0),MATCH('Table B'!$B$32,'Table B Values'!$C$1:$K$1,0))),)),) -> 0 | I13: =IFERROR(IF(I$11=$B$2,IF(OR(VLOOKUP($B$1,'Planning Periods'!$E$2:$P$540,12)="7th Cycle", VLOOKUP($B$1,'Planning Periods'!$E$2:$P$540,12)="6th Cycle"),SUMPRODUCT((YEAR('Table A2'!$AF$13:$AF$1000)='Start Here'!$B$5)*('Table A2'!$AF$13:$AF$1000>=VLOOKUP($B$1,'Planning Periods'!$E$2:$P$540,6))*'Table A2'!$U$13:$U$1000),SUMPRODUCT((YEAR('Table A2'!$AF$13:$AF$1000)='Start Here'!$B$5)*('Table A2'!$AF$13:$AF$1000<VLOOKUP($B$1,'Planning Periods'!$E$2:$P$540,7))*'Table A2'!$U$13:$U$1000)),IF(I$11<$B$2,(INDEX('Table B Values'!$C$2:$K$8017,MATCH('Table B'!$B$1&'Table B'!I$11&$B$3,'Table B Values'!$A$2:$A$8017&'Table B Values'!$B$2:$B$8017&'Table B Values'!$L$2:$L$8017,0),MATCH('Table B'!$B$32,'Table B Values'!$C$1:$K$1,0))),)),) -> 0 | J13: =IFERROR(IF(J$11=$B$2,IF(OR(VLOOKUP($B$1,'Planning Periods'!$E$2:$P$540,12)="7th Cycle", VLOOKUP($B$1,'Planning Periods'!$E$2:$P$540,12)="6th Cycle"),SUMPRODUCT((YEAR('Table A2'!$AF$13:$AF$1000)='Start Here'!$B$5)*('Table A2'!$AF$13:$AF$1000>=VLOOKUP($B$1,'Planning Periods'!$E$2:$P$540,6))*'Table A2'!$U$13:$U$1000),SUMPRODUCT((YEAR('Table A2'!$AF$13:$AF$1000)='Start Here'!$B$5)*('Table A2'!$AF$13:$AF$1000<VLOOKUP($B$1,'Planning Periods'!$E$2:$P$540,7))*'Table A2'!$U$13:$U$1000)),IF(J$11<$B$2,(INDEX('Table B Values'!$C$2:$K$8017,MATCH('Table B'!$B$1&'Table B'!J$11&$B$3,'Table B Values'!$A$2:$A$8017&'Table B Values'!$B$2:$B$8017&'Table B Values'!$L$2:$L$8017,0),MATCH('Table B'!$B$32,'Table B Values'!$C$1:$K$1,0))),)),) -> 0 | K13: =IFERROR(IF(K$11=$B$2,IF(OR(VLOOKUP($B$1,'Planning Periods'!$E$2:$P$540,12)="7th Cycle", VLOOKUP($B$1,'Planning Periods'!$E$2:$P$540,12)="6th Cycle"),SUMPRODUCT((YEAR('Table A2'!$AF$13:$AF$1000)='Start Here'!$B$5)*('Table A2'!$AF$13:$AF$1000>=VLOOKUP($B$1,'Planning Periods'!$E$2:$P$540,6))*'Table A2'!$U$13:$U$1000),SUMPRODUCT((YEAR('Table A2'!$AF$13:$AF$1000)='Start Here'!$B$5)*('Table A2'!$AF$13:$AF$1000<VLOOKUP($B$1,'Planning Periods'!$E$2:$P$540,7))*'Table A2'!$U$13:$U$1000)),IF(K$11<$B$2,(INDEX('Table B Values'!$C$2:$K$8017,MATCH('Table B'!$B$1&'Table B'!K$11&$B$3,'Table B Values'!$A$2:$A$8017&'Table B Values'!$B$2:$B$8017&'Table B Values'!$L$2:$L$8017,0),MATCH('Table B'!$B$32,'Table B Values'!$C$1:$K$1,0))),)),) -> 0 | L13: =IFERROR(IF(L$11=$B$2,IF(OR(VLOOKUP($B$1,'Planning Periods'!$E$2:$P$540,12)="7th Cycle", VLOOKUP($B$1,'Planning Periods'!$E$2:$P$540,12)="6th Cycle"),SUMPRODUCT((YEAR('Table A2'!$AF$13:$AF$1000)='Start Here'!$B$5)*('Table A2'!$AF$13:$AF$1000>=VLOOKUP($B$1,'Planning Periods'!$E$2:$P$540,6))*'Table A2'!$U$13:$U$1000),SUMPRODUCT((YEAR('Table A2'!$AF$13:$AF$1000)='Start Here'!$B$5)*('Table A2'!$AF$13:$AF$1000<VLOOKUP($B$1,'Planning Periods'!$E$2:$P$540,7))*'Table A2'!$U$13:$U$1000)),IF(L$11<$B$2,(INDEX('Table B Values'!$C$2:$K$8017,MATCH('Table B'!$B$1&'Table B'!L$11&$B$3,'Table B Values'!$A$2:$A$8017&'Table B Values'!$B$2:$B$8017&'Table B Values'!$L$2:$L$8017,0),MATCH('Table B'!$B$32,'Table B Values'!$C$1:$K$1,0))),)),) -> 0 | M13: =IFERROR(IF(M$11=$B$2,IF(OR(VLOOKUP($B$1,'Planning Periods'!$E$2:$P$540,12)="7th Cycle", VLOOKUP($B$1,'Planning Periods'!$E$2:$P$540,12)="6th Cycle"),SUMPRODUCT((YEAR('Table A2'!$AF$13:$AF$1000)='Start Here'!$B$5)*('Table A2'!$AF$13:$AF$1000>=VLOOKUP($B$1,'Planning Periods'!$E$2:$P$540,6))*'Table A2'!$U$13:$U$1000),SUMPRODUCT((YEAR('Table A2'!$AF$13:$AF$1000)='Start Here'!$B$5)*('Table A2'!$AF$13:$AF$1000<VLOOKUP($B$1,'Planning Periods'!$E$2:$P$540,7))*'Table A2'!$U$13:$U$1000)),IF(M$11<$B$2,(INDEX('Table B Values'!$C$2:$K$8017,MATCH('Table B'!$B$1&'Table B'!M$11&$B$3,'Table B Values'!$A$2:$A$8017&'Table B Values'!$B$2:$B$8017&'Table B Values'!$L$2:$L$8017,0),MATCH('Table B'!$B$32,'Table B Values'!$C$1:$K$1,0))),)),) -> 0 | N13: =SUM(D13:M13)+SUM(D14:M14) -> 0 | O13: =MAX(0,C13-N13) -> 0 | P13: B_Table_Vlow_Deed
B14: Non-Deed Restricted | D14: =IFERROR(IF(E$11=$B$2,IF(OR(VLOOKUP($B$1,'Planning Periods'!$E$2:$P$540,12)="7th Cycle", VLOOKUP($B$1,'Planning Periods'!$E$2:$P$540,12)="6th Cycle"),SUMPRODUCT((YEAR('Table A2'!$AF$13:$AF$1000)='Start Here'!$B$5)*('Table A2'!$AF$13:$AF$1000>=VLOOKUP($B$1,'Planning Periods'!$E$2:$P$540,6))*('Table A2'!$AF$13:$AF$1000<VLOOKUP($B$1,'Planning Periods'!$E$2:$P$540,10))*'Table A2'!$V$13:$V$1000)+IFERROR((INDEX('Table B Values'!$C$2:$K$8017,MATCH('Table B'!$B$1&'Table B'!D$10,'Table B Values'!$A$2:$A$8017&'Table B Values'!$L$2:$L$8017,0),MATCH('Table B'!$B$33,'Table B Values'!$C$1:$K$1,0))),0),"-"),IF($B$3<>"5th Cycle",INDEX('Table B Values'!$C$2:$K$8017,MATCH('Table B'!$B$1&'Table B'!D$10,'Table B Values'!$A$2:$A$8017&'Table B Values'!$L$2:$L$8017,0),MATCH('Table B'!$B$33,'Table B Values'!$C$1:$K$1,0)),0)),"-") -> - | E14: =IFERROR(IF(E$11=$B$2,IF(OR(VLOOKUP($B$1,'Planning Periods'!$E$2:$P$540,12)="7th Cycle", VLOOKUP($B$1,'Planning Periods'!$E$2:$P$540,12)="6th Cycle"),SUMPRODUCT((YEAR('Table A2'!$AF$13:$AF$1000)='Start Here'!$B$5)*('Table A2'!$AF$13:$AF$1000>=VLOOKUP($B$1,'Planning Periods'!$E$2:$P$540,6))*'Table A2'!$V$13:$V$1000),SUMPRODUCT((YEAR('Table A2'!$AF$13:$AF$1000)='Start Here'!$B$5)*('Table A2'!$AF$13:$AF$1000<VLOOKUP($B$1,'Planning Periods'!$E$2:$P$540,7))*'Table A2'!$V$13:$V$1000)),IF(E$11<$B$2,(INDEX('Table B Values'!$C$2:$K$8017,MATCH('Table B'!$B$1&'Table B'!E$11&$B$3,'Table B Values'!$A$2:$A$8017&'Table B Values'!$B$2:$B$8017&'Table B Values'!$L$2:$L$8017,0),MATCH('Table B'!$B$33,'Table B Values'!$C$1:$K$1,0))),)),) -> 0 | F14: =IFERROR(IF(F$11=$B$2,IF(OR(VLOOKUP($B$1,'Planning Periods'!$E$2:$P$540,12)="7th Cycle", VLOOKUP($B$1,'Planning Periods'!$E$2:$P$540,12)="6th Cycle"),SUMPRODUCT((YEAR('Table A2'!$AF$13:$AF$1000)='Start Here'!$B$5)*('Table A2'!$AF$13:$AF$1000>=VLOOKUP($B$1,'Planning Periods'!$E$2:$P$540,6))*'Table A2'!$V$13:$V$1000),SUMPRODUCT((YEAR('Table A2'!$AF$13:$AF$1000)='Start Here'!$B$5)*('Table A2'!$AF$13:$AF$1000<VLOOKUP($B$1,'Planning Periods'!$E$2:$P$540,7))*'Table A2'!$V$13:$V$1000)),IF(F$11<$B$2,(INDEX('Table B Values'!$C$2:$K$8017,MATCH('Table B'!$B$1&'Table B'!F$11&$B$3,'Table B Values'!$A$2:$A$8017&'Table B Values'!$B$2:$B$8017&'Table B Values'!$L$2:$L$8017,0),MATCH('Table B'!$B$33,'Table B Values'!$C$1:$K$1,0))),)),) -> 0 | G14: =IFERROR(IF(G$11=$B$2,IF(OR(VLOOKUP($B$1,'Planning Periods'!$E$2:$P$540,12)="7th Cycle", VLOOKUP($B$1,'Planning Periods'!$E$2:$P$540,12)="6th Cycle"),SUMPRODUCT((YEAR('Table A2'!$AF$13:$AF$1000)='Start Here'!$B$5)*('Table A2'!$AF$13:$AF$1000>=VLOOKUP($B$1,'Planning Periods'!$E$2:$P$540,6))*'Table A2'!$V$13:$V$1000),SUMPRODUCT((YEAR('Table A2'!$AF$13:$AF$1000)='Start Here'!$B$5)*('Table A2'!$AF$13:$AF$1000<VLOOKUP($B$1,'Planning Periods'!$E$2:$P$540,7))*'Table A2'!$V$13:$V$1000)),IF(G$11<$B$2,(INDEX('Table B Values'!$C$2:$K$8017,MATCH('Table B'!$B$1&'Table B'!G$11&$B$3,'Table B Values'!$A$2:$A$8017&'Table B Values'!$B$2:$B$8017&'Table B Values'!$L$2:$L$8017,0),MATCH('Table B'!$B$33,'Table B Values'!$C$1:$K$1,0))),)),) -> 0 | H14: =IFERROR(IF(H$11=$B$2,IF(OR(VLOOKUP($B$1,'Planning Periods'!$E$2:$P$540,12)="7th Cycle", VLOOKUP($B$1,'Planning Periods'!$E$2:$P$540,12)="6th Cycle"),SUMPRODUCT((YEAR('Table A2'!$AF$13:$AF$1000)='Start Here'!$B$5)*('Table A2'!$AF$13:$AF$1000>=VLOOKUP($B$1,'Planning Periods'!$E$2:$P$540,6))*'Table A2'!$V$13:$V$1000),SUMPRODUCT((YEAR('Table A2'!$AF$13:$AF$1000)='Start Here'!$B$5)*('Table A2'!$AF$13:$AF$1000<VLOOKUP($B$1,'Planning Periods'!$E$2:$P$540,7))*'Table A2'!$V$13:$V$1000)),IF(H$11<$B$2,(INDEX('Table B Values'!$C$2:$K$8017,MATCH('Table B'!$B$1&'Table B'!H$11&$B$3,'Table B Values'!$A$2:$A$8017&'Table B Values'!$B$2:$B$8017&'Table B Values'!$L$2:$L$8017,0),MATCH('Table B'!$B$33,'Table B Values'!$C$1:$K$1,0))),)),) -> 0 | I14: =IFERROR(IF(I$11=$B$2,IF(OR(VLOOKUP($B$1,'Planning Periods'!$E$2:$P$540,12)="7th Cycle", VLOOKUP($B$1,'Planning Periods'!$E$2:$P$540,12)="6th Cycle"),SUMPRODUCT((YEAR('Table A2'!$AF$13:$AF$1000)='Start Here'!$B$5)*('Table A2'!$AF$13:$AF$1000>=VLOOKUP($B$1,'Planning Periods'!$E$2:$P$540,6))*'Table A2'!$V$13:$V$1000),SUMPRODUCT((YEAR('Table A2'!$AF$13:$AF$1000)='Start Here'!$B$5)*('Table A2'!$AF$13:$AF$1000<VLOOKUP($B$1,'Planning Periods'!$E$2:$P$540,7))*'Table A2'!$V$13:$V$1000)),IF(I$11<$B$2,(INDEX('Table B Values'!$C$2:$K$8017,MATCH('Table B'!$B$1&'Table B'!I$11&$B$3,'Table B Values'!$A$2:$A$8017&'Table B Values'!$B$2:$B$8017&'Table B Values'!$L$2:$L$8017,0),MATCH('Table B'!$B$33,'Table B Values'!$C$1:$K$1,0))),)),) -> 0 | J14: =IFERROR(IF(J$11=$B$2,IF(OR(VLOOKUP($B$1,'Planning Periods'!$E$2:$P$540,12)="7th Cycle", VLOOKUP($B$1,'Planning Periods'!$E$2:$P$540,12)="6th Cycle"),SUMPRODUCT((YEAR('Table A2'!$AF$13:$AF$1000)='Start Here'!$B$5)*('Table A2'!$AF$13:$AF$1000>=VLOOKUP($B$1,'Planning Periods'!$E$2:$P$540,6))*'Table A2'!$V$13:$V$1000),SUMPRODUCT((YEAR('Table A2'!$AF$13:$AF$1000)='Start Here'!$B$5)*('Table A2'!$AF$13:$AF$1000<VLOOKUP($B$1,'Planning Periods'!$E$2:$P$540,7))*'Table A2'!$V$13:$V$1000)),IF(J$11<$B$2,(INDEX('Table B Values'!$C$2:$K$8017,MATCH('Table B'!$B$1&'Table B'!J$11&$B$3,'Table B Values'!$A$2:$A$8017&'Table B Values'!$B$2:$B$8017&'Table B Values'!$L$2:$L$8017,0),MATCH('Table B'!$B$33,'Table B Values'!$C$1:$K$1,0))),)),) -> 0 | K14: =IFERROR(IF(K$11=$B$2,IF(OR(VLOOKUP($B$1,'Planning Periods'!$E$2:$P$540,12)="7th Cycle", VLOOKUP($B$1,'Planning Periods'!$E$2:$P$540,12)="6th Cycle"),SUMPRODUCT((YEAR('Table A2'!$AF$13:$AF$1000)='Start Here'!$B$5)*('Table A2'!$AF$13:$AF$1000>=VLOOKUP($B$1,'Planning Periods'!$E$2:$P$540,6))*'Table A2'!$V$13:$V$1000),SUMPRODUCT((YEAR('Table A2'!$AF$13:$AF$1000)='Start Here'!$B$5)*('Table A2'!$AF$13:$AF$1000<VLOOKUP($B$1,'Planning Periods'!$E$2:$P$540,7))*'Table A2'!$V$13:$V$1000)),IF(K$11<$B$2,(INDEX('Table B Values'!$C$2:$K$8017,MATCH('Table B'!$B$1&'Table B'!K$11&$B$3,'Table B Values'!$A$2:$A$8017&'Table B Values'!$B$2:$B$8017&'Table B Values'!$L$2:$L$8017,0),MATCH('Table B'!$B$33,'Table B Values'!$C$1:$K$1,0))),)),) -> 0 | L14: =IFERROR(IF(L$11=$B$2,IF(OR(VLOOKUP($B$1,'Planning Periods'!$E$2:$P$540,12)="7th Cycle", VLOOKUP($B$1,'Planning Periods'!$E$2:$P$540,12)="6th Cycle"),SUMPRODUCT((YEAR('Table A2'!$AF$13:$AF$1000)='Start Here'!$B$5)*('Table A2'!$AF$13:$AF$1000>=VLOOKUP($B$1,'Planning Periods'!$E$2:$P$540,6))*'Table A2'!$V$13:$V$1000),SUMPRODUCT((YEAR('Table A2'!$AF$13:$AF$1000)='Start Here'!$B$5)*('Table A2'!$AF$13:$AF$1000<VLOOKUP($B$1,'Planning Periods'!$E$2:$P$540,7))*'Table A2'!$V$13:$V$1000)),IF(L$11<$B$2,(INDEX('Table B Values'!$C$2:$K$8017,MATCH('Table B'!$B$1&'Table B'!L$11&$B$3,'Table B Values'!$A$2:$A$8017&'Table B Values'!$B$2:$B$8017&'Table B Values'!$L$2:$L$8017,0),MATCH('Table B'!$B$33,'Table B Values'!$C$1:$K$1,0))),)),) -> 0 | M14: =IFERROR(IF(M$11=$B$2,IF(OR(VLOOKUP($B$1,'Planning Periods'!$E$2:$P$540,12)="7th Cycle", VLOOKUP($B$1,'Planning Periods'!$E$2:$P$540,12)="6th Cycle"),SUMPRODUCT((YEAR('Table A2'!$AF$13:$AF$1000)='Start Here'!$B$5)*('Table A2'!$AF$13:$AF$1000>=VLOOKUP($B$1,'Planning Periods'!$E$2:$P$540,6))*'Table A2'!$V$13:$V$1000),SUMPRODUCT((YEAR('Table A2'!$AF$13:$AF$1000)='Start Here'!$B$5)*('Table A2'!$AF$13:$AF$1000<VLOOKUP($B$1,'Planning Periods'!$E$2:$P$540,7))*'Table A2'!$V$13:$V$1000)),IF(M$11<$B$2,(INDEX('Table B Values'!$C$2:$K$8017,MATCH('Table B'!$B$1&'Table B'!M$11&$B$3,'Table B Values'!$A$2:$A$8017&'Table B Values'!$B$2:$B$8017&'Table B Values'!$L$2:$L$8017,0),MATCH('Table B'!$B$33,'Table B Values'!$C$1:$K$1,0))),)),) -> 0 | P14: B_Table_Vlow_None
A15: Extremely Low | B15: Deed Restricted | C15: =VLOOKUP($B$1,'RHNA Allocations'!$C$2:$J$540,3,0) -> 0 | D15: =IFERROR(IF(E$11=$B$2,IF(OR(VLOOKUP($B$1,'Planning Periods'!$E$2:$P$540,12)="7th Cycle", VLOOKUP($B$1,'Planning Periods'!$E$2:$P$540,12)="6th Cycle"),SUMPRODUCT((YEAR('Table A2'!$AF$13:$AF$1000)='Start Here'!$B$5)*('Table A2'!$AF$13:$AF$1000>=VLOOKUP($B$1,'Planning Periods'!$E$2:$P$540,6))*('Table A2'!$AF$13:$AF$1000<VLOOKUP($B$1,'Planning Periods'!$E$2:$P$540,10))*'Table A2'!$W$13:$W$1000)+IFERROR((INDEX('Table B Values'!$C$2:$K$8017,MATCH('Table B'!$B$1&'Table B'!D$10,'Table B Values'!$A$2:$A$8017&'Table B Values'!$L$2:$L$8017,0),MATCH('Table B'!$B34,'Table B Values'!$C$1:$I$1,0))),0),"-"),IF($B$3<>"5th Cycle",INDEX('Table B Values'!$C$2:$K$8017,MATCH('Table B'!$B$1&'Table B'!D$10,'Table B Values'!$A$2:$A$8017&'Table B Values'!$L$2:$L$8017,0),MATCH('Table B'!$B34,'Table B Values'!$C$1:$K$1,0)),0)),"-") -> 0 | E15: =IFERROR(IF(E$11=$B$2,IF(OR(VLOOKUP($B$1,'Planning Periods'!$E$2:$P$540,12)="7th Cycle", VLOOKUP($B$1,'Planning Periods'!$E$2:$P$540,12)="6th Cycle"),SUMPRODUCT((YEAR('Table A2'!$AF$13:$AF$1000)='Start Here'!$B$5)*('Table A2'!$AF$13:$AF$1000>=VLOOKUP($B$1,'Planning Periods'!$E$2:$P$540,6))*'Table A2'!$W$13:$W$1000),SUMPRODUCT((YEAR('Table A2'!$AF$13:$AF$1000)='Start Here'!$B$5)*('Table A2'!$AF$13:$AF$1000<VLOOKUP($B$1,'Planning Periods'!$E$2:$P$540,7))*'Table A2'!$W$13:$W$1000))+'Table F'!$F$17,IF(E$11<$B$2,(INDEX('Table B Values'!$C$2:$K$8017,MATCH('Table B'!$B$1&'Table B'!E$11&$B$3,'Table B Values'!$A$2:$A$8017&'Table B Values'!$B$2:$B$8017&'Table B Values'!$L$2:$L$8017,0),MATCH('Table B'!$B$34,'Table B Values'!$C$1:$K$1,0))),)),) -> 8 | F15: =IFERROR(IF(F$11=$B$2,IF(OR(VLOOKUP($B$1,'Planning Periods'!$E$2:$P$540,12)="7th Cycle", VLOOKUP($B$1,'Planning Periods'!$E$2:$P$540,12)="6th Cycle"),SUMPRODUCT((YEAR('Table A2'!$AF$13:$AF$1000)='Start Here'!$B$5)*('Table A2'!$AF$13:$AF$1000>=VLOOKUP($B$1,'Planning Periods'!$E$2:$P$540,6))*'Table A2'!$W$13:$W$1000),SUMPRODUCT((YEAR('Table A2'!$AF$13:$AF$1000)='Start Here'!$B$5)*('Table A2'!$AF$13:$AF$1000<VLOOKUP($B$1,'Planning Periods'!$E$2:$P$540,7))*'Table A2'!$W$13:$W$1000))+'Table F'!$F$17,IF(F$11<$B$2,(INDEX('Table B Values'!$C$2:$K$8017,MATCH('Table B'!$B$1&'Table B'!F$11&$B$3,'Table B Values'!$A$2:$A$8017&'Table B Values'!$B$2:$B$8017&'Table B Values'!$L$2:$L$8017,0),MATCH('Table B'!$B$34,'Table B Values'!$C$1:$K$1,0))),)),) -> 11 | G15: =IFERROR(IF(G$11=$B$2,IF(OR(VLOOKUP($B$1,'Planning Periods'!$E$2:$P$540,12)="7th Cycle", VLOOKUP($B$1,'Planning Periods'!$E$2:$P$540,12)="6th Cycle"),SUMPRODUCT((YEAR('Table A2'!$AF$13:$AF$1000)='Start Here'!$B$5)*('Table A2'!$AF$13:$AF$1000>=VLOOKUP($B$1,'Planning Periods'!$E$2:$P$540,6))*'Table A2'!$W$13:$W$1000),SUMPRODUCT((YEAR('Table A2'!$AF$13:$AF$1000)='Start Here'!$B$5)*('Table A2'!$AF$13:$AF$1000<VLOOKUP($B$1,'Planning Periods'!$E$2:$P$540,7))*'Table A2'!$W$13:$W$1000))+'Table F'!$F$17,IF(G$11<$B$2,(INDEX('Table B Values'!$C$2:$K$8017,MATCH('Table B'!$B$1&'Table B'!G$11&$B$3,'Table B Values'!$A$2:$A$8017&'Table B Values'!$B$2:$B$8017&'Table B Values'!$L$2:$L$8017,0),MATCH('Table B'!$B$34,'Table B Values'!$C$1:$K$1,0))),)),) -> 0 | H15: =IFERROR(IF(H$11=$B$2,IF(OR(VLOOKUP($B$1,'Planning Periods'!$E$2:$P$540,12)="7th Cycle", VLOOKUP($B$1,'Planning Periods'!$E$2:$P$540,12)="6th Cycle"),SUMPRODUCT((YEAR('Table A2'!$AF$13:$AF$1000)='Start Here'!$B$5)*('Table A2'!$AF$13:$AF$1000>=VLOOKUP($B$1,'Planning Periods'!$E$2:$P$540,6))*'Table A2'!$W$13:$W$1000),SUMPRODUCT((YEAR('Table A2'!$AF$13:$AF$1000)='Start Here'!$B$5)*('Table A2'!$AF$13:$AF$1000<VLOOKUP($B$1,'Planning Periods'!$E$2:$P$540,7))*'Table A2'!$W$13:$W$1000))+'Table F'!$F$17,IF(H$11<$B$2,(INDEX('Table B Values'!$C$2:$K$8017,MATCH('Table B'!$B$1&'Table B'!H$11&$B$3,'Table B Values'!$A$2:$A$8017&'Table B Values'!$B$2:$B$8017&'Table B Values'!$L$2:$L$8017,0),MATCH('Table B'!$B$34,'Table B Values'!$C$1:$K$1,0))),)),) -> 0 | I15: =IFERROR(IF(I$11=$B$2,IF(OR(VLOOKUP($B$1,'Planning Periods'!$E$2:$P$540,12)="7th Cycle", VLOOKUP($B$1,'Planning Periods'!$E$2:$P$540,12)="6th Cycle"),SUMPRODUCT((YEAR('Table A2'!$AF$13:$AF$1000)='Start Here'!$B$5)*('Table A2'!$AF$13:$AF$1000>=VLOOKUP($B$1,'Planning Periods'!$E$2:$P$540,6))*'Table A2'!$W$13:$W$1000),SUMPRODUCT((YEAR('Table A2'!$AF$13:$AF$1000)='Start Here'!$B$5)*('Table A2'!$AF$13:$AF$1000<VLOOKUP($B$1,'Planning Periods'!$E$2:$P$540,7))*'Table A2'!$W$13:$W$1000))+'Table F'!$F$17,IF(I$11<$B$2,(INDEX('Table B Values'!$C$2:$K$8017,MATCH('Table B'!$B$1&'Table B'!I$11&$B$3,'Table B Values'!$A$2:$A$8017&'Table B Values'!$B$2:$B$8017&'Table B Values'!$L$2:$L$8017,0),MATCH('Table B'!$B$34,'Table B Values'!$C$1:$K$1,0))),)),) -> 0 | J15: =IFERROR(IF(J$11=$B$2,IF(OR(VLOOKUP($B$1,'Planning Periods'!$E$2:$P$540,12)="7th Cycle", VLOOKUP($B$1,'Planning Periods'!$E$2:$P$540,12)="6th Cycle"),SUMPRODUCT((YEAR('Table A2'!$AF$13:$AF$1000)='Start Here'!$B$5)*('Table A2'!$AF$13:$AF$1000>=VLOOKUP($B$1,'Planning Periods'!$E$2:$P$540,6))*'Table A2'!$W$13:$W$1000),SUMPRODUCT((YEAR('Table A2'!$AF$13:$AF$1000)='Start Here'!$B$5)*('Table A2'!$AF$13:$AF$1000<VLOOKUP($B$1,'Planning Periods'!$E$2:$P$540,7))*'Table A2'!$W$13:$W$1000))+'Table F'!$F$17,IF(J$11<$B$2,(INDEX('Table B Values'!$C$2:$K$8017,MATCH('Table B'!$B$1&'Table B'!J$11&$B$3,'Table B Values'!$A$2:$A$8017&'Table B Values'!$B$2:$B$8017&'Table B Values'!$L$2:$L$8017,0),MATCH('Table B'!$B$34,'Table B Values'!$C$1:$K$1,0))),)),) -> 0 | K15: =IFERROR(IF(K$11=$B$2,IF(OR(VLOOKUP($B$1,'Planning Periods'!$E$2:$P$540,12)="7th Cycle", VLOOKUP($B$1,'Planning Periods'!$E$2:$P$540,12)="6th Cycle"),SUMPRODUCT((YEAR('Table A2'!$AF$13:$AF$1000)='Start Here'!$B$5)*('Table A2'!$AF$13:$AF$1000>=VLOOKUP($B$1,'Planning Periods'!$E$2:$P$540,6))*'Table A2'!$W$13:$W$1000),SUMPRODUCT((YEAR('Table A2'!$AF$13:$AF$1000)='Start Here'!$B$5)*('Table A2'!$AF$13:$AF$1000<VLOOKUP($B$1,'Planning Periods'!$E$2:$P$540,7))*'Table A2'!$W$13:$W$1000))+'Table F'!$F$17,IF(K$11<$B$2,(INDEX('Table B Values'!$C$2:$K$8017,MATCH('Table B'!$B$1&'Table B'!K$11&$B$3,'Table B Values'!$A$2:$A$8017&'Table B Values'!$B$2:$B$8017&'Table B Values'!$L$2:$L$8017,0),MATCH('Table B'!$B$34,'Table B Values'!$C$1:$K$1,0))),)),) -> 0 | L15: =IFERROR(IF(L$11=$B$2,IF(OR(VLOOKUP($B$1,'Planning Periods'!$E$2:$P$540,12)="7th Cycle", VLOOKUP($B$1,'Planning Periods'!$E$2:$P$540,12)="6th Cycle"),SUMPRODUCT((YEAR('Table A2'!$AF$13:$AF$1000)='Start Here'!$B$5)*('Table A2'!$AF$13:$AF$1000>=VLOOKUP($B$1,'Planning Periods'!$E$2:$P$540,6))*'Table A2'!$W$13:$W$1000),SUMPRODUCT((YEAR('Table A2'!$AF$13:$AF$1000)='Start Here'!$B$5)*('Table A2'!$AF$13:$AF$1000<VLOOKUP($B$1,'Planning Periods'!$E$2:$P$540,7))*'Table A2'!$W$13:$W$1000))+'Table F'!$F$17,IF(L$11<$B$2,(INDEX('Table B Values'!$C$2:$K$8017,MATCH('Table B'!$B$1&'Table B'!L$11&$B$3,'Table B Values'!$A$2:$A$8017&'Table B Values'!$B$2:$B$8017&'Table B Values'!$L$2:$L$8017,0),MATCH('Table B'!$B$34,'Table B Values'!$C$1:$K$1,0))),)),) -> 0 | M15: =IFERROR(IF(M$11=$B$2,IF(OR(VLOOKUP($B$1,'Planning Periods'!$E$2:$P$540,12)="7th Cycle", VLOOKUP($B$1,'Planning Periods'!$E$2:$P$540,12)="6th Cycle"),SUMPRODUCT((YEAR('Table A2'!$AF$13:$AF$1000)='Start Here'!$B$5)*('Table A2'!$AF$13:$AF$1000>=VLOOKUP($B$1,'Planning Periods'!$E$2:$P$540,6))*'Table A2'!$W$13:$W$1000),SUMPRODUCT((YEAR('Table A2'!$AF$13:$AF$1000)='Start Here'!$B$5)*('Table A2'!$AF$13:$AF$1000<VLOOKUP($B$1,'Planning Periods'!$E$2:$P$540,7))*'Table A2'!$W$13:$W$1000))+'Table F'!$F$17,IF(M$11<$B$2,(INDEX('Table B Values'!$C$2:$K$8017,MATCH('Table B'!$B$1&'Table B'!M$11&$B$3,'Table B Values'!$A$2:$A$8017&'Table B Values'!$B$2:$B$8017&'Table B Values'!$L$2:$L$8017,0),MATCH('Table B'!$B$34,'Table B Values'!$C$1:$K$1,0))),)),) -> 0 | N15: =SUM(D15:M15)+SUM(D16:M16) -> 19 | O15: =MAX(0,C15-N15) -> 0 | P15: B_Table_Vlow_Deed
B16: Non-Deed Restricted | D16: =IFERROR(IF(E$11=$B$2,IF(OR(VLOOKUP($B$1,'Planning Periods'!$E$2:$P$540,12)="7th Cycle", VLOOKUP($B$1,'Planning Periods'!$E$2:$P$540,12)="6th Cycle"),SUMPRODUCT((YEAR('Table A2'!$AF$13:$AF$1000)='Start Here'!$B$5)*('Table A2'!$AF$13:$AF$1000>=VLOOKUP($B$1,'Planning Periods'!$E$2:$P$540,6))*('Table A2'!$AF$13:$AF$1000<VLOOKUP($B$1,'Planning Periods'!$E$2:$P$540,10))*'Table A2'!$X$13:$X$1000)+IFERROR((INDEX('Table B Values'!$C$2:$K$8017,MATCH('Table B'!$B$1&'Table B'!D$10,'Table B Values'!$A$2:$A$8017&'Table B Values'!$L$2:$L$8017,0),MATCH('Table B'!$B35,'Table B Values'!$C$1:$K$1,0))),0),"-"),IF($B$3<>"5th Cycle",INDEX('Table B Values'!$C$2:$K$8017,MATCH('Table B'!$B$1&'Table B'!D$10,'Table B Values'!$A$2:$A$8017&'Table B Values'!$L$2:$L$8017,0),MATCH('Table B'!$B35,'Table B Values'!$C$1:$K$1,0)),0)),"-") -> 0 | E16: =IFERROR(IF(E$11=$B$2,IF(OR(VLOOKUP($B$1,'Planning Periods'!$E$2:$P$540,12)="7th Cycle", VLOOKUP($B$1,'Planning Periods'!$E$2:$P$540,12)="6th Cycle"),SUMPRODUCT((YEAR('Table A2'!$AF$13:$AF$1000)='Start Here'!$B$5)*('Table A2'!$AF$13:$AF$1000>=VLOOKUP($B$1,'Planning Periods'!$E$2:$P$540,6))*'Table A2'!$X$13:$X$1000),SUMPRODUCT((YEAR('Table A2'!$AF$13:$AF$1000)='Start Here'!$B$5)*('Table A2'!$AF$13:$AF$1000<VLOOKUP($B$1,'Planning Periods'!$E$2:$P$540,7))*'Table A2'!$X$13:$X$1000)),IF(E$11<$B$2,(INDEX('Table B Values'!$C$2:$K$8017,MATCH('Table B'!$B$1&'Table B'!E$11&$B$3,'Table B Values'!$A$2:$A$8017&'Table B Values'!$B$2:$B$8017&'Table B Values'!$L$2:$L$8017,0),MATCH('Table B'!$B$35,'Table B Values'!$C$1:$K$1,0))),)),) -> 0 | F16: =IFERROR(IF(F$11=$B$2,IF(OR(VLOOKUP($B$1,'Planning Periods'!$E$2:$P$540,12)="7th Cycle", VLOOKUP($B$1,'Planning Periods'!$E$2:$P$540,12)="6th Cycle"),SUMPRODUCT((YEAR('Table A2'!$AF$13:$AF$1000)='Start Here'!$B$5)*('Table A2'!$AF$13:$AF$1000>=VLOOKUP($B$1,'Planning Periods'!$E$2:$P$540,6))*'Table A2'!$X$13:$X$1000),SUMPRODUCT((YEAR('Table A2'!$AF$13:$AF$1000)='Start Here'!$B$5)*('Table A2'!$AF$13:$AF$1000<VLOOKUP($B$1,'Planning Periods'!$E$2:$P$540,7))*'Table A2'!$X$13:$X$1000)),IF(F$11<$B$2,(INDEX('Table B Values'!$C$2:$K$8017,MATCH('Table B'!$B$1&'Table B'!F$11&$B$3,'Table B Values'!$A$2:$A$8017&'Table B Values'!$B$2:$B$8017&'Table B Values'!$L$2:$L$8017,0),MATCH('Table B'!$B$35,'Table B Values'!$C$1:$K$1,0))),)),) -> 0 | G16: =IFERROR(IF(G$11=$B$2,IF(OR(VLOOKUP($B$1,'Planning Periods'!$E$2:$P$540,12)="7th Cycle", VLOOKUP($B$1,'Planning Periods'!$E$2:$P$540,12)="6th Cycle"),SUMPRODUCT((YEAR('Table A2'!$AF$13:$AF$1000)='Start Here'!$B$5)*('Table A2'!$AF$13:$AF$1000>=VLOOKUP($B$1,'Planning Periods'!$E$2:$P$540,6))*'Table A2'!$X$13:$X$1000),SUMPRODUCT((YEAR('Table A2'!$AF$13:$AF$1000)='Start Here'!$B$5)*('Table A2'!$AF$13:$AF$1000<VLOOKUP($B$1,'Planning Periods'!$E$2:$P$540,7))*'Table A2'!$X$13:$X$1000)),IF(G$11<$B$2,(INDEX('Table B Values'!$C$2:$K$8017,MATCH('Table B'!$B$1&'Table B'!G$11&$B$3,'Table B Values'!$A$2:$A$8017&'Table B Values'!$B$2:$B$8017&'Table B Values'!$L$2:$L$8017,0),MATCH('Table B'!$B$35,'Table B Values'!$C$1:$K$1,0))),)),) -> 0 | H16: =IFERROR(IF(H$11=$B$2,IF(OR(VLOOKUP($B$1,'Planning Periods'!$E$2:$P$540,12)="7th Cycle", VLOOKUP($B$1,'Planning Periods'!$E$2:$P$540,12)="6th Cycle"),SUMPRODUCT((YEAR('Table A2'!$AF$13:$AF$1000)='Start Here'!$B$5)*('Table A2'!$AF$13:$AF$1000>=VLOOKUP($B$1,'Planning Periods'!$E$2:$P$540,6))*'Table A2'!$X$13:$X$1000),SUMPRODUCT((YEAR('Table A2'!$AF$13:$AF$1000)='Start Here'!$B$5)*('Table A2'!$AF$13:$AF$1000<VLOOKUP($B$1,'Planning Periods'!$E$2:$P$540,7))*'Table A2'!$X$13:$X$1000)),IF(H$11<$B$2,(INDEX('Table B Values'!$C$2:$K$8017,MATCH('Table B'!$B$1&'Table B'!H$11&$B$3,'Table B Values'!$A$2:$A$8017&'Table B Values'!$B$2:$B$8017&'Table B Values'!$L$2:$L$8017,0),MATCH('Table B'!$B$35,'Table B Values'!$C$1:$K$1,0))),)),) -> 0 | I16: =IFERROR(IF(I$11=$B$2,IF(OR(VLOOKUP($B$1,'Planning Periods'!$E$2:$P$540,12)="7th Cycle", VLOOKUP($B$1,'Planning Periods'!$E$2:$P$540,12)="6th Cycle"),SUMPRODUCT((YEAR('Table A2'!$AF$13:$AF$1000)='Start Here'!$B$5)*('Table A2'!$AF$13:$AF$1000>=VLOOKUP($B$1,'Planning Periods'!$E$2:$P$540,6))*'Table A2'!$X$13:$X$1000),SUMPRODUCT((YEAR('Table A2'!$AF$13:$AF$1000)='Start Here'!$B$5)*('Table A2'!$AF$13:$AF$1000<VLOOKUP($B$1,'Planning Periods'!$E$2:$P$540,7))*'Table A2'!$X$13:$X$1000)),IF(I$11<$B$2,(INDEX('Table B Values'!$C$2:$K$8017,MATCH('Table B'!$B$1&'Table B'!I$11&$B$3,'Table B Values'!$A$2:$A$8017&'Table B Values'!$B$2:$B$8017&'Table B Values'!$L$2:$L$8017,0),MATCH('Table B'!$B$35,'Table B Values'!$C$1:$K$1,0))),)),) -> 0 | J16: =IFERROR(IF(J$11=$B$2,IF(OR(VLOOKUP($B$1,'Planning Periods'!$E$2:$P$540,12)="7th Cycle", VLOOKUP($B$1,'Planning Periods'!$E$2:$P$540,12)="6th Cycle"),SUMPRODUCT((YEAR('Table A2'!$AF$13:$AF$1000)='Start Here'!$B$5)*('Table A2'!$AF$13:$AF$1000>=VLOOKUP($B$1,'Planning Periods'!$E$2:$P$540,6))*'Table A2'!$X$13:$X$1000),SUMPRODUCT((YEAR('Table A2'!$AF$13:$AF$1000)='Start Here'!$B$5)*('Table A2'!$AF$13:$AF$1000<VLOOKUP($B$1,'Planning Periods'!$E$2:$P$540,7))*'Table A2'!$X$13:$X$1000)),IF(J$11<$B$2,(INDEX('Table B Values'!$C$2:$K$8017,MATCH('Table B'!$B$1&'Table B'!J$11&$B$3,'Table B Values'!$A$2:$A$8017&'Table B Values'!$B$2:$B$8017&'Table B Values'!$L$2:$L$8017,0),MATCH('Table B'!$B$35,'Table B Values'!$C$1:$K$1,0))),)),) -> 0 | K16: =IFERROR(IF(K$11=$B$2,IF(OR(VLOOKUP($B$1,'Planning Periods'!$E$2:$P$540,12)="7th Cycle", VLOOKUP($B$1,'Planning Periods'!$E$2:$P$540,12)="6th Cycle"),SUMPRODUCT((YEAR('Table A2'!$AF$13:$AF$1000)='Start Here'!$B$5)*('Table A2'!$AF$13:$AF$1000>=VLOOKUP($B$1,'Planning Periods'!$E$2:$P$540,6))*'Table A2'!$X$13:$X$1000),SUMPRODUCT((YEAR('Table A2'!$AF$13:$AF$1000)='Start Here'!$B$5)*('Table A2'!$AF$13:$AF$1000<VLOOKUP($B$1,'Planning Periods'!$E$2:$P$540,7))*'Table A2'!$X$13:$X$1000)),IF(K$11<$B$2,(INDEX('Table B Values'!$C$2:$K$8017,MATCH('Table B'!$B$1&'Table B'!K$11&$B$3,'Table B Values'!$A$2:$A$8017&'Table B Values'!$B$2:$B$8017&'Table B Values'!$L$2:$L$8017,0),MATCH('Table B'!$B$35,'Table B Values'!$C$1:$K$1,0))),)),) -> 0 | L16: =IFERROR(IF(L$11=$B$2,IF(OR(VLOOKUP($B$1,'Planning Periods'!$E$2:$P$540,12)="7th Cycle", VLOOKUP($B$1,'Planning Periods'!$E$2:$P$540,12)="6th Cycle"),SUMPRODUCT((YEAR('Table A2'!$AF$13:$AF$1000)='Start Here'!$B$5)*('Table A2'!$AF$13:$AF$1000>=VLOOKUP($B$1,'Planning Periods'!$E$2:$P$540,6))*'Table A2'!$X$13:$X$1000),SUMPRODUCT((YEAR('Table A2'!$AF$13:$AF$1000)='Start Here'!$B$5)*('Table A2'!$AF$13:$AF$1000<VLOOKUP($B$1,'Planning Periods'!$E$2:$P$540,7))*'Table A2'!$X$13:$X$1000)),IF(L$11<$B$2,(INDEX('Table B Values'!$C$2:$K$8017,MATCH('Table B'!$B$1&'Table B'!L$11&$B$3,'Table B Values'!$A$2:$A$8017&'Table B Values'!$B$2:$B$8017&'Table B Values'!$L$2:$L$8017,0),MATCH('Table B'!$B$35,'Table B Values'!$C$1:$K$1,0))),)),) -> 0 | M16: =IFERROR(IF(M$11=$B$2,IF(OR(VLOOKUP($B$1,'Planning Periods'!$E$2:$P$540,12)="7th Cycle", VLOOKUP($B$1,'Planning Periods'!$E$2:$P$540,12)="6th Cycle"),SUMPRODUCT((YEAR('Table A2'!$AF$13:$AF$1000)='Start Here'!$B$5)*('Table A2'!$AF$13:$AF$1000>=VLOOKUP($B$1,'Planning Periods'!$E$2:$P$540,6))*'Table A2'!$X$13:$X$1000),SUMPRODUCT((YEAR('Table A2'!$AF$13:$AF$1000)='Start Here'!$B$5)*('Table A2'!$AF$13:$AF$1000<VLOOKUP($B$1,'Planning Periods'!$E$2:$P$540,7))*'Table A2'!$X$13:$X$1000)),IF(M$11<$B$2,(INDEX('Table B Values'!$C$2:$K$8017,MATCH('Table B'!$B$1&'Table B'!M$11&$B$3,'Table B Values'!$A$2:$A$8017&'Table B Values'!$B$2:$B$8017&'Table B Values'!$L$2:$L$8017,0),MATCH('Table B'!$B$35,'Table B Values'!$C$1:$K$1,0))),)),) -> 0 | P16: B_Table_Vlow_None
A17: Very Low | B17: Deed Restricted | C17: =VLOOKUP($B$1,'RHNA Allocations'!$C$2:$J$540,4,0) -> 113 | D17: =IFERROR(IF(E$11=$B$2,IF(OR(VLOOKUP($B$1,'Planning Periods'!$E$2:$P$540,12)="7th Cycle", VLOOKUP($B$1,'Planning Periods'!$E$2:$P$540,12)="6th Cycle"),SUMPRODUCT((YEAR('Table A2'!$AF$13:$AF$1000)='Start Here'!$B$5)*('Table A2'!$AF$13:$AF$1000>=VLOOKUP($B$1,'Planning Periods'!$E$2:$P$540,6))*('Table A2'!$AF$13:$AF$1000<VLOOKUP($B$1,'Planning Periods'!$E$2:$P$540,10))*'Table A2'!$Y$13:$Y$1000)+IFERROR((INDEX('Table B Values'!$C$2:$K$8017,MATCH('Table B'!$B$1&'Table B'!D$10,'Table B Values'!$A$2:$A$8017&'Table B Values'!$L$2:$L$8017,0),MATCH('Table B'!$B$36,'Table B Values'!$C$1:$K$1,0))),0),"-"),IF($B$3<>"5th Cycle",INDEX('Table B Values'!$C$2:$K$8017,MATCH('Table B'!$B$1&'Table B'!D$10,'Table B Values'!$A$2:$A$8017&'Table B Values'!$L$2:$L$8017,0),MATCH('Table B'!$B$36,'Table B Values'!$C$1:$K$1,0)),0)),"-") -> 0 | E17: =IFERROR(IF(E$11=$B$2,IF(OR(VLOOKUP($B$1,'Planning Periods'!$E$2:$P$540,12)="7th Cycle", VLOOKUP($B$1,'Planning Periods'!$E$2:$P$540,12)="6th Cycle"),SUMPRODUCT((YEAR('Table A2'!$AF$13:$AF$1000)='Start Here'!$B$5)*('Table A2'!$AF$13:$AF$1000>=VLOOKUP($B$1,'Planning Periods'!$E$2:$P$540,6))*'Table A2'!$Y$13:$Y$1000),SUMPRODUCT((YEAR('Table A2'!$AF$13:$AF$1000)='Start Here'!$B$5)*('Table A2'!$AF$13:$AF$1000<VLOOKUP($B$1,'Planning Periods'!$E$2:$P$540,7))*'Table A2'!$Y$13:$Y$1000))+'Table F'!$G$17,IF(E$11<$B$2,(INDEX('Table B Values'!$C$2:$K$8017,MATCH('Table B'!$B$1&'Table B'!E$11&$B$3,'Table B Values'!$A$2:$A$8017&'Table B Values'!$B$2:$B$8017&'Table B Values'!$L$2:$L$8017,0),MATCH('Table B'!$B$36,'Table B Values'!$C$1:$K$1,0))),)),) -> 8 | F17: =IFERROR(IF(F$11=$B$2,IF(OR(VLOOKUP($B$1,'Planning Periods'!$E$2:$P$540,12)="7th Cycle", VLOOKUP($B$1,'Planning Periods'!$E$2:$P$540,12)="6th Cycle"),SUMPRODUCT((YEAR('Table A2'!$AF$13:$AF$1000)='Start Here'!$B$5)*('Table A2'!$AF$13:$AF$1000>=VLOOKUP($B$1,'Planning Periods'!$E$2:$P$540,6))*'Table A2'!$Y$13:$Y$1000),SUMPRODUCT((YEAR('Table A2'!$AF$13:$AF$1000)='Start Here'!$B$5)*('Table A2'!$AF$13:$AF$1000<VLOOKUP($B$1,'Planning Periods'!$E$2:$P$540,7))*'Table A2'!$Y$13:$Y$1000))+'Table F'!$G$17,IF(F$11<$B$2,(INDEX('Table B Values'!$C$2:$K$8017,MATCH('Table B'!$B$1&'Table B'!F$11&$B$3,'Table B Values'!$A$2:$A$8017&'Table B Values'!$B$2:$B$8017&'Table B Values'!$L$2:$L$8017,0),MATCH('Table B'!$B$36,'Table B Values'!$C$1:$K$1,0))),)),) -> 1 | G17: =IFERROR(IF(G$11=$B$2,IF(OR(VLOOKUP($B$1,'Planning Periods'!$E$2:$P$540,12)="7th Cycle", VLOOKUP($B$1,'Planning Periods'!$E$2:$P$540,12)="6th Cycle"),SUMPRODUCT((YEAR('Table A2'!$AF$13:$AF$1000)='Start Here'!$B$5)*('Table A2'!$AF$13:$AF$1000>=VLOOKUP($B$1,'Planning Periods'!$E$2:$P$540,6))*'Table A2'!$Y$13:$Y$1000),SUMPRODUCT((YEAR('Table A2'!$AF$13:$AF$1000)='Start Here'!$B$5)*('Table A2'!$AF$13:$AF$1000<VLOOKUP($B$1,'Planning Periods'!$E$2:$P$540,7))*'Table A2'!$Y$13:$Y$1000))+'Table F'!$G$17,IF(G$11<$B$2,(INDEX('Table B Values'!$C$2:$K$8017,MATCH('Table B'!$B$1&'Table B'!G$11&$B$3,'Table B Values'!$A$2:$A$8017&'Table B Values'!$B$2:$B$8017&'Table B Values'!$L$2:$L$8017,0),MATCH('Table B'!$B$36,'Table B Values'!$C$1:$K$1,0))),)),) -> 0 | H17: =IFERROR(IF(H$11=$B$2,IF(OR(VLOOKUP($B$1,'Planning Periods'!$E$2:$P$540,12)="7th Cycle", VLOOKUP($B$1,'Planning Periods'!$E$2:$P$540,12)="6th Cycle"),SUMPRODUCT((YEAR('Table A2'!$AF$13:$AF$1000)='Start Here'!$B$5)*('Table A2'!$AF$13:$AF$1000>=VLOOKUP($B$1,'Planning Periods'!$E$2:$P$540,6))*'Table A2'!$Y$13:$Y$1000),SUMPRODUCT((YEAR('Table A2'!$AF$13:$AF$1000)='Start Here'!$B$5)*('Table A2'!$AF$13:$AF$1000<VLOOKUP($B$1,'Planning Periods'!$E$2:$P$540,7))*'Table A2'!$Y$13:$Y$1000))+'Table F'!$G$17,IF(H$11<$B$2,(INDEX('Table B Values'!$C$2:$K$8017,MATCH('Table B'!$B$1&'Table B'!H$11&$B$3,'Table B Values'!$A$2:$A$8017&'Table B Values'!$B$2:$B$8017&'Table B Values'!$L$2:$L$8017,0),MATCH('Table B'!$B$36,'Table B Values'!$C$1:$K$1,0))),)),) -> 0 | I17: =IFERROR(IF(I$11=$B$2,IF(OR(VLOOKUP($B$1,'Planning Periods'!$E$2:$P$540,12)="7th Cycle", VLOOKUP($B$1,'Planning Periods'!$E$2:$P$540,12)="6th Cycle"),SUMPRODUCT((YEAR('Table A2'!$AF$13:$AF$1000)='Start Here'!$B$5)*('Table A2'!$AF$13:$AF$1000>=VLOOKUP($B$1,'Planning Periods'!$E$2:$P$540,6))*'Table A2'!$Y$13:$Y$1000),SUMPRODUCT((YEAR('Table A2'!$AF$13:$AF$1000)='Start Here'!$B$5)*('Table A2'!$AF$13:$AF$1000<VLOOKUP($B$1,'Planning Periods'!$E$2:$P$540,7))*'Table A2'!$Y$13:$Y$1000))+'Table F'!$G$17,IF(I$11<$B$2,(INDEX('Table B Values'!$C$2:$K$8017,MATCH('Table B'!$B$1&'Table B'!I$11&$B$3,'Table B Values'!$A$2:$A$8017&'Table B Values'!$B$2:$B$8017&'Table B Values'!$L$2:$L$8017,0),MATCH('Table B'!$B$36,'Table B Values'!$C$1:$K$1,0))),)),) -> 0 | J17: =IFERROR(IF(J$11=$B$2,IF(OR(VLOOKUP($B$1,'Planning Periods'!$E$2:$P$540,12)="7th Cycle", VLOOKUP($B$1,'Planning Periods'!$E$2:$P$540,12)="6th Cycle"),SUMPRODUCT((YEAR('Table A2'!$AF$13:$AF$1000)='Start Here'!$B$5)*('Table A2'!$AF$13:$AF$1000>=VLOOKUP($B$1,'Planning Periods'!$E$2:$P$540,6))*'Table A2'!$Y$13:$Y$1000),SUMPRODUCT((YEAR('Table A2'!$AF$13:$AF$1000)='Start Here'!$B$5)*('Table A2'!$AF$13:$AF$1000<VLOOKUP($B$1,'Planning Periods'!$E$2:$P$540,7))*'Table A2'!$Y$13:$Y$1000))+'Table F'!$G$17,IF(J$11<$B$2,(INDEX('Table B Values'!$C$2:$K$8017,MATCH('Table B'!$B$1&'Table B'!J$11&$B$3,'Table B Values'!$A$2:$A$8017&'Table B Values'!$B$2:$B$8017&'Table B Values'!$L$2:$L$8017,0),MATCH('Table B'!$B$36,'Table B Values'!$C$1:$K$1,0))),)),) -> 0 | K17: =IFERROR(IF(K$11=$B$2,IF(OR(VLOOKUP($B$1,'Planning Periods'!$E$2:$P$540,12)="7th Cycle", VLOOKUP($B$1,'Planning Periods'!$E$2:$P$540,12)="6th Cycle"),SUMPRODUCT((YEAR('Table A2'!$AF$13:$AF$1000)='Start Here'!$B$5)*('Table A2'!$AF$13:$AF$1000>=VLOOKUP($B$1,'Planning Periods'!$E$2:$P$540,6))*'Table A2'!$Y$13:$Y$1000),SUMPRODUCT((YEAR('Table A2'!$AF$13:$AF$1000)='Start Here'!$B$5)*('Table A2'!$AF$13:$AF$1000<VLOOKUP($B$1,'Planning Periods'!$E$2:$P$540,7))*'Table A2'!$Y$13:$Y$1000))+'Table F'!$G$17,IF(K$11<$B$2,(INDEX('Table B Values'!$C$2:$K$8017,MATCH('Table B'!$B$1&'Table B'!K$11&$B$3,'Table B Values'!$A$2:$A$8017&'Table B Values'!$B$2:$B$8017&'Table B Values'!$L$2:$L$8017,0),MATCH('Table B'!$B$36,'Table B Values'!$C$1:$K$1,0))),)),) -> 0 | L17: =IFERROR(IF(L$11=$B$2,IF(OR(VLOOKUP($B$1,'Planning Periods'!$E$2:$P$540,12)="7th Cycle", VLOOKUP($B$1,'Planning Periods'!$E$2:$P$540,12)="6th Cycle"),SUMPRODUCT((YEAR('Table A2'!$AF$13:$AF$1000)='Start Here'!$B$5)*('Table A2'!$AF$13:$AF$1000>=VLOOKUP($B$1,'Planning Periods'!$E$2:$P$540,6))*'Table A2'!$Y$13:$Y$1000),SUMPRODUCT((YEAR('Table A2'!$AF$13:$AF$1000)='Start Here'!$B$5)*('Table A2'!$AF$13:$AF$1000<VLOOKUP($B$1,'Planning Periods'!$E$2:$P$540,7))*'Table A2'!$Y$13:$Y$1000))+'Table F'!$G$17,IF(L$11<$B$2,(INDEX('Table B Values'!$C$2:$K$8017,MATCH('Table B'!$B$1&'Table B'!L$11&$B$3,'Table B Values'!$A$2:$A$8017&'Table B Values'!$B$2:$B$8017&'Table B Values'!$L$2:$L$8017,0),MATCH('Table B'!$B$36,'Table B Values'!$C$1:$K$1,0))),)),) -> 0 | M17: =IFERROR(IF(M$11=$B$2,IF(OR(VLOOKUP($B$1,'Planning Periods'!$E$2:$P$540,12)="7th Cycle", VLOOKUP($B$1,'Planning Periods'!$E$2:$P$540,12)="6th Cycle"),SUMPRODUCT((YEAR('Table A2'!$AF$13:$AF$1000)='Start Here'!$B$5)*('Table A2'!$AF$13:$AF$1000>=VLOOKUP($B$1,'Planning Periods'!$E$2:$P$540,6))*'Table A2'!$Y$13:$Y$1000),SUMPRODUCT((YEAR('Table A2'!$AF$13:$AF$1000)='Start Here'!$B$5)*('Table A2'!$AF$13:$AF$1000<VLOOKUP($B$1,'Planning Periods'!$E$2:$P$540,7))*'Table A2'!$Y$13:$Y$1000))+'Table F'!$G$17,IF(M$11<$B$2,(INDEX('Table B Values'!$C$2:$K$8017,MATCH('Table B'!$B$1&'Table B'!M$11&$B$3,'Table B Values'!$A$2:$A$8017&'Table B Values'!$B$2:$B$8017&'Table B Values'!$L$2:$L$8017,0),MATCH('Table B'!$B$36,'Table B Values'!$C$1:$K$1,0))),)),) -> 0 | N17: =IFERROR(IF(VLOOKUP($B$1,'Planning Periods'!$E$2:$P$540,8)<=2024,SUM(D13:M18),SUM(D17:M18)), 0) -> 28 | O17: =MAX(0,C17-N17) -> 85 | P17: B_Table_Vlow_Deed
B18: Non-Deed Restricted | D18: =IFERROR(IF(E$11=$B$2,IF(OR(VLOOKUP($B$1,'Planning Periods'!$E$2:$P$540,12)="7th Cycle", VLOOKUP($B$1,'Planning Periods'!$E$2:$P$540,12)="6th Cycle"),SUMPRODUCT((YEAR('Table A2'!$AF$13:$AF$1000)='Start Here'!$B$5)*('Table A2'!$AF$13:$AF$1000>=VLOOKUP($B$1,'Planning Periods'!$E$2:$P$540,6))*('Table A2'!$AF$13:$AF$1000<VLOOKUP($B$1,'Planning Periods'!$E$2:$P$540,10))*'Table A2'!$Z$13:$Z$1000)+IFERROR((INDEX('Table B Values'!$C$2:$K$8017,MATCH('Table B'!$B$1&'Table B'!D$10,'Table B Values'!$A$2:$A$8017&'Table B Values'!$L$2:$L$8017,0),MATCH('Table B'!$B$37,'Table B Values'!$C$1:$K$1,0))),0),"-"),IF($B$3<>"5th Cycle",INDEX('Table B Values'!$C$2:$K$8017,MATCH('Table B'!$B$1&'Table B'!D$10,'Table B Values'!$A$2:$A$8017&'Table B Values'!$L$2:$L$8017,0),MATCH('Table B'!$B$37,'Table B Values'!$C$1:$K$1,0)),0)),"-") -> 0 | E18: =IFERROR(IF(E$11=$B$2,IF(OR(VLOOKUP($B$1,'Planning Periods'!$E$2:$P$540,12)="7th Cycle", VLOOKUP($B$1,'Planning Periods'!$E$2:$P$540,12)="6th Cycle"),SUMPRODUCT((YEAR('Table A2'!$AF$13:$AF$1000)='Start Here'!$B$5)*('Table A2'!$AF$13:$AF$1000>=VLOOKUP($B$1,'Planning Periods'!$E$2:$P$540,6))*'Table A2'!$Z$13:$Z$1000),SUMPRODUCT((YEAR('Table A2'!$AF$13:$AF$1000)='Start Here'!$B$5)*('Table A2'!$AF$13:$AF$1000<VLOOKUP($B$1,'Planning Periods'!$E$2:$P$540,7))*'Table A2'!$Z$13:$Z$1000)),IF(E$11<$B$2,(INDEX('Table B Values'!$C$2:$K$8017,MATCH('Table B'!$B$1&'Table B'!E$11&$B$3,'Table B Values'!$A$2:$A$8017&'Table B Values'!$B$2:$B$8017&'Table B Values'!$L$2:$L$8017,0),MATCH('Table B'!$B$37,'Table B Values'!$C$1:$K$1,0))),)),) -> 0 | F18: =IFERROR(IF(F$11=$B$2,IF(OR(VLOOKUP($B$1,'Planning Periods'!$E$2:$P$540,12)="7th Cycle", VLOOKUP($B$1,'Planning Periods'!$E$2:$P$540,12)="6th Cycle"),SUMPRODUCT((YEAR('Table A2'!$AF$13:$AF$1000)='Start Here'!$B$5)*('Table A2'!$AF$13:$AF$1000>=VLOOKUP($B$1,'Planning Periods'!$E$2:$P$540,6))*'Table A2'!$Z$13:$Z$1000),SUMPRODUCT((YEAR('Table A2'!$AF$13:$AF$1000)='Start Here'!$B$5)*('Table A2'!$AF$13:$AF$1000<VLOOKUP($B$1,'Planning Periods'!$E$2:$P$540,7))*'Table A2'!$Z$13:$Z$1000)),IF(F$11<$B$2,(INDEX('Table B Values'!$C$2:$K$8017,MATCH('Table B'!$B$1&'Table B'!F$11&$B$3,'Table B Values'!$A$2:$A$8017&'Table B Values'!$B$2:$B$8017&'Table B Values'!$L$2:$L$8017,0),MATCH('Table B'!$B$37,'Table B Values'!$C$1:$K$1,0))),)),) -> 0 | G18: =IFERROR(IF(G$11=$B$2,IF(OR(VLOOKUP($B$1,'Planning Periods'!$E$2:$P$540,12)="7th Cycle", VLOOKUP($B$1,'Planning Periods'!$E$2:$P$540,12)="6th Cycle"),SUMPRODUCT((YEAR('Table A2'!$AF$13:$AF$1000)='Start Here'!$B$5)*('Table A2'!$AF$13:$AF$1000>=VLOOKUP($B$1,'Planning Periods'!$E$2:$P$540,6))*'Table A2'!$Z$13:$Z$1000),SUMPRODUCT((YEAR('Table A2'!$AF$13:$AF$1000)='Start Here'!$B$5)*('Table A2'!$AF$13:$AF$1000<VLOOKUP($B$1,'Planning Periods'!$E$2:$P$540,7))*'Table A2'!$Z$13:$Z$1000)),IF(G$11<$B$2,(INDEX('Table B Values'!$C$2:$K$8017,MATCH('Table B'!$B$1&'Table B'!G$11&$B$3,'Table B Values'!$A$2:$A$8017&'Table B Values'!$B$2:$B$8017&'Table B Values'!$L$2:$L$8017,0),MATCH('Table B'!$B$37,'Table B Values'!$C$1:$K$1,0))),)),) -> 0 | H18: =IFERROR(IF(H$11=$B$2,IF(OR(VLOOKUP($B$1,'Planning Periods'!$E$2:$P$540,12)="7th Cycle", VLOOKUP($B$1,'Planning Periods'!$E$2:$P$540,12)="6th Cycle"),SUMPRODUCT((YEAR('Table A2'!$AF$13:$AF$1000)='Start Here'!$B$5)*('Table A2'!$AF$13:$AF$1000>=VLOOKUP($B$1,'Planning Periods'!$E$2:$P$540,6))*'Table A2'!$Z$13:$Z$1000),SUMPRODUCT((YEAR('Table A2'!$AF$13:$AF$1000)='Start Here'!$B$5)*('Table A2'!$AF$13:$AF$1000<VLOOKUP($B$1,'Planning Periods'!$E$2:$P$540,7))*'Table A2'!$Z$13:$Z$1000)),IF(H$11<$B$2,(INDEX('Table B Values'!$C$2:$K$8017,MATCH('Table B'!$B$1&'Table B'!H$11&$B$3,'Table B Values'!$A$2:$A$8017&'Table B Values'!$B$2:$B$8017&'Table B Values'!$L$2:$L$8017,0),MATCH('Table B'!$B$37,'Table B Values'!$C$1:$K$1,0))),)),) -> 0 | I18: =IFERROR(IF(I$11=$B$2,IF(OR(VLOOKUP($B$1,'Planning Periods'!$E$2:$P$540,12)="7th Cycle", VLOOKUP($B$1,'Planning Periods'!$E$2:$P$540,12)="6th Cycle"),SUMPRODUCT((YEAR('Table A2'!$AF$13:$AF$1000)='Start Here'!$B$5)*('Table A2'!$AF$13:$AF$1000>=VLOOKUP($B$1,'Planning Periods'!$E$2:$P$540,6))*'Table A2'!$Z$13:$Z$1000),SUMPRODUCT((YEAR('Table A2'!$AF$13:$AF$1000)='Start Here'!$B$5)*('Table A2'!$AF$13:$AF$1000<VLOOKUP($B$1,'Planning Periods'!$E$2:$P$540,7))*'Table A2'!$Z$13:$Z$1000)),IF(I$11<$B$2,(INDEX('Table B Values'!$C$2:$K$8017,MATCH('Table B'!$B$1&'Table B'!I$11&$B$3,'Table B Values'!$A$2:$A$8017&'Table B Values'!$B$2:$B$8017&'Table B Values'!$L$2:$L$8017,0),MATCH('Table B'!$B$37,'Table B Values'!$C$1:$K$1,0))),)),) -> 0 | J18: =IFERROR(IF(J$11=$B$2,IF(OR(VLOOKUP($B$1,'Planning Periods'!$E$2:$P$540,12)="7th Cycle", VLOOKUP($B$1,'Planning Periods'!$E$2:$P$540,12)="6th Cycle"),SUMPRODUCT((YEAR('Table A2'!$AF$13:$AF$1000)='Start Here'!$B$5)*('Table A2'!$AF$13:$AF$1000>=VLOOKUP($B$1,'Planning Periods'!$E$2:$P$540,6))*'Table A2'!$Z$13:$Z$1000),SUMPRODUCT((YEAR('Table A2'!$AF$13:$AF$1000)='Start Here'!$B$5)*('Table A2'!$AF$13:$AF$1000<VLOOKUP($B$1,'Planning Periods'!$E$2:$P$540,7))*'Table A2'!$Z$13:$Z$1000)),IF(J$11<$B$2,(INDEX('Table B Values'!$C$2:$K$8017,MATCH('Table B'!$B$1&'Table B'!J$11&$B$3,'Table B Values'!$A$2:$A$8017&'Table B Values'!$B$2:$B$8017&'Table B Values'!$L$2:$L$8017,0),MATCH('Table B'!$B$37,'Table B Values'!$C$1:$K$1,0))),)),) -> 0 | K18: =IFERROR(IF(K$11=$B$2,IF(OR(VLOOKUP($B$1,'Planning Periods'!$E$2:$P$540,12)="7th Cycle", VLOOKUP($B$1,'Planning Periods'!$E$2:$P$540,12)="6th Cycle"),SUMPRODUCT((YEAR('Table A2'!$AF$13:$AF$1000)='Start Here'!$B$5)*('Table A2'!$AF$13:$AF$1000>=VLOOKUP($B$1,'Planning Periods'!$E$2:$P$540,6))*'Table A2'!$Z$13:$Z$1000),SUMPRODUCT((YEAR('Table A2'!$AF$13:$AF$1000)='Start Here'!$B$5)*('Table A2'!$AF$13:$AF$1000<VLOOKUP($B$1,'Planning Periods'!$E$2:$P$540,7))*'Table A2'!$Z$13:$Z$1000)),IF(K$11<$B$2,(INDEX('Table B Values'!$C$2:$K$8017,MATCH('Table B'!$B$1&'Table B'!K$11&$B$3,'Table B Values'!$A$2:$A$8017&'Table B Values'!$B$2:$B$8017&'Table B Values'!$L$2:$L$8017,0),MATCH('Table B'!$B$37,'Table B Values'!$C$1:$K$1,0))),)),) -> 0 | L18: =IFERROR(IF(L$11=$B$2,IF(OR(VLOOKUP($B$1,'Planning Periods'!$E$2:$P$540,12)="7th Cycle", VLOOKUP($B$1,'Planning Periods'!$E$2:$P$540,12)="6th Cycle"),SUMPRODUCT((YEAR('Table A2'!$AF$13:$AF$1000)='Start Here'!$B$5)*('Table A2'!$AF$13:$AF$1000>=VLOOKUP($B$1,'Planning Periods'!$E$2:$P$540,6))*'Table A2'!$Z$13:$Z$1000),SUMPRODUCT((YEAR('Table A2'!$AF$13:$AF$1000)='Start Here'!$B$5)*('Table A2'!$AF$13:$AF$1000<VLOOKUP($B$1,'Planning Periods'!$E$2:$P$540,7))*'Table A2'!$Z$13:$Z$1000)),IF(L$11<$B$2,(INDEX('Table B Values'!$C$2:$K$8017,MATCH('Table B'!$B$1&'Table B'!L$11&$B$3,'Table B Values'!$A$2:$A$8017&'Table B Values'!$B$2:$B$8017&'Table B Values'!$L$2:$L$8017,0),MATCH('Table B'!$B$37,'Table B Values'!$C$1:$K$1,0))),)),) -> 0 | M18: =IFERROR(IF(M$11=$B$2,IF(OR(VLOOKUP($B$1,'Planning Periods'!$E$2:$P$540,12)="7th Cycle", VLOOKUP($B$1,'Planning Periods'!$E$2:$P$540,12)="6th Cycle"),SUMPRODUCT((YEAR('Table A2'!$AF$13:$AF$1000)='Start Here'!$B$5)*('Table A2'!$AF$13:$AF$1000>=VLOOKUP($B$1,'Planning Periods'!$E$2:$P$540,6))*'Table A2'!$Z$13:$Z$1000),SUMPRODUCT((YEAR('Table A2'!$AF$13:$AF$1000)='Start Here'!$B$5)*('Table A2'!$AF$13:$AF$1000<VLOOKUP($B$1,'Planning Periods'!$E$2:$P$540,7))*'Table A2'!$Z$13:$Z$1000)),IF(M$11<$B$2,(INDEX('Table B Values'!$C$2:$K$8017,MATCH('Table B'!$B$1&'Table B'!M$11&$B$3,'Table B Values'!$A$2:$A$8017&'Table B Values'!$B$2:$B$8017&'Table B Values'!$L$2:$L$8017,0),MATCH('Table B'!$B$37,'Table B Values'!$C$1:$K$1,0))),)),) -> 0 | P18: B_Table_Vlow_None
A19: Low | B19: Deed Restricted | C19: =VLOOKUP($B$1,'RHNA Allocations'!$C$2:$J$540,5,0) -> 62 | D19: =IFERROR(IF(E$11=$B$2,IF(OR(VLOOKUP($B$1,'Planning Periods'!$E$2:$P$540,12)="7th Cycle", VLOOKUP($B$1,'Planning Periods'!$E$2:$P$540,12)="6th Cycle"),SUMPRODUCT((YEAR('Table A2'!$AF$13:$AF$1000)='Start Here'!$B$5)*('Table A2'!$AF$13:$AF$1000>=VLOOKUP($B$1,'Planning Periods'!$E$2:$P$540,6))*('Table A2'!$AF$13:$AF$1000<VLOOKUP($B$1,'Planning Periods'!$E$2:$P$540,10))*'Table A2'!$AA$13:$AA$1000)+IFERROR((INDEX('Table B Values'!$C$2:$K$8017,MATCH('Table B'!$B$1&'Table B'!D$10,'Table B Values'!$A$2:$A$8017&'Table B Values'!$L$2:$L$8017,0),MATCH('Table B'!$B$38,'Table B Values'!$C$1:$K$1,0))),0),"-"),IF($B$3<>"5th Cycle",INDEX('Table B Values'!$C$2:$K$8017,MATCH('Table B'!$B$1&'Table B'!D$10,'Table B Values'!$A$2:$A$8017&'Table B Values'!$L$2:$L$8017,0),MATCH('Table B'!$B$38,'Table B Values'!$C$1:$K$1,0)),0)),"-") -> 0 | E19: =IFERROR(IF(E$11=$B$2,IF(OR(VLOOKUP($B$1,'Planning Periods'!$E$2:$P$540,12)="7th Cycle", VLOOKUP($B$1,'Planning Periods'!$E$2:$P$540,12)="6th Cycle"),SUMPRODUCT((YEAR('Table A2'!$AF$13:$AF$1000)='Start Here'!$B$5)*('Table A2'!$AF$13:$AF$1000>=VLOOKUP($B$1,'Planning Periods'!$E$2:$P$540,6))*'Table A2'!$AA$13:$AA$1000),SUMPRODUCT((YEAR('Table A2'!$AF$13:$AF$1000)='Start Here'!$B$5)*('Table A2'!$AF$13:$AF$1000<VLOOKUP($B$1,'Planning Periods'!$E$2:$P$540,7))*'Table A2'!$AA$13:$AA$1000))+'Table F'!$H$17,IF(E$11<$B$2,(INDEX('Table B Values'!$C$2:$K$8017,MATCH('Table B'!$B$1&'Table B'!E$11&$B$3,'Table B Values'!$A$2:$A$8017&'Table B Values'!$B$2:$B$8017&'Table B Values'!$L$2:$L$8017,0),MATCH('Table B'!$B$38,'Table B Values'!$C$1:$K$1,0))),)),) -> 56 | F19: =IFERROR(IF(F$11=$B$2,IF(OR(VLOOKUP($B$1,'Planning Periods'!$E$2:$P$540,12)="7th Cycle", VLOOKUP($B$1,'Planning Periods'!$E$2:$P$540,12)="6th Cycle"),SUMPRODUCT((YEAR('Table A2'!$AF$13:$AF$1000)='Start Here'!$B$5)*('Table A2'!$AF$13:$AF$1000>=VLOOKUP($B$1,'Planning Periods'!$E$2:$P$540,6))*'Table A2'!$AA$13:$AA$1000),SUMPRODUCT((YEAR('Table A2'!$AF$13:$AF$1000)='Start Here'!$B$5)*('Table A2'!$AF$13:$AF$1000<VLOOKUP($B$1,'Planning Periods'!$E$2:$P$540,7))*'Table A2'!$AA$13:$AA$1000))+'Table F'!$H$17,IF(F$11<$B$2,(INDEX('Table B Values'!$C$2:$K$8017,MATCH('Table B'!$B$1&'Table B'!F$11&$B$3,'Table B Values'!$A$2:$A$8017&'Table B Values'!$B$2:$B$8017&'Table B Values'!$L$2:$L$8017,0),MATCH('Table B'!$B$38,'Table B Values'!$C$1:$K$1,0))),)),) -> 84 | G19: =IFERROR(IF(G$11=$B$2,IF(OR(VLOOKUP($B$1,'Planning Periods'!$E$2:$P$540,12)="7th Cycle", VLOOKUP($B$1,'Planning Periods'!$E$2:$P$540,12)="6th Cycle"),SUMPRODUCT((YEAR('Table A2'!$AF$13:$AF$1000)='Start Here'!$B$5)*('Table A2'!$AF$13:$AF$1000>=VLOOKUP($B$1,'Planning Periods'!$E$2:$P$540,6))*'Table A2'!$AA$13:$AA$1000),SUMPRODUCT((YEAR('Table A2'!$AF$13:$AF$1000)='Start Here'!$B$5)*('Table A2'!$AF$13:$AF$1000<VLOOKUP($B$1,'Planning Periods'!$E$2:$P$540,7))*'Table A2'!$AA$13:$AA$1000))+'Table F'!$H$17,IF(G$11<$B$2,(INDEX('Table B Values'!$C$2:$K$8017,MATCH('Table B'!$B$1&'Table B'!G$11&$B$3,'Table B Values'!$A$2:$A$8017&'Table B Values'!$B$2:$B$8017&'Table B Values'!$L$2:$L$8017,0),MATCH('Table B'!$B$38,'Table B Values'!$C$1:$K$1,0))),)),) -> 0 | H19: =IFERROR(IF(H$11=$B$2,IF(OR(VLOOKUP($B$1,'Planning Periods'!$E$2:$P$540,12)="7th Cycle", VLOOKUP($B$1,'Planning Periods'!$E$2:$P$540,12)="6th Cycle"),SUMPRODUCT((YEAR('Table A2'!$AF$13:$AF$1000)='Start Here'!$B$5)*('Table A2'!$AF$13:$AF$1000>=VLOOKUP($B$1,'Planning Periods'!$E$2:$P$540,6))*'Table A2'!$AA$13:$AA$1000),SUMPRODUCT((YEAR('Table A2'!$AF$13:$AF$1000)='Start Here'!$B$5)*('Table A2'!$AF$13:$AF$1000<VLOOKUP($B$1,'Planning Periods'!$E$2:$P$540,7))*'Table A2'!$AA$13:$AA$1000))+'Table F'!$H$17,IF(H$11<$B$2,(INDEX('Table B Values'!$C$2:$K$8017,MATCH('Table B'!$B$1&'Table B'!H$11&$B$3,'Table B Values'!$A$2:$A$8017&'Table B Values'!$B$2:$B$8017&'Table B Values'!$L$2:$L$8017,0),MATCH('Table B'!$B$38,'Table B Values'!$C$1:$K$1,0))),)),) -> 0 | I19: =IFERROR(IF(I$11=$B$2,IF(OR(VLOOKUP($B$1,'Planning Periods'!$E$2:$P$540,12)="7th Cycle", VLOOKUP($B$1,'Planning Periods'!$E$2:$P$540,12)="6th Cycle"),SUMPRODUCT((YEAR('Table A2'!$AF$13:$AF$1000)='Start Here'!$B$5)*('Table A2'!$AF$13:$AF$1000>=VLOOKUP($B$1,'Planning Periods'!$E$2:$P$540,6))*'Table A2'!$AA$13:$AA$1000),SUMPRODUCT((YEAR('Table A2'!$AF$13:$AF$1000)='Start Here'!$B$5)*('Table A2'!$AF$13:$AF$1000<VLOOKUP($B$1,'Planning Periods'!$E$2:$P$540,7))*'Table A2'!$AA$13:$AA$1000))+'Table F'!$H$17,IF(I$11<$B$2,(INDEX('Table B Values'!$C$2:$K$8017,MATCH('Table B'!$B$1&'Table B'!I$11&$B$3,'Table B Values'!$A$2:$A$8017&'Table B Values'!$B$2:$B$8017&'Table B Values'!$L$2:$L$8017,0),MATCH('Table B'!$B$38,'Table B Values'!$C$1:$K$1,0))),)),) -> 0 | J19: =IFERROR(IF(J$11=$B$2,IF(OR(VLOOKUP($B$1,'Planning Periods'!$E$2:$P$540,12)="7th Cycle", VLOOKUP($B$1,'Planning Periods'!$E$2:$P$540,12)="6th Cycle"),SUMPRODUCT((YEAR('Table A2'!$AF$13:$AF$1000)='Start Here'!$B$5)*('Table A2'!$AF$13:$AF$1000>=VLOOKUP($B$1,'Planning Periods'!$E$2:$P$540,6))*'Table A2'!$AA$13:$AA$1000),SUMPRODUCT((YEAR('Table A2'!$AF$13:$AF$1000)='Start Here'!$B$5)*('Table A2'!$AF$13:$AF$1000<VLOOKUP($B$1,'Planning Periods'!$E$2:$P$540,7))*'Table A2'!$AA$13:$AA$1000))+'Table F'!$H$17,IF(J$11<$B$2,(INDEX('Table B Values'!$C$2:$K$8017,MATCH('Table B'!$B$1&'Table B'!J$11&$B$3,'Table B Values'!$A$2:$A$8017&'Table B Values'!$B$2:$B$8017&'Table B Values'!$L$2:$L$8017,0),MATCH('Table B'!$B$38,'Table B Values'!$C$1:$K$1,0))),)),) -> 0 | K19: =IFERROR(IF(K$11=$B$2,IF(OR(VLOOKUP($B$1,'Planning Periods'!$E$2:$P$540,12)="7th Cycle", VLOOKUP($B$1,'Planning Periods'!$E$2:$P$540,12)="6th Cycle"),SUMPRODUCT((YEAR('Table A2'!$AF$13:$AF$1000)='Start Here'!$B$5)*('Table A2'!$AF$13:$AF$1000>=VLOOKUP($B$1,'Planning Periods'!$E$2:$P$540,6))*'Table A2'!$AA$13:$AA$1000),SUMPRODUCT((YEAR('Table A2'!$AF$13:$AF$1000)='Start Here'!$B$5)*('Table A2'!$AF$13:$AF$1000<VLOOKUP($B$1,'Planning Periods'!$E$2:$P$540,7))*'Table A2'!$AA$13:$AA$1000))+'Table F'!$H$17,IF(K$11<$B$2,(INDEX('Table B Values'!$C$2:$K$8017,MATCH('Table B'!$B$1&'Table B'!K$11&$B$3,'Table B Values'!$A$2:$A$8017&'Table B Values'!$B$2:$B$8017&'Table B Values'!$L$2:$L$8017,0),MATCH('Table B'!$B$38,'Table B Values'!$C$1:$K$1,0))),)),) -> 0 | L19: =IFERROR(IF(L$11=$B$2,IF(OR(VLOOKUP($B$1,'Planning Periods'!$E$2:$P$540,12)="7th Cycle", VLOOKUP($B$1,'Planning Periods'!$E$2:$P$540,12)="6th Cycle"),SUMPRODUCT((YEAR('Table A2'!$AF$13:$AF$1000)='Start Here'!$B$5)*('Table A2'!$AF$13:$AF$1000>=VLOOKUP($B$1,'Planning Periods'!$E$2:$P$540,6))*'Table A2'!$AA$13:$AA$1000),SUMPRODUCT((YEAR('Table A2'!$AF$13:$AF$1000)='Start Here'!$B$5)*('Table A2'!$AF$13:$AF$1000<VLOOKUP($B$1,'Planning Periods'!$E$2:$P$540,7))*'Table A2'!$AA$13:$AA$1000))+'Table F'!$H$17,IF(L$11<$B$2,(INDEX('Table B Values'!$C$2:$K$8017,MATCH('Table B'!$B$1&'Table B'!L$11&$B$3,'Table B Values'!$A$2:$A$8017&'Table B Values'!$B$2:$B$8017&'Table B Values'!$L$2:$L$8017,0),MATCH('Table B'!$B$38,'Table B Values'!$C$1:$K$1,0))),)),) -> 0 | M19: =IFERROR(IF(M$11=$B$2,IF(OR(VLOOKUP($B$1,'Planning Periods'!$E$2:$P$540,12)="7th Cycle", VLOOKUP($B$1,'Planning Periods'!$E$2:$P$540,12)="6th Cycle"),SUMPRODUCT((YEAR('Table A2'!$AF$13:$AF$1000)='Start Here'!$B$5)*('Table A2'!$AF$13:$AF$1000>=VLOOKUP($B$1,'Planning Periods'!$E$2:$P$540,6))*'Table A2'!$AA$13:$AA$1000),SUMPRODUCT((YEAR('Table A2'!$AF$13:$AF$1000)='Start Here'!$B$5)*('Table A2'!$AF$13:$AF$1000<VLOOKUP($B$1,'Planning Periods'!$E$2:$P$540,7))*'Table A2'!$AA$13:$AA$1000))+'Table F'!$H$17,IF(M$11<$B$2,(INDEX('Table B Values'!$C$2:$K$8017,MATCH('Table B'!$B$1&'Table B'!M$11&$B$3,'Table B Values'!$A$2:$A$8017&'Table B Values'!$B$2:$B$8017&'Table B Values'!$L$2:$L$8017,0),MATCH('Table B'!$B$38,'Table B Values'!$C$1:$K$1,0))),)),) -> 0 | N19: =SUM(D19:M19)+SUM(D20:M20) -> 140 | O19: =MAX(0,C19-N19) -> 0 | P19: B_Table_Low_Deed
B20: Non-Deed Restricted | D20: =IFERROR(IF(E$11=$B$2,IF(OR(VLOOKUP($B$1,'Planning Periods'!$E$2:$P$540,12)="7th Cycle", VLOOKUP($B$1,'Planning Periods'!$E$2:$P$540,12)="6th Cycle"),SUMPRODUCT((YEAR('Table A2'!$AF$13:$AF$1000)='Start Here'!$B$5)*('Table A2'!$AF$13:$AF$1000>=VLOOKUP($B$1,'Planning Periods'!$E$2:$P$540,6))*('Table A2'!$AF$13:$AF$1000<VLOOKUP($B$1,'Planning Periods'!$E$2:$P$540,10))*'Table A2'!$AB$13:$AB$1000)+IFERROR((INDEX('Table B Values'!$C$2:$K$8017,MATCH('Table B'!$B$1&'Table B'!D$10,'Table B Values'!$A$2:$A$8017&'Table B Values'!$L$2:$L$8017,0),MATCH('Table B'!$B$39,'Table B Values'!$C$1:$K$1,0))),0),"-"),IF($B$3<>"5th Cycle",INDEX('Table B Values'!$C$2:$K$8017,MATCH('Table B'!$B$1&'Table B'!D$10,'Table B Values'!$A$2:$A$8017&'Table B Values'!$L$2:$L$8017,0),MATCH('Table B'!$B$39,'Table B Values'!$C$1:$K$1,0)),0)),"-") -> 0 | E20: =IFERROR(IF(E$11=$B$2,IF(OR(VLOOKUP($B$1,'Planning Periods'!$E$2:$P$540,12)="7th Cycle", VLOOKUP($B$1,'Planning Periods'!$E$2:$P$540,12)="6th Cycle"),SUMPRODUCT((YEAR('Table A2'!$AF$13:$AF$1000)='Start Here'!$B$5)*('Table A2'!$AF$13:$AF$1000>=VLOOKUP($B$1,'Planning Periods'!$E$2:$P$540,6))*'Table A2'!$AB$13:$AB$1000),SUMPRODUCT((YEAR('Table A2'!$AF$13:$AF$1000)='Start Here'!$B$5)*('Table A2'!$AF$13:$AF$1000<VLOOKUP($B$1,'Planning Periods'!$E$2:$P$540,7))*'Table A2'!$AB$13:$AB$1000)),IF(E$11<$B$2,(INDEX('Table B Values'!$C$2:$K$8017,MATCH('Table B'!$B$1&'Table B'!E$11&$B$3,'Table B Values'!$A$2:$A$8017&'Table B Values'!$B$2:$B$8017&'Table B Values'!$L$2:$L$8017,0),MATCH('Table B'!$B$39,'Table B Values'!$C$1:$K$1,0))),)),) -> 0 | F20: =IFERROR(IF(F$11=$B$2,IF(OR(VLOOKUP($B$1,'Planning Periods'!$E$2:$P$540,12)="7th Cycle", VLOOKUP($B$1,'Planning Periods'!$E$2:$P$540,12)="6th Cycle"),SUMPRODUCT((YEAR('Table A2'!$AF$13:$AF$1000)='Start Here'!$B$5)*('Table A2'!$AF$13:$AF$1000>=VLOOKUP($B$1,'Planning Periods'!$E$2:$P$540,6))*'Table A2'!$AB$13:$AB$1000),SUMPRODUCT((YEAR('Table A2'!$AF$13:$AF$1000)='Start Here'!$B$5)*('Table A2'!$AF$13:$AF$1000<VLOOKUP($B$1,'Planning Periods'!$E$2:$P$540,7))*'Table A2'!$AB$13:$AB$1000)),IF(F$11<$B$2,(INDEX('Table B Values'!$C$2:$K$8017,MATCH('Table B'!$B$1&'Table B'!F$11&$B$3,'Table B Values'!$A$2:$A$8017&'Table B Values'!$B$2:$B$8017&'Table B Values'!$L$2:$L$8017,0),MATCH('Table B'!$B$39,'Table B Values'!$C$1:$K$1,0))),)),) -> 0 | G20: =IFERROR(IF(G$11=$B$2,IF(OR(VLOOKUP($B$1,'Planning Periods'!$E$2:$P$540,12)="7th Cycle", VLOOKUP($B$1,'Planning Periods'!$E$2:$P$540,12)="6th Cycle"),SUMPRODUCT((YEAR('Table A2'!$AF$13:$AF$1000)='Start Here'!$B$5)*('Table A2'!$AF$13:$AF$1000>=VLOOKUP($B$1,'Planning Periods'!$E$2:$P$540,6))*'Table A2'!$AB$13:$AB$1000),SUMPRODUCT((YEAR('Table A2'!$AF$13:$AF$1000)='Start Here'!$B$5)*('Table A2'!$AF$13:$AF$1000<VLOOKUP($B$1,'Planning Periods'!$E$2:$P$540,7))*'Table A2'!$AB$13:$AB$1000)),IF(G$11<$B$2,(INDEX('Table B Values'!$C$2:$K$8017,MATCH('Table B'!$B$1&'Table B'!G$11&$B$3,'Table B Values'!$A$2:$A$8017&'Table B Values'!$B$2:$B$8017&'Table B Values'!$L$2:$L$8017,0),MATCH('Table B'!$B$39,'Table B Values'!$C$1:$K$1,0))),)),) -> 0 | H20: =IFERROR(IF(H$11=$B$2,IF(OR(VLOOKUP($B$1,'Planning Periods'!$E$2:$P$540,12)="7th Cycle", VLOOKUP($B$1,'Planning Periods'!$E$2:$P$540,12)="6th Cycle"),SUMPRODUCT((YEAR('Table A2'!$AF$13:$AF$1000)='Start Here'!$B$5)*('Table A2'!$AF$13:$AF$1000>=VLOOKUP($B$1,'Planning Periods'!$E$2:$P$540,6))*'Table A2'!$AB$13:$AB$1000),SUMPRODUCT((YEAR('Table A2'!$AF$13:$AF$1000)='Start Here'!$B$5)*('Table A2'!$AF$13:$AF$1000<VLOOKUP($B$1,'Planning Periods'!$E$2:$P$540,7))*'Table A2'!$AB$13:$AB$1000)),IF(H$11<$B$2,(INDEX('Table B Values'!$C$2:$K$8017,MATCH('Table B'!$B$1&'Table B'!H$11&$B$3,'Table B Values'!$A$2:$A$8017&'Table B Values'!$B$2:$B$8017&'Table B Values'!$L$2:$L$8017,0),MATCH('Table B'!$B$39,'Table B Values'!$C$1:$K$1,0))),)),) -> 0 | I20: =IFERROR(IF(I$11=$B$2,IF(OR(VLOOKUP($B$1,'Planning Periods'!$E$2:$P$540,12)="7th Cycle", VLOOKUP($B$1,'Planning Periods'!$E$2:$P$540,12)="6th Cycle"),SUMPRODUCT((YEAR('Table A2'!$AF$13:$AF$1000)='Start Here'!$B$5)*('Table A2'!$AF$13:$AF$1000>=VLOOKUP($B$1,'Planning Periods'!$E$2:$P$540,6))*'Table A2'!$AB$13:$AB$1000),SUMPRODUCT((YEAR('Table A2'!$AF$13:$AF$1000)='Start Here'!$B$5)*('Table A2'!$AF$13:$AF$1000<VLOOKUP($B$1,'Planning Periods'!$E$2:$P$540,7))*'Table A2'!$AB$13:$AB$1000)),IF(I$11<$B$2,(INDEX('Table B Values'!$C$2:$K$8017,MATCH('Table B'!$B$1&'Table B'!I$11&$B$3,'Table B Values'!$A$2:$A$8017&'Table B Values'!$B$2:$B$8017&'Table B Values'!$L$2:$L$8017,0),MATCH('Table B'!$B$39,'Table B Values'!$C$1:$K$1,0))),)),) -> 0 | J20: =IFERROR(IF(J$11=$B$2,IF(OR(VLOOKUP($B$1,'Planning Periods'!$E$2:$P$540,12)="7th Cycle", VLOOKUP($B$1,'Planning Periods'!$E$2:$P$540,12)="6th Cycle"),SUMPRODUCT((YEAR('Table A2'!$AF$13:$AF$1000)='Start Here'!$B$5)*('Table A2'!$AF$13:$AF$1000>=VLOOKUP($B$1,'Planning Periods'!$E$2:$P$540,6))*'Table A2'!$AB$13:$AB$1000),SUMPRODUCT((YEAR('Table A2'!$AF$13:$AF$1000)='Start Here'!$B$5)*('Table A2'!$AF$13:$AF$1000<VLOOKUP($B$1,'Planning Periods'!$E$2:$P$540,7))*'Table A2'!$AB$13:$AB$1000)),IF(J$11<$B$2,(INDEX('Table B Values'!$C$2:$K$8017,MATCH('Table B'!$B$1&'Table B'!J$11&$B$3,'Table B Values'!$A$2:$A$8017&'Table B Values'!$B$2:$B$8017&'Table B Values'!$L$2:$L$8017,0),MATCH('Table B'!$B$39,'Table B Values'!$C$1:$K$1,0))),)),) -> 0 | K20: =IFERROR(IF(K$11=$B$2,IF(OR(VLOOKUP($B$1,'Planning Periods'!$E$2:$P$540,12)="7th Cycle", VLOOKUP($B$1,'Planning Periods'!$E$2:$P$540,12)="6th Cycle"),SUMPRODUCT((YEAR('Table A2'!$AF$13:$AF$1000)='Start Here'!$B$5)*('Table A2'!$AF$13:$AF$1000>=VLOOKUP($B$1,'Planning Periods'!$E$2:$P$540,6))*'Table A2'!$AB$13:$AB$1000),SUMPRODUCT((YEAR('Table A2'!$AF$13:$AF$1000)='Start Here'!$B$5)*('Table A2'!$AF$13:$AF$1000<VLOOKUP($B$1,'Planning Periods'!$E$2:$P$540,7))*'Table A2'!$AB$13:$AB$1000)),IF(K$11<$B$2,(INDEX('Table B Values'!$C$2:$K$8017,MATCH('Table B'!$B$1&'Table B'!K$11&$B$3,'Table B Values'!$A$2:$A$8017&'Table B Values'!$B$2:$B$8017&'Table B Values'!$L$2:$L$8017,0),MATCH('Table B'!$B$39,'Table B Values'!$C$1:$K$1,0))),)),) -> 0 | L20: =IFERROR(IF(L$11=$B$2,IF(OR(VLOOKUP($B$1,'Planning Periods'!$E$2:$P$540,12)="7th Cycle", VLOOKUP($B$1,'Planning Periods'!$E$2:$P$540,12)="6th Cycle"),SUMPRODUCT((YEAR('Table A2'!$AF$13:$AF$1000)='Start Here'!$B$5)*('Table A2'!$AF$13:$AF$1000>=VLOOKUP($B$1,'Planning Periods'!$E$2:$P$540,6))*'Table A2'!$AB$13:$AB$1000),SUMPRODUCT((YEAR('Table A2'!$AF$13:$AF$1000)='Start Here'!$B$5)*('Table A2'!$AF$13:$AF$1000<VLOOKUP($B$1,'Planning Periods'!$E$2:$P$540,7))*'Table A2'!$AB$13:$AB$1000)),IF(L$11<$B$2,(INDEX('Table B Values'!$C$2:$K$8017,MATCH('Table B'!$B$1&'Table B'!L$11&$B$3,'Table B Values'!$A$2:$A$8017&'Table B Values'!$B$2:$B$8017&'Table B Values'!$L$2:$L$8017,0),MATCH('Table B'!$B$39,'Table B Values'!$C$1:$K$1,0))),)),) -> 0 | M20: =IFERROR(IF(M$11=$B$2,IF(OR(VLOOKUP($B$1,'Planning Periods'!$E$2:$P$540,12)="7th Cycle", VLOOKUP($B$1,'Planning Periods'!$E$2:$P$540,12)="6th Cycle"),SUMPRODUCT((YEAR('Table A2'!$AF$13:$AF$1000)='Start Here'!$B$5)*('Table A2'!$AF$13:$AF$1000>=VLOOKUP($B$1,'Planning Periods'!$E$2:$P$540,6))*'Table A2'!$AB$13:$AB$1000),SUMPRODUCT((YEAR('Table A2'!$AF$13:$AF$1000)='Start Here'!$B$5)*('Table A2'!$AF$13:$AF$1000<VLOOKUP($B$1,'Planning Periods'!$E$2:$P$540,7))*'Table A2'!$AB$13:$AB$1000)),IF(M$11<$B$2,(INDEX('Table B Values'!$C$2:$K$8017,MATCH('Table B'!$B$1&'Table B'!M$11&$B$3,'Table B Values'!$A$2:$A$8017&'Table B Values'!$B$2:$B$8017&'Table B Values'!$L$2:$L$8017,0),MATCH('Table B'!$B$39,'Table B Values'!$C$1:$K$1,0))),)),) -> 0 | P20: B_Table_Low_None
A21: Moderate | B21: Deed Restricted | C21: =VLOOKUP($B$1,'RHNA Allocations'!$C$2:$J$540,6,0) -> 62 | D21: =IFERROR(IF(E$11=$B$2,IF(OR(VLOOKUP($B$1,'Planning Periods'!$E$2:$P$540,12)="7th Cycle", VLOOKUP($B$1,'Planning Periods'!$E$2:$P$540,12)="6th Cycle"),SUMPRODUCT((YEAR('Table A2'!$AF$13:$AF$1000)='Start Here'!$B$5)*('Table A2'!$AF$13:$AF$1000>=VLOOKUP($B$1,'Planning Periods'!$E$2:$P$540,6))*('Table A2'!$AF$13:$AF$1000<VLOOKUP($B$1,'Planning Periods'!$E$2:$P$540,10))*'Table A2'!$AC$13:$AC$1000)+IFERROR((INDEX('Table B Values'!$C$2:$K$8017,MATCH('Table B'!$B$1&'Table B'!D$10,'Table B Values'!$A$2:$A$8017&'Table B Values'!$L$2:$L$8017,0),MATCH('Table B'!$B$40,'Table B Values'!$C$1:$K$1,0))),0),"-"),IF($B$3<>"5th Cycle",INDEX('Table B Values'!$C$2:$K$8017,MATCH('Table B'!$B$1&'Table B'!D$10,'Table B Values'!$A$2:$A$8017&'Table B Values'!$L$2:$L$8017,0),MATCH('Table B'!$B$40,'Table B Values'!$C$1:$K$1,0)),0)),"-") -> 0 | E21: =IFERROR(IF(E$11=$B$2,IF(OR(VLOOKUP($B$1,'Planning Periods'!$E$2:$P$540,12)="7th Cycle", VLOOKUP($B$1,'Planning Periods'!$E$2:$P$540,12)="6th Cycle"),SUMPRODUCT((YEAR('Table A2'!$AF$13:$AF$1000)='Start Here'!$B$5)*('Table A2'!$AF$13:$AF$1000>=VLOOKUP($B$1,'Planning Periods'!$E$2:$P$540,6))*'Table A2'!$AC$13:$AC$1000),SUMPRODUCT((YEAR('Table A2'!$AF$13:$AF$1000)='Start Here'!$B$5)*('Table A2'!$AF$13:$AF$1000<VLOOKUP($B$1,'Planning Periods'!$E$2:$P$540,7))*'Table A2'!$AC$13:$AC$1000))+'Table F2'!$O$13,IF(E$11<$B$2,(INDEX('Table B Values'!$C$2:$K$8017,MATCH('Table B'!$B$1&'Table B'!E$11&$B$3,'Table B Values'!$A$2:$A$8017&'Table B Values'!$B$2:$B$8017&'Table B Values'!$L$2:$L$8017,0),MATCH('Table B'!$B40,'Table B Values'!$C$1:$K$1,0))),)),) -> 0 | F21: =IFERROR(IF(F$11=$B$2,IF(OR(VLOOKUP($B$1,'Planning Periods'!$E$2:$P$540,12)="7th Cycle", VLOOKUP($B$1,'Planning Periods'!$E$2:$P$540,12)="6th Cycle"),SUMPRODUCT((YEAR('Table A2'!$AF$13:$AF$1000)='Start Here'!$B$5)*('Table A2'!$AF$13:$AF$1000>=VLOOKUP($B$1,'Planning Periods'!$E$2:$P$540,6))*'Table A2'!$AC$13:$AC$1000),SUMPRODUCT((YEAR('Table A2'!$AF$13:$AF$1000)='Start Here'!$B$5)*('Table A2'!$AF$13:$AF$1000<VLOOKUP($B$1,'Planning Periods'!$E$2:$P$540,7))*'Table A2'!$AC$13:$AC$1000))+'Table F2'!$O$13,IF(F$11<$B$2,(INDEX('Table B Values'!$C$2:$K$8017,MATCH('Table B'!$B$1&'Table B'!F$11&$B$3,'Table B Values'!$A$2:$A$8017&'Table B Values'!$B$2:$B$8017&'Table B Values'!$L$2:$L$8017,0),MATCH('Table B'!$B40,'Table B Values'!$C$1:$K$1,0))),)),) -> 0 | G21: =IFERROR(IF(G$11=$B$2,IF(OR(VLOOKUP($B$1,'Planning Periods'!$E$2:$P$540,12)="7th Cycle", VLOOKUP($B$1,'Planning Periods'!$E$2:$P$540,12)="6th Cycle"),SUMPRODUCT((YEAR('Table A2'!$AF$13:$AF$1000)='Start Here'!$B$5)*('Table A2'!$AF$13:$AF$1000>=VLOOKUP($B$1,'Planning Periods'!$E$2:$P$540,6))*'Table A2'!$AC$13:$AC$1000),SUMPRODUCT((YEAR('Table A2'!$AF$13:$AF$1000)='Start Here'!$B$5)*('Table A2'!$AF$13:$AF$1000<VLOOKUP($B$1,'Planning Periods'!$E$2:$P$540,7))*'Table A2'!$AC$13:$AC$1000))+'Table F2'!$O$13,IF(G$11<$B$2,(INDEX('Table B Values'!$C$2:$K$8017,MATCH('Table B'!$B$1&'Table B'!G$11&$B$3,'Table B Values'!$A$2:$A$8017&'Table B Values'!$B$2:$B$8017&'Table B Values'!$L$2:$L$8017,0),MATCH('Table B'!$B40,'Table B Values'!$C$1:$K$1,0))),)),) -> 0 | H21: =IFERROR(IF(H$11=$B$2,IF(OR(VLOOKUP($B$1,'Planning Periods'!$E$2:$P$540,12)="7th Cycle", VLOOKUP($B$1,'Planning Periods'!$E$2:$P$540,12)="6th Cycle"),SUMPRODUCT((YEAR('Table A2'!$AF$13:$AF$1000)='Start Here'!$B$5)*('Table A2'!$AF$13:$AF$1000>=VLOOKUP($B$1,'Planning Periods'!$E$2:$P$540,6))*'Table A2'!$AC$13:$AC$1000),SUMPRODUCT((YEAR('Table A2'!$AF$13:$AF$1000)='Start Here'!$B$5)*('Table A2'!$AF$13:$AF$1000<VLOOKUP($B$1,'Planning Periods'!$E$2:$P$540,7))*'Table A2'!$AC$13:$AC$1000))+'Table F2'!$O$13,IF(H$11<$B$2,(INDEX('Table B Values'!$C$2:$K$8017,MATCH('Table B'!$B$1&'Table B'!H$11&$B$3,'Table B Values'!$A$2:$A$8017&'Table B Values'!$B$2:$B$8017&'Table B Values'!$L$2:$L$8017,0),MATCH('Table B'!$B40,'Table B Values'!$C$1:$K$1,0))),)),) -> 0 | I21: =IFERROR(IF(I$11=$B$2,IF(OR(VLOOKUP($B$1,'Planning Periods'!$E$2:$P$540,12)="7th Cycle", VLOOKUP($B$1,'Planning Periods'!$E$2:$P$540,12)="6th Cycle"),SUMPRODUCT((YEAR('Table A2'!$AF$13:$AF$1000)='Start Here'!$B$5)*('Table A2'!$AF$13:$AF$1000>=VLOOKUP($B$1,'Planning Periods'!$E$2:$P$540,6))*'Table A2'!$AC$13:$AC$1000),SUMPRODUCT((YEAR('Table A2'!$AF$13:$AF$1000)='Start Here'!$B$5)*('Table A2'!$AF$13:$AF$1000<VLOOKUP($B$1,'Planning Periods'!$E$2:$P$540,7))*'Table A2'!$AC$13:$AC$1000))+'Table F2'!$O$13,IF(I$11<$B$2,(INDEX('Table B Values'!$C$2:$K$8017,MATCH('Table B'!$B$1&'Table B'!I$11&$B$3,'Table B Values'!$A$2:$A$8017&'Table B Values'!$B$2:$B$8017&'Table B Values'!$L$2:$L$8017,0),MATCH('Table B'!$B40,'Table B Values'!$C$1:$K$1,0))),)),) -> 0 | J21: =IFERROR(IF(J$11=$B$2,IF(OR(VLOOKUP($B$1,'Planning Periods'!$E$2:$P$540,12)="7th Cycle", VLOOKUP($B$1,'Planning Periods'!$E$2:$P$540,12)="6th Cycle"),SUMPRODUCT((YEAR('Table A2'!$AF$13:$AF$1000)='Start Here'!$B$5)*('Table A2'!$AF$13:$AF$1000>=VLOOKUP($B$1,'Planning Periods'!$E$2:$P$540,6))*'Table A2'!$AC$13:$AC$1000),SUMPRODUCT((YEAR('Table A2'!$AF$13:$AF$1000)='Start Here'!$B$5)*('Table A2'!$AF$13:$AF$1000<VLOOKUP($B$1,'Planning Periods'!$E$2:$P$540,7))*'Table A2'!$AC$13:$AC$1000))+'Table F2'!$O$13,IF(J$11<$B$2,(INDEX('Table B Values'!$C$2:$K$8017,MATCH('Table B'!$B$1&'Table B'!J$11&$B$3,'Table B Values'!$A$2:$A$8017&'Table B Values'!$B$2:$B$8017&'Table B Values'!$L$2:$L$8017,0),MATCH('Table B'!$B40,'Table B Values'!$C$1:$K$1,0))),)),) -> 0 | K21: =IFERROR(IF(K$11=$B$2,IF(OR(VLOOKUP($B$1,'Planning Periods'!$E$2:$P$540,12)="7th Cycle", VLOOKUP($B$1,'Planning Periods'!$E$2:$P$540,12)="6th Cycle"),SUMPRODUCT((YEAR('Table A2'!$AF$13:$AF$1000)='Start Here'!$B$5)*('Table A2'!$AF$13:$AF$1000>=VLOOKUP($B$1,'Planning Periods'!$E$2:$P$540,6))*'Table A2'!$AC$13:$AC$1000),SUMPRODUCT((YEAR('Table A2'!$AF$13:$AF$1000)='Start Here'!$B$5)*('Table A2'!$AF$13:$AF$1000<VLOOKUP($B$1,'Planning Periods'!$E$2:$P$540,7))*'Table A2'!$AC$13:$AC$1000))+'Table F2'!$O$13,IF(K$11<$B$2,(INDEX('Table B Values'!$C$2:$K$8017,MATCH('Table B'!$B$1&'Table B'!K$11&$B$3,'Table B Values'!$A$2:$A$8017&'Table B Values'!$B$2:$B$8017&'Table B Values'!$L$2:$L$8017,0),MATCH('Table B'!$B40,'Table B Values'!$C$1:$K$1,0))),)),) -> 0 | L21: =IFERROR(IF(L$11=$B$2,IF(OR(VLOOKUP($B$1,'Planning Periods'!$E$2:$P$540,12)="7th Cycle", VLOOKUP($B$1,'Planning Periods'!$E$2:$P$540,12)="6th Cycle"),SUMPRODUCT((YEAR('Table A2'!$AF$13:$AF$1000)='Start Here'!$B$5)*('Table A2'!$AF$13:$AF$1000>=VLOOKUP($B$1,'Planning Periods'!$E$2:$P$540,6))*'Table A2'!$AC$13:$AC$1000),SUMPRODUCT((YEAR('Table A2'!$AF$13:$AF$1000)='Start Here'!$B$5)*('Table A2'!$AF$13:$AF$1000<VLOOKUP($B$1,'Planning Periods'!$E$2:$P$540,7))*'Table A2'!$AC$13:$AC$1000))+'Table F2'!$O$13,IF(L$11<$B$2,(INDEX('Table B Values'!$C$2:$K$8017,MATCH('Table B'!$B$1&'Table B'!L$11&$B$3,'Table B Values'!$A$2:$A$8017&'Table B Values'!$B$2:$B$8017&'Table B Values'!$L$2:$L$8017,0),MATCH('Table B'!$B40,'Table B Values'!$C$1:$K$1,0))),)),) -> 0 | M21: =IFERROR(IF(M$11=$B$2,IF(OR(VLOOKUP($B$1,'Planning Periods'!$E$2:$P$540,12)="7th Cycle", VLOOKUP($B$1,'Planning Periods'!$E$2:$P$540,12)="6th Cycle"),SUMPRODUCT((YEAR('Table A2'!$AF$13:$AF$1000)='Start Here'!$B$5)*('Table A2'!$AF$13:$AF$1000>=VLOOKUP($B$1,'Planning Periods'!$E$2:$P$540,6))*'Table A2'!$AC$13:$AC$1000),SUMPRODUCT((YEAR('Table A2'!$AF$13:$AF$1000)='Start Here'!$B$5)*('Table A2'!$AF$13:$AF$1000<VLOOKUP($B$1,'Planning Periods'!$E$2:$P$540,7))*'Table A2'!$AC$13:$AC$1000))+'Table F2'!$O$13,IF(M$11<$B$2,(INDEX('Table B Values'!$C$2:$K$8017,MATCH('Table B'!$B$1&'Table B'!M$11&$B$3,'Table B Values'!$A$2:$A$8017&'Table B Values'!$B$2:$B$8017&'Table B Values'!$L$2:$L$8017,0),MATCH('Table B'!$B40,'Table B Values'!$C$1:$K$1,0))),)),) -> 0 | N21: =SUM(D21:M21)+SUM(D22:M22) -> 1 | O21: =MAX(0,C21-N21) -> 61 | P21: B_Table_Mod_Deed
B22: Non-Deed Restricted | D22: =IFERROR(IF(E$11=$B$2,IF(OR(VLOOKUP($B$1,'Planning Periods'!$E$2:$P$540,12)="7th Cycle", VLOOKUP($B$1,'Planning Periods'!$E$2:$P$540,12)="6th Cycle"),SUMPRODUCT((YEAR('Table A2'!$AF$13:$AF$1000)='Start Here'!$B$5)*('Table A2'!$AF$13:$AF$1000>=VLOOKUP($B$1,'Planning Periods'!$E$2:$P$540,6))*('Table A2'!$AF$13:$AF$1000<VLOOKUP($B$1,'Planning Periods'!$E$2:$P$540,10))*'Table A2'!$AD$13:$AD$1000)+IFERROR((INDEX('Table B Values'!$C$2:$K$8017,MATCH('Table B'!$B$1&'Table B'!D$10,'Table B Values'!$A$2:$A$8017&'Table B Values'!$L$2:$L$8017,0),MATCH('Table B'!$B$41,'Table B Values'!$C$1:$K$1,0))),0),"-"),IF($B$3<>"5th Cycle",INDEX('Table B Values'!$C$2:$K$8017,MATCH('Table B'!$B$1&'Table B'!D$10,'Table B Values'!$A$2:$A$8017&'Table B Values'!$L$2:$L$8017,0),MATCH('Table B'!$B$41,'Table B Values'!$C$1:$K$1,0)),0)),"-") -> 0 | E22: =IFERROR(IF(E$11=$B$2,IF(OR(VLOOKUP($B$1,'Planning Periods'!$E$2:$P$540,12)="7th Cycle", VLOOKUP($B$1,'Planning Periods'!$E$2:$P$540,12)="6th Cycle"),SUMPRODUCT((YEAR('Table A2'!$AF$13:$AF$1000)='Start Here'!$B$5)*('Table A2'!$AF$13:$AF$1000>=VLOOKUP($B$1,'Planning Periods'!$E$2:$P$540,6))*'Table A2'!$AD$13:$AD$1000),SUMPRODUCT((YEAR('Table A2'!$AF$13:$AF$1000)='Start Here'!$B$5)*('Table A2'!$AF$13:$AF$1000<VLOOKUP($B$1,'Planning Periods'!$E$2:$P$540,7))*'Table A2'!$AD$13:$AD$1000)),IF(E$11<$B$2,(INDEX('Table B Values'!$C$2:$K$8017,MATCH('Table B'!$B$1&'Table B'!E$11&$B$3,'Table B Values'!$A$2:$A$8017&'Table B Values'!$B$2:$B$8017&'Table B Values'!$L$2:$L$8017,0),MATCH('Table B'!$B$41,'Table B Values'!$C$1:$K$1,0))),)),) -> 0 | F22: =IFERROR(IF(F$11=$B$2,IF(OR(VLOOKUP($B$1,'Planning Periods'!$E$2:$P$540,12)="7th Cycle", VLOOKUP($B$1,'Planning Periods'!$E$2:$P$540,12)="6th Cycle"),SUMPRODUCT((YEAR('Table A2'!$AF$13:$AF$1000)='Start Here'!$B$5)*('Table A2'!$AF$13:$AF$1000>=VLOOKUP($B$1,'Planning Periods'!$E$2:$P$540,6))*'Table A2'!$AD$13:$AD$1000),SUMPRODUCT((YEAR('Table A2'!$AF$13:$AF$1000)='Start Here'!$B$5)*('Table A2'!$AF$13:$AF$1000<VLOOKUP($B$1,'Planning Periods'!$E$2:$P$540,7))*'Table A2'!$AD$13:$AD$1000)),IF(F$11<$B$2,(INDEX('Table B Values'!$C$2:$K$8017,MATCH('Table B'!$B$1&'Table B'!F$11&$B$3,'Table B Values'!$A$2:$A$8017&'Table B Values'!$B$2:$B$8017&'Table B Values'!$L$2:$L$8017,0),MATCH('Table B'!$B$41,'Table B Values'!$C$1:$K$1,0))),)),) -> 1 | G22: =IFERROR(IF(G$11=$B$2,IF(OR(VLOOKUP($B$1,'Planning Periods'!$E$2:$P$540,12)="7th Cycle", VLOOKUP($B$1,'Planning Periods'!$E$2:$P$540,12)="6th Cycle"),SUMPRODUCT((YEAR('Table A2'!$AF$13:$AF$1000)='Start Here'!$B$5)*('Table A2'!$AF$13:$AF$1000>=VLOOKUP($B$1,'Planning Periods'!$E$2:$P$540,6))*'Table A2'!$AD$13:$AD$1000),SUMPRODUCT((YEAR('Table A2'!$AF$13:$AF$1000)='Start Here'!$B$5)*('Table A2'!$AF$13:$AF$1000<VLOOKUP($B$1,'Planning Periods'!$E$2:$P$540,7))*'Table A2'!$AD$13:$AD$1000)),IF(G$11<$B$2,(INDEX('Table B Values'!$C$2:$K$8017,MATCH('Table B'!$B$1&'Table B'!G$11&$B$3,'Table B Values'!$A$2:$A$8017&'Table B Values'!$B$2:$B$8017&'Table B Values'!$L$2:$L$8017,0),MATCH('Table B'!$B$41,'Table B Values'!$C$1:$K$1,0))),)),) -> 0 | H22: =IFERROR(IF(H$11=$B$2,IF(OR(VLOOKUP($B$1,'Planning Periods'!$E$2:$P$540,12)="7th Cycle", VLOOKUP($B$1,'Planning Periods'!$E$2:$P$540,12)="6th Cycle"),SUMPRODUCT((YEAR('Table A2'!$AF$13:$AF$1000)='Start Here'!$B$5)*('Table A2'!$AF$13:$AF$1000>=VLOOKUP($B$1,'Planning Periods'!$E$2:$P$540,6))*'Table A2'!$AD$13:$AD$1000),SUMPRODUCT((YEAR('Table A2'!$AF$13:$AF$1000)='Start Here'!$B$5)*('Table A2'!$AF$13:$AF$1000<VLOOKUP($B$1,'Planning Periods'!$E$2:$P$540,7))*'Table A2'!$AD$13:$AD$1000)),IF(H$11<$B$2,(INDEX('Table B Values'!$C$2:$K$8017,MATCH('Table B'!$B$1&'Table B'!H$11&$B$3,'Table B Values'!$A$2:$A$8017&'Table B Values'!$B$2:$B$8017&'Table B Values'!$L$2:$L$8017,0),MATCH('Table B'!$B$41,'Table B Values'!$C$1:$K$1,0))),)),) -> 0 | I22: =IFERROR(IF(I$11=$B$2,IF(OR(VLOOKUP($B$1,'Planning Periods'!$E$2:$P$540,12)="7th Cycle", VLOOKUP($B$1,'Planning Periods'!$E$2:$P$540,12)="6th Cycle"),SUMPRODUCT((YEAR('Table A2'!$AF$13:$AF$1000)='Start Here'!$B$5)*('Table A2'!$AF$13:$AF$1000>=VLOOKUP($B$1,'Planning Periods'!$E$2:$P$540,6))*'Table A2'!$AD$13:$AD$1000),SUMPRODUCT((YEAR('Table A2'!$AF$13:$AF$1000)='Start Here'!$B$5)*('Table A2'!$AF$13:$AF$1000<VLOOKUP($B$1,'Planning Periods'!$E$2:$P$540,7))*'Table A2'!$AD$13:$AD$1000)),IF(I$11<$B$2,(INDEX('Table B Values'!$C$2:$K$8017,MATCH('Table B'!$B$1&'Table B'!I$11&$B$3,'Table B Values'!$A$2:$A$8017&'Table B Values'!$B$2:$B$8017&'Table B Values'!$L$2:$L$8017,0),MATCH('Table B'!$B$41,'Table B Values'!$C$1:$K$1,0))),)),) -> 0 | J22: =IFERROR(IF(J$11=$B$2,IF(OR(VLOOKUP($B$1,'Planning Periods'!$E$2:$P$540,12)="7th Cycle", VLOOKUP($B$1,'Planning Periods'!$E$2:$P$540,12)="6th Cycle"),SUMPRODUCT((YEAR('Table A2'!$AF$13:$AF$1000)='Start Here'!$B$5)*('Table A2'!$AF$13:$AF$1000>=VLOOKUP($B$1,'Planning Periods'!$E$2:$P$540,6))*'Table A2'!$AD$13:$AD$1000),SUMPRODUCT((YEAR('Table A2'!$AF$13:$AF$1000)='Start Here'!$B$5)*('Table A2'!$AF$13:$AF$1000<VLOOKUP($B$1,'Planning Periods'!$E$2:$P$540,7))*'Table A2'!$AD$13:$AD$1000)),IF(J$11<$B$2,(INDEX('Table B Values'!$C$2:$K$8017,MATCH('Table B'!$B$1&'Table B'!J$11&$B$3,'Table B Values'!$A$2:$A$8017&'Table B Values'!$B$2:$B$8017&'Table B Values'!$L$2:$L$8017,0),MATCH('Table B'!$B$41,'Table B Values'!$C$1:$K$1,0))),)),) -> 0 | K22: =IFERROR(IF(K$11=$B$2,IF(OR(VLOOKUP($B$1,'Planning Periods'!$E$2:$P$540,12)="7th Cycle", VLOOKUP($B$1,'Planning Periods'!$E$2:$P$540,12)="6th Cycle"),SUMPRODUCT((YEAR('Table A2'!$AF$13:$AF$1000)='Start Here'!$B$5)*('Table A2'!$AF$13:$AF$1000>=VLOOKUP($B$1,'Planning Periods'!$E$2:$P$540,6))*'Table A2'!$AD$13:$AD$1000),SUMPRODUCT((YEAR('Table A2'!$AF$13:$AF$1000)='Start Here'!$B$5)*('Table A2'!$AF$13:$AF$1000<VLOOKUP($B$1,'Planning Periods'!$E$2:$P$540,7))*'Table A2'!$AD$13:$AD$1000)),IF(K$11<$B$2,(INDEX('Table B Values'!$C$2:$K$8017,MATCH('Table B'!$B$1&'Table B'!K$11&$B$3,'Table B Values'!$A$2:$A$8017&'Table B Values'!$B$2:$B$8017&'Table B Values'!$L$2:$L$8017,0),MATCH('Table B'!$B$41,'Table B Values'!$C$1:$K$1,0))),)),) -> 0 | L22: =IFERROR(IF(L$11=$B$2,IF(OR(VLOOKUP($B$1,'Planning Periods'!$E$2:$P$540,12)="7th Cycle", VLOOKUP($B$1,'Planning Periods'!$E$2:$P$540,12)="6th Cycle"),SUMPRODUCT((YEAR('Table A2'!$AF$13:$AF$1000)='Start Here'!$B$5)*('Table A2'!$AF$13:$AF$1000>=VLOOKUP($B$1,'Planning Periods'!$E$2:$P$540,6))*'Table A2'!$AD$13:$AD$1000),SUMPRODUCT((YEAR('Table A2'!$AF$13:$AF$1000)='Start Here'!$B$5)*('Table A2'!$AF$13:$AF$1000<VLOOKUP($B$1,'Planning Periods'!$E$2:$P$540,7))*'Table A2'!$AD$13:$AD$1000)),IF(L$11<$B$2,(INDEX('Table B Values'!$C$2:$K$8017,MATCH('Table B'!$B$1&'Table B'!L$11&$B$3,'Table B Values'!$A$2:$A$8017&'Table B Values'!$B$2:$B$8017&'Table B Values'!$L$2:$L$8017,0),MATCH('Table B'!$B$41,'Table B Values'!$C$1:$K$1,0))),)),) -> 0 | M22: =IFERROR(IF(M$11=$B$2,IF(OR(VLOOKUP($B$1,'Planning Periods'!$E$2:$P$540,12)="7th Cycle", VLOOKUP($B$1,'Planning Periods'!$E$2:$P$540,12)="6th Cycle"),SUMPRODUCT((YEAR('Table A2'!$AF$13:$AF$1000)='Start Here'!$B$5)*('Table A2'!$AF$13:$AF$1000>=VLOOKUP($B$1,'Planning Periods'!$E$2:$P$540,6))*'Table A2'!$AD$13:$AD$1000),SUMPRODUCT((YEAR('Table A2'!$AF$13:$AF$1000)='Start Here'!$B$5)*('Table A2'!$AF$13:$AF$1000<VLOOKUP($B$1,'Planning Periods'!$E$2:$P$540,7))*'Table A2'!$AD$13:$AD$1000)),IF(M$11<$B$2,(INDEX('Table B Values'!$C$2:$K$8017,MATCH('Table B'!$B$1&'Table B'!M$11&$B$3,'Table B Values'!$A$2:$A$8017&'Table B Values'!$B$2:$B$8017&'Table B Values'!$L$2:$L$8017,0),MATCH('Table B'!$B$41,'Table B Values'!$C$1:$K$1,0))),)),) -> 0 | P22: B_Table_Mod_None
A23: Above Moderate | C23: =VLOOKUP($B$1,'RHNA Allocations'!$C$2:$J$540,7,0) -> 179 | D23: =IFERROR(IF(E$11=$B$2,IF(OR(VLOOKUP($B$1,'Planning Periods'!$E$2:$P$540,12)="7th Cycle", VLOOKUP($B$1,'Planning Periods'!$E$2:$P$540,12)="6th Cycle"),SUMPRODUCT((YEAR('Table A2'!$AF$13:$AF$1000)='Start Here'!$B$5)*('Table A2'!$AF$13:$AF$1000>=VLOOKUP($B$1,'Planning Periods'!$E$2:$P$540,6))*('Table A2'!$AF$13:$AF$1000<VLOOKUP($B$1,'Planning Periods'!$E$2:$P$540,10))*'Table A2'!$AE$13:$AE$1000)+IFERROR((INDEX('Table B Values'!$C$2:$K$8017,MATCH('Table B'!$B$1&'Table B'!D$10,'Table B Values'!$A$2:$A$8017&'Table B Values'!$L$2:$L$8017,0),MATCH('Table B'!$B$42,'Table B Values'!$C$1:$K$1,0))),0),"-"),IF($B$3<>"5th Cycle",INDEX('Table B Values'!$C$2:$K$8017,MATCH('Table B'!$B$1&'Table B'!D$10,'Table B Values'!$A$2:$A$8017&'Table B Values'!$L$2:$L$8017,0),MATCH('Table B'!$B$42,'Table B Values'!$C$1:$K$1,0)),0)),"-") -> 64 | E23: =IFERROR(IF(E$11=$B$2,IF(OR(VLOOKUP($B$1,'Planning Periods'!$E$2:$P$540,12)="7th Cycle", VLOOKUP($B$1,'Planning Periods'!$E$2:$P$540,12)="6th Cycle"),SUMPRODUCT((YEAR('Table A2'!$AF$13:$AF$1000)='Start Here'!$B$5)*('Table A2'!$AF$13:$AF$1000>=VLOOKUP($B$1,'Planning Periods'!$E$2:$P$540,6))*'Table A2'!$AE$13:$AE$1000),SUMPRODUCT((YEAR('Table A2'!$AF$13:$AF$1000)='Start Here'!$B$5)*('Table A2'!$AF$13:$AF$1000<VLOOKUP($B$1,'Planning Periods'!$E$2:$P$540,7))*'Table A2'!$AE$13:$AE$1000)),IF(E$11<$B$2,(INDEX('Table B Values'!$C$2:$K$8017,MATCH('Table B'!$B$1&'Table B'!E$11&$B$3,'Table B Values'!$A$2:$A$8017&'Table B Values'!$B$2:$B$8017&'Table B Values'!$L$2:$L$8017,0),MATCH('Table B'!$B42,'Table B Values'!$C$1:$K$1,0))),)),) -> 215 | F23: =IFERROR(IF(F$11=$B$2,IF(OR(VLOOKUP($B$1,'Planning Periods'!$E$2:$P$540,12)="7th Cycle", VLOOKUP($B$1,'Planning Periods'!$E$2:$P$540,12)="6th Cycle"),SUMPRODUCT((YEAR('Table A2'!$AF$13:$AF$1000)='Start Here'!$B$5)*('Table A2'!$AF$13:$AF$1000>=VLOOKUP($B$1,'Planning Periods'!$E$2:$P$540,6))*'Table A2'!$AE$13:$AE$1000),SUMPRODUCT((YEAR('Table A2'!$AF$13:$AF$1000)='Start Here'!$B$5)*('Table A2'!$AF$13:$AF$1000<VLOOKUP($B$1,'Planning Periods'!$E$2:$P$540,7))*'Table A2'!$AE$13:$AE$1000)),IF(F$11<$B$2,(INDEX('Table B Values'!$C$2:$K$8017,MATCH('Table B'!$B$1&'Table B'!F$11&$B$3,'Table B Values'!$A$2:$A$8017&'Table B Values'!$B$2:$B$8017&'Table B Values'!$L$2:$L$8017,0),MATCH('Table B'!$B42,'Table B Values'!$C$1:$K$1,0))),)),) -> 175 | G23: =IFERROR(IF(G$11=$B$2,IF(OR(VLOOKUP($B$1,'Planning Periods'!$E$2:$P$540,12)="7th Cycle", VLOOKUP($B$1,'Planning Periods'!$E$2:$P$540,12)="6th Cycle"),SUMPRODUCT((YEAR('Table A2'!$AF$13:$AF$1000)='Start Here'!$B$5)*('Table A2'!$AF$13:$AF$1000>=VLOOKUP($B$1,'Planning Periods'!$E$2:$P$540,6))*'Table A2'!$AE$13:$AE$1000),SUMPRODUCT((YEAR('Table A2'!$AF$13:$AF$1000)='Start Here'!$B$5)*('Table A2'!$AF$13:$AF$1000<VLOOKUP($B$1,'Planning Periods'!$E$2:$P$540,7))*'Table A2'!$AE$13:$AE$1000)),IF(G$11<$B$2,(INDEX('Table B Values'!$C$2:$K$8017,MATCH('Table B'!$B$1&'Table B'!G$11&$B$3,'Table B Values'!$A$2:$A$8017&'Table B Values'!$B$2:$B$8017&'Table B Values'!$L$2:$L$8017,0),MATCH('Table B'!$B42,'Table B Values'!$C$1:$K$1,0))),)),) -> 235 | H23: =IFERROR(IF(H$11=$B$2,IF(OR(VLOOKUP($B$1,'Planning Periods'!$E$2:$P$540,12)="7th Cycle", VLOOKUP($B$1,'Planning Periods'!$E$2:$P$540,12)="6th Cycle"),SUMPRODUCT((YEAR('Table A2'!$AF$13:$AF$1000)='Start Here'!$B$5)*('Table A2'!$AF$13:$AF$1000>=VLOOKUP($B$1,'Planning Periods'!$E$2:$P$540,6))*'Table A2'!$AE$13:$AE$1000),SUMPRODUCT((YEAR('Table A2'!$AF$13:$AF$1000)='Start Here'!$B$5)*('Table A2'!$AF$13:$AF$1000<VLOOKUP($B$1,'Planning Periods'!$E$2:$P$540,7))*'Table A2'!$AE$13:$AE$1000)),IF(H$11<$B$2,(INDEX('Table B Values'!$C$2:$K$8017,MATCH('Table B'!$B$1&'Table B'!H$11&$B$3,'Table B Values'!$A$2:$A$8017&'Table B Values'!$B$2:$B$8017&'Table B Values'!$L$2:$L$8017,0),MATCH('Table B'!$B42,'Table B Values'!$C$1:$K$1,0))),)),) -> 0 | I23: =IFERROR(IF(I$11=$B$2,IF(OR(VLOOKUP($B$1,'Planning Periods'!$E$2:$P$540,12)="7th Cycle", VLOOKUP($B$1,'Planning Periods'!$E$2:$P$540,12)="6th Cycle"),SUMPRODUCT((YEAR('Table A2'!$AF$13:$AF$1000)='Start Here'!$B$5)*('Table A2'!$AF$13:$AF$1000>=VLOOKUP($B$1,'Planning Periods'!$E$2:$P$540,6))*'Table A2'!$AE$13:$AE$1000),SUMPRODUCT((YEAR('Table A2'!$AF$13:$AF$1000)='Start Here'!$B$5)*('Table A2'!$AF$13:$AF$1000<VLOOKUP($B$1,'Planning Periods'!$E$2:$P$540,7))*'Table A2'!$AE$13:$AE$1000)),IF(I$11<$B$2,(INDEX('Table B Values'!$C$2:$K$8017,MATCH('Table B'!$B$1&'Table B'!I$11&$B$3,'Table B Values'!$A$2:$A$8017&'Table B Values'!$B$2:$B$8017&'Table B Values'!$L$2:$L$8017,0),MATCH('Table B'!$B42,'Table B Values'!$C$1:$K$1,0))),)),) -> 0 | J23: =IFERROR(IF(J$11=$B$2,IF(OR(VLOOKUP($B$1,'Planning Periods'!$E$2:$P$540,12)="7th Cycle", VLOOKUP($B$1,'Planning Periods'!$E$2:$P$540,12)="6th Cycle"),SUMPRODUCT((YEAR('Table A2'!$AF$13:$AF$1000)='Start Here'!$B$5)*('Table A2'!$AF$13:$AF$1000>=VLOOKUP($B$1,'Planning Periods'!$E$2:$P$540,6))*'Table A2'!$AE$13:$AE$1000),SUMPRODUCT((YEAR('Table A2'!$AF$13:$AF$1000)='Start Here'!$B$5)*('Table A2'!$AF$13:$AF$1000<VLOOKUP($B$1,'Planning Periods'!$E$2:$P$540,7))*'Table A2'!$AE$13:$AE$1000)),IF(J$11<$B$2,(INDEX('Table B Values'!$C$2:$K$8017,MATCH('Table B'!$B$1&'Table B'!J$11&$B$3,'Table B Values'!$A$2:$A$8017&'Table B Values'!$B$2:$B$8017&'Table B Values'!$L$2:$L$8017,0),MATCH('Table B'!$B42,'Table B Values'!$C$1:$K$1,0))),)),) -> 0 | K23: =IFERROR(IF(K$11=$B$2,IF(OR(VLOOKUP($B$1,'Planning Periods'!$E$2:$P$540,12)="7th Cycle", VLOOKUP($B$1,'Planning Periods'!$E$2:$P$540,12)="6th Cycle"),SUMPRODUCT((YEAR('Table A2'!$AF$13:$AF$1000)='Start Here'!$B$5)*('Table A2'!$AF$13:$AF$1000>=VLOOKUP($B$1,'Planning Periods'!$E$2:$P$540,6))*'Table A2'!$AE$13:$AE$1000),SUMPRODUCT((YEAR('Table A2'!$AF$13:$AF$1000)='Start Here'!$B$5)*('Table A2'!$AF$13:$AF$1000<VLOOKUP($B$1,'Planning Periods'!$E$2:$P$540,7))*'Table A2'!$AE$13:$AE$1000)),IF(K$11<$B$2,(INDEX('Table B Values'!$C$2:$K$8017,MATCH('Table B'!$B$1&'Table B'!K$11&$B$3,'Table B Values'!$A$2:$A$8017&'Table B Values'!$B$2:$B$8017&'Table B Values'!$L$2:$L$8017,0),MATCH('Table B'!$B42,'Table B Values'!$C$1:$K$1,0))),)),) -> 0 | L23: =IFERROR(IF(L$11=$B$2,IF(OR(VLOOKUP($B$1,'Planning Periods'!$E$2:$P$540,12)="7th Cycle", VLOOKUP($B$1,'Planning Periods'!$E$2:$P$540,12)="6th Cycle"),SUMPRODUCT((YEAR('Table A2'!$AF$13:$AF$1000)='Start Here'!$B$5)*('Table A2'!$AF$13:$AF$1000>=VLOOKUP($B$1,'Planning Periods'!$E$2:$P$540,6))*'Table A2'!$AE$13:$AE$1000),SUMPRODUCT((YEAR('Table A2'!$AF$13:$AF$1000)='Start Here'!$B$5)*('Table A2'!$AF$13:$AF$1000<VLOOKUP($B$1,'Planning Periods'!$E$2:$P$540,7))*'Table A2'!$AE$13:$AE$1000)),IF(L$11<$B$2,(INDEX('Table B Values'!$C$2:$K$8017,MATCH('Table B'!$B$1&'Table B'!L$11&$B$3,'Table B Values'!$A$2:$A$8017&'Table B Values'!$B$2:$B$8017&'Table B Values'!$L$2:$L$8017,0),MATCH('Table B'!$B42,'Table B Values'!$C$1:$K$1,0))),)),) -> 0 | M23: =IFERROR(IF(M$11=$B$2,IF(OR(VLOOKUP($B$1,'Planning Periods'!$E$2:$P$540,12)="7th Cycle", VLOOKUP($B$1,'Planning Periods'!$E$2:$P$540,12)="6th Cycle"),SUMPRODUCT((YEAR('Table A2'!$AF$13:$AF$1000)='Start Here'!$B$5)*('Table A2'!$AF$13:$AF$1000>=VLOOKUP($B$1,'Planning Periods'!$E$2:$P$540,6))*'Table A2'!$AE$13:$AE$1000),SUMPRODUCT((YEAR('Table A2'!$AF$13:$AF$1000)='Start Here'!$B$5)*('Table A2'!$AF$13:$AF$1000<VLOOKUP($B$1,'Planning Periods'!$E$2:$P$540,7))*'Table A2'!$AE$13:$AE$1000)),IF(M$11<$B$2,(INDEX('Table B Values'!$C$2:$K$8017,MATCH('Table B'!$B$1&'Table B'!M$11&$B$3,'Table B Values'!$A$2:$A$8017&'Table B Values'!$B$2:$B$8017&'Table B Values'!$L$2:$L$8017,0),MATCH('Table B'!$B42,'Table B Values'!$C$1:$K$1,0))),)),) -> 0 | N23: =SUM(D23:M23) -> 689 | O23: =MAX(0,C23-N23) -> 0 | P23: B_Table_Above
A24: Total RHNA | C24: =SUM(C13:C23) -> 416 | P24: B_Table_RHNA
A25: Total Units | D25: =SUM(D13:D23) -> 64 | E25: 287 | F25: 272 | G25: 235 | H25: 0 | I25: 0 | J25: 0 | K25: 0 | L25: 0 | M25: 0 | N25: =IF(VLOOKUP($B$1,'Planning Periods'!$E$2:$P$540,8)<=2024,SUM(N17:N23),SUM(N13:N23)) -> 858 | O25: =SUM(O13:O23) -> 146 | P25: B_Table_Units
A26: *For years prior to 2025, Acutely Low-Income units are reported within the Extremely Low-Income category
A27: *For jurisdictions that received RHNA determinations for the current cycle prior to the passage of AB 3093 (September 19, 2024): - You were not allocated Acutely Low-Income and Extremely Low-Income RHNA targets, therefore the allocations in Field 1 are listed as "0" - If you wish to set your own targets in these income categories for informational purposes, contact HCD staff at apr@hcd.ca.gov. - All Acutely Low-Income and Extremely Low-Income units reported during the cycle are counted towards Very-Low Income RHNA progress
A28: *For years prior to 2025, data on deed-restricted vs. non-deed restricted Extremely Low-Income units is approximated from whether the projects reported any deed-restricted Very Low-Income Units. If you wish to edit this historical data for accuracy or have any questions about the data, you may login to HCD's online APR system, or contact HCD staff at apr@hcd.ca.gov.
A29: Please Note: Table B does not currently contain data from Table F or Table F2 for prior years. You may login to the APR system to see Table B that contains this data.
A30: Please note: The APR form can only display data for one planning period. To view progress for a different planning period, you may login to HCD's online APR system, or contact HCD staff at apr@hcd.ca.gov.
B32: ALI Deed Restricted
B33: ALI Non Deed Restricted
B34: ELI Deed Restricted
B35: ELI Non Deed Restricted
B36: VLI Deed Restricted
B37: VLI Non Deed Restricted
B38: LI Deed Restricted
B39: LI Non Deed Restricted
B40: MI Deed Restricted
B41: MI Non Deed Restricted
B42: Above Mod Income

Sheet Table B Values (hidden)
A1: Jurisdiction | B1: Year | C1: ELI Deed Restricted | D1: ELI Non Deed Restricted | E1: VLI Deed Restricted | F1: VLI Non Deed Restricted | G1: LI Deed Restricted | H1: LI Non Deed Restricted | I1: MI Deed Restricted | J1: MI Non Deed Restricted | K1: Above Mod Income | L1: Planning Period
A2: Adelanto | B2: 2022 | C2: 0 | D2: 0 | E2: 0 | F2: 0 | G2: 0 | H2: 0 | I2: 0 | J2: 0 | K2: 25 | L2: 6th Cycle
A3: Adelanto | B3: 2023 | C3: 0 | D3: 0 | E3: 0 | F3: 0 | G3: 0 | H3: 0 | I3: 0 | J3: 0 | K3: 81 | L3: 6th Cycle
A4: Adelanto | B4: 2024 | C4: 0 | D4: 0 | E4: 0 | F4: 0 | G4: 0 | H4: 0 | I4: 0 | J4: 0 | K4: 24 | L4: 6th Cycle
A5: Agoura Hills | B5: 2022 | C5: 0 | D5: 5 | E5: 0 | F5: 2 | G5: 0 | H5: 0 | I5: 0 | J5: 0 | K5: 9 | L5: 6th Cycle
A6: Agoura Hills | B6: 2023 | C6: 0 | D6: 2 | E6: 0 | F6: 0 | G6: 0 | H6: 0 | I6: 0 | J6: 2 | K6: 16 | L6: 6th Cycle
A7: Agoura Hills | B7: 2024 | C7: 0 | D7: 1 | E7: 0 | F7: 1 | G7: 0 | H7: 0 | I7: 0 | J7: 0 | K7: 3 | L7: 6th Cycle
A8: Alameda | B8: 2023 | C8: 0 | D8: 0 | E8: 1 | F8: 12 | G8: 2 | H8: 9 | I8: 6 | J8: 13 | K8: 92 | L8: 6th Cycle
A9: Alameda | B9: 2024 | C9: 44 | D9: 0 | E9: 65 | F9: 15 | G9: 4 | H9: 14 | I9: 7 | J9: 14 | K9: 80 | L9: 6th Cycle
A10: Alameda | C10: 0 | D10: 0 | E10: 47 | F10: 8 | G10: 0 | H10: 11 | I10: 82 | J10: 5 | K10: 67 | L10: Projection Period
A11: Alameda County - Unincorporated | B11: 2023 | E11: 72 | F11: 31 | G11: 79 | H11: 33 | I11: 0 | J11: 33 | K11: 72 | L11: 6th Cycle
A12: Alameda County - Unincorporated | B12: 2024 | E12: 0 | F12: 37 | G12: 0 | H12: 36 | I12: 0 | J12: 35 | K12: 119 | L12: 6th Cycle
A13: Alameda County - Unincorporated | C13: 0 | D13: 0 | E13: 0 | F13: 16 | G13: 0 | H13: 18 | I13: 0 | J13: 17 | K13: 12 | L13: Projection Period
A14: Albany | B14: 2023 | C14: 0 | D14: 0 | E14: 0 | F14: 1 | G14: 0 | H14: 3 | I14: 0 | J14: 7 | K14: 0 | L14: 6th Cycle
A15: Albany | B15: 2024 | C15: 0 | D15: 0 | E15: 0 | F15: 4 | G15: 0 | H15: 6 | I15: 0 | J15: 2 | K15: 0 | L15: 6th Cycle
A16: Albany | E16: 32 | F16: 0 | G16: 29 | H16: 0 | I16: 0 | J16: 15 | K16: 0 | L16: Projection Period
A17: Alhambra | B17: 2021 | C17: 0 | D17: 0 | E17: 0 | F17: 0 | G17: 1 | H17: 0 | I17: 0 | J17: 0 | K17: 27 | L17: 6th Cycle
A18: Alhambra | B18: 2022 | C18: 0 | D18: 0 | E18: 0 | F18: 0 | G18: 0 | H18: 0 | I18: 0 | J18: 0 | K18: 162 | L18: 6th Cycle
A19: Alhambra | B19: 2023 | C19: 10 | D19: 0 | E19: 11 | F19: 0 | G19: 22 | H19: 0 | I19: 0 | J19: 1 | K19: 173 | L19: 6th Cycle
A20: Alhambra | B20: 2024 | C20: 0 | D20: 0 | E20: 0 | F20: 0 | G20: 2 | H20: 0 | I20: 0 | J20: 0 | K20: 166 | L20: 6th Cycle
A21: Alhambra | C21: 0 | D21: 0 | E21: 1 | F21: 0 | G21: 0 | H21: 0 | I21: 0 | J21: 0 | K21: 57 | L21: Projection Period
A22: Aliso Viejo | B22: 2024 | C22: 0 | D22: 0 | E22: 0 | F22: 0 | G22: 0 | H22: 0 | I22: 0 | J22: 1 | K22: 0 | L22: 6th Cycle
A23: Alpine County - Unincorporated | B23: 2020 | E23: 0 | F23: 0 | G23: 0 | H23: 0 | I23: 0 | J23: 2 | K23: 5 | L23: 6th Cycle
A24: Alpine County - Unincorporated | B24: 2021 | E24: 0 | F24: 0 | G24: 0 | H24: 0 | I24: 0 | J24: 0 | K24: 14 | L24: 6th Cycle
A25: Alpine County - Unincorporated | B25: 2023 | E25: 0 | F25: 0 | G25: 0 | H25: 0 | I25: 0 | J25: 0 | K25: 10 | L25: 6th Cycle
A26: Alpine County - Unincorporated | B26: 2024 | E26: 0 | F26: 0 | G26: 0 | H26: 0 | I26: 0 | J26: 0 | K26: 4 | L26: 6th Cycle
A27: Alpine County - Unincorporated | E27: 0 | F27: 0 | G27: 0 | H27: 0 | I27: 0 | J27: 0 | K27: 0 | L27: Projection Period
A28: Alturas | B28: 2019 | C28: 0 | D28: 0 | E28: 0 | F28: 0 | G28: 0 | H28: 1 | I28: 0 | J28: 0 | K28: 0 | L28: 6th Cycle
A29: Alturas | B29: 2020 | C29: 0 | D29: 0 | E29: 0 | F29: 0 | G29: 0 | H29: 0 | I29: 0 | J29: 1 | K29: 1 | L29: 6th Cycle
A30: Alturas | B30: 2021 | C30: 0 | D30: 0 | E30: 0 | F30: 0 | G30: 0 | H30: 1 | I30: 0 | J30: 0 | K30: 0 | L30: 6th Cycle
A31: Amador | B31: 2023 | C31: 0 | D31: 0 | E31: 0 | F31: 0 | G31: 0 | H31: 0 | I31: 0 | J31: 0 | K31: 1 | L31: 6th Cycle
A32: Amador | B32: 2024 | C32: 0 | D32: 0 | E32: 0 | F32: 0 | G32: 0 | H32: 0 | I32: 0 | J32: 0 | K32: 1 | L32: 6th Cycle
A33: Amador County - Unincorporated | B33: 2021 | E33: 0 | F33: 1 | G33: 0 | H33: 1 | I33: 0 | J33: 2 | K33: 7 | L33: 6th Cycle
A34: Amador County - Unincorporated | B34: 2022 | E34: 0 | F34: 1 | G34: 0 | H34: 4 | I34: 0 | J34: 25 | K34: 35 | L34: 6th Cycle
A35: Amador County - Unincorporated | B35: 2023 | E35: 0 | F35: 3 | G35: 0 | H35: 7 | I35: 0 | J35: 17 | K35: 22 | L35: 6th Cycle
A36: Amador County - Unincorporated | B36: 2024 | E36: 0 | F36: 2 | G36: 0 | H36: 2 | I36: 0 | J36: 12 | K36: 21 | L36: 6th Cycle
A37: Amador County - Unincorporated | C37: 0 | D37: 0 | E37: 0 | F37: 9 | G37: 0 | H37: 9 | I37: 0 | J37: 35 | K37: 40 | L37: Projection Period
A38: American Canyon | B38: 2023 | C38: 0 | D38: 0 | E38: 0 | F38: 4 | G38: 0 | H38: 0 | I38: 0 | J38: 2 | K38: 78 | L38: 6th Cycle
A39: American Canyon | B39: 2024 | C39: 0 | D39: 0 | E39: 0 | F39: 2 | G39: 0 | H39: 4 | I39: 0 | J39: 0 | K39: 259 | L39: 6th Cycle
A40: American Canyon | E40: 0 | F40: 1 | G40: 0 | H40: 0 | I40: 0 | J40: 0 | K40: 88 | L40: Projection Period
A41: Anaheim | B41: 2021 | C41: 0 | D41: 0 | E41: 0 | F41: 0 | G41: 0 | H41: 0 | I41: 0 | J41: 0 | K41: 46 | L41: 6th Cycle
A42: Anaheim | B42: 2022 | C42: 98 | D42: 0 | E42: 39 | F42: 42 | G42: 18 | H42: 72 | I42: 1 | J42: 50 | K42: 160 | L42: 6th Cycle
A43: Anaheim | B43: 2023 | C43: 0 | D43: 0 | E43: 0 | F43: 62 | G43: 0 | H43: 43 | I43: 0 | J43: 73 | K43: 787 | L43: 6th Cycle
A44: Anaheim | B44: 2024 | C44: 87 | D44: 0 | E44: 2 | F44: 69 | G44: 0 | H44: 119 | I44: 0 | J44: 93 | K44: 545 | L44: 6th Cycle
A45: Anaheim | C45: 0 | D45: 0 | E45: 0 | F45: 0 | G45: 0 | H45: 0 | I45: 8 | J45: 0 | K45: 182 | L45: Projection Period
A46: Anderson | B46: 2020 | C46: 0 | D46: 0 | E46: 0 | F46: 0 | G46: 0 | H46: 0 | I46: 0 | J46: 0 | K46: 11 | L46: 6th Cycle
A47: Anderson | B47: 2021 | C47: 0 | D47: 0 | E47: 0 | F47: 0 | G47: 0 | H47: 0 | I47: 0 | J47: 0 | K47: 14 | L47: 6th Cycle
A48: Anderson | B48: 2022 | C48: 0 | D48: 0 | E48: 0 | F48: 0 | G48: 0 | H48: 0 | I48: 0 | J48: 0 | K48: 22 | L48: 6th Cycle
A49: Anderson | B49: 2023 | C49: 0 | D49: 0 | E49: 0 | F49: 0 | G49: 0 | H49: 0 | I49: 0 | J49: 0 | K49: 1 | L49: 6th Cycle
A50: Anderson | B50: 2024 | C50: 0 | D50: 0 | E50: 0 | F50: 0 | G50: 0 | H50: 0 | I50: 0 | J50: 0 | K50: 14 | L50: 6th Cycle
A51: Anderson | C51: 0 | D51: 0 | E51: 0 | F51: 0 | G51: 0 | H51: 0 | I51: 0 | J51: 0 | K51: 35 | L51: Projection Period
A52: Angels Camp | B52: 2022 | C52: 0 | D52: 0 | E52: 0 | F52: 0 | G52: 0 | H52: 0 | I52: 0 | J52: 0 | K52: 4 | L52: 6th Cycle
A53: Angels Camp | B53: 2023 | C53: 0 | D53: 0 | E53: 0 | F53: 0 | G53: 0 | H53: 0 | I53: 0 | J53: 0 | K53: 4 | L53: 6th Cycle
A54: Angels Camp | B54: 2024 | C54: 0 | D54: 0 | E54: 0 | F54: 0 | G54: 0 | H54: 0 | I54: 0 | J54: 0 | K54: 1 | L54: 6th Cycle
A55: Angels Camp | E55: 0 | F55: 0 | G55: 0 | H55: 0 | I55: 0 | J55: 4 | K55: 1 | L55: Projection Period
A56: Antioch | B56: 2023 | C56: 0 | D56: 0 | E56: 0 | F56: 11 | G56: 0 | H56: 8 | I56: 0 | J56: 10 | K56: 334 | L56: 6th Cycle
A57: Antioch | B57: 2024 | C57: 0 | D57: 0 | E57: 0 | F57: 14 | G57: 0 | H57: 14 | I57: 0 | J57: 13 | K57: 315 | L57: 6th Cycle
A58: Antioch | C58: 0 | D58: 0 | E58: 0 | F58: 0 | G58: 0 | H58: 3 | I58: 0 | J58: 1 | K58: 117 | L58: Projection Period
A59: Apple Valley | B59: 2021 | C59: 0 | D59: 0 | E59: 0 | F59: 0 | G59: 0 | H59: 0 | I59: 0 | J59: 55 | K59: 0 | L59: 6th Cycle
A60: Apple Valley | B60: 2022 | C60: 0 | D60: 0 | E60: 0 | F60: 0 | G60: 0 | H60: 0 | I60: 0 | J60: 110 | K60: 0 | L60: 6th Cycle
A61: Apple Valley | B61: 2023 | C61: 0 | D61: 0 | E61: 0 | F61: 0 | G61: 0 | H61: 0 | I61: 0 | J61: 37 | K61: 48 | L61: 6th Cycle
A62: Apple Valley | B62: 2024 | C62: 0 | D62: 3 | E62: 0 | F62: 0 | G62: 0 | H62: 6 | I62: 0 | J62: 6 | K62: 78 | L62: 6th Cycle
A63: Apple Valley | C63: 0 | D63: 0 | E63: 0 | F63: 0 | G63: 0 | H63: 0 | I63: 0 | J63: 104 | K63: 0 | L63: Projection Period
A64: Arcadia | B64: 2021 | C64: 0 | D64: 0 | E64: 0 | F64: 0 | G64: 0 | H64: 0 | I64: 0 | J64: 0 | K64: 10 | L64: 6th Cycle
A65: Arcadia | B65: 2022 | C65: 0 | D65: 0 | E65: 0 | F65: 0 | G65: 0 | H65: 0 | I65: 0 | J65: 0 | K65: 131 | L65: 6th Cycle
A66: Arcadia | B66: 2023 | C66: 0 | D66: 0 | E66: 0 | F66: 0 | G66: 0 | H66: 0 | I66: 0 | J66: 0 | K66: 123 | L66: 6th Cycle
A67: Arcadia | B67: 2024 | C67: 0 | D67: 0 | E67: 26 | F67: 0 | G67: 0 | H67: 0 | I67: 0 | J67: 0 | K67: 411 | L67: 6th Cycle
A68: Arcadia | C68: 0 | D68: 0 | E68: 0 | F68: 0 | G68: 0 | H68: 0 | I68: 0 | J68: 0 | K68: 41 | L68: Projection Period
A69: Arcata | B69: 2019 | C69: 0 | D69: 0 | E69: 0 | F69: 0 | G69: 0 | H69: 7 | I69: 0 | J69: 3 | K69: 4 | L69: 6th Cycle
A70: Arcata | B70: 2020 | C70: 0 | D70: 0 | E70: 43 | F70: 5 | G70: 0 | H70: 2 | I70: 0 | J70: 10 | K70: 10 | L70: 6th Cycle
A71: Arcata | B71: 2021 | C71: 10 | D71: 0 | E71: 26 | F71: 0 | G71: 1 | H71: 0 | I71: 0 | J71: 3 | K71: 14 | L71: 6th Cycle
A72: Arcata | B72: 2022 | C72: 78 | D72: 0 | E72: 0 | F72: 5 | G72: 60 | H72: 2 | I72: 0 | J72: 10 | K72: 20 | L72: 6th Cycle
A73: Arcata | B73: 2023 | C73: 0 | D73: 0 | E73: 0 | F73: 0 | G73: 0 | H73: 8 | I73: 0 | J73: 110 | K73: 41 | L73: 6th Cycle
A74: Arcata | B74: 2024 | C74: 0 | D74: 0 | E74: 0 | F74: 0 | G74: 0 | H74: 7 | I74: 0 | J74: 5 | K74: 10 | L74: 6th Cycle
A75: Arcata | C75: 0 | D75: 0 | E75: 0 | F75: 0 | G75: 0 | H75: 3 | I75: 0 | J75: 3 | K75: 5 | L75: Projection Period
A76: Arroyo Grande | B76: 2021 | C76: 0 | D76: 0 | E76: 0 | F76: 0 | G76: 0 | H76: 0 | I76: 0 | J76: 0 | K76: 14 | L76: 6th Cycle
A77: Arroyo Grande | B77: 2022 | C77: 0 | D77: 0 | E77: 0 | F77: 0 | G77: 0 | H77: 6 | I77: 0 | J77: 7 | K77: 4 | L77: 6th Cycle
A78: Arroyo Grande | B78: 2023 | C78: 0 | D78: 0 | E78: 0 | F78: 0 | G78: 0 | H78: 9 | I78: 0 | J78: 8 | K78: 15 | L78: 6th Cycle
A79: Arroyo Grande | B79: 2024 | C79: 0 | D79: 0 | E79: 0 | F79: 0 | G79: 62 | H79: 13 | I79: 0 | J79: 13 | K79: 7 | L79: 6th Cycle
A80: Arroyo Grande | C80: 0 | D80: 0 | E80: 0 | F80: 0 | G80: 20 | H80: 0 | I80: 0 | J80: 0 | K80: 103 | L80: Projection Period
A81: Artesia | B81: 2021 | C81: 0 | D81: 0 | E81: 0 | F81: 0 | G81: 0 | H81: 0 | I81: 0 | J81: 0 | K81: 3 | L81: 6th Cycle
A82: Artesia | B82: 2022 | C82: 0 | D82: 0 | E82: 0 | F82: 0 | G82: 0 | H82: 0 | I82: 0 | J82: 0 | K82: 6 | L82: 6th Cycle
A83: Artesia | B83: 2024 | C83: 0 | D83: 0 | E83: 0 | F83: 0 | G83: 0 | H83: 0 | I83: 0 | J83: 21 | K83: 64 | L83: 6th Cycle
A84: Artesia | C84: 0 | D84: 0 | E84: 0 | F84: 0 | G84: 0 | H84: 0 | I84: 0 | J84: 0 | K84: 8 | L84: Projection Period
A85: Arvin | B85: 2024 | C85: 0 | D85: 0 | E85: 0 | F85: 0 | G85: 0 | H85: 0 | I85: 0 | J85: 0 | K85: 33 | L85: 6th Cycle
A86: Arvin | C86: 0 | D86: 0 | E86: 0 | F86: 0 | G86: 0 | H86: 8 | I86: 0 | J86: 12 | K86: 1 | L86: Projection Period
A87: Atascadero | B87: 2021 | C87: 0 | D87: 0 | E87: 3 | F87: 0 | G87: 1 | H87: 12 | I87: 1 | J87: 53 | K87: 66 | L87: 6th Cycle
A88: Atascadero | B88: 2022 | C88: 0 | D88: 0 | E88: 0 | F88: 0 | G88: 0 | H88: 11 | I88: 0 | J88: 29 | K88: 13 | L88: 6th Cycle
A89: Atascadero | B89: 2023 | C89: 0 | D89: 0 | E89: 0 | F89: 0 | G89: 67 | H89: 12 | I89: 8 | J89: 20 | K89: 8 | L89: 6th Cycle
A90: Atascadero | B90: 2024 | C90: 0 | D90: 0 | E90: 0 | F90: 1 | G90: 0 | H90: 13 | I90: 0 | J90: 26 | K90: 78 | L90: 6th Cycle
A91: Atascadero | C91: 0 | D91: 0 | E91: 0 | F91: 0 | G91: 0 | H91: 7 | I91: 1 | J91: 6 | K91: 100 | L91: Projection Period
A92: Atherton | B92: 2023 | C92: 0 | D92: 6 | E92: 0 | F92: 0 | G92: 0 | H92: 7 | I92: 0 | J92: 0 | K92: 25 | L92: 6th Cycle
A93: Atherton | B93: 2024 | C93: 0 | D93: 13 | E93: 0 | F93: 0 | G93: 0 | H93: 5 | I93: 0 | J93: 2 | K93: 26 | L93: 6th Cycle
A94: Atherton | E94: 0 | F94: 9 | G94: 0 | H94: 0 | I94: 0 | J94: 0 | K94: 18 | L94: Projection Period
A95: Atwater | B95: 2024 | C95: 0 | D95: 0 | E95: 0 | F95: 0 | G95: 0 | H95: 0 | I95: 0 | J95: 0 | K95: 5 | L95: 6th Cycle
A96: Auburn | B96: 2021 | C96: 0 | D96: 0 | E96: 0 | F96: 0 | G96: 0 | H96: 0 | I96: 0 | J96: 0 | K96: 9 | L96: 6th Cycle
A97: Auburn | B97: 2022 | C97: 0 | D97: 0 | E97: 0 | F97: 0 | G97: 0 | H97: 0 | I97: 0 | J97: 0 | K97: 4 | L97: 6th Cycle
A98: Auburn | B98: 2023 | C98: 0 | D98: 0 | E98: 0 | F98: 0 | G98: 0 | H98: 0 | I98: 0 | J98: 10 | K98: 24 | L98: 6th Cycle
A99: Auburn | B99: 2024 | C99: 0 | D99: 0 | E99: 0 | F99: 0 | G99: 0 | H99: 0 | I99: 0 | J99: 0 | K99: 13 | L99: 6th Cycle
A100: Avalon | B100: 2022 | C100: 0 | D100: 0 | E100: 0 | F100: 0 | G100: 0 | H100: 0 | I100: 0 | J100: 0 | K100: 5 | L100: 6th Cycle
A101: Avalon | B101: 2023 | C101: 0 | D101: 0 | E101: 0 | F101: 0 | G101: 0 | H101: 0 | I101: 0 | J101: 0 | K101: 4 | L101: 6th Cycle
A102: Avenal | B102: 2024 | C102: 0 | D102: 0 | E102: 0 | F102: 0 | G102: 0 | H102: 0 | I102: 0 | J102: 0 | K102: 1 | L102: 6th Cycle
A103: Azusa | B103: 2021 | C103: 0 | D103: 0 | E103: 0 | F103: 0 | G103: 0 | H103: 1 | I103: 0 | J103: 1 | K103: 1 | L103: 6th Cycle
A104: Azusa | B104: 2023 | C104: 0 | D104: 0 | E104: 0 | F104: 0 | G104: 0 | H104: 0 | I104: 0 | J104: 0 | K104: 62 | L104: 6th Cycle
A105: Azusa | B105: 2024 | C105: 0 | D105: 0 | E105: 0 | F105: 0 | G105: 0 | H105: 0 | I105: 0 | J105: 0 | K105: 89 | L105: 6th Cycle
A106: Azusa | C106: 0 | D106: 0 | E106: 0 | F106: 0 | G106: 0 | H106: 8 | I106: 0 | J106: 0 | K106: 2 | L106: Projection Period
A107: Bakersfield | B107: 2024 | C107: 0 | D107: 0 | E107: 0 | F107: 0 | G107: 0 | H107: 88 | I107: 0 | J107: 0 | K107: 1688 | L107: 6th Cycle
A108: Bakersfield | C108: 127 | D108: 0 | E108: 0 | F108: 0 | G108: 0 | H108: 60 | I108: 0 | J108: 0 | K108: 680 | L108: Projection Period
A109: Baldwin Park | B109: 2021 | C109: 0 | D109: 0 | E109: 0 | F109: 0 | G109: 0 | H109: 0 | I109: 0 | J109: 0 | K109: 14 | L109: 6th Cycle
A110: Baldwin Park | B110: 2022 | C110: 0 | D110: 0 | E110: 0 | F110: 0 | G110: 0 | H110: 0 | I110: 0 | J110: 0 | K110: 11 | L110: 6th Cycle
A111: Baldwin Park | B111: 2023 | C111: 0 | D111: 0 | E111: 0 | F111: 0 | G111: 0 | H111: 0 | I111: 0 | J111: 0 | K111: 102 | L111: 6th Cycle
A112: Baldwin Park | B112: 2024 | C112: 0 | D112: 0 | E112: 0 | F112: 0 | G112: 51 | H112: 0 | I112: 0 | J112: 0 | K112: 109 | L112: 6th Cycle
A113: Baldwin Park | C113: 0 | D113: 0 | E113: 0 | F113: 0 | G113: 0 | H113: 0 | I113: 0 | J113: 0 | K113: 24 | L113: Projection Period
A114: Banning | B114: 2023 | C114: 0 | D114: 0 | E114: 0 | F114: 0 | G114: 0 | H114: 0 | I114: 0 | J114: 0 | K114: 279 | L114: 6th Cycle
A115: Barstow | B115: 2023 | C115: 0 | D115: 0 | E115: 0 | F115: 0 | G115: 0 | H115: 0 | I115: 0 | J115: 0 | K115: 6 | L115: 6th Cycle
A116: Barstow | B116: 2024 | C116: 0 | D116: 0 | E116: 0 | F116: 0 | G116: 0 | H116: 0 | I116: 0 | J116: 0 | K116: 1 | L116: 6th Cycle
A117: Beaumont | B117: 2022 | C117: 0 | D117: 0 | E117: 0 | F117: 0 | G117: 0 | H117: 0 | I117: 0 | J117: 0 | K117: 416 | L117: 6th Cycle
A118: Beaumont | B118: 2023 | C118: 0 | D118: 0 | E118: 0 | F118: 0 | G118: 0 | H118: 0 | I118: 0 | J118: 0 | K118: 588 | L118: 6th Cycle
A119: Beaumont | B119: 2024 | C119: 0 | D119: 0 | E119: 0 | F119: 0 | G119: 0 | H119: 0 | I119: 0 | J119: 0 | K119: 156 | L119: 6th Cycle
A120: Beaumont | C120: 0 | D120: 0 | E120: 0 | F120: 0 | G120: 0 | H120: 0 | I120: 0 | J120: 0 | K120: 93 | L120: Projection Period
A121: Bell | B121: 2021 | C121: 0 | D121: 0 | E121: 0 | F121: 0 | G121: 0 | H121: 0 | I121: 0 | J121: 2 | K121: 0 | L121: 6th Cycle
A122: Bell | B122: 2023 | C122: 0 | D122: 0 | E122: 0 | F122: 0 | G122: 0 | H122: 0 | I122: 0 | J122: 0 | K122: 19 | L122: 6th Cycle
A123: Bell Gardens | B123: 2021 | C123: 0 | D123: 0 | E123: 0 | F123: 0 | G123: 0 | H123: 0 | I123: 0 | J123: 0 | K123: 8 | L123: 6th Cycle
A124: Bell Gardens | B124: 2022 | C124: 0 | D124: 0 | E124: 0 | F124: 0 | G124: 0 | H124: 0 | I124: 0 | J124: 0 | K124: 40 | L124: 6th Cycle
A125: Bell Gardens | B125: 2023 | C125: 0 | D125: 0 | E125: 0 | F125: 0 | G125: 0 | H125: 0 | I125: 0 | J125: 0 | K125: 59 | L125: 6th Cycle
A126: Bell Gardens | B126: 2024 | C126: 0 | D126: 0 | E126: 0 | F126: 0 | G126: 0 | H126: 0 | I126: 0 | J126: 0 | K126: 41 | L126: 6th Cycle
A127: Bell Gardens | C127: 0 | D127: 0 | E127: 0 | F127: 0 | G127: 0 | H127: 0 | I127: 0 | J127: 0 | K127: 20 | L127: Projection Period
A128: Bellflower | B128: 2021 | C128: 0 | D128: 0 | E128: 0 | F128: 0 | G128: 0 | H128: 0 | I128: 0 | J128: 0 | K128: 104 | L128: 6th Cycle
A129: Bellflower | B129: 2022 | C129: 0 | D129: 0 | E129: 0 | F129: 0 | G129: 0 | H129: 0 | I129: 0 | J129: 0 | K129: 53 | L129: 6th Cycle
A130: Bellflower | B130: 2023 | C130: 0 | D130: 0 | E130: 0 | F130: 0 | G130: 0 | H130: 0 | I130: 0 | J130: 0 | K130: 17 | L130: 6th Cycle
A131: Bellflower | B131: 2024 | C131: 0 | D131: 0 | E131: 0 | F131: 0 | G131: 0 | H131: 0 | I131: 0 | J131: 0 | K131: 34 | L131: 6th Cycle
A132: Bellflower | C132: 0 | D132: 0 | E132: 0 | F132: 0 | G132: 0 | H132: 0 | I132: 0 | J132: 0 | K132: 14 | L132: Projection Period
A133: Belmont | B133: 2023 | C133: 0 | D133: 0 | E133: 0 | F133: 6 | G133: 0 | H133: 6 | I133: 0 | J133: 6 | K133: 6 | L133: 6th Cycle
A134: Belmont | B134: 2024 | C134: 47 | D134: 0 | E134: 15 | F134: 6 | G134: 62 | H134: 5 | I134: 0 | J134: 12 | K134: 3 | L134: 6th Cycle
A135: Belmont | C135: 0 | D135: 0 | E135: 0 | F135: 0 | G135: 0 | H135: 0 | I135: 0 | J135: 12 | K135: 16 | L135: Projection Period
A136: Belvedere | B136: 2023 | C136: 0 | D136: 0 | E136: 0 | F136: 0 | G136: 0 | H136: 0 | I136: 0 | J136: 7 | K136: 1 | L136: 6th Cycle
A137: Belvedere | B137: 2024 | C137: 0 | D137: 0 | E137: 0 | F137: 1 | G137: 0 | H137: 0 | I137: 0 | J137: 1 | K137: 2 | L137: 6th Cycle
A138: Benicia | B138: 2023 | C138: 0 | D138: 0 | E138: 0 | F138: 0 | G138: 0 | H138: 0 | I138: 0 | J138: 0 | K138: 8 | L138: 6th Cycle
A139: Benicia | B139: 2024 | C139: 0 | D139: 0 | E139: 0 | F139: 0 | G139: 0 | H139: 0 | I139: 0 | J139: 0 | K139: 17 | L139: 6th Cycle
A140: Benicia | C140: 0 | D140: 0 | E140: 0 | F140: 0 | G140: 0 | H140: 0 | I140: 0 | J140: 4 | K140: 2 | L140: Projection Period
A141: Berkeley | B141: 2023 | C141: 0 | D141: 0 | E141: 36 | F141: 25 | G141: 25 | H141: 24 | I141: 0 | J141: 25 | K141: 285 | L141: 6th Cycle
A142: Berkeley | B142: 2024 | C142: 3 | D142: 0 | E142: 44 | F142: 31 | G142: 4 | H142: 31 | I142: 0 | J142: 30 | K142: 588 | L142: 6th Cycle
A143: Berkeley | C143: 0 | D143: 0 | E143: 25 | F143: 3 | G143: 25 | H143: 3 | I143: 0 | J143: 4 | K143: 443 | L143: Projection Period
A144: Beverly Hills | B144: 2021 | C144: 0 | D144: 0 | E144: 0 | F144: 1 | G144: 0 | H144: 0 | I144: 0 | J144: 0 | K144: 7 | L144: 6th Cycle
A145: Beverly Hills | B145: 2022 | C145: 0 | D145: 0 | E145: 0 | F145: 0 | G145: 0 | H145: 0 | I145: 0 | J145: 0 | K145: 77 | L145: 6th Cycle
A146: Beverly Hills | B146: 2023 | C146: 0 | D146: 0 | E146: 0 | F146: 5 | G146: 1 | H146: 12 | I146: 0 | J146: 2 | K146: 44 | L146: 6th Cycle
A147: Beverly Hills | B147: 2024 | C147: 0 | D147: 0 | E147: 1 | F147: 4 | G147: 0 | H147: 10 | I147: 0 | J147: 2 | K147: 85 | L147: 6th Cycle
A148: Beverly Hills | C148: 0 | D148: 0 | E148: 0 | F148: 4 | G148: 0 | H148: 0 | I148: 0 | J148: 0 | K148: 13 | L148: Projection Period
A149: Big Bear Lake | B149: 2021 | C149: 0 | D149: 0 | E149: 0 | F149: 0 | G149: 0 | H149: 0 | I149: 0 | J149: 0 | K149: 12 | L149: 6th Cycle
A150: Big Bear Lake | B150: 2022 | C150: 0 | D150: 0 | E150: 0 | F150: 0 | G150: 0 | H150: 0 | I150: 0 | J150: 0 | K150: 33 | L150: 6th Cycle
A151: Big Bear Lake | B151: 2024 | C151: 0 | D151: 0 | E151: 0 | F151: 0 | G151: 0 | H151: 0 | I151: 0 | J151: 0 | K151: 26 | L151: 6th Cycle
A152: Big Bear Lake | C152: 0 | D152: 0 | E152: 0 | F152: 0 | G152: 0 | H152: 0 | I152: 0 | J152: 1 | K152: 12 | L152: Projection Period
A153: Bishop | B153: 2021 | C153: 0 | D153: 0 | E153: 0 | F153: 0 | G153: 0 | H153: 2 | I153: 0 | J153: 0 | K153: 1 | L153: 6th Cycle
A154: Bishop | B154: 2022 | C154: 0 | D154: 0 | E154: 0 | F154: 0 | G154: 0 | H154: 4 | I154: 0 | J154: 1 | K154: 6 | L154: 6th Cycle
A155: Bishop | B155: 2023 | C155: 0 | D155: 0 | E155: 0 | F155: 0 | G155: 0 | H155: 0 | I155: 0 | J155: 2 | K155: 0 | L155: 6th Cycle
A156: Bishop | B156: 2024 | C156: 0 | D156: 0 | E156: 0 | F156: 0 | G156: 0 | H156: 3 | I156: 0 | J156: 6 | K156: 8 | L156: 6th Cycle
A157: Bishop | C157: 0 | D157: 0 | E157: 0 | F157: 0 | G157: 0 | H157: 11 | I157: 0 | J157: 7 | K157: 3 | L157: Projection Period
A158: Blue Lake | B158: 2019 | C158: 0 | D158: 0 | E158: 0 | F158: 0 | G158: 0 | H158: 0 | I158: 0 | J158: 1 | K158: 0 | L158: 6th Cycle
A159: Blue Lake | B159: 2022 | C159: 0 | D159: 0 | E159: 0 | F159: 0 | G159: 0 | H159: 0 | I159: 0 | J159: 0 | K159: 2 | L159: 6th Cycle
A160: Blue Lake | B160: 2023 | C160: 0 | D160: 0 | E160: 0 | F160: 0 | G160: 0 | H160: 0 | I160: 0 | J160: 0 | K160: 4 | L160: 6th Cycle
A161: Blue Lake | B161: 2024 | C161: 0 | D161: 0 | E161: 0 | F161: 0 | G161: 0 | H161: 0 | I161: 0 | J161: 0 | K161: 3 | L161: 6th Cycle
A162: Blue Lake | C162: 0 | D162: 0 | E162: 0 | F162: 0 | G162: 0 | H162: 0 | I162: 0 | J162: 0 | K162: 1 | L162: Projection Period
A163: Blythe | B163: 2021 | C163: 0 | D163: 0 | E163: 0 | F163: 0 | G163: 0 | H163: 0 | I163: 0 | J163: 2 | K163: 0 | L163: 6th Cycle
A164: Blythe | B164: 2022 | C164: 0 | D164: 0 | E164: 0 | F164: 0 | G164: 0 | H164: 0 | I164: 0 | J164: 0 | K164: 2 | L164: 6th Cycle
A165: Blythe | B165: 2023 | C165: 0 | D165: 0 | E165: 0 | F165: 0 | G165: 0 | H165: 0 | I165: 0 | J165: 1 | K165: 0 | L165: 6th Cycle
A166: Blythe | B166: 2024 | C166: 0 | D166: 0 | E166: 0 | F166: 0 | G166: 0 | H166: 0 | I166: 0 | J166: 0 | K166: 4 | L166: 6th Cycle
A167: Blythe | C167: 0 | D167: 0 | E167: 0 | F167: 0 | G167: 0 | H167: 0 | I167: 0 | J167: 2 | K167: 0 | L167: Projection Period
A168: Bradbury | B168: 2022 | C168: 0 | D168: 0 | E168: 0 | F168: 0 | G168: 0 | H168: 0 | I168: 0 | J168: 0 | K168: 2 | L168: 6th Cycle
A169: Bradbury | B169: 2023 | C169: 0 | D169: 0 | E169: 0 | F169: 0 | G169: 0 | H169: 0 | I169: 0 | J169: 0 | K169: 1 | L169: 6th Cycle
A170: Bradbury | B170: 2024 | C170: 0 | D170: 0 | E170: 0 | F170: 0 | G170: 0 | H170: 0 | I170: 0 | J170: 0 | K170: 5 | L170: 6th Cycle
A171: Brawley | B171: 2021 | C171: 0 | D171: 0 | E171: 0 | F171: 0 | G171: 0 | H171: 0 | I171: 0 | J171: 0 | K171: 62 | L171: 6th Cycle
A172: Brawley | B172: 2022 | C172: 0 | D172: 0 | E172: 0 | F172: 0 | G172: 0 | H172: 2 | I172: 0 | J172: 0 | K172: 11 | L172: 6th Cycle
A173: Brawley | B173: 2023 | C173: 0 | D173: 0 | E173: 0 | F173: 0 | G173: 0 | H173: 42 | I173: 0 | J173: 0 | K173: 11 | L173: 6th Cycle
A174: Brawley | B174: 2024 | C174: 0 | D174: 0 | E174: 0 | F174: 0 | G174: 0 | H174: 4 | I174: 0 | J174: 0 | K174: 22 | L174: 6th Cycle
A175: Brawley | C175: 0 | D175: 0 | E175: 30 | F175: 0 | G175: 30 | H175: 0 | I175: 0 | J175: 10 | K175: 54 | L175: Projection Period
A176: Brea | B176: 2021 | C176: 0 | D176: 0 | E176: 0 | F176: 0 | G176: 0 | H176: 0 | I176: 0 | J176: 0 | K176: 1 | L176: 6th Cycle
A177: Brea | B177: 2022 | C177: 0 | D177: 0 | E177: 0 | F177: 0 | G177: 0 | H177: 0 | I177: 0 | J177: 0 | K177: 7 | L177: 6th Cycle
A178: Brea | B178: 2023 | C178: 0 | D178: 0 | E178: 0 | F178: 0 | G178: 0 | H178: 0 | I178: 0 | J178: 0 | K178: 15 | L178: 6th Cycle
A179: Brea | B179: 2024 | C179: 0 | D179: 0 | E179: 0 | F179: 0 | G179: 0 | H179: 0 | I179: 0 | J179: 3 | K179: 9 | L179: 6th Cycle
A180: Brea | C180: 0 | D180: 0 | E180: 0 | F180: 0 | G180: 0 | H180: 0 | I180: 0 | J180: 0 | K180: 2 | L180: Projection Period
A181: Brentwood | B181: 2023 | C181: 0 | D181: 0 | E181: 0 | F181: 6 | G181: 1 | H181: 6 | I181: 0 | J181: 6 | K181: 113 | L181: 6th Cycle
A182: Brentwood | B182: 2024 | C182: 0 | D182: 0 | E182: 0 | F182: 7 | G182: 0 | H182: 6 | I182: 0 | J182: 7 | K182: 35 | L182: 6th Cycle
A183: Brisbane | B183: 2023 | C183: 0 | D183: 0 | E183: 0 | F183: 2 | G183: 0 | H183: 1 | I183: 0 | J183: 2 | K183: 0 | L183: 6th Cycle
A184: Brisbane | B184: 2024 | C184: 0 | D184: 1 | E184: 0 | F184: 1 | G184: 0 | H184: 1 | I184: 0 | J184: 1 | K184: 1 | L184: 6th Cycle
A185: Brisbane | E185: 0 | F185: 0 | G185: 0 | H185: 0 | I185: 0 | J185: 1 | K185: 1 | L185: Projection Period
A186: Buellton | B186: 2023 | C186: 15 | D186: 0 | E186: 18 | F186: 0 | G186: 15 | H186: 0 | I186: 0 | J186: 3 | K186: 1 | L186: 6th Cycle
A187: Buellton | B187: 2024 | C187: 41 | D187: 0 | E187: 66 | F187: 0 | G187: 30 | H187: 0 | I187: 0 | J187: 1 | K187: 2 | L187: 6th Cycle
A188: Buellton | C188: 0 | D188: 0 | E188: 0 | F188: 0 | G188: 0 | H188: 0 | I188: 0 | J188: 1 | K188: 0 | L188: Projection Period
A189: Buena Park | B189: 2021 | C189: 0 | D189: 0 | E189: 0 | F189: 0 | G189: 0 | H189: 2 | I189: 0 | J189: 0 | K189: 17 | L189: 6th Cycle
A190: Buena Park | B190: 2022 | C190: 0 | D190: 1 | E190: 58 | F190: 4 | G190: 0 | H190: 8 | I190: 0 | J190: 5 | K190: 120 | L190: 6th Cycle
A191: Buena Park | B191: 2023 | C191: 0 | D191: 7 | E191: 0 | F191: 4 | G191: 0 | H191: 24 | I191: 0 | J191: 13 | K191: 4 | L191: 6th Cycle
A192: Buena Park | B192: 2024 | C192: 0 | D192: 0 | E192: 0 | F192: 0 | G192: 1 | H192: 12 | I192: 0 | J192: 15 | K192: 16 | L192: 6th Cycle
A193: Buena Park | C193: 0 | D193: 0 | E193: 0 | F193: 0 | G193: 0 | H193: 7 | I193: 0 | J193: 0 | K193: 25 | L193: Projection Period
A194: Burbank | B194: 2021 | C194: 0 | D194: 0 | E194: 3 | F194: 0 | G194: 5 | H194: 56 | I194: 0 | J194: 1 | K194: 52 | L194: 6th Cycle
A195: Burbank | B195: 2022 | C195: 0 | D195: 0 | E195: 0 | F195: 0 | G195: 0 | H195: 116 | I195: 69 | J195: 25 | K195: 630 | L195: 6th Cycle
A196: Burbank | B196: 2023 | C196: 0 | D196: 0 | E196: 0 | F196: 0 | G196: 0 | H196: 136 | I196: 0 | J196: 30 | K196: 153 | L196: 6th Cycle
A197: Burbank | B197: 2024 | C197: 10 | D197: 141 | E197: 0 | F197: 0 | G197: 0 | H197: 66 | I197: 0 | J197: 16 | K197: 130 | L197: 6th Cycle
A198: Burbank | C198: 0 | D198: 0 | E198: 0 | F198: 0 | G198: 0 | H198: 64 | I198: 0 | J198: 7 | K198: 31 | L198: Projection Period
A199: Burlingame | B199: 2023 | C199: 0 | D199: 0 | E199: 90 | F199: 16 | G199: 35 | H199: 14 | I199: 0 | J199: 6 | K199: 678 | L199: 6th Cycle
A200: Burlingame | B200: 2024 | C200: 0 | D200: 0 | E200: 0 | F200: 3 | G200: 0 | H200: 13 | I200: 0 | J200: 21 | K200: 15 | L200: 6th Cycle
... 3403 more rows

Sheet Planning Periods (hidden)
E1: Jurisdiction | F1: Beginning of Projection Period | G1: End of Projection Period | H1: Beginning of Projection Period (Year Only) | I1: End of Projection Period (Year Only) | J1: Beginning of Planning Period | K1: End of planning Period | L1: Beginning of Planning Period (Year Only) | M1: End of planning Period (Year Only) | N1: Housing Element Planning Period | O1: County | P1: Cycle | Q1: Projection Period Colum
E2: Adelanto | F2: 2021-06-30 | G2: 2029-10-15 | H2: =YEAR(F2) -> 2021 | I2: =YEAR(G2) -> 2029 | J2: 2021-10-15 | K2: 2029-10-15 | L2: =YEAR(J2) -> 2021 | M2: =YEAR(K2) -> 2029 | N2: =TEXT(J2,"mm/dd/yyyy")&" - "&TEXT(K2,"mm/dd/yyyy") -> 10/15/2021 - 10/15/2029 | O2: San Bernardino County | P2: 6th Cycle | Q2: =TEXT(F2,"mm/dd/yyyy")&"-"&TEXT(J2-1,"mm/dd/yyyy") -> 06/30/2021-10/14/2021
E3: Agoura Hills | F3: 2021-06-30 | G3: 2029-10-15 | H3: 2021 | I3: 2029 | J3: 2021-10-15 | K3: 2029-10-15 | L3: 2021 | M3: 2029 | N3: 10/15/2021 - 10/15/2029 | O3: Los Angeles County | P3: 6th Cycle | Q3: 06/30/2021-10/14/2021
E4: Alameda | F4: 2022-06-30 | G4: 2030-12-31 | H4: 2022 | I4: 2030 | J4: 2023-01-31 | K4: 2031-01-31 | L4: 2023 | M4: 2031 | N4: 01/31/2023 - 01/31/2031 | O4: Alameda County | P4: 6th Cycle | Q4: 06/30/2022-01/30/2023
E5: Alameda County - Unincorporated | F5: 2022-06-30 | G5: 2030-12-31 | H5: 2022 | I5: 2030 | J5: 2023-01-31 | K5: 2031-01-31 | L5: 2023 | M5: 2031 | N5: 01/31/2023 - 01/31/2031 | O5: Alameda County | P5: 6th Cycle | Q5: 06/30/2022-01/30/2023
E6: Albany | F6: 2022-06-30 | G6: 2030-12-31 | H6: 2022 | I6: 2030 | J6: 2023-01-31 | K6: 2031-01-31 | L6: 2023 | M6: 2031 | N6: 01/31/2023 - 01/31/2031 | O6: Alameda County | P6: 6th Cycle | Q6: 06/30/2022-01/30/2023
E7: Alhambra | F7: 2021-06-30 | G7: 2029-10-15 | H7: 2021 | I7: 2029 | J7: 2021-10-15 | K7: 2029-10-15 | L7: 2021 | M7: 2029 | N7: 10/15/2021 - 10/15/2029 | O7: Los Angeles County | P7: 6th Cycle | Q7: 06/30/2021-10/14/2021
E8: Aliso Viejo | F8: 2021-06-30 | G8: 2029-10-15 | H8: 2021 | I8: 2029 | J8: 2021-10-15 | K8: 2029-10-15 | L8: 2021 | M8: 2029 | N8: 10/15/2021 - 10/15/2029 | O8: Orange County | P8: 6th Cycle | Q8: 06/30/2021-10/14/2021
E9: Alpine County - Unincorporated | F9: 2024-06-30 | G9: 2029-06-30 | H9: 2024 | I9: 2029 | J9: 2024-06-30 | K9: 2029-06-30 | L9: 2024 | M9: 2029 | N9: 06/30/2024 - 06/30/2029 | O9: Alpine County | P9: 7th Cycle | Q9: None
E10: Alturas | F10: 2024-06-30 | G10: 2029-06-30 | H10: 2024 | I10: 2029 | J10: 2024-06-30 | K10: 2029-06-30 | L10: 2024 | M10: 2029 | N10: 06/30/2024 - 06/30/2029 | O10: Modoc County | P10: 7th Cycle | Q10: None
E11: Amador City | F11: 2018-12-31 | G11: 2029-09-15 | H11: 2018 | I11: 2029 | J11: 2021-09-15 | K11: 2029-09-15 | L11: 2021 | M11: 2029 | N11: 09/15/2021 - 09/15/2029 | O11: Amador County | P11: 6th Cycle | Q11: 12/31/2018-09/14/2021
E12: Amador County - Unincorporated | F12: 2018-12-31 | G12: 2029-09-15 | H12: 2018 | I12: 2029 | J12: 2021-09-15 | K12: 2029-09-15 | L12: 2021 | M12: 2029 | N12: 09/15/2021 - 09/15/2029 | O12: Amador County | P12: 6th Cycle | Q12: 12/31/2018-09/14/2021
E13: American Canyon | F13: 2022-06-30 | G13: 2030-12-31 | H13: 2022 | I13: 2030 | J13: 2023-01-31 | K13: 2031-01-31 | L13: 2023 | M13: 2031 | N13: 01/31/2023 - 01/31/2031 | O13: Napa County | P13: 6th Cycle | Q13: 06/30/2022-01/30/2023
E14: Anaheim | F14: 2021-06-30 | G14: 2029-10-15 | H14: 2021 | I14: 2029 | J14: 2021-10-15 | K14: 2029-10-15 | L14: 2021 | M14: 2029 | N14: 10/15/2021 - 10/15/2029 | O14: Orange County | P14: 6th Cycle | Q14: 06/30/2021-10/14/2021
E15: Anderson | F15: 2019-01-01 | G15: 2028-04-15 | H15: 2019 | I15: 2028 | J15: 2020-04-15 | K15: 2028-04-15 | L15: 2020 | M15: 2028 | N15: 04/15/2020 - 04/15/2028 | O15: Shasta County | P15: 6th Cycle | Q15: 01/01/2019-04/14/2020
E16: Angels Camp | F16: 2019-01-01 | G16: 2027-06-15 | H16: 2019 | I16: 2027 | J16: 2019-06-15 | K16: 2027-06-15 | L16: 2019 | M16: 2027 | N16: 06/15/2019 - 06/15/2027 | O16: Calaveras County | P16: 6th Cycle | Q16: 01/01/2019-06/14/2019
E17: Antioch | F17: 2022-06-30 | G17: 2030-12-31 | H17: 2022 | I17: 2030 | J17: 2023-01-31 | K17: 2031-01-31 | L17: 2023 | M17: 2031 | N17: 01/31/2023 - 01/31/2031 | O17: Contra Costa County | P17: 6th Cycle | Q17: 06/30/2022-01/30/2023
E18: Apple Valley | F18: 2021-06-30 | G18: 2029-10-15 | H18: 2021 | I18: 2029 | J18: 2021-10-15 | K18: 2029-10-15 | L18: 2021 | M18: 2029 | N18: 10/15/2021 - 10/15/2029 | O18: San Bernardino County | P18: 6th Cycle | Q18: 06/30/2021-10/14/2021
E19: Arcadia | F19: 2021-06-30 | G19: 2029-10-15 | H19: 2021 | I19: 2029 | J19: 2021-10-15 | K19: 2029-10-15 | L19: 2021 | M19: 2029 | N19: 10/15/2021 - 10/15/2029 | O19: Los Angeles County | P19: 6th Cycle | Q19: 06/30/2021-10/14/2021
E20: Arcata | F20: 2019-01-01 | G20: 2027-08-31 | H20: 2019 | I20: 2027 | J20: 2019-08-31 | K20: 2027-08-31 | L20: 2019 | M20: 2027 | N20: 08/31/2019 - 08/31/2027 | O20: Humboldt County | P20: 6th Cycle | Q20: 01/01/2019-08/30/2019
E21: Arroyo Grande | F21: 2019-01-01 | G21: 2028-12-31 | H21: 2019 | I21: 2028 | J21: 2021-01-01 | K21: 2028-12-31 | L21: 2021 | M21: 2028 | N21: 01/01/2021 - 12/31/2028 | O21: San Luis Obispo County | P21: 6th Cycle | Q21: 01/01/2019-12/31/2020
E22: Artesia | F22: 2021-06-30 | G22: 2029-10-15 | H22: 2021 | I22: 2029 | J22: 2021-10-15 | K22: 2029-10-15 | L22: 2021 | M22: 2029 | N22: 10/15/2021 - 10/15/2029 | O22: Los Angeles County | P22: 6th Cycle | Q22: 06/30/2021-10/14/2021
E23: Arvin | F23: 2023-06-30 | G23: 2031-12-31 | H23: 2023 | I23: 2031 | J23: 2023-12-31 | K23: 2031-12-31 | L23: 2023 | M23: 2031 | N23: 12/31/2023 - 12/31/2031 | O23: Kern County | P23: 6th Cycle | Q23: 06/30/2023-12/30/2023
E24: Atascadero | F24: 2019-01-01 | G24: 2028-12-31 | H24: 2019 | I24: 2028 | J24: 2021-01-01 | K24: 2028-12-31 | L24: 2021 | M24: 2028 | N24: 01/01/2021 - 12/31/2028 | O24: San Luis Obispo County | P24: 6th Cycle | Q24: 01/01/2019-12/31/2020
E25: Atherton | F25: 2022-06-30 | G25: 2030-12-31 | H25: 2022 | I25: 2030 | J25: 2023-01-31 | K25: 2031-01-31 | L25: 2023 | M25: 2031 | N25: 01/31/2023 - 01/31/2031 | O25: San Mateo County | P25: 6th Cycle | Q25: 06/30/2022-01/30/2023
E26: Atwater | F26: 2023-06-30 | G26: 2032-01-31 | H26: 2023 | I26: 2032 | J26: 2024-01-31 | K26: 2032-01-31 | L26: 2024 | M26: 2032 | N26: 01/31/2024 - 01/31/2032 | O26: Merced County | P26: 6th Cycle | Q26: 06/30/2023-01/30/2024
E27: Auburn | F27: 2021-06-30 | G27: 2029-08-31 | H27: 2021 | I27: 2029 | J27: 2021-05-15 | K27: 2029-05-15 | L27: 2021 | M27: 2029 | N27: 05/15/2021 - 05/15/2029 | O27: Placer County | P27: 6th Cycle | Q27: 06/30/2021-05/14/2021
E28: Avalon | F28: 2021-06-30 | G28: 2029-10-15 | H28: 2021 | I28: 2029 | J28: 2021-10-15 | K28: 2029-10-15 | L28: 2021 | M28: 2029 | N28: 10/15/2021 - 10/15/2029 | O28: Los Angeles County | P28: 6th Cycle | Q28: 06/30/2021-10/14/2021
E29: Avenal | F29: 2023-06-30 | G29: 2032-01-31 | H29: 2023 | I29: 2032 | J29: 2024-01-31 | K29: 2032-01-31 | L29: 2024 | M29: 2032 | N29: 01/31/2024 - 01/31/2032 | O29: Kings County | P29: 6th Cycle | Q29: 06/30/2023-01/30/2024
E30: Azusa | F30: 2021-06-30 | G30: 2029-10-15 | H30: 2021 | I30: 2029 | J30: 2021-10-15 | K30: 2029-10-15 | L30: 2021 | M30: 2029 | N30: 10/15/2021 - 10/15/2029 | O30: Los Angeles County | P30: 6th Cycle | Q30: 06/30/2021-10/14/2021
E31: Bakersfield | F31: 2023-06-30 | G31: 2031-12-31 | H31: 2023 | I31: 2031 | J31: 2023-12-31 | K31: 2031-12-31 | L31: 2023 | M31: 2031 | N31: 12/31/2023 - 12/31/2031 | O31: Kern County | P31: 6th Cycle | Q31: 06/30/2023-12/30/2023
E32: Baldwin Park | F32: 2021-06-30 | G32: 2029-10-15 | H32: 2021 | I32: 2029 | J32: 2021-10-15 | K32: 2029-10-15 | L32: 2021 | M32: 2029 | N32: 10/15/2021 - 10/15/2029 | O32: Los Angeles County | P32: 6th Cycle | Q32: 06/30/2021-10/14/2021
E33: Banning | F33: 2021-06-30 | G33: 2029-10-15 | H33: 2021 | I33: 2029 | J33: 2021-10-15 | K33: 2029-10-15 | L33: 2021 | M33: 2029 | N33: 10/15/2021 - 10/15/2029 | O33: Riverside County | P33: 6th Cycle | Q33: 06/30/2021-10/14/2021
E34: Barstow | F34: 2021-06-30 | G34: 2029-10-15 | H34: 2021 | I34: 2029 | J34: 2021-10-15 | K34: 2029-10-15 | L34: 2021 | M34: 2029 | N34: 10/15/2021 - 10/15/2029 | O34: San Bernardino County | P34: 6th Cycle | Q34: 06/30/2021-10/14/2021
E35: Beaumont | F35: 2021-06-30 | G35: 2029-10-15 | H35: 2021 | I35: 2029 | J35: 2021-10-15 | K35: 2029-10-15 | L35: 2021 | M35: 2029 | N35: 10/15/2021 - 10/15/2029 | O35: Riverside County | P35: 6th Cycle | Q35: 06/30/2021-10/14/2021
E36: Bell | F36: 2021-06-30 | G36: 2029-10-15 | H36: 2021 | I36: 2029 | J36: 2021-10-15 | K36: 2029-10-15 | L36: 2021 | M36: 2029 | N36: 10/15/2021 - 10/15/2029 | O36: Los Angeles County | P36: 6th Cycle | Q36: 06/30/2021-10/14/2021
E37: Bell Gardens | F37: 2021-06-30 | G37: 2029-10-15 | H37: 2021 | I37: 2029 | J37: 2021-10-15 | K37: 2029-10-15 | L37: 2021 | M37: 2029 | N37: 10/15/2021 - 10/15/2029 | O37: Los Angeles County | P37: 6th Cycle | Q37: 06/30/2021-10/14/2021
E38: Bellflower | F38: 2021-06-30 | G38: 2029-10-15 | H38: 2021 | I38: 2029 | J38: 2021-10-15 | K38: 2029-10-15 | L38: 2021 | M38: 2029 | N38: 10/15/2021 - 10/15/2029 | O38: Los Angeles County | P38: 6th Cycle | Q38: 06/30/2021-10/14/2021
E39: Belmont | F39: 2022-06-30 | G39: 2030-12-31 | H39: 2022 | I39: 2030 | J39: 2023-01-31 | K39: 2031-01-31 | L39: 2023 | M39: 2031 | N39: 01/31/2023 - 01/31/2031 | O39: San Mateo County | P39: 6th Cycle | Q39: 06/30/2022-01/30/2023
E40: Belvedere | F40: 2022-06-30 | G40: 2030-12-31 | H40: 2022 | I40: 2030 | J40: 2023-01-31 | K40: 2031-01-31 | L40: 2023 | M40: 2031 | N40: 01/31/2023 - 01/31/2031 | O40: Marin County | P40: 6th Cycle | Q40: 06/30/2022-01/30/2023
E41: Benicia | F41: 2022-06-30 | G41: 2030-12-31 | H41: 2022 | I41: 2030 | J41: 2023-01-31 | K41: 2031-01-31 | L41: 2023 | M41: 2031 | N41: 01/31/2023 - 01/31/2031 | O41: Solano County | P41: 6th Cycle | Q41: 06/30/2022-01/30/2023
E42: Berkeley | F42: 2022-06-30 | G42: 2030-12-31 | H42: 2022 | I42: 2030 | J42: 2023-01-31 | K42: 2031-01-31 | L42: 2023 | M42: 2031 | N42: 01/31/2023 - 01/31/2031 | O42: Alameda County | P42: 6th Cycle | Q42: 06/30/2022-01/30/2023
E43: Beverly Hills | F43: 2021-06-30 | G43: 2029-10-15 | H43: 2021 | I43: 2029 | J43: 2021-10-15 | K43: 2029-10-15 | L43: 2021 | M43: 2029 | N43: 10/15/2021 - 10/15/2029 | O43: Los Angeles County | P43: 6th Cycle | Q43: 06/30/2021-10/14/2021
E44: Big Bear Lake | F44: 2021-06-30 | G44: 2029-10-15 | H44: 2021 | I44: 2029 | J44: 2021-10-15 | K44: 2029-10-15 | L44: 2021 | M44: 2029 | N44: 10/15/2021 - 10/15/2029 | O44: San Bernardino County | P44: 6th Cycle | Q44: 06/30/2021-10/14/2021
E45: Biggs | F45: 2021-12-31 | G45: 2030-06-15 | H45: 2021 | I45: 2030 | J45: 2022-06-15 | K45: 2030-06-15 | L45: 2022 | M45: 2030 | N45: 06/15/2022 - 06/15/2030 | O45: Butte County | P45: 6th Cycle | Q45: 12/31/2021-06/14/2022
E46: Bishop | F46: 2019-01-01 | G46: 2029-04-30 | H46: 2019 | I46: 2029 | J46: 2021-04-30 | K46: 2029-04-30 | L46: 2021 | M46: 2029 | N46: 04/30/2021 - 04/30/2029 | O46: Inyo County | P46: 6th Cycle | Q46: 01/01/2019-04/29/2021
E47: Blue Lake | F47: 2019-01-01 | G47: 2027-08-31 | H47: 2019 | I47: 2027 | J47: 2019-08-31 | K47: 2027-08-31 | L47: 2019 | M47: 2027 | N47: 08/31/2019 - 08/31/2027 | O47: Humboldt County | P47: 6th Cycle | Q47: 01/01/2019-08/30/2019
E48: Blythe | F48: 2021-06-30 | G48: 2029-10-15 | H48: 2021 | I48: 2029 | J48: 2021-10-15 | K48: 2029-10-15 | L48: 2021 | M48: 2029 | N48: 10/15/2021 - 10/15/2029 | O48: Riverside County | P48: 6th Cycle | Q48: 06/30/2021-10/14/2021
E49: Bradbury | F49: 2021-06-30 | G49: 2029-10-15 | H49: 2021 | I49: 2029 | J49: 2021-10-15 | K49: 2029-10-15 | L49: 2021 | M49: 2029 | N49: 10/15/2021 - 10/15/2029 | O49: Los Angeles County | P49: 6th Cycle | Q49: 06/30/2021-10/14/2021
E50: Brawley | F50: 2021-06-30 | G50: 2029-10-15 | H50: 2021 | I50: 2029 | J50: 2021-10-15 | K50: 2029-10-15 | L50: 2021 | M50: 2029 | N50: 10/15/2021 - 10/15/2029 | O50: Imperial County | P50: 6th Cycle | Q50: 06/30/2021-10/14/2021
E51: Brea | F51: 2021-06-30 | G51: 2029-10-15 | H51: 2021 | I51: 2029 | J51: 2021-10-15 | K51: 2029-10-15 | L51: 2021 | M51: 2029 | N51: 10/15/2021 - 10/15/2029 | O51: Orange County | P51: 6th Cycle | Q51: 06/30/2021-10/14/2021
E52: Brentwood | F52: 2022-06-30 | G52: 2030-12-31 | H52: 2022 | I52: 2030 | J52: 2023-01-31 | K52: 2031-01-31 | L52: 2023 | M52: 2031 | N52: 01/31/2023 - 01/31/2031 | O52: Contra Costa County | P52: 6th Cycle | Q52: 06/30/2022-01/30/2023
E53: Brisbane | F53: 2022-06-30 | G53: 2030-12-31 | H53: 2022 | I53: 2030 | J53: 2023-01-31 | K53: 2031-01-31 | L53: 2023 | M53: 2031 | N53: 01/31/2023 - 01/31/2031 | O53: San Mateo County | P53: 6th Cycle | Q53: 06/30/2022-01/30/2023
E54: Buellton | F54: 2022-06-30 | G54: 2031-02-15 | H54: 2022 | I54: 2031 | J54: 2023-02-15 | K54: 2031-02-15 | L54: 2023 | M54: 2031 | N54: 02/15/2023 - 02/15/2031 | O54: Santa Barbara County | P54: 6th Cycle | Q54: 06/30/2022-02/14/2023
E55: Buena Park | F55: 2021-06-30 | G55: 2029-10-15 | H55: 2021 | I55: 2029 | J55: 2021-10-15 | K55: 2029-10-15 | L55: 2021 | M55: 2029 | N55: 10/15/2021 - 10/15/2029 | O55: Orange County | P55: 6th Cycle | Q55: 06/30/2021-10/14/2021
E56: Burbank | F56: 2021-06-30 | G56: 2029-10-15 | H56: 2021 | I56: 2029 | J56: 2021-10-15 | K56: 2029-10-15 | L56: 2021 | M56: 2029 | N56: 10/15/2021 - 10/15/2029 | O56: Los Angeles County | P56: 6th Cycle | Q56: 06/30/2021-10/14/2021
E57: Burlingame | F57: 2022-06-30 | G57: 2030-12-31 | H57: 2022 | I57: 2030 | J57: 2023-01-31 | K57: 2031-01-31 | L57: 2023 | M57: 2031 | N57: 01/31/2023 - 01/31/2031 | O57: San Mateo County | P57: 6th Cycle | Q57: 06/30/2022-01/30/2023
E58: Butte County - Unincorporated | F58: 2021-12-31 | G58: 2030-06-15 | H58: 2021 | I58: 2030 | J58: 2022-06-15 | K58: 2030-06-15 | L58: 2022 | M58: 2030 | N58: 06/15/2022 - 06/15/2030 | O58: Butte County | P58: 6th Cycle | Q58: 12/31/2021-06/14/2022
E59: Calabasas | F59: 2021-06-30 | G59: 2029-10-15 | H59: 2021 | I59: 2029 | J59: 2021-10-15 | K59: 2029-10-15 | L59: 2021 | M59: 2029 | N59: 10/15/2021 - 10/15/2029 | O59: Los Angeles County | P59: 6th Cycle | Q59: 06/30/2021-10/14/2021
E60: Calaveras County - Unincorporated | F60: 2019-01-01 | G60: 2027-06-15 | H60: 2019 | I60: 2027 | J60: 2019-06-15 | K60: 2027-06-15 | L60: 2019 | M60: 2027 | N60: 06/15/2019 - 06/15/2027 | O60: Calaveras County | P60: 6th Cycle | Q60: 01/01/2019-06/14/2019
E61: Calexico | F61: 2021-06-30 | G61: 2029-10-15 | H61: 2021 | I61: 2029 | J61: 2021-10-15 | K61: 2029-10-15 | L61: 2021 | M61: 2029 | N61: 10/15/2021 - 10/15/2029 | O61: Imperial County | P61: 6th Cycle | Q61: 06/30/2021-10/14/2021
E62: California City | F62: 2023-06-30 | G62: 2031-12-31 | H62: 2023 | I62: 2031 | J62: 2023-12-31 | K62: 2031-12-31 | L62: 2023 | M62: 2031 | N62: 12/31/2023 - 12/31/2031 | O62: Kern County | P62: 6th Cycle | Q62: 06/30/2023-12/30/2023
E63: Calimesa | F63: 2021-06-30 | G63: 2029-10-15 | H63: 2021 | I63: 2029 | J63: 2021-10-15 | K63: 2029-10-15 | L63: 2021 | M63: 2029 | N63: 10/15/2021 - 10/15/2029 | O63: Riverside County | P63: 6th Cycle | Q63: 06/30/2021-10/14/2021
E64: Calipatria | F64: 2021-06-30 | G64: 2029-10-15 | H64: 2021 | I64: 2029 | J64: 2021-10-15 | K64: 2029-10-15 | L64: 2021 | M64: 2029 | N64: 10/15/2021 - 10/15/2029 | O64: Imperial County | P64: 6th Cycle | Q64: 06/30/2021-10/14/2021
E65: Calistoga | F65: 2022-06-30 | G65: 2030-12-31 | H65: 2022 | I65: 2030 | J65: 2023-01-31 | K65: 2031-01-31 | L65: 2023 | M65: 2031 | N65: 01/31/2023 - 01/31/2031 | O65: Napa County | P65: 6th Cycle | Q65: 06/30/2022-01/30/2023
E66: Camarillo | F66: 2021-06-30 | G66: 2029-10-15 | H66: =YEAR(F66) -> 2021 | I66: =YEAR(G66) -> 2029 | J66: 2021-10-15 | K66: 2029-10-15 | L66: =YEAR(J66) -> 2021 | M66: =YEAR(K66) -> 2029 | N66: =TEXT(J66,"mm/dd/yyyy")&" - "&TEXT(K66,"mm/dd/yyyy") -> 10/15/2021 - 10/15/2029 | O66: Ventura County | P66: 6th Cycle | Q66: =TEXT(F66,"mm/dd/yyyy")&"-"&TEXT(J66-1,"mm/dd/yyyy") -> 06/30/2021-10/14/2021
E67: Campbell | F67: 2022-06-30 | G67: 2030-12-31 | H67: 2022 | I67: 2030 | J67: 2023-01-31 | K67: 2031-01-31 | L67: 2023 | M67: 2031 | N67: 01/31/2023 - 01/31/2031 | O67: Santa Clara County | P67: 6th Cycle | Q67: 06/30/2022-01/30/2023
E68: Canyon Lake | F68: 2021-06-30 | G68: 2029-10-15 | H68: 2021 | I68: 2029 | J68: 2021-10-15 | K68: 2029-10-15 | L68: 2021 | M68: 2029 | N68: 10/15/2021 - 10/15/2029 | O68: Riverside County | P68: 6th Cycle | Q68: 06/30/2021-10/14/2021
E69: Capitola | F69: 2023-06-30 | G69: 2031-12-15 | H69: 2023 | I69: 2031 | J69: 2023-12-15 | K69: 2031-12-15 | L69: 2023 | M69: 2031 | N69: 12/15/2023 - 12/15/2031 | O69: Santa Cruz County | P69: 6th Cycle | Q69: 06/30/2023-12/14/2023
E70: Carlsbad | F70: 2020-06-30 | G70: 2029-04-15 | H70: 2020 | I70: 2029 | J70: 2021-04-30 | K70: 2029-04-30 | L70: 2021 | M70: 2029 | N70: 04/30/2021 - 04/30/2029 | O70: San Diego County | P70: 6th Cycle | Q70: 06/30/2020-04/29/2021
E71: Carmel-By-The-Sea | F71: 2023-06-30 | G71: 2031-12-15 | H71: 2023 | I71: 2031 | J71: 2023-12-15 | K71: 2031-12-15 | L71: 2023 | M71: 2031 | N71: 12/15/2023 - 12/15/2031 | O71: Monterey County | P71: 6th Cycle | Q71: 06/30/2023-12/14/2023
E72: Carpinteria | F72: 2022-06-30 | G72: 2031-02-15 | H72: 2022 | I72: 2031 | J72: 2023-02-15 | K72: 2031-02-15 | L72: 2023 | M72: 2031 | N72: 02/15/2023 - 02/15/2031 | O72: Santa Barbara County | P72: 6th Cycle | Q72: 06/30/2022-02/14/2023
E73: Carson | F73: 2021-06-30 | G73: 2029-10-15 | H73: 2021 | I73: 2029 | J73: 2021-10-15 | K73: 2029-10-15 | L73: 2021 | M73: 2029 | N73: 10/15/2021 - 10/15/2029 | O73: Los Angeles County | P73: 6th Cycle | Q73: 06/30/2021-10/14/2021
E74: Cathedral | F74: 2021-06-30 | G74: 2029-10-15 | H74: 2021 | I74: 2029 | J74: 2021-10-15 | K74: 2029-10-15 | L74: 2021 | M74: 2029 | N74: 10/15/2021 - 10/15/2029 | O74: Riverside County | P74: 6th Cycle | Q74: 06/30/2021-10/14/2021
E75: Ceres | F75: 2023-06-30 | G75: 2031-12-31 | H75: 2023 | I75: 2031 | J75: 2023-12-31 | K75: 2031-12-31 | L75: 2023 | M75: 2031 | N75: 12/31/2023 - 12/31/2031 | O75: Stanislaus County | P75: 6th Cycle | Q75: 06/30/2023-12/30/2023
E76: Cerritos | F76: 2021-06-30 | G76: 2029-10-15 | H76: 2021 | I76: 2029 | J76: 2021-10-15 | K76: 2029-10-15 | L76: 2021 | M76: 2029 | N76: 10/15/2021 - 10/15/2029 | O76: Los Angeles County | P76: 6th Cycle | Q76: 06/30/2021-10/14/2021
E77: Chico | F77: 2021-12-31 | G77: 2030-06-15 | H77: 2021 | I77: 2030 | J77: 2022-06-15 | K77: 2030-06-15 | L77: 2022 | M77: 2030 | N77: 06/15/2022 - 06/15/2030 | O77: Butte County | P77: 6th Cycle | Q77: 12/31/2021-06/14/2022
E78: Chino | F78: 2021-06-30 | G78: 2029-10-15 | H78: 2021 | I78: 2029 | J78: 2021-10-15 | K78: 2029-10-15 | L78: 2021 | M78: 2029 | N78: 10/15/2021 - 10/15/2029 | O78: San Bernardino County | P78: 6th Cycle | Q78: 06/30/2021-10/14/2021
E79: Chino Hills | F79: 2021-06-30 | G79: 2029-10-15 | H79: 2021 | I79: 2029 | J79: 2021-10-15 | K79: 2029-10-15 | L79: 2021 | M79: 2029 | N79: 10/15/2021 - 10/15/2029 | O79: San Bernardino County | P79: 6th Cycle | Q79: 06/30/2021-10/14/2021
E80: Chowchilla | F80: 2023-06-30 | G80: 2032-01-31 | H80: 2023 | I80: 2032 | J80: 2024-01-31 | K80: 2032-01-31 | L80: 2024 | M80: 2032 | N80: 01/31/2024 - 01/31/2032 | O80: Madera County | P80: 6th Cycle | Q80: 06/30/2023-01/30/2024
E81: Chula Vista | F81: 2020-06-30 | G81: 2029-04-15 | H81: 2020 | I81: 2029 | J81: 2021-04-30 | K81: 2029-04-30 | L81: 2021 | M81: 2029 | N81: 04/30/2021 - 04/30/2029 | O81: San Diego County | P81: 6th Cycle | Q81: 06/30/2020-04/29/2021
E82: Citrus Heights | F82: 2021-06-30 | G82: 2029-08-31 | H82: 2021 | I82: 2029 | J82: 2021-05-15 | K82: 2029-05-15 | L82: 2021 | M82: 2029 | N82: 05/15/2021 - 05/15/2029 | O82: Sacramento County | P82: 6th Cycle | Q82: 06/30/2021-05/14/2021
E83: Claremont | F83: 2021-06-30 | G83: 2029-10-15 | H83: 2021 | I83: 2029 | J83: 2021-10-15 | K83: 2029-10-15 | L83: 2021 | M83: 2029 | N83: 10/15/2021 - 10/15/2029 | O83: Los Angeles County | P83: 6th Cycle | Q83: 06/30/2021-10/14/2021
E84: Clayton | F84: 2022-06-30 | G84: 2030-12-31 | H84: 2022 | I84: 2030 | J84: 2023-01-31 | K84: 2031-01-31 | L84: 2023 | M84: 2031 | N84: 01/31/2023 - 01/31/2031 | O84: Contra Costa County | P84: 6th Cycle | Q84: 06/30/2022-01/30/2023
E85: Clearlake | F85: 2019-01-01 | G85: 2027-08-15 | H85: 2019 | I85: 2027 | J85: 2019-08-15 | K85: 2027-08-15 | L85: 2019 | M85: 2027 | N85: 08/15/2019 - 08/15/2027 | O85: Lake County | P85: 6th Cycle | Q85: 01/01/2019-08/14/2019
E86: Cloverdale | F86: 2022-06-30 | G86: 2030-12-31 | H86: 2022 | I86: 2030 | J86: 2023-01-31 | K86: 2031-01-31 | L86: 2023 | M86: 2031 | N86: 01/31/2023 - 01/31/2031 | O86: Sonoma County | P86: 6th Cycle | Q86: 06/30/2022-01/30/2023
E87: Clovis | F87: 2023-06-30 | G87: 2031-12-31 | H87: 2023 | I87: 2031 | J87: 2023-12-31 | K87: 2031-12-31 | L87: 2023 | M87: 2031 | N87: 12/31/2023 - 12/31/2031 | O87: Fresno County | P87: 6th Cycle | Q87: 06/30/2023-12/30/2023
E88: Coachella | F88: 2021-06-30 | G88: 2029-10-15 | H88: 2021 | I88: 2029 | J88: 2021-10-15 | K88: 2029-10-15 | L88: 2021 | M88: 2029 | N88: 10/15/2021 - 10/15/2029 | O88: Riverside County | P88: 6th Cycle | Q88: 06/30/2021-10/14/2021
E89: Coalinga | F89: 2023-06-30 | G89: 2031-12-31 | H89: 2023 | I89: 2031 | J89: 2023-12-31 | K89: 2031-12-31 | L89: 2023 | M89: 2031 | N89: 12/31/2023 - 12/31/2031 | O89: Fresno County | P89: 6th Cycle | Q89: 06/30/2023-12/30/2023
E90: Colfax | F90: 2021-06-30 | G90: 2029-08-31 | H90: 2021 | I90: 2029 | J90: 2021-05-15 | K90: 2029-05-15 | L90: 2021 | M90: 2029 | N90: 05/15/2021 - 05/15/2029 | O90: Placer County | P90: 6th Cycle | Q90: 06/30/2021-05/14/2021
E91: Colma | F91: 2022-06-30 | G91: 2030-12-31 | H91: 2022 | I91: 2030 | J91: 2023-01-31 | K91: 2031-01-31 | L91: 2023 | M91: 2031 | N91: 01/31/2023 - 01/31/2031 | O91: San Mateo County | P91: 6th Cycle | Q91: 06/30/2022-01/30/2023
E92: Colton | F92: 2021-06-30 | G92: 2029-10-15 | H92: 2021 | I92: 2029 | J92: 2021-10-15 | K92: 2029-10-15 | L92: 2021 | M92: 2029 | N92: 10/15/2021 - 10/15/2029 | O92: San Bernardino County | P92: 6th Cycle | Q92: 06/30/2021-10/14/2021
E93: Colusa | F93: 2019-01-01 | G93: 2028-12-31 | H93: 2019 | I93: 2028 | J93: 2021-01-01 | K93: 2028-12-31 | L93: 2021 | M93: 2028 | N93: 01/01/2021 - 12/31/2028 | O93: Colusa County | P93: 6th Cycle | Q93: 01/01/2019-12/31/2020
E94: Colusa County - Unincorporated | F94: 2019-01-01 | G94: 2028-12-31 | H94: 2019 | I94: 2028 | J94: 2021-01-01 | K94: 2028-12-31 | L94: 2021 | M94: 2028 | N94: 01/01/2021 - 12/31/2028 | O94: Colusa County | P94: 6th Cycle | Q94: 01/01/2019-12/31/2020
E95: Commerce | F95: 2021-06-30 | G95: 2029-10-15 | H95: 2021 | I95: 2029 | J95: 2021-10-15 | K95: 2029-10-15 | L95: 2021 | M95: 2029 | N95: 10/15/2021 - 10/15/2029 | O95: Los Angeles County | P95: 6th Cycle | Q95: 06/30/2021-10/14/2021
E96: Compton | F96: 2021-06-30 | G96: 2029-10-15 | H96: 2021 | I96: 2029 | J96: 2021-10-15 | K96: 2029-10-15 | L96: 2021 | M96: 2029 | N96: 10/15/2021 - 10/15/2029 | O96: Los Angeles County | P96: 6th Cycle | Q96: 06/30/2021-10/14/2021
E97: Concord | F97: 2022-06-30 | G97: 2030-12-31 | H97: 2022 | I97: 2030 | J97: 2023-01-31 | K97: 2031-01-31 | L97: 2023 | M97: 2031 | N97: 01/31/2023 - 01/31/2031 | O97: Contra Costa County | P97: 6th Cycle | Q97: 06/30/2022-01/30/2023
E98: Contra Costa County - Unincorporated | F98: 2022-06-30 | G98: 2030-12-31 | H98: 2022 | I98: 2030 | J98: 2023-01-31 | K98: 2031-01-31 | L98: 2023 | M98: 2031 | N98: 01/31/2023 - 01/31/2031 | O98: Contra Costa County | P98: 6th Cycle | Q98: 06/30/2022-01/30/2023
E99: Corcoran | F99: 2023-06-30 | G99: 2032-01-31 | H99: 2023 | I99: 2032 | J99: 2024-01-31 | K99: 2032-01-31 | L99: 2024 | M99: 2032 | N99: 01/31/2024 - 01/31/2032 | O99: Kings County | P99: 6th Cycle | Q99: 06/30/2023-01/30/2024
E100: Corning | F100: 2024-06-30 | G100: 2029-06-30 | H100: 2024 | I100: 2029 | J100: 2024-06-30 | K100: 2029-06-30 | L100: 2024 | M100: 2029 | N100: 06/30/2024 - 06/30/2029 | O100: Tehama County | P100: 7th Cycle | Q100: None
E101: Corona | F101: 2021-06-30 | G101: 2029-10-15 | H101: 2021 | I101: 2029 | J101: 2021-10-15 | K101: 2029-10-15 | L101: 2021 | M101: 2029 | N101: 10/15/2021 - 10/15/2029 | O101: Riverside County | P101: 6th Cycle | Q101: 06/30/2021-10/14/2021
E102: Coronado | F102: 2020-06-30 | G102: 2029-04-15 | H102: 2020 | I102: 2029 | J102: 2021-04-30 | K102: 2029-04-30 | L102: 2021 | M102: 2029 | N102: 04/30/2021 - 04/30/2029 | O102: San Diego County | P102: 6th Cycle | Q102: 06/30/2020-04/29/2021
E103: Corte Madera | F103: 2022-06-30 | G103: 2030-12-31 | H103: 2022 | I103: 2030 | J103: 2023-01-31 | K103: 2031-01-31 | L103: 2023 | M103: 2031 | N103: 01/31/2023 - 01/31/2031 | O103: Marin County | P103: 6th Cycle | Q103: 06/30/2022-01/30/2023
E104: Costa Mesa | F104: 2021-06-30 | G104: 2029-10-15 | H104: 2021 | I104: 2029 | J104: 2021-10-15 | K104: 2029-10-15 | L104: 2021 | M104: 2029 | N104: 10/15/2021 - 10/15/2029 | O104: Orange County | P104: 6th Cycle | Q104: 06/30/2021-10/14/2021
E105: Cotati | F105: 2022-06-30 | G105: 2030-12-31 | H105: 2022 | I105: 2030 | J105: 2023-01-31 | K105: 2031-01-31 | L105: 2023 | M105: 2031 | N105: 01/31/2023 - 01/31/2031 | O105: Sonoma County | P105: 6th Cycle | Q105: 06/30/2022-01/30/2023
E106: Covina | F106: 2021-06-30 | G106: 2029-10-15 | H106: 2021 | I106: 2029 | J106: 2021-10-15 | K106: 2029-10-15 | L106: 2021 | M106: 2029 | N106: 10/15/2021 - 10/15/2029 | O106: Los Angeles County | P106: 6th Cycle | Q106: 06/30/2021-10/14/2021
E107: Crescent City | F107: 2018-12-31 | G107: 2030-09-15 | H107: 2018 | I107: 2030 | J107: 2022-09-15 | K107: 2030-09-15 | L107: 2022 | M107: 2030 | N107: 09/15/2022 - 09/15/2030 | O107: Del Norte County | P107: 6th Cycle | Q107: 12/31/2018-09/14/2022
E108: Cudahy | F108: 2021-06-30 | G108: 2029-10-15 | H108: 2021 | I108: 2029 | J108: 2021-10-15 | K108: 2029-10-15 | L108: 2021 | M108: 2029 | N108: 10/15/2021 - 10/15/2029 | O108: Los Angeles County | P108: 6th Cycle | Q108: 06/30/2021-10/14/2021
E109: Culver City | F109: 2021-06-30 | G109: 2029-10-15 | H109: 2021 | I109: 2029 | J109: 2021-10-15 | K109: 2029-10-15 | L109: 2021 | M109: 2029 | N109: 10/15/2021 - 10/15/2029 | O109: Los Angeles County | P109: 6th Cycle | Q109: 06/30/2021-10/14/2021
E110: Cupertino | F110: 2022-06-30 | G110: 2030-12-31 | H110: 2022 | I110: 2030 | J110: 2023-01-31 | K110: 2031-01-31 | L110: 2023 | M110: 2031 | N110: 01/31/2023 - 01/31/2031 | O110: Santa Clara County | P110: 6th Cycle | Q110: 06/30/2022-01/30/2023
E111: Cypress | F111: 2021-06-30 | G111: 2029-10-15 | H111: 2021 | I111: 2029 | J111: 2021-10-15 | K111: 2029-10-15 | L111: 2021 | M111: 2029 | N111: 10/15/2021 - 10/15/2029 | O111: Orange County | P111: 6th Cycle | Q111: 06/30/2021-10/14/2021
E112: Daly City | F112: 2022-06-30 | G112: 2030-12-31 | H112: 2022 | I112: 2030 | J112: 2023-01-31 | K112: 2031-01-31 | L112: 2023 | M112: 2031 | N112: 01/31/2023 - 01/31/2031 | O112: San Mateo County | P112: 6th Cycle | Q112: 06/30/2022-01/30/2023
E113: Dana Point | F113: 2021-06-30 | G113: 2029-10-15 | H113: 2021 | I113: 2029 | J113: 2021-10-15 | K113: 2029-10-15 | L113: 2021 | M113: 2029 | N113: 10/15/2021 - 10/15/2029 | O113: Orange County | P113: 6th Cycle | Q113: 06/30/2021-10/14/2021
E114: Danville | F114: 2022-06-30 | G114: 2030-12-31 | H114: 2022 | I114: 2030 | J114: 2023-01-31 | K114: 2031-01-31 | L114: 2023 | M114: 2031 | N114: 01/31/2023 - 01/31/2031 | O114: Contra Costa County | P114: 6th Cycle | Q114: 06/30/2022-01/30/2023
E115: Davis | F115: 2021-06-30 | G115: 2029-08-31 | H115: 2021 | I115: 2029 | J115: 2021-05-15 | K115: 2029-05-15 | L115: 2021 | M115: 2029 | N115: 05/15/2021 - 05/15/2029 | O115: Yolo County | P115: 6th Cycle | Q115: 06/30/2021-05/14/2021
E116: Del Mar | F116: 2020-06-30 | G116: 2029-04-15 | H116: 2020 | I116: 2029 | J116: 2021-04-30 | K116: 2029-04-30 | L116: 2021 | M116: 2029 | N116: 04/30/2021 - 04/30/2029 | O116: San Diego County | P116: 6th Cycle | Q116: 06/30/2020-04/29/2021
E117: Del Norte County - Unincorporated | F117: 2018-12-31 | G117: 2030-09-15 | H117: 2018 | I117: 2030 | J117: 2022-09-15 | K117: 2030-09-15 | L117: 2022 | M117: 2030 | N117: 09/15/2022 - 09/15/2030 | O117: Del Norte County | P117: 6th Cycle | Q117: 12/31/2018-09/14/2022
E118: Del Rey Oaks | F118: 2023-06-30 | G118: 2031-12-15 | H118: 2023 | I118: 2031 | J118: 2023-12-15 | K118: 2031-12-15 | L118: 2023 | M118: 2031 | N118: 12/15/2023 - 12/15/2031 | O118: Monterey County | P118: 6th Cycle | Q118: 06/30/2023-12/14/2023
E119: Delano | F119: 2023-06-30 | G119: 2031-12-31 | H119: 2023 | I119: 2031 | J119: 2023-12-31 | K119: 2031-12-31 | L119: 2023 | M119: 2031 | N119: 12/31/2023 - 12/31/2031 | O119: Kern County | P119: 6th Cycle | Q119: 06/30/2023-12/30/2023
E120: Desert Hot Springs | F120: 2021-06-30 | G120: 2029-10-15 | H120: 2021 | I120: 2029 | J120: 2021-10-15 | K120: 2029-10-15 | L120: 2021 | M120: 2029 | N120: 10/15/2021 - 10/15/2029 | O120: Riverside County | P120: 6th Cycle | Q120: 06/30/2021-10/14/2021
E121: Diamond Bar | F121: 2021-06-30 | G121: 2029-10-15 | H121: 2021 | I121: 2029 | J121: 2021-10-15 | K121: 2029-10-15 | L121: 2021 | M121: 2029 | N121: 10/15/2021 - 10/15/2029 | O121: Los Angeles County | P121: 6th Cycle | Q121: 06/30/2021-10/14/2021
E122: Dinuba | F122: 2023-06-30 | G122: 2031-12-31 | H122: 2023 | I122: 2031 | J122: 2023-12-31 | K122: 2031-12-31 | L122: 2023 | M122: 2031 | N122: 12/31/2023 - 12/31/2031 | O122: Tulare County | P122: 6th Cycle | Q122: 06/30/2023-12/30/2023
E123: Dixon | F123: 2022-06-30 | G123: 2030-12-31 | H123: 2022 | I123: 2030 | J123: 2023-01-31 | K123: 2031-01-31 | L123: 2023 | M123: 2031 | N123: 01/31/2023 - 01/31/2031 | O123: Solano County | P123: 6th Cycle | Q123: 06/30/2022-01/30/2023
E124: Dorris | F124: 2018-12-31 | G124: 2030-11-15 | H124: 2018 | I124: 2030 | J124: 2023-02-15 | K124: 2031-02-15 | L124: 2023 | M124: 2031 | N124: 02/15/2023 - 02/15/2031 | O124: Siskiyou County | P124: 6th Cycle | Q124: 12/31/2018-02/14/2023
E125: Dos Palos | F125: 2023-06-30 | G125: 2032-01-31 | H125: 2023 | I125: 2032 | J125: 2024-01-31 | K125: 2032-01-31 | L125: 2024 | M125: 2032 | N125: 01/31/2024 - 01/31/2032 | O125: Merced County | P125: 6th Cycle | Q125: 06/30/2023-01/30/2024
E126: Downey | F126: 2021-06-30 | G126: 2029-10-15 | H126: 2021 | I126: 2029 | J126: 2021-10-15 | K126: 2029-10-15 | L126: 2021 | M126: 2029 | N126: 10/15/2021 - 10/15/2029 | O126: Los Angeles County | P126: 6th Cycle | Q126: 06/30/2021-10/14/2021
E127: Duarte | F127: 2021-06-30 | G127: 2029-10-15 | H127: 2021 | I127: 2029 | J127: 2021-10-15 | K127: 2029-10-15 | L127: 2021 | M127: 2029 | N127: 10/15/2021 - 10/15/2029 | O127: Los Angeles County | P127: 6th Cycle | Q127: 06/30/2021-10/14/2021
E128: Dublin | F128: 2022-06-30 | G128: 2030-12-31 | H128: 2022 | I128: 2030 | J128: 2023-01-31 | K128: 2031-01-31 | L128: 2023 | M128: 2031 | N128: 01/31/2023 - 01/31/2031 | O128: Alameda County | P128: 6th Cycle | Q128: 06/30/2022-01/30/2023
E129: Dunsmuir | F129: 2018-12-31 | G129: 2030-11-15 | H129: 2018 | I129: 2030 | J129: 2023-02-15 | K129: 2031-02-15 | L129: 2023 | M129: 2031 | N129: 02/15/2023 - 02/15/2031 | O129: Siskiyou County | P129: 6th Cycle | Q129: 12/31/2018-02/14/2023
E130: East Palo Alto | F130: 2022-06-30 | G130: 2030-12-31 | H130: =YEAR(F130) -> 2022 | I130: =YEAR(G130) -> 2030 | J130: 2023-01-31 | K130: 2031-01-31 | L130: =YEAR(J130) -> 2023 | M130: =YEAR(K130) -> 2031 | N130: =TEXT(J130,"mm/dd/yyyy")&" - "&TEXT(K130,"mm/dd/yyyy") -> 01/31/2023 - 01/31/2031 | O130: San Mateo County | P130: 6th Cycle | Q130: =TEXT(F130,"mm/dd/yyyy")&"-"&TEXT(J130-1,"mm/dd/yyyy") -> 06/30/2022-01/30/2023
E131: Eastvale | F131: 2021-06-30 | G131: 2029-10-15 | H131: 2021 | I131: 2029 | J131: 2021-10-15 | K131: 2029-10-15 | L131: 2021 | M131: 2029 | N131: 10/15/2021 - 10/15/2029 | O131: Riverside County | P131: 6th Cycle | Q131: 06/30/2021-10/14/2021
E132: El Cajon | F132: 2020-06-30 | G132: 2029-04-15 | H132: 2020 | I132: 2029 | J132: 2021-04-30 | K132: 2029-04-30 | L132: 2021 | M132: 2029 | N132: 04/30/2021 - 04/30/2029 | O132: San Diego County | P132: 6th Cycle | Q132: 06/30/2020-04/29/2021
E133: El Centro | F133: 2021-06-30 | G133: 2029-10-15 | H133: 2021 | I133: 2029 | J133: 2021-10-15 | K133: 2029-10-15 | L133: 2021 | M133: 2029 | N133: 10/15/2021 - 10/15/2029 | O133: Imperial County | P133: 6th Cycle | Q133: 06/30/2021-10/14/2021
E134: El Cerrito | F134: 2022-06-30 | G134: 2030-12-31 | H134: 2022 | I134: 2030 | J134: 2023-01-31 | K134: 2031-01-31 | L134: 2023 | M134: 2031 | N134: 01/31/2023 - 01/31/2031 | O134: Contra Costa County | P134: 6th Cycle | Q134: 06/30/2022-01/30/2023
E135: El Dorado County - Unincorporated | F135: 2021-06-30 | G135: 2029-08-31 | H135: 2021 | I135: 2029 | J135: 2021-05-15 | K135: 2029-05-15 | L135: 2021 | M135: 2029 | N135: 05/15/2021 - 05/15/2029 | O135: El Dorado County | P135: 6th Cycle | Q135: 06/30/2021-05/14/2021
E136: El Monte | F136: 2021-06-30 | G136: 2029-10-15 | H136: 2021 | I136: 2029 | J136: 2021-10-15 | K136: 2029-10-15 | L136: 2021 | M136: 2029 | N136: 10/15/2021 - 10/15/2029 | O136: Los Angeles County | P136: 6th Cycle | Q136: 06/30/2021-10/14/2021
E137: El Segundo | F137: 2021-06-30 | G137: 2029-10-15 | H137: 2021 | I137: 2029 | J137: 2021-10-15 | K137: 2029-10-15 | L137: 2021 | M137: 2029 | N137: 10/15/2021 - 10/15/2029 | O137: Los Angeles County | P137: 6th Cycle | Q137: 06/30/2021-10/14/2021
E138: Elk Grove | F138: 2021-06-30 | G138: 2029-08-31 | H138: 2021 | I138: 2029 | J138: 2021-05-15 | K138: 2029-05-15 | L138: 2021 | M138: 2029 | N138: 05/15/2021 - 05/15/2029 | O138: Sacramento County | P138: 6th Cycle | Q138: 06/30/2021-05/14/2021
E139: Emeryville | F139: 2022-06-30 | G139: 2030-12-31 | H139: 2022 | I139: 2030 | J139: 2023-01-31 | K139: 2031-01-31 | L139: 2023 | M139: 2031 | N139: 01/31/2023 - 01/31/2031 | O139: Alameda County | P139: 6th Cycle | Q139: 06/30/2022-01/30/2023
E140: Encinitas | F140: 2020-06-30 | G140: 2029-04-15 | H140: 2020 | I140: 2029 | J140: 2021-04-30 | K140: 2029-04-30 | L140: 2021 | M140: 2029 | N140: 04/30/2021 - 04/30/2029 | O140: San Diego County | P140: 6th Cycle | Q140: 06/30/2020-04/29/2021
E141: Escalon | F141: 2023-06-30 | G141: 2031-12-31 | H141: 2023 | I141: 2031 | J141: 2023-12-31 | K141: 2031-12-31 | L141: 2023 | M141: 2031 | N141: 12/31/2023 - 12/31/2031 | O141: San Joaquin County | P141: 6th Cycle | Q141: 06/30/2023-12/30/2023
E142: Escondido | F142: 2020-06-30 | G142: 2029-04-15 | H142: 2020 | I142: 2029 | J142: 2021-04-30 | K142: 2029-04-30 | L142: 2021 | M142: 2029 | N142: 04/30/2021 - 04/30/2029 | O142: San Diego County | P142: 6th Cycle | Q142: 06/30/2020-04/29/2021
E143: Etna | F143: 2018-12-31 | G143: 2030-11-15 | H143: 2018 | I143: 2030 | J143: 2023-02-15 | K143: 2031-02-15 | L143: 2023 | M143: 2031 | N143: 02/15/2023 - 02/15/2031 | O143: Siskiyou County | P143: 6th Cycle | Q143: 12/31/2018-02/14/2023
E144: Eureka | F144: 2019-01-01 | G144: 2027-08-31 | H144: 2019 | I144: 2027 | J144: 2019-08-31 | K144: 2027-08-31 | L144: 2019 | M144: 2027 | N144: 08/31/2019 - 08/31/2027 | O144: Humboldt County | P144: 6th Cycle | Q144: 01/01/2019-08/30/2019
E145: Exeter | F145: 2023-06-30 | G145: 2031-12-31 | H145: 2023 | I145: 2031 | J145: 2023-12-31 | K145: 2031-12-31 | L145: 2023 | M145: 2031 | N145: 12/31/2023 - 12/31/2031 | O145: Tulare County | P145: 6th Cycle | Q145: 06/30/2023-12/30/2023
E146: Fairfax | F146: 2022-06-30 | G146: 2030-12-31 | H146: 2022 | I146: 2030 | J146: 2023-01-31 | K146: 2031-01-31 | L146: 2023 | M146: 2031 | N146: 01/31/2023 - 01/31/2031 | O146: Marin County | P146: 6th Cycle | Q146: 06/30/2022-01/30/2023
E147: Fairfield | F147: 2022-06-30 | G147: 2030-12-31 | H147: 2022 | I147: 2030 | J147: 2023-01-31 | K147: 2031-01-31 | L147: 2023 | M147: 2031 | N147: 01/31/2023 - 01/31/2031 | O147: Solano County | P147: 6th Cycle | Q147: 06/30/2022-01/30/2023
E148: Farmersville | F148: 2023-06-30 | G148: 2031-12-31 | H148: 2023 | I148: 2031 | J148: 2023-12-31 | K148: 2031-12-31 | L148: 2023 | M148: 2031 | N148: 12/31/2023 - 12/31/2031 | O148: Tulare County | P148: 6th Cycle | Q148: 06/30/2023-12/30/2023
E149: Ferndale | F149: 2019-01-01 | G149: 2027-08-31 | H149: 2019 | I149: 2027 | J149: 2019-08-31 | K149: 2027-08-31 | L149: 2019 | M149: 2027 | N149: 08/31/2019 - 08/31/2027 | O149: Humboldt County | P149: 6th Cycle | Q149: 01/01/2019-08/30/2019
E150: Fillmore | F150: 2021-06-30 | G150: 2029-10-15 | H150: 2021 | I150: 2029 | J150: 2021-10-15 | K150: 2029-10-15 | L150: 2021 | M150: 2029 | N150: 10/15/2021 - 10/15/2029 | O150: Ventura County | P150: 6th Cycle | Q150: 06/30/2021-10/14/2021
E151: Firebaugh | F151: 2023-06-30 | G151: 2031-12-31 | H151: 2023 | I151: 2031 | J151: 2023-12-31 | K151: 2031-12-31 | L151: 2023 | M151: 2031 | N151: 12/31/2023 - 12/31/2031 | O151: Fresno County | P151: 6th Cycle | Q151: 06/30/2023-12/30/2023
E152: Folsom | F152: 2021-06-30 | G152: 2029-08-31 | H152: 2021 | I152: 2029 | J152: 2021-05-15 | K152: 2029-05-15 | L152: 2021 | M152: 2029 | N152: 05/15/2021 - 05/15/2029 | O152: Sacramento County | P152: 6th Cycle | Q152: 06/30/2021-05/14/2021
E153: Fontana | F153: 2021-06-30 | G153: 2029-10-15 | H153: 2021 | I153: 2029 | J153: 2021-10-15 | K153: 2029-10-15 | L153: 2021 | M153: 2029 | N153: 10/15/2021 - 10/15/2029 | O153: San Bernardino County | P153: 6th Cycle | Q153: 06/30/2021-10/14/2021
E154: Fort Bragg | F154: 2019-01-01 | G154: 2027-08-15 | H154: 2019 | I154: 2027 | J154: 2019-08-15 | K154: 2027-08-15 | L154: 2019 | M154: 2027 | N154: 08/15/2019 - 08/15/2027 | O154: Mendocino County | P154: 6th Cycle | Q154: 01/01/2019-08/14/2019
E155: Fort Jones | F155: 2018-12-31 | G155: 2030-11-15 | H155: 2018 | I155: 2030 | J155: 2023-02-15 | K155: 2031-02-15 | L155: 2023 | M155: 2031 | N155: 02/15/2023 - 02/15/2031 | O155: Siskiyou County | P155: 6th Cycle | Q155: 12/31/2018-02/14/2023
E156: Fortuna | F156: 2019-01-01 | G156: 2027-08-31 | H156: 2019 | I156: 2027 | J156: 2019-08-31 | K156: 2027-08-31 | L156: 2019 | M156: 2027 | N156: 08/31/2019 - 08/31/2027 | O156: Humboldt County | P156: 6th Cycle | Q156: 01/01/2019-08/30/2019
E157: Foster City | F157: 2022-06-30 | G157: 2030-12-31 | H157: 2022 | I157: 2030 | J157: 2023-01-31 | K157: 2031-01-31 | L157: 2023 | M157: 2031 | N157: 01/31/2023 - 01/31/2031 | O157: San Mateo County | P157: 6th Cycle | Q157: 06/30/2022-01/30/2023
E158: Fountain Valley | F158: 2021-06-30 | G158: 2029-10-15 | H158: 2021 | I158: 2029 | J158: 2021-10-15 | K158: 2029-10-15 | L158: 2021 | M158: 2029 | N158: 10/15/2021 - 10/15/2029 | O158: Orange County | P158: 6th Cycle | Q158: 06/30/2021-10/14/2021
E159: Fowler | F159: 2023-06-30 | G159: 2031-12-31 | H159: 2023 | I159: 2031 | J159: 2023-12-31 | K159: 2031-12-31 | L159: 2023 | M159: 2031 | N159: 12/31/2023 - 12/31/2031 | O159: Fresno County | P159: 6th Cycle | Q159: 06/30/2023-12/30/2023
E160: Fremont | F160: 2022-06-30 | G160: 2030-12-31 | H160: 2022 | I160: 2030 | J160: 2023-01-31 | K160: 2031-01-31 | L160: 2023 | M160: 2031 | N160: 01/31/2023 - 01/31/2031 | O160: Alameda County | P160: 6th Cycle | Q160: 06/30/2022-01/30/2023
E161: Fresno | F161: 2023-06-30 | G161: 2031-12-31 | H161: 2023 | I161: 2031 | J161: 2023-12-31 | K161: 2031-12-31 | L161: 2023 | M161: 2031 | N161: 12/31/2023 - 12/31/2031 | O161: Fresno County | P161: 6th Cycle | Q161: 06/30/2023-12/30/2023
E162: Fresno County - Unincorporated | F162: 2023-06-30 | G162: 2031-12-31 | H162: 2023 | I162: 2031 | J162: 2023-12-31 | K162: 2031-12-31 | L162: 2023 | M162: 2031 | N162: 12/31/2023 - 12/31/2031 | O162: Fresno County | P162: 6th Cycle | Q162: 06/30/2023-12/30/2023
E163: Fullerton | F163: 2021-06-30 | G163: 2029-10-15 | H163: 2021 | I163: 2029 | J163: 2021-10-15 | K163: 2029-10-15 | L163: 2021 | M163: 2029 | N163: 10/15/2021 - 10/15/2029 | O163: Orange County | P163: 6th Cycle | Q163: 06/30/2021-10/14/2021
E164: Galt | F164: 2021-06-30 | G164: 2029-08-31 | H164: 2021 | I164: 2029 | J164: 2021-05-15 | K164: 2029-05-15 | L164: 2021 | M164: 2029 | N164: 05/15/2021 - 05/15/2029 | O164: Sacramento County | P164: 6th Cycle | Q164: 06/30/2021-05/14/2021
E165: Garden Grove | F165: 2021-06-30 | G165: 2029-10-15 | H165: 2021 | I165: 2029 | J165: 2021-10-15 | K165: 2029-10-15 | L165: 2021 | M165: 2029 | N165: 10/15/2021 - 10/15/2029 | O165: Orange County | P165: 6th Cycle | Q165: 06/30/2021-10/14/2021
E166: Gardena | F166: 2021-06-30 | G166: 2029-10-15 | H166: 2021 | I166: 2029 | J166: 2021-10-15 | K166: 2029-10-15 | L166: 2021 | M166: 2029 | N166: 10/15/2021 - 10/15/2029 | O166: Los Angeles County | P166: 6th Cycle | Q166: 06/30/2021-10/14/2021
E167: Gilroy | F167: 2022-06-30 | G167: 2030-12-31 | H167: 2022 | I167: 2030 | J167: 2023-01-31 | K167: 2031-01-31 | L167: 2023 | M167: 2031 | N167: 01/31/2023 - 01/31/2031 | O167: Santa Clara County | P167: 6th Cycle | Q167: 06/30/2022-01/30/2023
E168: Glendale | F168: 2021-06-30 | G168: 2029-10-15 | H168: 2021 | I168: 2029 | J168: 2021-10-15 | K168: 2029-10-15 | L168: 2021 | M168: 2029 | N168: 10/15/2021 - 10/15/2029 | O168: Los Angeles County | P168: 6th Cycle | Q168: 06/30/2021-10/14/2021
E169: Glendora | F169: 2021-06-30 | G169: 2029-10-15 | H169: 2021 | I169: 2029 | J169: 2021-10-15 | K169: 2029-10-15 | L169: 2021 | M169: 2029 | N169: 10/15/2021 - 10/15/2029 | O169: Los Angeles County | P169: 6th Cycle | Q169: 06/30/2021-10/14/2021
E170: Glenn County - Unincorporated | F170: 2018-12-31 | G170: 2029-11-30 | H170: 2018 | I170: 2029 | J170: 2021-11-30 | K170: 2029-11-30 | L170: 2021 | M170: 2029 | N170: 11/30/2021 - 11/30/2029 | O170: Glenn County | P170: 6th Cycle | Q170: 12/31/2018-11/29/2021
E171: Goleta | F171: 2022-06-30 | G171: 2031-02-15 | H171: 2022 | I171: 2031 | J171: 2023-02-15 | K171: 2031-02-15 | L171: 2023 | M171: 2031 | N171: 02/15/2023 - 02/15/2031 | O171: Santa Barbara County | P171: 6th Cycle | Q171: 06/30/2022-02/14/2023
E172: Gonzales | F172: 2023-06-30 | G172: 2031-12-15 | H172: 2023 | I172: 2031 | J172: 2023-12-15 | K172: 2031-12-15 | L172: 2023 | M172: 2031 | N172: 12/15/2023 - 12/15/2031 | O172: Monterey County | P172: 6th Cycle | Q172: 06/30/2023-12/14/2023
E173: Grand Terrace | F173: 2021-06-30 | G173: 2029-10-15 | H173: 2021 | I173: 2029 | J173: 2021-10-15 | K173: 2029-10-15 | L173: 2021 | M173: 2029 | N173: 10/15/2021 - 10/15/2029 | O173: San Bernardino County | P173: 6th Cycle | Q173: 06/30/2021-10/14/2021
E174: Grass Valley | F174: 2019-01-01 | G174: 2027-08-15 | H174: 2019 | I174: 2027 | J174: 2019-08-15 | K174: 2027-08-15 | L174: 2019 | M174: 2027 | N174: 08/15/2019 - 08/15/2027 | O174: Nevada County | P174: 6th Cycle | Q174: 01/01/2019-08/14/2019
E175: Greenfield | F175: 2023-06-30 | G175: 2031-12-15 | H175: 2023 | I175: 2031 | J175: 2023-12-15 | K175: 2031-12-15 | L175: 2023 | M175: 2031 | N175: 12/15/2023 - 12/15/2031 | O175: Monterey County | P175: 6th Cycle | Q175: 06/30/2023-12/14/2023
E176: Gridley | F176: 2021-12-31 | G176: 2030-06-15 | H176: 2021 | I176: 2030 | J176: 2022-06-15 | K176: 2030-06-15 | L176: 2022 | M176: 2030 | N176: 06/15/2022 - 06/15/2030 | O176: Butte County | P176: 6th Cycle | Q176: 12/31/2021-06/14/2022
E177: Grover Beach | F177: 2019-01-01 | G177: 2028-12-31 | H177: 2019 | I177: 2028 | J177: 2021-01-01 | K177: 2028-12-31 | L177: 2021 | M177: 2028 | N177: 01/01/2021 - 12/31/2028 | O177: San Luis Obispo County | P177: 6th Cycle | Q177: 01/01/2019-12/31/2020
E178: Guadalupe | F178: 2022-06-30 | G178: 2031-02-15 | H178: 2022 | I178: 2031 | J178: 2023-02-15 | K178: 2031-02-15 | L178: 2023 | M178: 2031 | N178: 02/15/2023 - 02/15/2031 | O178: Santa Barbara County | P178: 6th Cycle | Q178: 06/30/2022-02/14/2023
E179: Gustine | F179: 2023-06-30 | G179: 2032-01-31 | H179: 2023 | I179: 2032 | J179: 2024-01-31 | K179: 2032-01-31 | L179: 2024 | M179: 2032 | N179: 01/31/2024 - 01/31/2032 | O179: Merced County | P179: 6th Cycle | Q179: 06/30/2023-01/30/2024
E180: Half Moon Bay | F180: 2022-06-30 | G180: 2030-12-31 | H180: 2022 | I180: 2030 | J180: 2023-01-31 | K180: 2031-01-31 | L180: 2023 | M180: 2031 | N180: 01/31/2023 - 01/31/2031 | O180: San Mateo County | P180: 6th Cycle | Q180: 06/30/2022-01/30/2023
E181: Hanford | F181: 2023-06-30 | G181: 2032-01-31 | H181: 2023 | I181: 2032 | J181: 2024-01-31 | K181: 2032-01-31 | L181: 2024 | M181: 2032 | N181: 01/31/2024 - 01/31/2032 | O181: Kings County | P181: 6th Cycle | Q181: 06/30/2023-01/30/2024
E182: Hawaiian Gardens | F182: 2021-06-30 | G182: 2029-10-15 | H182: 2021 | I182: 2029 | J182: 2021-10-15 | K182: 2029-10-15 | L182: 2021 | M182: 2029 | N182: 10/15/2021 - 10/15/2029 | O182: Los Angeles County | P182: 6th Cycle | Q182: 06/30/2021-10/14/2021
E183: Hawthorne | F183: 2021-06-30 | G183: 2029-10-15 | H183: 2021 | I183: 2029 | J183: 2021-10-15 | K183: 2029-10-15 | L183: 2021 | M183: 2029 | N183: 10/15/2021 - 10/15/2029 | O183: Los Angeles County | P183: 6th Cycle | Q183: 06/30/2021-10/14/2021
E184: Hayward | F184: 2022-06-30 | G184: 2030-12-31 | H184: 2022 | I184: 2030 | J184: 2023-01-31 | K184: 2031-01-31 | L184: 2023 | M184: 2031 | N184: 01/31/2023 - 01/31/2031 | O184: Alameda County | P184: 6th Cycle | Q184: 06/30/2022-01/30/2023
E185: Healdsburg | F185: 2022-06-30 | G185: 2030-12-31 | H185: 2022 | I185: 2030 | J185: 2023-01-31 | K185: 2031-01-31 | L185: 2023 | M185: 2031 | N185: 01/31/2023 - 01/31/2031 | O185: Sonoma County | P185: 6th Cycle | Q185: 06/30/2022-01/30/2023
E186: Hemet | F186: 2021-06-30 | G186: 2029-10-15 | H186: 2021 | I186: 2029 | J186: 2021-10-15 | K186: 2029-10-15 | L186: 2021 | M186: 2029 | N186: 10/15/2021 - 10/15/2029 | O186: Riverside County | P186: 6th Cycle | Q186: 06/30/2021-10/14/2021
E187: Hercules | F187: 2022-06-30 | G187: 2030-12-31 | H187: 2022 | I187: 2030 | J187: 2023-01-31 | K187: 2031-01-31 | L187: 2023 | M187: 2031 | N187: 01/31/2023 - 01/31/2031 | O187: Contra Costa County | P187: 6th Cycle | Q187: 06/30/2022-01/30/2023
E188: Hermosa Beach | F188: 2021-06-30 | G188: 2029-10-15 | H188: 2021 | I188: 2029 | J188: 2021-10-15 | K188: 2029-10-15 | L188: 2021 | M188: 2029 | N188: 10/15/2021 - 10/15/2029 | O188: Los Angeles County | P188: 6th Cycle | Q188: 06/30/2021-10/14/2021
E189: Hesperia | F189: 2021-06-30 | G189: 2029-10-15 | H189: 2021 | I189: 2029 | J189: 2021-10-15 | K189: 2029-10-15 | L189: 2021 | M189: 2029 | N189: 10/15/2021 - 10/15/2029 | O189: San Bernardino County | P189: 6th Cycle | Q189: 06/30/2021-10/14/2021
E190: Hidden Hills | F190: 2021-06-30 | G190: 2029-10-15 | H190: 2021 | I190: 2029 | J190: 2021-10-15 | K190: 2029-10-15 | L190: 2021 | M190: 2029 | N190: 10/15/2021 - 10/15/2029 | O190: Los Angeles County | P190: 6th Cycle | Q190: 06/30/2021-10/14/2021
E191: Highland | F191: 2021-06-30 | G191: 2029-10-15 | H191: 2021 | I191: 2029 | J191: 2021-10-15 | K191: 2029-10-15 | L191: 2021 | M191: 2029 | N191: 10/15/2021 - 10/15/2029 | O191: San Bernardino County | P191: 6th Cycle | Q191: 06/30/2021-10/14/2021
E192: Hillsborough | F192: 2022-06-30 | G192: 2030-12-31 | H192: 2022 | I192: 2030 | J192: 2023-01-31 | K192: 2031-01-31 | L192: 2023 | M192: 2031 | N192: 01/31/2023 - 01/31/2031 | O192: San Mateo County | P192: 6th Cycle | Q192: 06/30/2022-01/30/2023
E193: Hollister | F193: 2023-06-30 | G193: 2031-12-15 | H193: 2023 | I193: 2031 | J193: 2023-12-15 | K193: 2031-12-15 | L193: 2023 | M193: 2031 | N193: 12/15/2023 - 12/15/2031 | O193: San Benito County | P193: 6th Cycle | Q193: 06/30/2023-12/14/2023
E194: Holtville | F194: 2021-06-30 | G194: 2029-10-15 | H194: =YEAR(F194) -> 2021 | I194: =YEAR(G194) -> 2029 | J194: 2021-10-15 | K194: 2029-10-15 | L194: =YEAR(J194) -> 2021 | M194: =YEAR(K194) -> 2029 | N194: =TEXT(J194,"mm/dd/yyyy")&" - "&TEXT(K194,"mm/dd/yyyy") -> 10/15/2021 - 10/15/2029 | O194: Imperial County | P194: 6th Cycle | Q194: =TEXT(F194,"mm/dd/yyyy")&"-"&TEXT(J194-1,"mm/dd/yyyy") -> 06/30/2021-10/14/2021
E195: Hughson | F195: 2023-06-30 | G195: 2031-12-31 | H195: 2023 | I195: 2031 | J195: 2023-12-31 | K195: 2031-12-31 | L195: 2023 | M195: 2031 | N195: 12/31/2023 - 12/31/2031 | O195: Stanislaus County | P195: 6th Cycle | Q195: 06/30/2023-12/30/2023
E196: Humboldt County - Unincorporated | F196: 2019-01-01 | G196: 2027-08-31 | H196: 2019 | I196: 2027 | J196: 2019-08-31 | K196: 2027-08-31 | L196: 2019 | M196: 2027 | N196: 08/31/2019 - 08/31/2027 | O196: Humboldt County | P196: 6th Cycle | Q196: 01/01/2019-08/30/2019
E197: Huntington Beach | F197: 2021-06-30 | G197: 2029-10-15 | H197: 2021 | I197: 2029 | J197: 2021-10-15 | K197: 2029-10-15 | L197: 2021 | M197: 2029 | N197: 10/15/2021 - 10/15/2029 | O197: Orange County | P197: 6th Cycle | Q197: 06/30/2021-10/14/2021
E198: Huntington Park | F198: 2021-06-30 | G198: 2029-10-15 | H198: 2021 | I198: 2029 | J198: 2021-10-15 | K198: 2029-10-15 | L198: 2021 | M198: 2029 | N198: 10/15/2021 - 10/15/2029 | O198: Los Angeles County | P198: 6th Cycle | Q198: 06/30/2021-10/14/2021
E199: Huron | F199: 2023-06-30 | G199: 2031-12-31 | H199: 2023 | I199: 2031 | J199: 2023-12-31 | K199: 2031-12-31 | L199: 2023 | M199: 2031 | N199: 12/31/2023 - 12/31/2031 | O199: Fresno County | P199: 6th Cycle | Q199: 06/30/2023-12/30/2023
E200: Imperial | F200: 2021-06-30 | G200: 2029-10-15 | H200: 2021 | I200: 2029 | J200: 2021-10-15 | K200: 2029-10-15 | L200: 2021 | M200: 2029 | N200: 10/15/2021 - 10/15/2029 | O200: Imperial County | P200: 6th Cycle | Q200: 06/30/2021-10/14/2021
... 340 more rows

Sheet RHNA past year values (hidden)
A1: Jurisdiction | B1: PLANNING PERIOD | C1: APR YEAR | D1: Lookup value | E1: MIN VLI RHNA | F1: SUM VLI PERMITS | G1: SUM VLI (DR) UNITS | H1: SUM VLI (NDR) UNITS | I1: VLI REMAIN UNITS | J1: MIN LI RHNA | K1: SUM LI PERMITS | L1: SUM LI (DR) UNITS | M1: SUM LI (NDR) UNITS | N1: LI REMAIN UNITS | O1: MIN MOD RHNA | P1: SUM MOD PERMITS | Q1: MOD REMAIN UNITS | R1: MIN ABOVE MOD RHNA | S1: SUM ABOVE MOD PERMITS | T1: ABOVE MOD REMAIN UNITS | U1: MIN RHNA TOTAL | V1: SUM TOTAL PERMITS
A2: Adelanto | B2: =VLOOKUP(A2,'Planning Periods'!$E$2:$N$540,10,FALSE) -> 10/15/2021 - 10/15/2029 | C2: 2013 | D2: =CONCATENATE(A2," ",C2) -> Adelanto 2013
A3: Adelanto | B3: =VLOOKUP(A3,'Planning Periods'!$E$2:$N$540,10,FALSE) -> 10/15/2021 - 10/15/2029 | C3: 2014 | D3: Adelanto 2014
A4: Adelanto | B4: =VLOOKUP(A4,'Planning Periods'!$E$2:$N$540,10,FALSE) -> 10/15/2021 - 10/15/2029 | C4: 2015 | D4: Adelanto 2015
A5: Adelanto | B5: =VLOOKUP(A5,'Planning Periods'!$E$2:$N$540,10,FALSE) -> 10/15/2021 - 10/15/2029 | C5: 2016 | D5: Adelanto 2016
A6: Adelanto | B6: =VLOOKUP(A6,'Planning Periods'!$E$2:$N$540,10,FALSE) -> 10/15/2021 - 10/15/2029 | C6: 2017 | D6: =CONCATENATE(A6," ",C6) -> Adelanto 2017
A7: Agoura Hills | B7: =VLOOKUP(A7,'Planning Periods'!$E$2:$N$540,10,FALSE) -> 10/15/2021 - 10/15/2029 | C7: 2013 | D7: Agoura Hills 2013
A8: Agoura Hills | B8: =VLOOKUP(A8,'Planning Periods'!$E$2:$N$540,10,FALSE) -> 10/15/2021 - 10/15/2029 | C8: 2014 | D8: Agoura Hills 2014 | E8: 31 | F8: 0 | G8: 0 | H8: 0 | J8: 19 | K8: 0 | L8: 0 | M8: 0 | O8: 20 | P8: 0 | R8: 45 | S8: 17 | T8: 0 | U8: 115 | V8: 17
A9: Agoura Hills | B9: =VLOOKUP(A9,'Planning Periods'!$E$2:$N$540,10,FALSE) -> 10/15/2021 - 10/15/2029 | C9: 2015 | D9: Agoura Hills 2015 | E9: 31 | F9: 0 | G9: 0 | H9: 0 | J9: 19 | K9: 0 | L9: 0 | M9: 0 | O9: 20 | P9: 0 | R9: 45 | S9: 15 | T9: 0 | U9: 115 | V9: 15
A10: Agoura Hills | B10: =VLOOKUP(A10,'Planning Periods'!$E$2:$N$540,10,FALSE) -> 10/15/2021 - 10/15/2029 | C10: 2016 | D10: Agoura Hills 2016 | E10: 31 | F10: 0 | G10: 0 | H10: 0 | J10: 19 | K10: 0 | L10: 0 | M10: 0 | O10: 20 | P10: 0 | R10: 45 | S10: 2 | T10: 0 | U10: 115 | V10: 2
A11: Agoura Hills | B11: =VLOOKUP(A11,'Planning Periods'!$E$2:$N$540,10,FALSE) -> 10/15/2021 - 10/15/2029 | C11: 2017 | D11: Agoura Hills 2017 | E11: 31 | F11: 0 | G11: 0 | H11: 0 | J11: 19 | K11: 0 | L11: 0 | M11: 0 | O11: 20 | P11: 0 | R11: 45 | S11: 7 | T11: 0 | U11: 115 | V11: 7
A12: Alameda | B12: =VLOOKUP(A12,'Planning Periods'!$E$2:$N$540,10,FALSE) -> 01/31/2023 - 01/31/2031 | C12: 2014 | D12: Alameda 2014
A13: Alameda | B13: =VLOOKUP(A13,'Planning Periods'!$E$2:$N$540,10,FALSE) -> 01/31/2023 - 01/31/2031 | C13: 2015 | D13: Alameda 2015 | E13: 444 | F13: 19 | G13: 19 | H13: 0 | J13: 248 | K13: 22 | L13: 22 | M13: 0 | O13: 283 | P13: 14 | R13: 748 | S13: 192 | T13: 0 | U13: 1723 | V13: 247
A14: Alameda | B14: =VLOOKUP(A14,'Planning Periods'!$E$2:$N$540,10,FALSE) -> 01/31/2023 - 01/31/2031 | C14: 2016 | D14: Alameda 2016 | E14: 444 | F14: 17 | G14: 17 | H14: 0 | J14: 248 | K14: 14 | L14: 14 | M14: 0 | O14: 283 | P14: 7 | R14: 748 | S14: 61 | T14: 0 | U14: 1723 | V14: 99
A15: Alameda | B15: =VLOOKUP(A15,'Planning Periods'!$E$2:$N$540,10,FALSE) -> 01/31/2023 - 01/31/2031 | C15: 2017 | D15: Alameda 2017 | E15: 444 | F15: 18 | G15: 18 | H15: 0 | J15: 248 | K15: 4 | L15: 4 | M15: 0 | O15: 283 | P15: 5 | R15: 748 | S15: 66 | T15: 0 | U15: 1723 | V15: 93
A16: Alameda County - Unincorporated | B16: =VLOOKUP(A16,'Planning Periods'!$E$2:$N$540,10,FALSE) -> 01/31/2023 - 01/31/2031 | C16: 2014 | D16: Alameda County - Unincorporated 2014 | E16: 430 | F16: 0 | G16: 0 | H16: 0 | J16: 227 | K16: 3 | L16: 0 | M16: 3 | O16: 295 | P16: 14 | R16: 817 | S16: 12 | T16: 3 | U16: 1769 | V16: 29
A17: Alameda County - Unincorporated | B17: =VLOOKUP(A17,'Planning Periods'!$E$2:$N$540,10,FALSE) -> 01/31/2023 - 01/31/2031 | C17: 2015 | D17: Alameda County - Unincorporated 2015 | E17: 430 | F17: 35 | G17: 35 | H17: 0 | J17: 227 | K17: 65 | L17: 65 | M17: 0 | O17: 295 | P17: 21 | R17: 817 | S17: 17 | T17: 0 | U17: 1769 | V17: 138
A18: Alameda County - Unincorporated | B18: =VLOOKUP(A18,'Planning Periods'!$E$2:$N$540,10,FALSE) -> 01/31/2023 - 01/31/2031 | C18: 2016 | D18: Alameda County - Unincorporated 2016 | E18: 430 | F18: 85 | G18: 85 | H18: 0 | J18: 227 | K18: 8 | L18: 8 | M18: 0 | O18: 295 | P18: 0 | R18: 817 | S18: 9 | T18: 0 | U18: 1769 | V18: 102
A19: Alameda County - Unincorporated | B19: =VLOOKUP(A19,'Planning Periods'!$E$2:$N$540,10,FALSE) -> 01/31/2023 - 01/31/2031 | C19: 2017 | D19: Alameda County - Unincorporated 2017 | E19: 430 | F19: 0 | G19: 0 | H19: 0 | J19: 227 | K19: 3 | L19: 0 | M19: 3 | O19: 295 | P19: 0 | R19: 817 | S19: 32 | T19: 3 | U19: 1769 | V19: 35
A20: Albany | B20: =VLOOKUP(A20,'Planning Periods'!$E$2:$N$540,10,FALSE) -> 01/31/2023 - 01/31/2031 | C20: 2014 | D20: Albany 2014
A21: Albany | B21: =VLOOKUP(A21,'Planning Periods'!$E$2:$N$540,10,FALSE) -> 01/31/2023 - 01/31/2031 | C21: 2015 | D21: Albany 2015
A22: Albany | B22: =VLOOKUP(A22,'Planning Periods'!$E$2:$N$540,10,FALSE) -> 01/31/2023 - 01/31/2031 | C22: 2016 | D22: Albany 2016 | E22: 80 | F22: 0 | G22: 0 | H22: 0 | J22: 53 | K22: 0 | L22: 0 | M22: 0 | O22: 57 | P22: 0 | R22: 145 | S22: 186 | T22: 0 | U22: 335 | V22: 186
A23: Albany | B23: =VLOOKUP(A23,'Planning Periods'!$E$2:$N$540,10,FALSE) -> 01/31/2023 - 01/31/2031 | C23: 2017 | D23: Albany 2017 | E23: 80 | F23: 0 | G23: 0 | H23: 0 | J23: 53 | K23: 0 | L23: 0 | M23: 0 | O23: 57 | P23: 4 | R23: 145 | S23: 8 | T23: 0 | U23: 335 | V23: 12
A24: Alhambra | B24: =VLOOKUP(A24,'Planning Periods'!$E$2:$N$540,10,FALSE) -> 10/15/2021 - 10/15/2029 | C24: 2013 | D24: Alhambra 2013 | E24: 380 | F24: 0 | G24: 0 | H24: 0 | J24: 224 | K24: 0 | L24: 0 | M24: 0 | O24: 246 | P24: 1 | R24: 642 | S24: 174 | T24: 0 | U24: 1492 | V24: 175
A25: Alhambra | B25: =VLOOKUP(A25,'Planning Periods'!$E$2:$N$540,10,FALSE) -> 10/15/2021 - 10/15/2029 | C25: 2014 | D25: Alhambra 2014 | E25: 380 | F25: 0 | G25: 0 | H25: 0 | J25: 224 | K25: 8 | L25: 8 | M25: 0 | O25: 246 | P25: 3 | R25: 642 | S25: 29 | T25: 0 | U25: 1492 | V25: 40
A26: Alhambra | B26: =VLOOKUP(A26,'Planning Periods'!$E$2:$N$540,10,FALSE) -> 10/15/2021 - 10/15/2029 | C26: 2015 | D26: Alhambra 2015 | E26: 380 | F26: 0 | G26: 0 | H26: 0 | J26: 224 | K26: 0 | L26: 0 | M26: 0 | O26: 246 | P26: 0 | R26: 642 | S26: 0 | T26: 0 | U26: 1492 | V26: 0
A27: Alhambra | B27: =VLOOKUP(A27,'Planning Periods'!$E$2:$N$540,10,FALSE) -> 10/15/2021 - 10/15/2029 | C27: 2016 | D27: Alhambra 2016 | E27: 380 | F27: 0 | G27: 0 | H27: 0 | J27: 224 | K27: 0 | L27: 0 | M27: 0 | O27: 246 | P27: 0 | R27: 642 | S27: 38 | T27: 0 | U27: 1492 | V27: 38
A28: Alhambra | B28: =VLOOKUP(A28,'Planning Periods'!$E$2:$N$540,10,FALSE) -> 10/15/2021 - 10/15/2029 | C28: 2017 | D28: Alhambra 2017 | E28: 380 | F28: 0 | G28: 0 | H28: 0 | J28: 224 | K28: 0 | L28: 0 | M28: 0 | O28: 246 | P28: 0 | R28: 642 | S28: 74 | T28: 0 | U28: 1492 | V28: 74
A29: Aliso Viejo | B29: =VLOOKUP(A29,'Planning Periods'!$E$2:$N$540,10,FALSE) -> 10/15/2021 - 10/15/2029 | C29: 2013 | D29: Aliso Viejo 2013
A30: Aliso Viejo | B30: =VLOOKUP(A30,'Planning Periods'!$E$2:$N$540,10,FALSE) -> 10/15/2021 - 10/15/2029 | C30: 2014 | D30: Aliso Viejo 2014 | E30: 9 | F30: 0 | G30: 0 | H30: 0 | J30: 7 | K30: 0 | L30: 0 | M30: 0 | O30: 7 | P30: 1 | R30: 16 | S30: 0 | T30: 0 | U30: 39 | V30: 1
A31: Aliso Viejo | B31: =VLOOKUP(A31,'Planning Periods'!$E$2:$N$540,10,FALSE) -> 10/15/2021 - 10/15/2029 | C31: 2015 | D31: Aliso Viejo 2015 | E31: 9 | F31: 33 | G31: 33 | H31: 0 | J31: 7 | K31: 187 | L31: 187 | M31: 0 | O31: 7 | P31: 419 | R31: 16 | S31: 0 | T31: 0 | U31: 39 | V31: 639
A32: Aliso Viejo | B32: =VLOOKUP(A32,'Planning Periods'!$E$2:$N$540,10,FALSE) -> 10/15/2021 - 10/15/2029 | C32: 2016 | D32: Aliso Viejo 2016 | E32: 9 | F32: 50 | G32: 50 | H32: 0 | J32: 7 | K32: 148 | L32: 148 | M32: 0 | O32: 7 | P32: 4 | R32: 16 | S32: 0 | T32: 0 | U32: 39 | V32: 202
A33: Aliso Viejo | B33: =VLOOKUP(A33,'Planning Periods'!$E$2:$N$540,10,FALSE) -> 10/15/2021 - 10/15/2029 | C33: 2017 | D33: Aliso Viejo 2017 | E33: 9 | F33: 0 | G33: 0 | H33: 0 | J33: 7 | K33: 0 | L33: 0 | M33: 0 | O33: 7 | P33: 0 | R33: 16 | S33: 0 | T33: 0 | U33: 39 | V33: 0
A34: Alpine County - Unincorporated | B34: =VLOOKUP(A34,'Planning Periods'!$E$2:$N$540,10,FALSE) -> 06/30/2024 - 06/30/2029 | C34: 2014 | D34: Alpine County - Unincorporated 2014 | E34: 7 | F34: 0 | G34: 0 | H34: 0 | J34: 6 | K34: 0 | L34: 0 | M34: 0 | O34: 6 | P34: 1 | R34: 11 | S34: 1 | T34: 0 | U34: 30 | V34: 2
A35: Alpine County - Unincorporated | B35: =VLOOKUP(A35,'Planning Periods'!$E$2:$N$540,10,FALSE) -> 06/30/2024 - 06/30/2029 | C35: 2015 | D35: Alpine County - Unincorporated 2015 | E35: 7 | F35: 0 | G35: 0 | H35: 0 | J35: 6 | K35: 0 | L35: 0 | M35: 0 | O35: 6 | P35: 0 | R35: 11 | S35: 4 | T35: 0 | U35: 30 | V35: 4
A36: Alpine County - Unincorporated | B36: =VLOOKUP(A36,'Planning Periods'!$E$2:$N$540,10,FALSE) -> 06/30/2024 - 06/30/2029 | C36: 2016 | D36: Alpine County - Unincorporated 2016 | E36: 7 | F36: 0 | G36: 0 | H36: 0 | J36: 6 | K36: 0 | L36: 0 | M36: 0 | O36: 6 | P36: 0 | R36: 11 | S36: 2 | T36: 0 | U36: 30 | V36: 2
A37: Alpine County - Unincorporated | B37: =VLOOKUP(A37,'Planning Periods'!$E$2:$N$540,10,FALSE) -> 06/30/2024 - 06/30/2029 | C37: 2017 | D37: Alpine County - Unincorporated 2017 | E37: 7 | F37: 0 | G37: 0 | H37: 0 | J37: 6 | K37: 2 | L37: 0 | M37: 2 | O37: 6 | P37: 3 | R37: 11 | S37: 3 | T37: 2 | U37: 30 | V37: 8
A38: Alturas | B38: =VLOOKUP(A38,'Planning Periods'!$E$2:$N$540,10,FALSE) -> 06/30/2024 - 06/30/2029 | C38: 2014 | D38: Alturas 2014 | I38: 0 | N38: 0
A39: Alturas | B39: =VLOOKUP(A39,'Planning Periods'!$E$2:$N$540,10,FALSE) -> 06/30/2024 - 06/30/2029 | C39: 2015 | D39: Alturas 2015
A40: Alturas | B40: =VLOOKUP(A40,'Planning Periods'!$E$2:$N$540,10,FALSE) -> 06/30/2024 - 06/30/2029 | C40: 2016 | D40: Alturas 2016
A41: Alturas | B41: =VLOOKUP(A41,'Planning Periods'!$E$2:$N$540,10,FALSE) -> 06/30/2024 - 06/30/2029 | C41: 2017 | D41: Alturas 2017
A42: Amador City | B42: =VLOOKUP(A42,'Planning Periods'!$E$2:$N$540,10,FALSE) -> 09/15/2021 - 09/15/2029 | C42: 2014 | D42: Amador City 2014 | I42: 0 | N42: 0
A43: Amador City | B43: =VLOOKUP(A43,'Planning Periods'!$E$2:$N$540,10,FALSE) -> 09/15/2021 - 09/15/2029 | C43: 2015 | D43: Amador City 2015
A44: Amador City | B44: =VLOOKUP(A44,'Planning Periods'!$E$2:$N$540,10,FALSE) -> 09/15/2021 - 09/15/2029 | C44: 2016 | D44: Amador City 2016
A45: Amador City | B45: =VLOOKUP(A45,'Planning Periods'!$E$2:$N$540,10,FALSE) -> 09/15/2021 - 09/15/2029 | C45: 2017 | D45: Amador City 2017
A46: Amador County - Unincorporated | B46: =VLOOKUP(A46,'Planning Periods'!$E$2:$N$540,10,FALSE) -> 09/15/2021 - 09/15/2029 | C46: 2014 | D46: Amador County - Unincorporated 2014
A47: Amador County - Unincorporated | B47: =VLOOKUP(A47,'Planning Periods'!$E$2:$N$540,10,FALSE) -> 09/15/2021 - 09/15/2029 | C47: 2015 | D47: Amador County - Unincorporated 2015
A48: Amador County - Unincorporated | B48: =VLOOKUP(A48,'Planning Periods'!$E$2:$N$540,10,FALSE) -> 09/15/2021 - 09/15/2029 | C48: 2016 | D48: Amador County - Unincorporated 2016
A49: Amador County - Unincorporated | B49: =VLOOKUP(A49,'Planning Periods'!$E$2:$N$540,10,FALSE) -> 09/15/2021 - 09/15/2029 | C49: 2017 | D49: Amador County - Unincorporated 2017 | E49: 10 | F49: 0 | G49: 0 | H49: 0 | J49: 7 | K49: 2 | L49: 1 | M49: 1 | O49: 9 | P49: 13 | R49: 23 | S49: 17 | T49: 1 | U49: 49 | V49: 32
A50: American Canyon | B50: =VLOOKUP(A50,'Planning Periods'!$E$2:$N$540,10,FALSE) -> 01/31/2023 - 01/31/2031 | C50: 2014 | D50: American Canyon 2014
A51: American Canyon | B51: =VLOOKUP(A51,'Planning Periods'!$E$2:$N$540,10,FALSE) -> 01/31/2023 - 01/31/2031 | C51: 2015 | D51: American Canyon 2015 | E51: 116 | F51: 0 | G51: 0 | H51: 0 | J51: 54 | K51: 9 | L51: 9 | M51: 0 | O51: 58 | P51: 140 | R51: 164 | S51: 0 | T51: 0 | U51: 392 | V51: 149
A52: American Canyon | B52: =VLOOKUP(A52,'Planning Periods'!$E$2:$N$540,10,FALSE) -> 01/31/2023 - 01/31/2031 | C52: 2016 | D52: American Canyon 2016 | E52: 116 | F52: 0 | G52: 0 | H52: 0 | J52: 54 | K52: 0 | L52: 0 | M52: 0 | O52: 58 | P52: 0 | R52: 164 | S52: 0 | T52: 0 | U52: 392 | V52: 0
